Workbook

Sheet Payment Report
A1: LBB High Needs Payments for FY 2022-23
A3: Select School → | M3: =IF(D3="","No School Selected",INDEX(Schools!A:A,MATCH(D3,Schools!B:B,0))) -> No School Selected
H6: =MONTH(H7) -> 4 | I6: 5 | J6: 6 | K6: 7 | L6: 8 | M6: 9 | N6: 10 | O6: 11 | P6: 12 | Q6: 1 | R6: 2 | S6: 3
A7: Paid 2022-23 | B7: Type | H7: 2022-04-01 | I7: =EDATE(H7,1) -> 2022-05-01 | J7: 2022-06-01 | K7: 2022-07-01 | L7: 2022-08-01 | M7: 2022-09-01 | N7: 2022-10-01 | O7: 2022-11-01 | P7: 2022-12-01 | Q7: 2023-01-01 | R7: 2023-02-01 | S7: 2023-03-01 | T7: Total
A8: Place Funding | T8: =SUM(H8:S8) -> 0
A9: Top-Up | B9: EHCP | H9: =SUMIFS('HN TopUp Payment'!$G:$G,'HN TopUp Payment'!$Y:$Y,$B9,'HN TopUp Payment'!$T:$T,H$6,'HN TopUp Payment'!$X:$X,$D$3) -> 0 | I9: =SUMIFS('HN TopUp Payment'!$G:$G,'HN TopUp Payment'!$Y:$Y,$B9,'HN TopUp Payment'!$T:$T,I$6,'HN TopUp Payment'!$X:$X,$D$3) -> 0 | J9: =SUMIFS('HN TopUp Payment'!$G:$G,'HN TopUp Payment'!$Y:$Y,$B9,'HN TopUp Payment'!$T:$T,J$6,'HN TopUp Payment'!$X:$X,$D$3) -> 0 | K9: =SUMIFS('HN TopUp Payment'!$G:$G,'HN TopUp Payment'!$Y:$Y,$B9,'HN TopUp Payment'!$T:$T,K$6,'HN TopUp Payment'!$X:$X,$D$3) -> 0 | L9: =SUMIFS('HN TopUp Payment'!$G:$G,'HN TopUp Payment'!$Y:$Y,$B9,'HN TopUp Payment'!$T:$T,L$6,'HN TopUp Payment'!$X:$X,$D$3) -> 0 | M9: =SUMIFS('HN TopUp Payment'!$G:$G,'HN TopUp Payment'!$Y:$Y,$B9,'HN TopUp Payment'!$T:$T,M$6,'HN TopUp Payment'!$X:$X,$D$3) -> 0 | N9: =SUMIFS('HN TopUp Payment'!$G:$G,'HN TopUp Payment'!$Y:$Y,$B9,'HN TopUp Payment'!$T:$T,N$6,'HN TopUp Payment'!$X:$X,$D$3) -> 0 | O9: =SUMIFS('HN TopUp Payment'!$G:$G,'HN TopUp Payment'!$Y:$Y,$B9,'HN TopUp Payment'!$T:$T,O$6,'HN TopUp Payment'!$X:$X,$D$3) -> 0 | P9: =SUMIFS('HN TopUp Payment'!$G:$G,'HN TopUp Payment'!$Y:$Y,$B9,'HN TopUp Payment'!$T:$T,P$6,'HN TopUp Payment'!$X:$X,$D$3) -> 0 | Q9: =SUMIFS('HN TopUp Payment'!$G:$G,'HN TopUp Payment'!$Y:$Y,$B9,'HN TopUp Payment'!$T:$T,Q$6,'HN TopUp Payment'!$X:$X,$D$3) -> 0 | R9: =SUMIFS('HN TopUp Payment'!$G:$G,'HN TopUp Payment'!$Y:$Y,$B9,'HN TopUp Payment'!$T:$T,R$6,'HN TopUp Payment'!$X:$X,$D$3) -> 0 | S9: =SUMIFS('HN TopUp Payment'!$G:$G,'HN TopUp Payment'!$Y:$Y,$B9,'HN TopUp Payment'!$T:$T,S$6,'HN TopUp Payment'!$X:$X,$D$3) -> 0 | T9: 0
A10: ARPs | B10: ARPs | H10: =SUMIFS('HN TopUp Payment'!$G:$G,'HN TopUp Payment'!$Y:$Y,$B10,'HN TopUp Payment'!$T:$T,H$6,'HN TopUp Payment'!$X:$X,$D$3) -> 0 | I10: =SUMIFS('HN TopUp Payment'!$G:$G,'HN TopUp Payment'!$Y:$Y,$B10,'HN TopUp Payment'!$T:$T,I$6,'HN TopUp Payment'!$X:$X,$D$3) -> 0 | J10: =SUMIFS('HN TopUp Payment'!$G:$G,'HN TopUp Payment'!$Y:$Y,$B10,'HN TopUp Payment'!$T:$T,J$6,'HN TopUp Payment'!$X:$X,$D$3) -> 0 | K10: =SUMIFS('HN TopUp Payment'!$G:$G,'HN TopUp Payment'!$Y:$Y,$B10,'HN TopUp Payment'!$T:$T,K$6,'HN TopUp Payment'!$X:$X,$D$3) -> 0 | L10: =SUMIFS('HN TopUp Payment'!$G:$G,'HN TopUp Payment'!$Y:$Y,$B10,'HN TopUp Payment'!$T:$T,L$6,'HN TopUp Payment'!$X:$X,$D$3) -> 0 | M10: =SUMIFS('HN TopUp Payment'!$G:$G,'HN TopUp Payment'!$Y:$Y,$B10,'HN TopUp Payment'!$T:$T,M$6,'HN TopUp Payment'!$X:$X,$D$3) -> 0 | N10: =SUMIFS('HN TopUp Payment'!$G:$G,'HN TopUp Payment'!$Y:$Y,$B10,'HN TopUp Payment'!$T:$T,N$6,'HN TopUp Payment'!$X:$X,$D$3) -> 0 | O10: =SUMIFS('HN TopUp Payment'!$G:$G,'HN TopUp Payment'!$Y:$Y,$B10,'HN TopUp Payment'!$T:$T,O$6,'HN TopUp Payment'!$X:$X,$D$3) -> 0 | P10: =SUMIFS('HN TopUp Payment'!$G:$G,'HN TopUp Payment'!$Y:$Y,$B10,'HN TopUp Payment'!$T:$T,P$6,'HN TopUp Payment'!$X:$X,$D$3) -> 0 | Q10: =SUMIFS('HN TopUp Payment'!$G:$G,'HN TopUp Payment'!$Y:$Y,$B10,'HN TopUp Payment'!$T:$T,Q$6,'HN TopUp Payment'!$X:$X,$D$3) -> 0 | R10: =SUMIFS('HN TopUp Payment'!$G:$G,'HN TopUp Payment'!$Y:$Y,$B10,'HN TopUp Payment'!$T:$T,R$6,'HN TopUp Payment'!$X:$X,$D$3) -> 0 | S10: =SUMIFS('HN TopUp Payment'!$G:$G,'HN TopUp Payment'!$Y:$Y,$B10,'HN TopUp Payment'!$T:$T,S$6,'HN TopUp Payment'!$X:$X,$D$3) -> 0 | T10: 0
A11: PRUs | B11: PRUs | H11: =SUMIFS('HN TopUp Payment'!$G:$G,'HN TopUp Payment'!$Y:$Y,$B11,'HN TopUp Payment'!$T:$T,H$6,'HN TopUp Payment'!$X:$X,$D$3) -> 0 | I11: =SUMIFS('HN TopUp Payment'!$G:$G,'HN TopUp Payment'!$Y:$Y,$B11,'HN TopUp Payment'!$T:$T,I$6,'HN TopUp Payment'!$X:$X,$D$3) -> 0 | J11: =SUMIFS('HN TopUp Payment'!$G:$G,'HN TopUp Payment'!$Y:$Y,$B11,'HN TopUp Payment'!$T:$T,J$6,'HN TopUp Payment'!$X:$X,$D$3) -> 0 | K11: =SUMIFS('HN TopUp Payment'!$G:$G,'HN TopUp Payment'!$Y:$Y,$B11,'HN TopUp Payment'!$T:$T,K$6,'HN TopUp Payment'!$X:$X,$D$3) -> 0 | L11: =SUMIFS('HN TopUp Payment'!$G:$G,'HN TopUp Payment'!$Y:$Y,$B11,'HN TopUp Payment'!$T:$T,L$6,'HN TopUp Payment'!$X:$X,$D$3) -> 0 | M11: =SUMIFS('HN TopUp Payment'!$G:$G,'HN TopUp Payment'!$Y:$Y,$B11,'HN TopUp Payment'!$T:$T,M$6,'HN TopUp Payment'!$X:$X,$D$3) -> 0 | N11: =SUMIFS('HN TopUp Payment'!$G:$G,'HN TopUp Payment'!$Y:$Y,$B11,'HN TopUp Payment'!$T:$T,N$6,'HN TopUp Payment'!$X:$X,$D$3) -> 0 | O11: =SUMIFS('HN TopUp Payment'!$G:$G,'HN TopUp Payment'!$Y:$Y,$B11,'HN TopUp Payment'!$T:$T,O$6,'HN TopUp Payment'!$X:$X,$D$3) -> 0 | P11: =SUMIFS('HN TopUp Payment'!$G:$G,'HN TopUp Payment'!$Y:$Y,$B11,'HN TopUp Payment'!$T:$T,P$6,'HN TopUp Payment'!$X:$X,$D$3) -> 0 | Q11: =SUMIFS('HN TopUp Payment'!$G:$G,'HN TopUp Payment'!$Y:$Y,$B11,'HN TopUp Payment'!$T:$T,Q$6,'HN TopUp Payment'!$X:$X,$D$3) -> 0 | R11: =SUMIFS('HN TopUp Payment'!$G:$G,'HN TopUp Payment'!$Y:$Y,$B11,'HN TopUp Payment'!$T:$T,R$6,'HN TopUp Payment'!$X:$X,$D$3) -> 0 | S11: =SUMIFS('HN TopUp Payment'!$G:$G,'HN TopUp Payment'!$Y:$Y,$B11,'HN TopUp Payment'!$T:$T,S$6,'HN TopUp Payment'!$X:$X,$D$3) -> 0 | T11: 0
A12: SPEC | B12: SPEC | H12: =SUMIFS('HN TopUp Payment'!$G:$G,'HN TopUp Payment'!$Y:$Y,$B12,'HN TopUp Payment'!$T:$T,H$6,'HN TopUp Payment'!$X:$X,$D$3) -> 0 | I12: =SUMIFS('HN TopUp Payment'!$G:$G,'HN TopUp Payment'!$Y:$Y,$B12,'HN TopUp Payment'!$T:$T,I$6,'HN TopUp Payment'!$X:$X,$D$3) -> 0 | J12: =SUMIFS('HN TopUp Payment'!$G:$G,'HN TopUp Payment'!$Y:$Y,$B12,'HN TopUp Payment'!$T:$T,J$6,'HN TopUp Payment'!$X:$X,$D$3) -> 0 | K12: =SUMIFS('HN TopUp Payment'!$G:$G,'HN TopUp Payment'!$Y:$Y,$B12,'HN TopUp Payment'!$T:$T,K$6,'HN TopUp Payment'!$X:$X,$D$3) -> 0 | L12: =SUMIFS('HN TopUp Payment'!$G:$G,'HN TopUp Payment'!$Y:$Y,$B12,'HN TopUp Payment'!$T:$T,L$6,'HN TopUp Payment'!$X:$X,$D$3) -> 0 | M12: =SUMIFS('HN TopUp Payment'!$G:$G,'HN TopUp Payment'!$Y:$Y,$B12,'HN TopUp Payment'!$T:$T,M$6,'HN TopUp Payment'!$X:$X,$D$3) -> 0 | N12: =SUMIFS('HN TopUp Payment'!$G:$G,'HN TopUp Payment'!$Y:$Y,$B12,'HN TopUp Payment'!$T:$T,N$6,'HN TopUp Payment'!$X:$X,$D$3) -> 0 | O12: =SUMIFS('HN TopUp Payment'!$G:$G,'HN TopUp Payment'!$Y:$Y,$B12,'HN TopUp Payment'!$T:$T,O$6,'HN TopUp Payment'!$X:$X,$D$3) -> 0 | P12: =SUMIFS('HN TopUp Payment'!$G:$G,'HN TopUp Payment'!$Y:$Y,$B12,'HN TopUp Payment'!$T:$T,P$6,'HN TopUp Payment'!$X:$X,$D$3) -> 0 | Q12: =SUMIFS('HN TopUp Payment'!$G:$G,'HN TopUp Payment'!$Y:$Y,$B12,'HN TopUp Payment'!$T:$T,Q$6,'HN TopUp Payment'!$X:$X,$D$3) -> 0 | R12: =SUMIFS('HN TopUp Payment'!$G:$G,'HN TopUp Payment'!$Y:$Y,$B12,'HN TopUp Payment'!$T:$T,R$6,'HN TopUp Payment'!$X:$X,$D$3) -> 0 | S12: =SUMIFS('HN TopUp Payment'!$G:$G,'HN TopUp Payment'!$Y:$Y,$B12,'HN TopUp Payment'!$T:$T,S$6,'HN TopUp Payment'!$X:$X,$D$3) -> 0 | T12: 0
A13: SEN Inclusion | B13: SENI | H13: =SUMIFS('HN TopUp Payment'!$G:$G,'HN TopUp Payment'!$Y:$Y,$B13,'HN TopUp Payment'!$T:$T,H$6,'HN TopUp Payment'!$X:$X,$D$3) -> 0 | I13: =SUMIFS('HN TopUp Payment'!$G:$G,'HN TopUp Payment'!$Y:$Y,$B13,'HN TopUp Payment'!$T:$T,I$6,'HN TopUp Payment'!$X:$X,$D$3) -> 0 | J13: =SUMIFS('HN TopUp Payment'!$G:$G,'HN TopUp Payment'!$Y:$Y,$B13,'HN TopUp Payment'!$T:$T,J$6,'HN TopUp Payment'!$X:$X,$D$3) -> 0 | K13: =SUMIFS('HN TopUp Payment'!$G:$G,'HN TopUp Payment'!$Y:$Y,$B13,'HN TopUp Payment'!$T:$T,K$6,'HN TopUp Payment'!$X:$X,$D$3) -> 0 | L13: =SUMIFS('HN TopUp Payment'!$G:$G,'HN TopUp Payment'!$Y:$Y,$B13,'HN TopUp Payment'!$T:$T,L$6,'HN TopUp Payment'!$X:$X,$D$3) -> 0 | M13: =SUMIFS('HN TopUp Payment'!$G:$G,'HN TopUp Payment'!$Y:$Y,$B13,'HN TopUp Payment'!$T:$T,M$6,'HN TopUp Payment'!$X:$X,$D$3) -> 0 | N13: =SUMIFS('HN TopUp Payment'!$G:$G,'HN TopUp Payment'!$Y:$Y,$B13,'HN TopUp Payment'!$T:$T,N$6,'HN TopUp Payment'!$X:$X,$D$3) -> 0 | O13: =SUMIFS('HN TopUp Payment'!$G:$G,'HN TopUp Payment'!$Y:$Y,$B13,'HN TopUp Payment'!$T:$T,O$6,'HN TopUp Payment'!$X:$X,$D$3) -> 0 | P13: =SUMIFS('HN TopUp Payment'!$G:$G,'HN TopUp Payment'!$Y:$Y,$B13,'HN TopUp Payment'!$T:$T,P$6,'HN TopUp Payment'!$X:$X,$D$3) -> 0 | Q13: =SUMIFS('HN TopUp Payment'!$G:$G,'HN TopUp Payment'!$Y:$Y,$B13,'HN TopUp Payment'!$T:$T,Q$6,'HN TopUp Payment'!$X:$X,$D$3) -> 0 | R13: =SUMIFS('HN TopUp Payment'!$G:$G,'HN TopUp Payment'!$Y:$Y,$B13,'HN TopUp Payment'!$T:$T,R$6,'HN TopUp Payment'!$X:$X,$D$3) -> 0 | S13: =SUMIFS('HN TopUp Payment'!$G:$G,'HN TopUp Payment'!$Y:$Y,$B13,'HN TopUp Payment'!$T:$T,S$6,'HN TopUp Payment'!$X:$X,$D$3) -> 0 | T13: 0
A14: Total | H14: =SUM(H8:H13) -> 0 | I14: 0 | J14: 0 | K14: 0 | L14: 0 | M14: 0 | N14: 0 | O14: 0 | P14: 0 | Q14: 0 | R14: 0 | S14: 0 | T14: 0
A16: Variance | H16: =IF(H14>0,H14-H18,"") ->  | T16: =ROUND(SUM(H16:S16), 0) -> 0
A18: 2022-23 | C18: =IFERROR(_xlfn.AGGREGATE(9,3,(OFFSET(C20,0,0,COUNTA($A$20:$A$2004),1))),0) -> 0 | D18: =IFERROR(_xlfn.AGGREGATE(9,3,(OFFSET(D20,0,0,COUNTA($A$20:$A$2004),1))),0) -> 0 | E18: =IFERROR(_xlfn.AGGREGATE(9,3,(OFFSET(E20,0,0,COUNTA($A$20:$A$2004),1))),0) -> 0 | H18: =IFERROR(_xlfn.AGGREGATE(9,3,(OFFSET(H20,0,0,COUNTA($A$20:$A$2004),1))),0) -> 0 | I18: =IFERROR(_xlfn.AGGREGATE(9,3,(OFFSET(I20,0,0,COUNTA($A$20:$A$2004),1))),0) -> 0 | J18: 0 | K18: 0 | L18: 0 | M18: 0 | N18: 0 | O18: 0 | P18: 0 | Q18: 0 | R18: 0 | S18: 0 | T18: 0
A19: LA Ref | B19: Band | C19: Current Year Alloc | D19: Prior Year Alloc | E19: Additional Alloc | F19: Start | G19: End | H19: =DATE(LEFT(A18,4),4,1) -> 2022-04-01 | I19: =EDATE(H19,1) -> 2022-05-01 | J19: =EDATE(I19,1) -> 2022-06-01 | K19: 2022-07-01 | L19: 2022-08-01 | M19: 2022-09-01 | N19: 2022-10-01 | O19: 2022-11-01 | P19: 2022-12-01 | Q19: 2023-01-01 | R19: 2023-02-01 | S19: 2023-03-01 | T19: Total
H20: =IFERROR((AND($F20<=(H$19+4),$G20>=(H$19+4))*($D20/MIN(12,DATEDIF($F20,$G20+1,"m")))),$D20/12) +(AND($F20<=(H$19+4),$G20>=(H$19+4))*($C20/12)) +(AND($F20<=(H$19+4),$G20>=(H$19+4))*IFERROR(($E20/MIN(12,DATEDIF($F20,$G20+1,"m"))),0)) -> 0 | I20: =IFERROR((AND($F20<=(I$19+4),$G20>=(I$19+4))*($D20/MIN(12,DATEDIF($F20,$G20+1,"m")))),$D20/12) +(AND($F20<=(I$19+4),$G20>=(I$19+4))*($C20/12)) +(AND($F20<=(I$19+4),$G20>=(I$19+4))*IFERROR(($E20/MIN(12,DATEDIF($F20,$G20+1,"m"))),0)) -> 0 | J20: 0 | K20: 0 | L20: 0 | M20: 0 | N20: 0 | O20: 0 | P20: 0 | Q20: 0 | R20: 0 | S20: 0 | T20: =SUM(H20:S20) -> 0
H21: =IFERROR((AND($F21<=(H$19+4),$G21>=(H$19+4))*($D21/MIN(12,DATEDIF($F21,$G21+1,"m")))),$D21/12) +(AND($F21<=(H$19+4),$G21>=(H$19+4))*($C21/12)) +(AND($F21<=(H$19+4),$G21>=(H$19+4))*IFERROR(($E21/MIN(12,DATEDIF($F21,$G21+1,"m"))),0)) -> 0 | I21: 0 | J21: 0 | K21: 0 | L21: 0 | M21: 0 | N21: 0 | O21: 0 | P21: 0 | Q21: 0 | R21: 0 | S21: 0 | T21: 0
H22: 0 | I22: 0 | J22: 0 | K22: 0 | L22: 0 | M22: 0 | N22: 0 | O22: 0 | P22: 0 | Q22: 0 | R22: 0 | S22: 0 | T22: 0
H23: 0 | I23: 0 | J23: 0 | K23: 0 | L23: 0 | M23: 0 | N23: 0 | O23: 0 | P23: 0 | Q23: 0 | R23: 0 | S23: 0 | T23: 0
H24: 0 | I24: 0 | J24: 0 | K24: 0 | L24: 0 | M24: 0 | N24: 0 | O24: 0 | P24: 0 | Q24: 0 | R24: 0 | S24: 0 | T24: 0
H25: 0 | I25: 0 | J25: 0 | K25: 0 | L25: 0 | M25: 0 | N25: 0 | O25: 0 | P25: 0 | Q25: 0 | R25: 0 | S25: 0 | T25: 0
H26: 0 | I26: 0 | J26: 0 | K26: 0 | L26: 0 | M26: 0 | N26: 0 | O26: 0 | P26: 0 | Q26: 0 | R26: 0 | S26: 0 | T26: 0
H27: 0 | I27: 0 | J27: 0 | K27: 0 | L27: 0 | M27: 0 | N27: 0 | O27: 0 | P27: 0 | Q27: 0 | R27: 0 | S27: 0 | T27: 0
H28: 0 | I28: 0 | J28: 0 | K28: 0 | L28: 0 | M28: 0 | N28: 0 | O28: 0 | P28: 0 | Q28: 0 | R28: 0 | S28: 0 | T28: 0
H29: 0 | I29: 0 | J29: 0 | K29: 0 | L29: 0 | M29: 0 | N29: 0 | O29: 0 | P29: 0 | Q29: 0 | R29: 0 | S29: 0 | T29: 0
H30: 0 | I30: 0 | J30: 0 | K30: 0 | L30: 0 | M30: 0 | N30: 0 | O30: 0 | P30: 0 | Q30: 0 | R30: 0 | S30: 0 | T30: 0
H31: 0 | I31: 0 | J31: 0 | K31: 0 | L31: 0 | M31: 0 | N31: 0 | O31: 0 | P31: 0 | Q31: 0 | R31: 0 | S31: 0 | T31: 0
H32: 0 | I32: 0 | J32: 0 | K32: 0 | L32: 0 | M32: 0 | N32: 0 | O32: 0 | P32: 0 | Q32: 0 | R32: 0 | S32: 0 | T32: 0
H33: 0 | I33: 0 | J33: 0 | K33: 0 | L33: 0 | M33: 0 | N33: 0 | O33: 0 | P33: 0 | Q33: 0 | R33: 0 | S33: 0 | T33: 0
H34: 0 | I34: 0 | J34: 0 | K34: 0 | L34: 0 | M34: 0 | N34: 0 | O34: 0 | P34: 0 | Q34: 0 | R34: 0 | S34: 0 | T34: 0
H35: 0 | I35: 0 | J35: 0 | K35: 0 | L35: 0 | M35: 0 | N35: 0 | O35: 0 | P35: 0 | Q35: 0 | R35: 0 | S35: 0 | T35: 0
H36: 0 | I36: 0 | J36: 0 | K36: 0 | L36: 0 | M36: 0 | N36: 0 | O36: 0 | P36: 0 | Q36: 0 | R36: 0 | S36: 0 | T36: 0
H37: 0 | I37: 0 | J37: 0 | K37: 0 | L37: 0 | M37: 0 | N37: 0 | O37: 0 | P37: 0 | Q37: 0 | R37: 0 | S37: 0 | T37: =SUM(H37:S37) -> 0
H38: 0 | I38: 0 | J38: 0 | K38: 0 | L38: 0 | M38: 0 | N38: 0 | O38: 0 | P38: 0 | Q38: 0 | R38: 0 | S38: 0 | T38: 0
H39: 0 | I39: 0 | J39: 0 | K39: 0 | L39: 0 | M39: 0 | N39: 0 | O39: 0 | P39: 0 | Q39: 0 | R39: 0 | S39: 0 | T39: 0
H40: 0 | I40: 0 | J40: 0 | K40: 0 | L40: 0 | M40: 0 | N40: 0 | O40: 0 | P40: 0 | Q40: 0 | R40: 0 | S40: 0 | T40: 0
H41: 0 | I41: 0 | J41: 0 | K41: 0 | L41: 0 | M41: 0 | N41: 0 | O41: 0 | P41: 0 | Q41: 0 | R41: 0 | S41: 0 | T41: 0
H42: 0 | I42: 0 | J42: 0 | K42: 0 | L42: 0 | M42: 0 | N42: 0 | O42: 0 | P42: 0 | Q42: 0 | R42: 0 | S42: 0 | T42: 0
H43: 0 | I43: 0 | J43: 0 | K43: 0 | L43: 0 | M43: 0 | N43: 0 | O43: 0 | P43: 0 | Q43: 0 | R43: 0 | S43: 0 | T43: 0
H44: 0 | I44: 0 | J44: 0 | K44: 0 | L44: 0 | M44: 0 | N44: 0 | O44: 0 | P44: 0 | Q44: 0 | R44: 0 | S44: 0 | T44: 0
H45: 0 | I45: 0 | J45: 0 | K45: 0 | L45: 0 | M45: 0 | N45: 0 | O45: 0 | P45: 0 | Q45: 0 | R45: 0 | S45: 0 | T45: 0
H46: =IFERROR((AND($F46<=(H$19+4),$G46>=(H$19+4))*($D46/MIN(12,DATEDIF($F46,$G46+1,"m")))),$D46/12) +(AND($F46<=(H$19+4),$G46>=(H$19+4))*($C46/12)) +(AND($F46<=(H$19+4),$G46>=(H$19+4))*IFERROR(($E46/MIN(12,DATEDIF($F46,$G46+1,"m"))),0)) -> 0 | I46: =IFERROR((AND($F46<=(I$19+4),$G46>=(I$19+4))*($D46/MIN(12,DATEDIF($F46,$G46+1,"m")))),$D46/12) +(AND($F46<=(I$19+4),$G46>=(I$19+4))*($C46/12)) +(AND($F46<=(I$19+4),$G46>=(I$19+4))*IFERROR(($E46/MIN(12,DATEDIF($F46,$G46+1,"m"))),0)) -> 0 | J46: 0 | K46: 0 | L46: 0 | M46: 0 | N46: 0 | O46: 0 | P46: 0 | Q46: 0 | R46: 0 | S46: 0 | T46: 0
H47: 0 | I47: 0 | J47: 0 | K47: 0 | L47: 0 | M47: 0 | N47: 0 | O47: 0 | P47: 0 | Q47: 0 | R47: 0 | S47: 0 | T47: 0
H48: 0 | I48: 0 | J48: 0 | K48: 0 | L48: 0 | M48: 0 | N48: 0 | O48: 0 | P48: 0 | Q48: 0 | R48: 0 | S48: 0 | T48: 0
H49: 0 | I49: 0 | J49: 0 | K49: 0 | L49: 0 | M49: 0 | N49: 0 | O49: 0 | P49: 0 | Q49: 0 | R49: 0 | S49: 0 | T49: 0
H50: 0 | I50: 0 | J50: 0 | K50: 0 | L50: 0 | M50: 0 | N50: 0 | O50: 0 | P50: 0 | Q50: 0 | R50: 0 | S50: 0 | T50: 0
H51: 0 | I51: 0 | J51: 0 | K51: 0 | L51: 0 | M51: =IFERROR((AND($F51<=(M$19+4),$G51>=(M$19+4))*($D51/MIN(12,DATEDIF($F51,$G51+1,"m")))),$D51/12) +(AND($F51<=(M$19+4),$G51>=(M$19+4))*($C51/12)) +(AND($F51<=(M$19+4),$G51>=(M$19+4))*IFERROR(($E51/MIN(12,DATEDIF($F51,$G51+1,"m"))),0)) -> 0 | N51: 0 | O51: 0 | P51: 0 | Q51: 0 | R51: 0 | S51: 0 | T51: 0
H52: 0 | I52: 0 | J52: 0 | K52: 0 | L52: 0 | M52: 0 | N52: 0 | O52: 0 | P52: 0 | Q52: 0 | R52: 0 | S52: 0 | T52: 0
H53: 0 | I53: 0 | J53: 0 | K53: 0 | L53: 0 | M53: 0 | N53: 0 | O53: 0 | P53: 0 | Q53: 0 | R53: 0 | S53: 0 | T53: 0
H54: 0 | I54: 0 | J54: 0 | K54: 0 | L54: 0 | M54: 0 | N54: 0 | O54: 0 | P54: 0 | Q54: 0 | R54: 0 | S54: 0 | T54: 0
H55: 0 | I55: 0 | J55: 0 | K55: 0 | L55: 0 | M55: 0 | N55: 0 | O55: 0 | P55: 0 | Q55: 0 | R55: 0 | S55: 0 | T55: 0
H56: 0 | I56: 0 | J56: 0 | K56: 0 | L56: 0 | M56: 0 | N56: 0 | O56: 0 | P56: 0 | Q56: 0 | R56: 0 | S56: 0 | T56: 0
H57: 0 | I57: 0 | J57: 0 | K57: 0 | L57: 0 | M57: 0 | N57: 0 | O57: 0 | P57: 0 | Q57: 0 | R57: 0 | S57: 0 | T57: 0
H58: 0 | I58: 0 | J58: 0 | K58: 0 | L58: 0 | M58: 0 | N58: 0 | O58: 0 | P58: 0 | Q58: 0 | R58: 0 | S58: 0 | T58: 0
H59: 0 | I59: 0 | J59: 0 | K59: 0 | L59: 0 | M59: 0 | N59: 0 | O59: 0 | P59: 0 | Q59: 0 | R59: 0 | S59: 0 | T59: 0
H60: 0 | I60: 0 | J60: 0 | K60: 0 | L60: 0 | M60: 0 | N60: 0 | O60: 0 | P60: 0 | Q60: 0 | R60: 0 | S60: 0 | T60: 0
H61: 0 | I61: 0 | J61: 0 | K61: 0 | L61: 0 | M61: 0 | N61: 0 | O61: 0 | P61: 0 | Q61: 0 | R61: 0 | S61: 0 | T61: 0
H62: 0 | I62: 0 | J62: 0 | K62: 0 | L62: 0 | M62: 0 | N62: 0 | O62: 0 | P62: 0 | Q62: 0 | R62: 0 | S62: 0 | T62: 0
H63: 0 | I63: 0 | J63: 0 | K63: 0 | L63: 0 | M63: 0 | N63: 0 | O63: 0 | P63: 0 | Q63: 0 | R63: 0 | S63: 0 | T63: 0
H64: 0 | I64: 0 | J64: 0 | K64: 0 | L64: 0 | M64: 0 | N64: 0 | O64: 0 | P64: 0 | Q64: 0 | R64: 0 | S64: 0 | T64: 0
H65: 0 | I65: 0 | J65: 0 | K65: 0 | L65: 0 | M65: 0 | N65: 0 | O65: 0 | P65: 0 | Q65: 0 | R65: 0 | S65: 0 | T65: 0
H66: 0 | I66: 0 | J66: 0 | K66: 0 | L66: 0 | M66: 0 | N66: 0 | O66: 0 | P66: 0 | Q66: 0 | R66: 0 | S66: 0 | T66: 0
H67: 0 | I67: 0 | J67: 0 | K67: 0 | L67: 0 | M67: 0 | N67: 0 | O67: 0 | P67: 0 | Q67: 0 | R67: 0 | S67: 0 | T67: 0
H68: 0 | I68: 0 | J68: 0 | K68: 0 | L68: 0 | M68: 0 | N68: 0 | O68: 0 | P68: 0 | Q68: 0 | R68: 0 | S68: 0 | T68: 0
H69: 0 | I69: 0 | J69: 0 | K69: 0 | L69: 0 | M69: 0 | N69: 0 | O69: 0 | P69: 0 | Q69: 0 | R69: 0 | S69: 0 | T69: 0
H70: 0 | I70: 0 | J70: 0 | K70: 0 | L70: 0 | M70: 0 | N70: 0 | O70: 0 | P70: 0 | Q70: 0 | R70: 0 | S70: 0 | T70: 0
H71: 0 | I71: 0 | J71: 0 | K71: 0 | L71: 0 | M71: 0 | N71: 0 | O71: 0 | P71: 0 | Q71: 0 | R71: 0 | S71: 0 | T71: 0
H72: 0 | I72: 0 | J72: 0 | K72: 0 | L72: 0 | M72: 0 | N72: 0 | O72: 0 | P72: 0 | Q72: 0 | R72: 0 | S72: 0 | T72: 0
H73: 0 | I73: 0 | J73: 0 | K73: 0 | L73: 0 | M73: 0 | N73: 0 | O73: 0 | P73: 0 | Q73: 0 | R73: 0 | S73: 0 | T73: 0
H74: 0 | I74: 0 | J74: 0 | K74: 0 | L74: 0 | M74: 0 | N74: 0 | O74: =IFERROR((AND($F74<=(O$19+4),$G74>=(O$19+4))*($D74/MIN(12,DATEDIF($F74,$G74+1,"m")))),$D74/12) +(AND($F74<=(O$19+4),$G74>=(O$19+4))*($C74/12)) +(AND($F74<=(O$19+4),$G74>=(O$19+4))*IFERROR(($E74/MIN(12,DATEDIF($F74,$G74+1,"m"))),0)) -> 0 | P74: 0 | Q74: 0 | R74: 0 | S74: 0 | T74: 0
H75: 0 | I75: 0 | J75: 0 | K75: 0 | L75: 0 | M75: 0 | N75: 0 | O75: 0 | P75: 0 | Q75: 0 | R75: 0 | S75: 0 | T75: 0
H76: 0 | I76: 0 | J76: 0 | K76: 0 | L76: 0 | M76: 0 | N76: 0 | O76: 0 | P76: 0 | Q76: 0 | R76: 0 | S76: 0 | T76: 0
H77: 0 | I77: 0 | J77: 0 | K77: 0 | L77: 0 | M77: 0 | N77: 0 | O77: 0 | P77: 0 | Q77: 0 | R77: 0 | S77: 0 | T77: 0
H78: 0 | I78: 0 | J78: 0 | K78: 0 | L78: 0 | M78: 0 | N78: 0 | O78: 0 | P78: 0 | Q78: 0 | R78: 0 | S78: 0 | T78: 0
H79: 0 | I79: 0 | J79: 0 | K79: 0 | L79: 0 | M79: 0 | N79: 0 | O79: 0 | P79: 0 | Q79: 0 | R79: 0 | S79: 0 | T79: 0
H80: 0 | I80: 0 | J80: 0 | K80: 0 | L80: 0 | M80: 0 | N80: 0 | O80: 0 | P80: 0 | Q80: 0 | R80: 0 | S80: 0 | T80: 0
H81: 0 | I81: 0 | J81: 0 | K81: 0 | L81: 0 | M81: 0 | N81: 0 | O81: 0 | P81: 0 | Q81: 0 | R81: 0 | S81: 0 | T81: 0
H82: 0 | I82: 0 | J82: 0 | K82: 0 | L82: 0 | M82: 0 | N82: 0 | O82: 0 | P82: 0 | Q82: 0 | R82: 0 | S82: 0 | T82: 0
H83: 0 | I83: 0 | J83: 0 | K83: 0 | L83: 0 | M83: 0 | N83: 0 | O83: 0 | P83: 0 | Q83: 0 | R83: 0 | S83: 0 | T83: 0
H84: 0 | I84: 0 | J84: 0 | K84: 0 | L84: 0 | M84: 0 | N84: 0 | O84: 0 | P84: 0 | Q84: 0 | R84: 0 | S84: 0 | T84: 0
H85: =IFERROR((AND($F85<=(H$19+4),$G85>=(H$19+4))*($D85/MIN(12,DATEDIF($F85,$G85+1,"m")))),$D85/12) +(AND($F85<=(H$19+4),$G85>=(H$19+4))*($C85/12)) +(AND($F85<=(H$19+4),$G85>=(H$19+4))*IFERROR(($E85/MIN(12,DATEDIF($F85,$G85+1,"m"))),0)) -> 0 | I85: 0 | J85: 0 | K85: 0 | L85: 0 | M85: 0 | N85: 0 | O85: 0 | P85: 0 | Q85: 0 | R85: 0 | S85: 0 | T85: =SUM(H85:S85) -> 0
H86: 0 | I86: 0 | J86: 0 | K86: 0 | L86: 0 | M86: 0 | N86: 0 | O86: 0 | P86: 0 | Q86: 0 | R86: 0 | S86: 0 | T86: 0
H87: 0 | I87: 0 | J87: 0 | K87: 0 | L87: 0 | M87: 0 | N87: 0 | O87: 0 | P87: 0 | Q87: 0 | R87: 0 | S87: 0 | T87: 0
H88: 0 | I88: 0 | J88: 0 | K88: 0 | L88: 0 | M88: 0 | N88: 0 | O88: 0 | P88: 0 | Q88: 0 | R88: 0 | S88: 0 | T88: 0
H89: 0 | I89: 0 | J89: 0 | K89: 0 | L89: 0 | M89: 0 | N89: 0 | O89: 0 | P89: 0 | Q89: 0 | R89: 0 | S89: 0 | T89: 0
H90: 0 | I90: 0 | J90: 0 | K90: 0 | L90: 0 | M90: 0 | N90: 0 | O90: 0 | P90: 0 | Q90: 0 | R90: 0 | S90: 0 | T90: 0
H91: 0 | I91: 0 | J91: 0 | K91: 0 | L91: 0 | M91: 0 | N91: 0 | O91: 0 | P91: 0 | Q91: 0 | R91: 0 | S91: 0 | T91: 0
H92: 0 | I92: 0 | J92: 0 | K92: 0 | L92: 0 | M92: 0 | N92: 0 | O92: 0 | P92: 0 | Q92: 0 | R92: 0 | S92: 0 | T92: 0
H93: 0 | I93: 0 | J93: 0 | K93: 0 | L93: 0 | M93: 0 | N93: 0 | O93: 0 | P93: 0 | Q93: 0 | R93: 0 | S93: 0 | T93: 0
H94: 0 | I94: 0 | J94: 0 | K94: 0 | L94: 0 | M94: 0 | N94: 0 | O94: 0 | P94: 0 | Q94: 0 | R94: 0 | S94: 0 | T94: 0
H95: 0 | I95: 0 | J95: 0 | K95: 0 | L95: 0 | M95: 0 | N95: 0 | O95: 0 | P95: 0 | Q95: 0 | R95: 0 | S95: 0 | T95: 0
H96: 0 | I96: 0 | J96: 0 | K96: 0 | L96: 0 | M96: 0 | N96: 0 | O96: 0 | P96: 0 | Q96: 0 | R96: 0 | S96: 0 | T96: 0
H97: 0 | I97: 0 | J97: 0 | K97: 0 | L97: 0 | M97: 0 | N97: 0 | O97: 0 | P97: 0 | Q97: =IFERROR((AND($F97<=(Q$19+4),$G97>=(Q$19+4))*($D97/MIN(12,DATEDIF($F97,$G97+1,"m")))),$D97/12) +(AND($F97<=(Q$19+4),$G97>=(Q$19+4))*($C97/12)) +(AND($F97<=(Q$19+4),$G97>=(Q$19+4))*IFERROR(($E97/MIN(12,DATEDIF($F97,$G97+1,"m"))),0)) -> 0 | R97: 0 | S97: 0 | T97: 0
H98: 0 | I98: 0 | J98: 0 | K98: 0 | L98: 0 | M98: 0 | N98: 0 | O98: 0 | P98: 0 | Q98: 0 | R98: 0 | S98: 0 | T98: 0
H99: 0 | I99: 0 | J99: 0 | K99: 0 | L99: 0 | M99: 0 | N99: 0 | O99: 0 | P99: 0 | Q99: 0 | R99: 0 | S99: 0 | T99: 0
H100: 0 | I100: 0 | J100: 0 | K100: 0 | L100: 0 | M100: 0 | N100: 0 | O100: 0 | P100: 0 | Q100: 0 | R100: 0 | S100: 0 | T100: 0
H101: 0 | I101: 0 | J101: 0 | K101: 0 | L101: 0 | M101: 0 | N101: 0 | O101: 0 | P101: 0 | Q101: 0 | R101: 0 | S101: 0 | T101: 0
H102: 0 | I102: 0 | J102: 0 | K102: 0 | L102: 0 | M102: 0 | N102: 0 | O102: 0 | P102: 0 | Q102: 0 | R102: 0 | S102: 0 | T102: 0
H103: 0 | I103: 0 | J103: 0 | K103: 0 | L103: 0 | M103: 0 | N103: 0 | O103: 0 | P103: 0 | Q103: 0 | R103: 0 | S103: 0 | T103: 0
H104: 0 | I104: 0 | J104: 0 | K104: 0 | L104: 0 | M104: 0 | N104: 0 | O104: 0 | P104: 0 | Q104: 0 | R104: 0 | S104: 0 | T104: 0
H105: 0 | I105: 0 | J105: 0 | K105: 0 | L105: 0 | M105: 0 | N105: 0 | O105: 0 | P105: 0 | Q105: 0 | R105: 0 | S105: 0 | T105: 0
H106: 0 | I106: 0 | J106: 0 | K106: 0 | L106: 0 | M106: 0 | N106: 0 | O106: 0 | P106: 0 | Q106: 0 | R106: 0 | S106: 0 | T106: 0
H107: 0 | I107: 0 | J107: 0 | K107: 0 | L107: 0 | M107: 0 | N107: 0 | O107: 0 | P107: 0 | Q107: 0 | R107: 0 | S107: 0 | T107: 0
H108: 0 | I108: 0 | J108: 0 | K108: 0 | L108: 0 | M108: 0 | N108: 0 | O108: 0 | P108: 0 | Q108: 0 | R108: 0 | S108: 0 | T108: 0
H109: 0 | I109: 0 | J109: 0 | K109: 0 | L109: 0 | M109: 0 | N109: 0 | O109: 0 | P109: 0 | Q109: 0 | R109: 0 | S109: 0 | T109: 0
H110: 0 | I110: 0 | J110: 0 | K110: 0 | L110: 0 | M110: 0 | N110: 0 | O110: 0 | P110: 0 | Q110: 0 | R110: 0 | S110: 0 | T110: 0
H111: 0 | I111: 0 | J111: 0 | K111: 0 | L111: 0 | M111: 0 | N111: 0 | O111: 0 | P111: 0 | Q111: 0 | R111: 0 | S111: 0 | T111: 0
H112: 0 | I112: 0 | J112: 0 | K112: 0 | L112: 0 | M112: 0 | N112: 0 | O112: 0 | P112: 0 | Q112: 0 | R112: 0 | S112: 0 | T112: 0
H113: 0 | I113: 0 | J113: 0 | K113: 0 | L113: 0 | M113: 0 | N113: 0 | O113: 0 | P113: 0 | Q113: 0 | R113: 0 | S113: 0 | T113: 0
H114: 0 | I114: 0 | J114: 0 | K114: 0 | L114: 0 | M114: 0 | N114: 0 | O114: 0 | P114: 0 | Q114: 0 | R114: 0 | S114: 0 | T114: 0
H115: 0 | I115: 0 | J115: 0 | K115: 0 | L115: 0 | M115: 0 | N115: 0 | O115: 0 | P115: 0 | Q115: 0 | R115: 0 | S115: 0 | T115: 0
H116: 0 | I116: 0 | J116: 0 | K116: 0 | L116: 0 | M116: 0 | N116: 0 | O116: 0 | P116: 0 | Q116: 0 | R116: 0 | S116: 0 | T116: 0
H117: 0 | I117: 0 | J117: 0 | K117: 0 | L117: 0 | M117: 0 | N117: 0 | O117: 0 | P117: 0 | Q117: 0 | R117: 0 | S117: 0 | T117: 0
H118: 0 | I118: 0 | J118: 0 | K118: 0 | L118: 0 | M118: 0 | N118: 0 | O118: 0 | P118: 0 | Q118: 0 | R118: 0 | S118: 0 | T118: 0
H119: 0 | I119: 0 | J119: 0 | K119: 0 | L119: 0 | M119: 0 | N119: 0 | O119: 0 | P119: 0 | Q119: 0 | R119: 0 | S119: 0 | T119: 0
H120: 0 | I120: 0 | J120: 0 | K120: 0 | L120: 0 | M120: 0 | N120: 0 | O120: 0 | P120: 0 | Q120: 0 | R120: 0 | S120: =IFERROR((AND($F120<=(S$19+4),$G120>=(S$19+4))*($D120/MIN(12,DATEDIF($F120,$G120+1,"m")))),$D120/12) +(AND($F120<=(S$19+4),$G120>=(S$19+4))*($C120/12)) +(AND($F120<=(S$19+4),$G120>=(S$19+4))*IFERROR(($E120/MIN(12,DATEDIF($F120,$G120+1,"m"))),0)) -> 0 | T120: 0
H121: 0 | I121: 0 | J121: 0 | K121: 0 | L121: 0 | M121: 0 | N121: 0 | O121: 0 | P121: 0 | Q121: 0 | R121: 0 | S121: 0 | T121: 0
H122: 0 | I122: 0 | J122: 0 | K122: 0 | L122: 0 | M122: 0 | N122: 0 | O122: 0 | P122: 0 | Q122: 0 | R122: 0 | S122: 0 | T122: 0
H123: 0 | I123: 0 | J123: 0 | K123: 0 | L123: 0 | M123: 0 | N123: 0 | O123: 0 | P123: 0 | Q123: 0 | R123: 0 | S123: 0 | T123: 0
H124: 0 | I124: 0 | J124: 0 | K124: 0 | L124: 0 | M124: 0 | N124: 0 | O124: 0 | P124: 0 | Q124: 0 | R124: 0 | S124: 0 | T124: 0
H125: 0 | I125: 0 | J125: 0 | K125: 0 | L125: 0 | M125: 0 | N125: 0 | O125: 0 | P125: 0 | Q125: 0 | R125: 0 | S125: 0 | T125: 0
H126: 0 | I126: 0 | J126: 0 | K126: 0 | L126: 0 | M126: 0 | N126: 0 | O126: 0 | P126: 0 | Q126: 0 | R126: 0 | S126: 0 | T126: 0
H127: 0 | I127: 0 | J127: 0 | K127: 0 | L127: 0 | M127: 0 | N127: 0 | O127: 0 | P127: 0 | Q127: 0 | R127: 0 | S127: 0 | T127: 0
H128: 0 | I128: 0 | J128: 0 | K128: 0 | L128: 0 | M128: 0 | N128: 0 | O128: 0 | P128: 0 | Q128: 0 | R128: 0 | S128: 0 | T128: 0
H129: 0 | I129: 0 | J129: 0 | K129: 0 | L129: 0 | M129: 0 | N129: 0 | O129: 0 | P129: 0 | Q129: 0 | R129: 0 | S129: 0 | T129: 0
H130: 0 | I130: 0 | J130: 0 | K130: 0 | L130: 0 | M130: 0 | N130: 0 | O130: 0 | P130: 0 | Q130: 0 | R130: 0 | S130: 0 | T130: 0
H131: 0 | I131: 0 | J131: 0 | K131: 0 | L131: 0 | M131: 0 | N131: 0 | O131: 0 | P131: 0 | Q131: 0 | R131: 0 | S131: 0 | T131: 0
H132: 0 | I132: 0 | J132: 0 | K132: 0 | L132: 0 | M132: 0 | N132: 0 | O132: 0 | P132: 0 | Q132: 0 | R132: 0 | S132: 0 | T132: 0
H133: 0 | I133: 0 | J133: 0 | K133: 0 | L133: 0 | M133: 0 | N133: 0 | O133: 0 | P133: 0 | Q133: 0 | R133: 0 | S133: 0 | T133: 0
H134: 0 | I134: 0 | J134: 0 | K134: 0 | L134: 0 | M134: 0 | N134: 0 | O134: 0 | P134: 0 | Q134: 0 | R134: 0 | S134: 0 | T134: 0
H135: 0 | I135: 0 | J135: 0 | K135: 0 | L135: 0 | M135: 0 | N135: 0 | O135: 0 | P135: 0 | Q135: 0 | R135: 0 | S135: 0 | T135: 0
H136: 0 | I136: 0 | J136: 0 | K136: 0 | L136: 0 | M136: 0 | N136: 0 | O136: 0 | P136: 0 | Q136: 0 | R136: 0 | S136: 0 | T136: 0
H137: 0 | I137: 0 | J137: 0 | K137: 0 | L137: 0 | M137: 0 | N137: 0 | O137: 0 | P137: 0 | Q137: 0 | R137: 0 | S137: 0 | T137: 0
H138: 0 | I138: 0 | J138: 0 | K138: 0 | L138: 0 | M138: 0 | N138: 0 | O138: 0 | P138: 0 | Q138: 0 | R138: 0 | S138: 0 | T138: 0
H139: 0 | I139: 0 | J139: 0 | K139: 0 | L139: 0 | M139: 0 | N139: 0 | O139: 0 | P139: 0 | Q139: 0 | R139: 0 | S139: 0 | T139: 0
H140: 0 | I140: 0 | J140: 0 | K140: 0 | L140: 0 | M140: 0 | N140: 0 | O140: 0 | P140: 0 | Q140: 0 | R140: 0 | S140: 0 | T140: 0
H141: 0 | I141: 0 | J141: 0 | K141: 0 | L141: 0 | M141: 0 | N141: 0 | O141: 0 | P141: 0 | Q141: 0 | R141: 0 | S141: 0 | T141: 0
H142: 0 | I142: 0 | J142: 0 | K142: 0 | L142: 0 | M142: 0 | N142: 0 | O142: 0 | P142: 0 | Q142: 0 | R142: 0 | S142: 0 | T142: 0
H143: 0 | I143: 0 | J143: 0 | K143: 0 | L143: 0 | M143: 0 | N143: 0 | O143: 0 | P143: 0 | Q143: 0 | R143: 0 | S143: 0 | T143: 0
H144: 0 | I144: 0 | J144: =IFERROR((AND($F144<=(J$19+4),$G144>=(J$19+4))*($D144/MIN(12,DATEDIF($F144,$G144+1,"m")))),$D144/12) +(AND($F144<=(J$19+4),$G144>=(J$19+4))*($C144/12)) +(AND($F144<=(J$19+4),$G144>=(J$19+4))*IFERROR(($E144/MIN(12,DATEDIF($F144,$G144+1,"m"))),0)) -> 0 | K144: 0 | L144: 0 | M144: 0 | N144: 0 | O144: 0 | P144: 0 | Q144: 0 | R144: 0 | S144: 0 | T144: 0
H145: 0 | I145: 0 | J145: 0 | K145: 0 | L145: 0 | M145: 0 | N145: 0 | O145: 0 | P145: 0 | Q145: 0 | R145: 0 | S145: 0 | T145: 0
H146: 0 | I146: 0 | J146: 0 | K146: 0 | L146: 0 | M146: 0 | N146: 0 | O146: 0 | P146: 0 | Q146: 0 | R146: 0 | S146: 0 | T146: 0
H147: 0 | I147: 0 | J147: 0 | K147: 0 | L147: 0 | M147: 0 | N147: 0 | O147: 0 | P147: 0 | Q147: 0 | R147: 0 | S147: 0 | T147: 0
H148: 0 | I148: 0 | J148: 0 | K148: 0 | L148: 0 | M148: 0 | N148: 0 | O148: 0 | P148: 0 | Q148: 0 | R148: 0 | S148: 0 | T148: 0
H149: =IFERROR((AND($F149<=(H$19+4),$G149>=(H$19+4))*($D149/MIN(12,DATEDIF($F149,$G149+1,"m")))),$D149/12) +(AND($F149<=(H$19+4),$G149>=(H$19+4))*($C149/12)) +(AND($F149<=(H$19+4),$G149>=(H$19+4))*IFERROR(($E149/MIN(12,DATEDIF($F149,$G149+1,"m"))),0)) -> 0 | I149: 0 | J149: 0 | K149: 0 | L149: 0 | M149: 0 | N149: 0 | O149: 0 | P149: 0 | Q149: 0 | R149: 0 | S149: 0 | T149: =SUM(H149:S149) -> 0
H150: 0 | I150: 0 | J150: 0 | K150: 0 | L150: 0 | M150: 0 | N150: 0 | O150: 0 | P150: 0 | Q150: 0 | R150: 0 | S150: 0 | T150: 0
H151: 0 | I151: 0 | J151: 0 | K151: 0 | L151: 0 | M151: 0 | N151: 0 | O151: 0 | P151: 0 | Q151: 0 | R151: 0 | S151: 0 | T151: 0
H152: 0 | I152: 0 | J152: 0 | K152: 0 | L152: 0 | M152: 0 | N152: 0 | O152: 0 | P152: 0 | Q152: 0 | R152: 0 | S152: 0 | T152: 0
H153: 0 | I153: 0 | J153: 0 | K153: 0 | L153: 0 | M153: 0 | N153: 0 | O153: 0 | P153: 0 | Q153: 0 | R153: 0 | S153: 0 | T153: 0
H154: 0 | I154: 0 | J154: 0 | K154: 0 | L154: 0 | M154: 0 | N154: 0 | O154: 0 | P154: 0 | Q154: 0 | R154: 0 | S154: 0 | T154: 0
H155: 0 | I155: 0 | J155: 0 | K155: 0 | L155: 0 | M155: 0 | N155: 0 | O155: 0 | P155: 0 | Q155: 0 | R155: 0 | S155: 0 | T155: 0
H156: 0 | I156: 0 | J156: 0 | K156: 0 | L156: 0 | M156: 0 | N156: 0 | O156: 0 | P156: 0 | Q156: 0 | R156: 0 | S156: 0 | T156: 0
H157: 0 | I157: 0 | J157: 0 | K157: 0 | L157: 0 | M157: 0 | N157: 0 | O157: 0 | P157: 0 | Q157: 0 | R157: 0 | S157: 0 | T157: 0
H158: 0 | I158: 0 | J158: 0 | K158: 0 | L158: 0 | M158: 0 | N158: 0 | O158: 0 | P158: 0 | Q158: 0 | R158: 0 | S158: 0 | T158: 0
H159: 0 | I159: 0 | J159: 0 | K159: 0 | L159: 0 | M159: 0 | N159: 0 | O159: 0 | P159: 0 | Q159: 0 | R159: 0 | S159: 0 | T159: 0
H160: 0 | I160: 0 | J160: 0 | K160: 0 | L160: 0 | M160: 0 | N160: 0 | O160: 0 | P160: 0 | Q160: 0 | R160: 0 | S160: 0 | T160: 0
H161: 0 | I161: 0 | J161: 0 | K161: 0 | L161: 0 | M161: 0 | N161: 0 | O161: 0 | P161: 0 | Q161: 0 | R161: 0 | S161: 0 | T161: 0
H162: 0 | I162: 0 | J162: 0 | K162: 0 | L162: 0 | M162: 0 | N162: 0 | O162: 0 | P162: 0 | Q162: 0 | R162: 0 | S162: 0 | T162: 0
H163: 0 | I163: 0 | J163: 0 | K163: 0 | L163: 0 | M163: 0 | N163: 0 | O163: 0 | P163: 0 | Q163: 0 | R163: 0 | S163: 0 | T163: 0
H164: 0 | I164: 0 | J164: 0 | K164: 0 | L164: 0 | M164: 0 | N164: 0 | O164: 0 | P164: 0 | Q164: 0 | R164: 0 | S164: 0 | T164: 0
H165: 0 | I165: 0 | J165: 0 | K165: 0 | L165: 0 | M165: 0 | N165: 0 | O165: 0 | P165: 0 | Q165: 0 | R165: 0 | S165: 0 | T165: 0
H166: 0 | I166: 0 | J166: 0 | K166: 0 | L166: 0 | M166: 0 | N166: 0 | O166: 0 | P166: 0 | Q166: 0 | R166: 0 | S166: 0 | T166: 0
H167: 0 | I167: 0 | J167: 0 | K167: 0 | L167: =IFERROR((AND($F167<=(L$19+4),$G167>=(L$19+4))*($D167/MIN(12,DATEDIF($F167,$G167+1,"m")))),$D167/12) +(AND($F167<=(L$19+4),$G167>=(L$19+4))*($C167/12)) +(AND($F167<=(L$19+4),$G167>=(L$19+4))*IFERROR(($E167/MIN(12,DATEDIF($F167,$G167+1,"m"))),0)) -> 0 | M167: 0 | N167: 0 | O167: 0 | P167: 0 | Q167: 0 | R167: 0 | S167: 0 | T167: 0
H168: 0 | I168: 0 | J168: 0 | K168: 0 | L168: 0 | M168: 0 | N168: 0 | O168: 0 | P168: 0 | Q168: 0 | R168: 0 | S168: 0 | T168: 0
H169: 0 | I169: 0 | J169: 0 | K169: 0 | L169: 0 | M169: 0 | N169: 0 | O169: 0 | P169: 0 | Q169: 0 | R169: 0 | S169: 0 | T169: 0
H170: 0 | I170: 0 | J170: 0 | K170: 0 | L170: 0 | M170: 0 | N170: 0 | O170: 0 | P170: 0 | Q170: 0 | R170: 0 | S170: 0 | T170: 0
H171: 0 | I171: 0 | J171: 0 | K171: 0 | L171: 0 | M171: 0 | N171: 0 | O171: 0 | P171: 0 | Q171: 0 | R171: 0 | S171: 0 | T171: 0
H172: 0 | I172: 0 | J172: 0 | K172: 0 | L172: 0 | M172: 0 | N172: 0 | O172: 0 | P172: 0 | Q172: 0 | R172: 0 | S172: 0 | T172: 0
H173: 0 | I173: 0 | J173: 0 | K173: 0 | L173: 0 | M173: 0 | N173: 0 | O173: 0 | P173: 0 | Q173: 0 | R173: 0 | S173: 0 | T173: 0
H174: 0 | I174: 0 | J174: 0 | K174: 0 | L174: 0 | M174: 0 | N174: 0 | O174: 0 | P174: 0 | Q174: 0 | R174: 0 | S174: 0 | T174: 0
H175: 0 | I175: 0 | J175: 0 | K175: 0 | L175: 0 | M175: 0 | N175: 0 | O175: 0 | P175: 0 | Q175: 0 | R175: 0 | S175: 0 | T175: 0
H176: 0 | I176: 0 | J176: 0 | K176: 0 | L176: 0 | M176: 0 | N176: 0 | O176: 0 | P176: 0 | Q176: 0 | R176: 0 | S176: 0 | T176: 0
H177: 0 | I177: 0 | J177: 0 | K177: 0 | L177: 0 | M177: 0 | N177: 0 | O177: 0 | P177: 0 | Q177: 0 | R177: 0 | S177: 0 | T177: 0
H178: 0 | I178: 0 | J178: 0 | K178: 0 | L178: 0 | M178: 0 | N178: 0 | O178: 0 | P178: 0 | Q178: 0 | R178: 0 | S178: 0 | T178: 0
H179: 0 | I179: 0 | J179: 0 | K179: 0 | L179: 0 | M179: 0 | N179: 0 | O179: 0 | P179: 0 | Q179: 0 | R179: 0 | S179: 0 | T179: 0
H180: 0 | I180: 0 | J180: 0 | K180: 0 | L180: 0 | M180: 0 | N180: 0 | O180: 0 | P180: 0 | Q180: 0 | R180: 0 | S180: 0 | T180: 0
H181: 0 | I181: 0 | J181: 0 | K181: 0 | L181: 0 | M181: 0 | N181: 0 | O181: 0 | P181: 0 | Q181: 0 | R181: 0 | S181: 0 | T181: 0
H182: 0 | I182: 0 | J182: 0 | K182: 0 | L182: 0 | M182: 0 | N182: 0 | O182: 0 | P182: 0 | Q182: 0 | R182: 0 | S182: 0 | T182: 0
H183: 0 | I183: 0 | J183: 0 | K183: 0 | L183: 0 | M183: 0 | N183: 0 | O183: 0 | P183: 0 | Q183: 0 | R183: 0 | S183: 0 | T183: 0
H184: 0 | I184: 0 | J184: 0 | K184: 0 | L184: 0 | M184: 0 | N184: 0 | O184: 0 | P184: 0 | Q184: 0 | R184: 0 | S184: 0 | T184: 0
H185: 0 | I185: 0 | J185: 0 | K185: 0 | L185: 0 | M185: 0 | N185: 0 | O185: 0 | P185: 0 | Q185: 0 | R185: 0 | S185: 0 | T185: 0
H186: 0 | I186: 0 | J186: 0 | K186: 0 | L186: 0 | M186: 0 | N186: 0 | O186: 0 | P186: 0 | Q186: 0 | R186: 0 | S186: 0 | T186: 0
H187: 0 | I187: 0 | J187: 0 | K187: 0 | L187: 0 | M187: 0 | N187: 0 | O187: 0 | P187: 0 | Q187: 0 | R187: 0 | S187: 0 | T187: 0
H188: 0 | I188: 0 | J188: 0 | K188: 0 | L188: 0 | M188: 0 | N188: 0 | O188: 0 | P188: 0 | Q188: 0 | R188: 0 | S188: 0 | T188: 0
H189: 0 | I189: 0 | J189: 0 | K189: 0 | L189: 0 | M189: 0 | N189: 0 | O189: 0 | P189: 0 | Q189: 0 | R189: 0 | S189: 0 | T189: 0
H190: 0 | I190: 0 | J190: 0 | K190: 0 | L190: 0 | M190: 0 | N190: =IFERROR((AND($F190<=(N$19+4),$G190>=(N$19+4))*($D190/MIN(12,DATEDIF($F190,$G190+1,"m")))),$D190/12) +(AND($F190<=(N$19+4),$G190>=(N$19+4))*($C190/12)) +(AND($F190<=(N$19+4),$G190>=(N$19+4))*IFERROR(($E190/MIN(12,DATEDIF($F190,$G190+1,"m"))),0)) -> 0 | O190: 0 | P190: 0 | Q190: 0 | R190: 0 | S190: 0 | T190: 0
H191: 0 | I191: 0 | J191: 0 | K191: 0 | L191: 0 | M191: 0 | N191: 0 | O191: 0 | P191: 0 | Q191: 0 | R191: 0 | S191: 0 | T191: 0
H192: 0 | I192: 0 | J192: 0 | K192: 0 | L192: 0 | M192: 0 | N192: 0 | O192: 0 | P192: 0 | Q192: 0 | R192: 0 | S192: 0 | T192: 0
H193: 0 | I193: 0 | J193: 0 | K193: 0 | L193: 0 | M193: 0 | N193: 0 | O193: 0 | P193: 0 | Q193: 0 | R193: 0 | S193: 0 | T193: 0
H194: 0 | I194: 0 | J194: 0 | K194: 0 | L194: 0 | M194: 0 | N194: 0 | O194: 0 | P194: 0 | Q194: 0 | R194: 0 | S194: 0 | T194: 0
H195: 0 | I195: 0 | J195: 0 | K195: 0 | L195: 0 | M195: 0 | N195: 0 | O195: 0 | P195: 0 | Q195: 0 | R195: 0 | S195: 0 | T195: 0
H196: 0 | I196: 0 | J196: 0 | K196: 0 | L196: 0 | M196: 0 | N196: 0 | O196: 0 | P196: 0 | Q196: 0 | R196: 0 | S196: 0 | T196: 0
H197: 0 | I197: 0 | J197: 0 | K197: 0 | L197: 0 | M197: 0 | N197: 0 | O197: 0 | P197: 0 | Q197: 0 | R197: 0 | S197: 0 | T197: 0
H198: 0 | I198: 0 | J198: 0 | K198: 0 | L198: 0 | M198: 0 | N198: 0 | O198: 0 | P198: 0 | Q198: 0 | R198: 0 | S198: 0 | T198: 0
H199: 0 | I199: 0 | J199: 0 | K199: 0 | L199: 0 | M199: 0 | N199: 0 | O199: 0 | P199: 0 | Q199: 0 | R199: 0 | S199: 0 | T199: 0
H200: 0 | I200: 0 | J200: 0 | K200: 0 | L200: 0 | M200: 0 | N200: 0 | O200: 0 | P200: 0 | Q200: 0 | R200: 0 | S200: 0 | T200: 0
H201: 0 | I201: 0 | J201: 0 | K201: 0 | L201: 0 | M201: 0 | N201: 0 | O201: 0 | P201: 0 | Q201: 0 | R201: 0 | S201: 0 | T201: 0
H202: 0 | I202: 0 | J202: 0 | K202: 0 | L202: 0 | M202: 0 | N202: 0 | O202: 0 | P202: 0 | Q202: 0 | R202: 0 | S202: 0 | T202: 0
H203: 0 | I203: 0 | J203: 0 | K203: 0 | L203: 0 | M203: 0 | N203: 0 | O203: 0 | P203: 0 | Q203: 0 | R203: 0 | S203: 0 | T203: 0
H204: 0 | I204: 0 | J204: 0 | K204: 0 | L204: 0 | M204: 0 | N204: 0 | O204: 0 | P204: 0 | Q204: 0 | R204: 0 | S204: 0 | T204: 0
H205: 0 | I205: 0 | J205: 0 | K205: 0 | L205: 0 | M205: 0 | N205: 0 | O205: 0 | P205: 0 | Q205: 0 | R205: 0 | S205: 0 | T205: 0
... 1332 more rows

Sheet HN TopUp Payment (hidden)
A1: COMP_NO | B1: LOC | C1: SUPPLIER | D1: NEXT | E1: SUPP_OWN_REF | F1: DOC_DATE | G1: TOT_VALUE | H1: RECEIVED_DATE | I1: CREDIT_TERMS | J1: NARRATIVE | K1: NEXT | L1: VAT_CODE_0 | M1: NEXT | N1: GRID.GRID.ACTION | O1: GL_CODE | P1: UPDATE_BUTTON | Q1: NEXT | R1: OK | S1: Month | U1: Payment Group | V1: DfE | W1: DfE Ref7 | X1: School Name | AA1: 302
A2: 1 | B2: 2 | C2: 400125 | D2: TRUE | E2: 3520.EHCP.I03.1.Ap22 | F2: 2022-10-06 | G2: 15942.37949 | H2: 2022-10-06 | I2: 0 | J2: Akiva School.3520.EHCP.I03.1.Ap22 | K2: TRUE | L2: V0 | M2: TRUE | N2: NEW | O2: 11431/543965 | P2: TRUE | Q2: TRUE | R2: TRUE | S2: 2022-04-01 | T2: =MONTH(S2) -> 4 | U2: =IFERROR(MID($J2,FIND(".",$J2,FIND(".",$J2,2)+1)+1,FIND(".",$J2,FIND(".",$J2,FIND(".",$J2)+1)+1)-FIND(".",$J2,FIND(".",$J2,2)+1)-1),$J2) -> EHCP | V2: =LEFT(E2,4) -> 3520 | W2: =("302"&V2)*1 -> 3023520 | X2: =VLOOKUP(W2,Schools!$A:$B,2,0) -> Akiva School | Y2: =IFERROR(MID($J2,FIND(".",$J2,FIND(".",$J2,2)+1)+1,FIND(".",$J2,FIND(".",$J2,FIND(".",$J2)+1)+1)-FIND(".",$J2,FIND(".",$J2,2)+1)-1),$J2) -> EHCP | Z2: EHCP
A3: 1 | B3: 2 | C3: 400069 | D3: TRUE | E3: 3300.EHCP.I03.1.Ap22 | F3: 2022-10-06 | G3: 3359.898462 | H3: 2022-10-06 | I3: 0 | J3: All Saints' CE P.3300.EHCP.I03.1.Ap22 | K3: TRUE | L3: V0 | M3: TRUE | N3: NEW | O3: 11431/543965 | P3: TRUE | Q3: TRUE | R3: TRUE | S3: 2022-04-01 | T3: 4 | U3: =IFERROR(MID($J3,FIND(".",$J3,FIND(".",$J3,2)+1)+1,FIND(".",$J3,FIND(".",$J3,FIND(".",$J3)+1)+1)-FIND(".",$J3,FIND(".",$J3,2)+1)-1),$J3) -> EHCP | V3: =LEFT(E3,4) -> 3300 | W3: 3023300 | X3: =VLOOKUP(W3,Schools!$A:$B,2,0) -> All Saints' CE Primary School NW2 | Y3: =IFERROR(MID(J3,FIND(".",J3,FIND(".",J3,2)+1)+1,FIND(".",J3,FIND(".",J3,FIND(".",J3)+1)+1)-FIND(".",J3,FIND(".",J3,2)+1)-1),J3) -> EHCP
A4: 1 | B4: 2 | C4: 400015 | D4: TRUE | E4: 3317.EHCP.I03.1.Ap22 | F4: 2022-10-06 | G4: 10288.33385 | H4: 2022-10-06 | I4: 0 | J4: All Saints' CE P.3317.EHCP.I03.1.Ap22 | K4: TRUE | L4: V0 | M4: TRUE | N4: NEW | O4: 11431/543965 | P4: TRUE | Q4: TRUE | R4: TRUE | S4: 2022-04-01 | T4: 4 | U4: EHCP | V4: 3317 | W4: 3023317 | X4: =VLOOKUP(W4,Schools!$A:$B,2,0) -> All Saints' CE Primary School, N20 | Y4: EHCP
A5: 1 | B5: 2 | C5: 400015 | D5: TRUE | E5: 3317.SENI.I03.2.Ap22 | F5: 2022-10-06 | G5: 330.34 | H5: 2022-10-06 | I5: 0 | J5: All Saints' CE P.3317.SENI.I03.2.Ap22 | K5: TRUE | L5: V0 | M5: TRUE | N5: NEW | O5: 10265/543965 | P5: TRUE | Q5: TRUE | R5: TRUE | S5: 2022-04-01 | T5: 4 | U5: =IFERROR(MID($J5,FIND(".",$J5,FIND(".",$J5,2)+1)+1,FIND(".",$J5,FIND(".",$J5,FIND(".",$J5)+1)+1)-FIND(".",$J5,FIND(".",$J5,2)+1)-1),$J5) -> SENI | V5: 3317 | W5: 3023317 | X5: =VLOOKUP(W5,Schools!$A:$B,2,0) -> All Saints' CE Primary School, N20 | Y5: SENI
A6: 1 | B6: 2 | C6: 156270 | D6: TRUE | E6: 2020.EHCP.I03.1.Ap22 | F6: 2022-10-06 | G6: 4277.358462 | H6: 2022-10-06 | I6: 0 | J6: Alma Primary.2020.EHCP.I03.1.Ap22 | K6: TRUE | L6: V0 | M6: TRUE | N6: NEW | O6: 11443/516500 | P6: TRUE | Q6: TRUE | R6: TRUE | S6: 2022-04-01 | T6: 4 | U6: EHCP | V6: 2020 | W6: 3022020 | X6: =VLOOKUP(W6,Schools!$A:$B,2,0) -> Alma Primary | Y6: EHCP
A7: 1 | B7: 2 | C7: 400023 | D7: TRUE | E7: 3500.EHCP.I03.1.Ap22 | F7: 2022-10-06 | G7: 2055.244615 | H7: 2022-10-06 | I7: 0 | J7: Annunciation Cat.3500.EHCP.I03.1.Ap22 | K7: TRUE | L7: V0 | M7: TRUE | N7: NEW | O7: 11431/543965 | P7: TRUE | Q7: TRUE | R7: TRUE | S7: 2022-04-01 | T7: 4 | U7: EHCP | V7: 3500 | W7: 3023500 | X7: =VLOOKUP(W7,Schools!$A:$B,2,0) -> Annunciation Catholic Infant School | Y7: EHCP
A8: 1 | B8: 2 | C8: 400023 | D8: TRUE | E8: 3500.SENI.I03.2.Ap22 | F8: 2022-10-06 | G8: 120.4938462 | H8: 2022-10-06 | I8: 0 | J8: Annunciation Cat.3500.SENI.I03.2.Ap22 | K8: TRUE | L8: V0 | M8: TRUE | N8: NEW | O8: 10265/543965 | P8: TRUE | Q8: TRUE | R8: TRUE | S8: 2022-04-01 | T8: 4 | U8: SENI | V8: 3500 | W8: 3023500 | X8: =VLOOKUP(W8,Schools!$A:$B,2,0) -> Annunciation Catholic Infant School | Y8: SENI
A9: 1 | B9: 2 | C9: 400107 | D9: TRUE | E9: 3514.EHCP.I03.1.Ap22 | F9: 2022-10-06 | G9: 2842.627692 | H9: 2022-10-06 | I9: 0 | J9: Annunciation Cat.3514.EHCP.I03.1.Ap22 | K9: TRUE | L9: V0 | M9: TRUE | N9: NEW | O9: 11431/543965 | P9: TRUE | Q9: TRUE | R9: TRUE | S9: 2022-04-01 | T9: 4 | U9: EHCP | V9: 3514 | W9: 3023514 | X9: =VLOOKUP(W9,Schools!$A:$B,2,0) -> Annunciation Catholic Junior School | Y9: EHCP
A10: 1 | B10: 2 | C10: 153627 | D10: TRUE | E10: 4001.EHCP.I03.1.Ap22 | F10: 2022-10-06 | G10: 45597.66462 | H10: 2022-10-06 | I10: 0 | J10: Archer Academy.4001.EHCP.I03.1.Ap22 | K10: TRUE | L10: V0 | M10: TRUE | N10: NEW | O10: 11442/516500 | P10: TRUE | Q10: TRUE | R10: TRUE | S10: 2022-04-01 | T10: 4 | U10: EHCP | V10: 4001 | W10: 3024001 | X10: =VLOOKUP(W10,Schools!$A:$B,2,0) -> Archer Academy | Y10: EHCP
A11: 1 | B11: 2 | C11: 159947 | D11: TRUE | E11: 4013.EHCP.I03.1.Ap22 | F11: 2022-10-06 | G11: 15866.46154 | H11: 2022-10-06 | I11: 0 | J11: ARK Pioneer Acad.4013.EHCP.I03.1.Ap22 | K11: TRUE | L11: V0 | M11: TRUE | N11: NEW | O11: 11442/516500 | P11: TRUE | Q11: TRUE | R11: TRUE | S11: 2022-04-01 | T11: 4 | U11: EHCP | V11: 4013 | W11: 3024013 | X11: =VLOOKUP(W11,Schools!$A:$B,2,0) -> ARK Pioneer Academy | Y11: EHCP
A12: 1 | B12: 2 | C12: 140909 | D12: TRUE | E12: 5406.EHCP.I03.1.Ap22 | F12: 2022-10-06 | G12: 21407.83692 | H12: 2022-10-06 | I12: 0 | J12: Ashmole Academy.5406.EHCP.I03.1.Ap22 | K12: TRUE | L12: V0 | M12: TRUE | N12: NEW | O12: 11442/516500 | P12: TRUE | Q12: TRUE | R12: TRUE | S12: 2022-04-01 | T12: 4 | U12: EHCP | V12: 5406 | W12: 3025406 | X12: =VLOOKUP(W12,Schools!$A:$B,2,0) -> Ashmole Academy | Y12: EHCP
A13: 1 | B13: 2 | C13: 157839 | D13: TRUE | E13: 2050.EHCP.I03.1.Ap22 | F13: 2022-10-06 | G13: 6765.986154 | H13: 2022-10-06 | I13: 0 | J13: Ashmole Primary .2050.EHCP.I03.1.Ap22 | K13: TRUE | L13: V0 | M13: TRUE | N13: NEW | O13: 11443/516500 | P13: TRUE | Q13: TRUE | R13: TRUE | S13: 2022-04-01 | T13: 4 | U13: EHCP | V13: 2050 | W13: 3022050 | X13: =VLOOKUP(W13,Schools!$A:$B,2,0) -> Ashmole Primary School | Y13: EHCP
A14: 1 | B14: 2 | C14: 400005 | D14: TRUE | E14: 2002.EHCP.I03.1.Ap22 | F14: 2022-10-06 | G14: 12174.67846 | H14: 2022-10-06 | I14: 0 | J14: Barnfield School.2002.EHCP.I03.1.Ap22 | K14: TRUE | L14: V0 | M14: TRUE | N14: NEW | O14: 11431/543965 | P14: TRUE | Q14: TRUE | R14: TRUE | S14: 2022-04-01 | T14: 4 | U14: EHCP | V14: 2002 | W14: 3022002 | X14: =VLOOKUP(W14,Schools!$A:$B,2,0) -> Barnfield School | Y14: EHCP
A15: 1 | B15: 2 | C15: 400005 | D15: TRUE | E15: 2002.SENI.I03.2.Ap22 | F15: 2022-10-06 | G15: 905.3723077 | H15: 2022-10-06 | I15: 0 | J15: Barnfield School.2002.SENI.I03.2.Ap22 | K15: TRUE | L15: V0 | M15: TRUE | N15: NEW | O15: 10265/543965 | P15: TRUE | Q15: TRUE | R15: TRUE | S15: 2022-04-01 | T15: 4 | U15: SENI | V15: 2002 | W15: 3022002 | X15: =VLOOKUP(W15,Schools!$A:$B,2,0) -> Barnfield School | Y15: SENI
A16: 1 | B16: 2 | C16: 400070 | D16: TRUE | E16: 2079.EHCP.I03.1.Ap22 | F16: 2022-10-06 | G16: 1490.641538 | H16: 2022-10-06 | I16: 0 | J16: Beis Yaakov.2079.EHCP.I03.1.Ap22 | K16: TRUE | L16: V0 | M16: TRUE | N16: NEW | O16: 11431/543965 | P16: TRUE | Q16: TRUE | R16: TRUE | S16: 2022-04-01 | T16: 4 | U16: EHCP | V16: 2079 | W16: 3022079 | X16: =VLOOKUP(W16,Schools!$A:$B,2,0) -> Beis Yaakov | Y16: EHCP
A17: 1 | B17: 2 | C17: 400150 | D17: TRUE | E17: 3524.EHCP.I03.1.Ap22 | F17: 2022-10-06 | G17: 11353.72 | H17: 2022-10-06 | I17: 0 | J17: Beit Shvidler Pr.3524.EHCP.I03.1.Ap22 | K17: TRUE | L17: V0 | M17: TRUE | N17: NEW | O17: 11431/543965 | P17: TRUE | Q17: TRUE | R17: TRUE | S17: 2022-04-01 | T17: 4 | U17: EHCP | V17: 3524 | W17: 3023524 | X17: =VLOOKUP(W17,Schools!$A:$B,2,0) -> Beit Shvidler Primary School | Y17: EHCP
A18: 1 | B18: 2 | C18: 400051 | D18: TRUE | E18: 2003.EHCP.I03.1.Ap22 | F18: 2022-10-06 | G18: 17930.93385 | H18: 2022-10-06 | I18: 0 | J18: Bell Lane Primar.2003.EHCP.I03.1.Ap22 | K18: TRUE | L18: V0 | M18: TRUE | N18: NEW | O18: 11431/543965 | P18: TRUE | Q18: TRUE | R18: TRUE | S18: 2022-04-01 | T18: 4 | U18: EHCP | V18: 2003 | W18: 3022003 | X18: =VLOOKUP(W18,Schools!$A:$B,2,0) -> Bell Lane Primary School | Y18: EHCP
A19: 1 | B19: 2 | C19: 400051 | D19: TRUE | E19: 2003.SENI.I03.2.Ap22 | F19: 2022-10-06 | G19: 609.8653846 | H19: 2022-10-06 | I19: 0 | J19: Bell Lane Primar.2003.SENI.I03.2.Ap22 | K19: TRUE | L19: V0 | M19: TRUE | N19: NEW | O19: 10265/543965 | P19: TRUE | Q19: TRUE | R19: TRUE | S19: 2022-04-01 | T19: 4 | U19: SENI | V19: 2003 | W19: 3022003 | X19: =VLOOKUP(W19,Schools!$A:$B,2,0) -> Bell Lane Primary School | Y19: SENI
A20: 1 | B20: 2 | C20: 156628 | D20: TRUE | E20: 5408.EHCP.I03.1.Ap22 | F20: 2022-10-06 | G20: 2578.141538 | H20: 2022-10-06 | I20: 0 | J20: Bishop Douglass .5408.EHCP.I03.1.Ap22 | K20: TRUE | L20: V0 | M20: TRUE | N20: NEW | O20: 11442/516500 | P20: TRUE | Q20: TRUE | R20: TRUE | S20: 2022-04-01 | T20: 4 | U20: EHCP | V20: 5408 | W20: 3025408 | X20: =VLOOKUP(W20,Schools!$A:$B,2,0) -> Bishop Douglass Academy | Y20: EHCP
A21: 1 | B21: 2 | C21: 400024 | D21: TRUE | E21: 3511.EHCP.I03.1.Ap22 | F21: 2022-10-06 | G21: 4064.384615 | H21: 2022-10-06 | I21: 0 | J21: Blessed Dominic .3511.EHCP.I03.1.Ap22 | K21: TRUE | L21: V0 | M21: TRUE | N21: NEW | O21: 11431/543965 | P21: TRUE | Q21: TRUE | R21: TRUE | S21: 2022-04-01 | T21: 4 | U21: EHCP | V21: 3511 | W21: 3023511 | X21: =VLOOKUP(W21,Schools!$A:$B,2,0) -> Blessed Dominic School | Y21: EHCP
A22: 1 | B22: 2 | C22: 400024 | D22: TRUE | E22: 3511.SENI.I03.2.Ap22 | F22: 2022-10-06 | G22: 216.4 | H22: 2022-10-06 | I22: 0 | J22: Blessed Dominic .3511.SENI.I03.2.Ap22 | K22: TRUE | L22: V0 | M22: TRUE | N22: NEW | O22: 10265/543965 | P22: TRUE | Q22: TRUE | R22: TRUE | S22: 2022-04-01 | T22: 4 | U22: SENI | V22: 3511 | W22: 3023511 | X22: =VLOOKUP(W22,Schools!$A:$B,2,0) -> Blessed Dominic School | Y22: SENI
A23: 1 | B23: 2 | C23: 152128 | D23: TRUE | E23: 3519.ARPs.I03.1.Ap22 | F23: 2022-10-06 | G23: 117073.4759 | H23: 2022-10-06 | I23: 0 | J23: Broadfields Prim.3519.ARPs.I03.1.Ap22 | K23: TRUE | L23: V0 | M23: TRUE | N23: NEW | O23: 11422/516500 | P23: TRUE | Q23: TRUE | R23: TRUE | S23: 2022-04-01 | T23: 4 | U23: ARPs | V23: 3519 | W23: 3023519 | X23: =VLOOKUP(W23,Schools!$A:$B,2,0) -> Broadfields Primary School | Y23: ARPs
A24: 1 | B24: 2 | C24: 152128 | D24: TRUE | E24: 3519.EHCP.I03.2.Ap22 | F24: 2022-10-06 | G24: 32998.36923 | H24: 2022-10-06 | I24: 0 | J24: Broadfields Prim.3519.EHCP.I03.2.Ap22 | K24: TRUE | L24: V0 | M24: TRUE | N24: NEW | O24: 11443/516500 | P24: TRUE | Q24: TRUE | R24: TRUE | S24: 2022-04-01 | T24: 4 | U24: EHCP | V24: 3519 | W24: 3023519 | X24: =VLOOKUP(W24,Schools!$A:$B,2,0) -> Broadfields Primary School | Y24: EHCP
A25: 1 | B25: 2 | C25: 152128 | D25: TRUE | E25: 3519.EHCP.I03.3.Ap22 | F25: 2022-10-06 | G25: 317.1538462 | H25: 2022-10-06 | I25: 0 | J25: Broadfields Prim.3519.EHCP.I03.3.Ap22 | K25: TRUE | L25: V0 | M25: TRUE | N25: NEW | O25: 11451/516500 | P25: TRUE | Q25: TRUE | R25: TRUE | S25: 2022-04-01 | T25: 4 | U25: EHCP | V25: 3519 | W25: 3023519 | X25: =VLOOKUP(W25,Schools!$A:$B,2,0) -> Broadfields Primary School | Y25: EHCP
A26: 1 | B26: 2 | C26: 152128 | D26: TRUE | E26: 3519.SENI.I03.4.Ap22 | F26: 2022-10-06 | G26: 4938.657143 | H26: 2022-10-06 | I26: 0 | J26: Broadfields Prim.3519.SENI.I03.4.Ap22 | K26: TRUE | L26: V0 | M26: TRUE | N26: NEW | O26: 10265/516500 | P26: TRUE | Q26: TRUE | R26: TRUE | S26: 2022-04-01 | T26: 4 | U26: SENI | V26: 3519 | W26: 3023519 | X26: =VLOOKUP(W26,Schools!$A:$B,2,0) -> Broadfields Primary School | Y26: SENI
A27: 1 | B27: 2 | C27: 400102 | D27: TRUE | E27: 1000.SENI.I03.1.Ap22 | F27: 2022-10-06 | G27: 1540.596154 | H27: 2022-10-06 | I27: 0 | J27: Brookhill Nurser.1000.SENI.I03.1.Ap22 | K27: TRUE | L27: V0 | M27: TRUE | N27: NEW | O27: 10265/543965 | P27: TRUE | Q27: TRUE | R27: TRUE | S27: 2022-04-01 | T27: 4 | U27: SENI | V27: 1000 | W27: 3021000 | X27: =VLOOKUP(W27,Schools!$A:$B,2,0) -> Brookhill Nursery | Y27: SENI
A28: 1 | B28: 2 | C28: 400057 | D28: TRUE | E28: 2008.EHCP.I03.1.Ap22 | F28: 2022-10-06 | G28: 14434.15538 | H28: 2022-10-06 | I28: 0 | J28: Brookland Infant.2008.EHCP.I03.1.Ap22 | K28: TRUE | L28: V0 | M28: TRUE | N28: NEW | O28: 11431/543965 | P28: TRUE | Q28: TRUE | R28: TRUE | S28: 2022-04-01 | T28: 4 | U28: EHCP | V28: 2008 | W28: 3022008 | X28: =VLOOKUP(W28,Schools!$A:$B,2,0) -> Brookland Infant & Nursery School | Y28: EHCP
A29: 1 | B29: 2 | C29: 400057 | D29: TRUE | E29: 2008.EHCP.I03.2.Ap22 | F29: 2022-10-06 | G29: 555.02 | H29: 2022-10-06 | I29: 0 | J29: Brookland Infant.2008.EHCP.I03.2.Ap22 | K29: TRUE | L29: V0 | M29: TRUE | N29: NEW | O29: 11436/543965 | P29: TRUE | Q29: TRUE | R29: TRUE | S29: 2022-04-01 | T29: 4 | U29: EHCP | V29: 2008 | W29: 3022008 | X29: =VLOOKUP(W29,Schools!$A:$B,2,0) -> Brookland Infant & Nursery School | Y29: EHCP
A30: 1 | B30: 2 | C30: 400057 | D30: TRUE | E30: 2008.SENI.I03.3.Ap22 | F30: 2022-10-06 | G30: 826.9376923 | H30: 2022-10-06 | I30: 0 | J30: Brookland Infant.2008.SENI.I03.3.Ap22 | K30: TRUE | L30: V0 | M30: TRUE | N30: NEW | O30: 10265/543965 | P30: TRUE | Q30: TRUE | R30: TRUE | S30: 2022-04-01 | T30: 4 | U30: SENI | V30: 2008 | W30: 3022008 | X30: =VLOOKUP(W30,Schools!$A:$B,2,0) -> Brookland Infant & Nursery School | Y30: SENI
A31: 1 | B31: 2 | C31: 400040 | D31: TRUE | E31: 2007.EHCP.I03.1.Ap22 | F31: 2022-10-06 | G31: 19564.62923 | H31: 2022-10-06 | I31: 0 | J31: Brookland Junior.2007.EHCP.I03.1.Ap22 | K31: TRUE | L31: V0 | M31: TRUE | N31: NEW | O31: 11431/543965 | P31: TRUE | Q31: TRUE | R31: TRUE | S31: 2022-04-01 | T31: 4 | U31: EHCP | V31: 2007 | W31: 3022007 | X31: =VLOOKUP(W31,Schools!$A:$B,2,0) -> Brookland Junior School | Y31: EHCP
A32: 1 | B32: 2 | C32: 400061 | D32: TRUE | E32: 2009.EHCP.I03.1.Ap22 | F32: 2022-10-06 | G32: 17437.5 | H32: 2022-10-06 | I32: 0 | J32: Brunswick Park P.2009.EHCP.I03.1.Ap22 | K32: TRUE | L32: V0 | M32: TRUE | N32: NEW | O32: 11431/543965 | P32: TRUE | Q32: TRUE | R32: TRUE | S32: 2022-04-01 | T32: 4 | U32: EHCP | V32: 2009 | W32: 3022009 | X32: =VLOOKUP(W32,Schools!$A:$B,2,0) -> Brunswick Park Primary & Nursery School | Y32: EHCP
A33: 1 | B33: 2 | C33: 400065 | D33: TRUE | E33: 2067.ARPs.I03.1.Ap22 | F33: 2022-10-06 | G33: 34921.40821 | H33: 2022-10-06 | I33: 0 | J33: Chalgrove Primar.2067.ARPs.I03.1.Ap22 | K33: TRUE | L33: V0 | M33: TRUE | N33: NEW | O33: 11432/543965 | P33: TRUE | Q33: TRUE | R33: TRUE | S33: 2022-04-01 | T33: 4 | U33: ARPs | V33: 2067 | W33: 3022067 | X33: =VLOOKUP(W33,Schools!$A:$B,2,0) -> Chalgrove Primary School | Y33: ARPs
A34: 1 | B34: 2 | C34: 400065 | D34: TRUE | E34: 2067.EHCP.I03.2.Ap22 | F34: 2022-10-06 | G34: 8889.038462 | H34: 2022-10-06 | I34: 0 | J34: Chalgrove Primar.2067.EHCP.I03.2.Ap22 | K34: TRUE | L34: V0 | M34: TRUE | N34: NEW | O34: 11431/543965 | P34: TRUE | Q34: TRUE | R34: TRUE | S34: 2022-04-01 | T34: 4 | U34: EHCP | V34: 2067 | W34: 3022067 | X34: =VLOOKUP(W34,Schools!$A:$B,2,0) -> Chalgrove Primary School | Y34: EHCP
A35: 1 | B35: 2 | C35: 160141 | D35: TRUE | E35: 2010.ARPs.I03.1.Ap22 | F35: 2022-10-06 | G35: 32714.10205 | H35: 2022-10-06 | I35: 0 | J35: Child's Hill Aca.2010.ARPs.I03.1.Ap22 | K35: TRUE | L35: V0 | M35: TRUE | N35: NEW | O35: 11422/516500 | P35: TRUE | Q35: TRUE | R35: TRUE | S35: 2022-04-01 | T35: 4 | U35: ARPs | V35: 2010 | W35: 3022010 | X35: =VLOOKUP(W35,Schools!$A:$B,2,0) -> Child's Hill Academy | Y35: ARPs
A36: 1 | B36: 2 | C36: 160141 | D36: TRUE | E36: 2010.EHCP.I03.2.Ap22 | F36: 2022-10-06 | G36: 15940.54974 | H36: 2022-10-06 | I36: 0 | J36: Child's Hill Aca.2010.EHCP.I03.2.Ap22 | K36: TRUE | L36: V0 | M36: TRUE | N36: NEW | O36: 11443/516500 | P36: TRUE | Q36: TRUE | R36: TRUE | S36: 2022-04-01 | T36: 4 | U36: EHCP | V36: 2010 | W36: 3022010 | X36: =VLOOKUP(W36,Schools!$A:$B,2,0) -> Child's Hill Academy | Y36: EHCP
A37: 1 | B37: 2 | C37: 160141 | D37: TRUE | E37: 2010.SENI.I03.3.Ap22 | F37: 2022-10-06 | G37: 2099.057692 | H37: 2022-10-06 | I37: 0 | J37: Child's Hill Aca.2010.SENI.I03.3.Ap22 | K37: TRUE | L37: V0 | M37: TRUE | N37: NEW | O37: 10265/516500 | P37: TRUE | Q37: TRUE | R37: TRUE | S37: 2022-04-01 | T37: 4 | U37: SENI | V37: 2010 | W37: 3022010 | X37: =VLOOKUP(W37,Schools!$A:$B,2,0) -> Child's Hill Academy | Y37: SENI
A38: 1 | B38: 2 | C38: 400039 | D38: TRUE | E38: 3302.EHCP.I03.1.Ap22 | F38: 2022-10-06 | G38: 9810.013846 | H38: 2022-10-06 | I38: 0 | J38: Christ Church CE.3302.EHCP.I03.1.Ap22 | K38: TRUE | L38: V0 | M38: TRUE | N38: NEW | O38: 11431/543965 | P38: TRUE | Q38: TRUE | R38: TRUE | S38: 2022-04-01 | T38: 4 | U38: EHCP | V38: 3302 | W38: 3023302 | X38: =VLOOKUP(W38,Schools!$A:$B,2,0) -> Christ Church CE Primary School | Y38: EHCP
A39: 1 | B39: 2 | C39: 144389 | D39: TRUE | E39: 4211.EHCP.I03.1.Ap22 | F39: 2022-10-06 | G39: 18138.05077 | H39: 2022-10-06 | I39: 0 | J39: Christ's College.4211.EHCP.I03.1.Ap22 | K39: TRUE | L39: V0 | M39: TRUE | N39: NEW | O39: 11442/516500 | P39: TRUE | Q39: TRUE | R39: TRUE | S39: 2022-04-01 | T39: 4 | U39: EHCP | V39: 4211 | W39: 3024211 | X39: =VLOOKUP(W39,Schools!$A:$B,2,0) -> Christ's College Finchley | Y39: EHCP
A40: 1 | B40: 2 | C40: 400020 | D40: TRUE | E40: 2011.EHCP.I03.1.Ap22 | F40: 2022-10-06 | G40: 2139.218462 | H40: 2022-10-06 | I40: 0 | J40: Church Hill Prim.2011.EHCP.I03.1.Ap22 | K40: TRUE | L40: V0 | M40: TRUE | N40: NEW | O40: 11431/543965 | P40: TRUE | Q40: TRUE | R40: TRUE | S40: 2022-04-01 | T40: 4 | U40: EHCP | V40: 2011 | W40: 3022011 | X40: =VLOOKUP(W40,Schools!$A:$B,2,0) -> Church Hill Primary School | Y40: EHCP
A41: 1 | B41: 2 | C41: 156151 | D41: TRUE | E41: 3522.ARPs.I03.1.Ap22 | F41: 2022-10-06 | G41: 34744.57077 | H41: 2022-10-06 | I41: 0 | J41: Claremont Academ.3522.ARPs.I03.1.Ap22 | K41: TRUE | L41: V0 | M41: TRUE | N41: NEW | O41: 11422/516500 | P41: TRUE | Q41: TRUE | R41: TRUE | S41: 2022-04-01 | T41: 4 | U41: ARPs | V41: 3522 | W41: 3023522 | X41: =VLOOKUP(W41,Schools!$A:$B,2,0) -> Claremont Academy | Y41: ARPs
A42: 1 | B42: 2 | C42: 156151 | D42: TRUE | E42: 3522.EHCP.I03.2.Ap22 | F42: 2022-10-06 | G42: 10048.69231 | H42: 2022-10-06 | I42: 0 | J42: Claremont Academ.3522.EHCP.I03.2.Ap22 | K42: TRUE | L42: V0 | M42: TRUE | N42: NEW | O42: 11443/516500 | P42: TRUE | Q42: TRUE | R42: TRUE | S42: 2022-04-01 | T42: 4 | U42: EHCP | V42: 3522 | W42: 3023522 | X42: =VLOOKUP(W42,Schools!$A:$B,2,0) -> Claremont Academy | Y42: EHCP
A43: 1 | B43: 2 | C43: 400050 | D43: TRUE | E43: 2014.ARPs.I03.1.Ap22 | F43: 2022-10-06 | G43: 19346.87231 | H43: 2022-10-06 | I43: 0 | J43: Colindale School.2014.ARPs.I03.1.Ap22 | K43: TRUE | L43: V0 | M43: TRUE | N43: NEW | O43: 11432/543965 | P43: TRUE | Q43: TRUE | R43: TRUE | S43: 2022-04-01 | T43: 4 | U43: ARPs | V43: 2014 | W43: 3022014 | X43: =VLOOKUP(W43,Schools!$A:$B,2,0) -> Colindale School | Y43: ARPs
A44: 1 | B44: 2 | C44: 400050 | D44: TRUE | E44: 2014.EHCP.I03.2.Ap22 | F44: 2022-10-06 | G44: 19506.61538 | H44: 2022-10-06 | I44: 0 | J44: Colindale School.2014.EHCP.I03.2.Ap22 | K44: TRUE | L44: V0 | M44: TRUE | N44: NEW | O44: 11431/543965 | P44: TRUE | Q44: TRUE | R44: TRUE | S44: 2022-04-01 | T44: 4 | U44: EHCP | V44: 2014 | W44: 3022014 | X44: =VLOOKUP(W44,Schools!$A:$B,2,0) -> Colindale School | Y44: EHCP
A45: 1 | B45: 2 | C45: 140894 | D45: TRUE | E45: 4215.EHCP.I03.1.Ap22 | F45: 2022-10-06 | G45: 46843.48615 | H45: 2022-10-06 | I45: 0 | J45: Compton School.4215.EHCP.I03.1.Ap22 | K45: TRUE | L45: V0 | M45: TRUE | N45: NEW | O45: 11442/516500 | P45: TRUE | Q45: TRUE | R45: TRUE | S45: 2022-04-01 | T45: 4 | U45: EHCP | V45: 4215 | W45: 3024215 | X45: =VLOOKUP(W45,Schools!$A:$B,2,0) -> Compton School | Y45: EHCP
A46: 1 | B46: 2 | C46: 400059 | D46: TRUE | E46: 2015.ARPs.I03.1.Ap22 | F46: 2022-10-06 | G46: 31508.95077 | H46: 2022-10-06 | I46: 0 | J46: Coppetts Wood.2015.ARPs.I03.1.Ap22 | K46: TRUE | L46: V0 | M46: TRUE | N46: NEW | O46: 11432/543965 | P46: TRUE | Q46: TRUE | R46: TRUE | S46: 2022-04-01 | T46: 4 | U46: ARPs | V46: 2015 | W46: 3022015 | X46: =VLOOKUP(W46,Schools!$A:$B,2,0) -> Coppetts Wood | Y46: ARPs
A47: 1 | B47: 2 | C47: 400059 | D47: TRUE | E47: 2015.EHCP.I03.2.Ap22 | F47: 2022-10-06 | G47: 9115.127692 | H47: 2022-10-06 | I47: 0 | J47: Coppetts Wood.2015.EHCP.I03.2.Ap22 | K47: TRUE | L47: V0 | M47: TRUE | N47: NEW | O47: 11431/543965 | P47: TRUE | Q47: TRUE | R47: TRUE | S47: 2022-04-01 | T47: 4 | U47: EHCP | V47: 2015 | W47: 3022015 | X47: =VLOOKUP(W47,Schools!$A:$B,2,0) -> Coppetts Wood | Y47: EHCP
A48: 1 | B48: 2 | C48: 400059 | D48: TRUE | E48: 2015.EHCP.I03.3.Ap22 | F48: 2022-10-06 | G48: 396.4430769 | H48: 2022-10-06 | I48: 0 | J48: Coppetts Wood.2015.EHCP.I03.3.Ap22 | K48: TRUE | L48: V0 | M48: TRUE | N48: NEW | O48: 11436/543965 | P48: TRUE | Q48: TRUE | R48: TRUE | S48: 2022-04-01 | T48: 4 | U48: EHCP | V48: 2015 | W48: 3022015 | X48: =VLOOKUP(W48,Schools!$A:$B,2,0) -> Coppetts Wood | Y48: EHCP
A49: 1 | B49: 2 | C49: 148020 | D49: TRUE | E49: 4210.EHCP.I03.1.Ap22 | F49: 2022-10-06 | G49: 15912.37077 | H49: 2022-10-06 | I49: 0 | J49: Copthall School.4210.EHCP.I03.1.Ap22 | K49: TRUE | L49: V0 | M49: TRUE | N49: NEW | O49: 11442/516500 | P49: TRUE | Q49: TRUE | R49: TRUE | S49: 2022-04-01 | T49: 4 | U49: EHCP | V49: 4210 | W49: 3024210 | X49: =VLOOKUP(W49,Schools!$A:$B,2,0) -> Copthall School | Y49: EHCP
A50: 1 | B50: 2 | C50: 400049 | D50: TRUE | E50: 2016.EHCP.I03.1.Ap22 | F50: 2022-10-06 | G50: 8335.576923 | H50: 2022-10-06 | I50: 0 | J50: Courtland School.2016.EHCP.I03.1.Ap22 | K50: TRUE | L50: V0 | M50: TRUE | N50: NEW | O50: 11431/543965 | P50: TRUE | Q50: TRUE | R50: TRUE | S50: 2022-04-01 | T50: 4 | U50: EHCP | V50: 2016 | W50: 3022016 | X50: =VLOOKUP(W50,Schools!$A:$B,2,0) -> Courtland School | Y50: EHCP
A51: 1 | B51: 2 | C51: 400080 | D51: TRUE | E51: 2017.EHCP.I03.1.Ap22 | F51: 2022-10-06 | G51: 11124.19077 | H51: 2022-10-06 | I51: 0 | J51: Cromer Road Prim.2017.EHCP.I03.1.Ap22 | K51: TRUE | L51: V0 | M51: TRUE | N51: NEW | O51: 11431/543965 | P51: TRUE | Q51: TRUE | R51: TRUE | S51: 2022-04-01 | T51: 4 | U51: EHCP | V51: 2017 | W51: 3022017 | X51: =VLOOKUP(W51,Schools!$A:$B,2,0) -> Cromer Road Primary School | Y51: EHCP
A52: 1 | B52: 2 | C52: 400105 | D52: TRUE | E52: 2073.EHCP.I03.1.Ap22 | F52: 2022-10-06 | G52: 40479.55231 | H52: 2022-10-06 | I52: 0 | J52: Danegrove JMI Sc.2073.EHCP.I03.1.Ap22 | K52: TRUE | L52: V0 | M52: TRUE | N52: NEW | O52: 11431/543965 | P52: TRUE | Q52: TRUE | R52: TRUE | S52: 2022-04-01 | T52: 4 | U52: EHCP | V52: 2073 | W52: 3022073 | X52: =VLOOKUP(W52,Schools!$A:$B,2,0) -> Danegrove JMI School | Y52: EHCP
A53: 1 | B53: 2 | C53: 400036 | D53: TRUE | E53: 2019.EHCP.I03.1.Ap22 | F53: 2022-10-06 | G53: 13132.03692 | H53: 2022-10-06 | I53: 0 | J53: Deansbrook Infan.2019.EHCP.I03.1.Ap22 | K53: TRUE | L53: V0 | M53: TRUE | N53: NEW | O53: 11431/543965 | P53: TRUE | Q53: TRUE | R53: TRUE | S53: 2022-04-01 | T53: 4 | U53: EHCP | V53: 2019 | W53: 3022019 | X53: =VLOOKUP(W53,Schools!$A:$B,2,0) -> Deansbrook Infant School | Y53: EHCP
A54: 1 | B54: 2 | C54: 400036 | D54: TRUE | E54: 2019.SENI.I03.2.Ap22 | F54: 2022-10-06 | G54: 577.0769231 | H54: 2022-10-06 | I54: 0 | J54: Deansbrook Infan.2019.SENI.I03.2.Ap22 | K54: TRUE | L54: V0 | M54: TRUE | N54: NEW | O54: 10265/543965 | P54: TRUE | Q54: TRUE | R54: TRUE | S54: 2022-04-01 | T54: 4 | U54: SENI | V54: 2019 | W54: 3022019 | X54: =VLOOKUP(W54,Schools!$A:$B,2,0) -> Deansbrook Infant School | Y54: SENI
A55: 1 | B55: 2 | C55: 151094 | D55: TRUE | E55: 2018.EHCP.I03.1.Ap22 | F55: 2022-10-06 | G55: 16144.23231 | H55: 2022-10-06 | I55: 0 | J55: Deansbrook Junio.2018.EHCP.I03.1.Ap22 | K55: TRUE | L55: V0 | M55: TRUE | N55: NEW | O55: 11443/516500 | P55: TRUE | Q55: TRUE | R55: TRUE | S55: 2022-04-01 | T55: 4 | U55: EHCP | V55: 2018 | W55: 3022018 | X55: =VLOOKUP(W55,Schools!$A:$B,2,0) -> Deansbrook Junior School | Y55: EHCP
A56: 1 | B56: 2 | C56: 400042 | D56: TRUE | E56: 2021.EHCP.I03.1.Ap22 | F56: 2022-10-06 | G56: 10971.29538 | H56: 2022-10-06 | I56: 0 | J56: Dollis Primary S.2021.EHCP.I03.1.Ap22 | K56: TRUE | L56: V0 | M56: TRUE | N56: NEW | O56: 11431/543965 | P56: TRUE | Q56: TRUE | R56: TRUE | S56: 2022-04-01 | T56: 4 | U56: EHCP | V56: 2021 | W56: 3022021 | X56: =VLOOKUP(W56,Schools!$A:$B,2,0) -> Dollis Primary School | Y56: EHCP
A57: 1 | B57: 2 | C57: 400042 | D57: TRUE | E57: 2021.EHCP.I03.2.Ap22 | F57: 2022-10-06 | G57: 158.5769231 | H57: 2022-10-06 | I57: 0 | J57: Dollis Primary S.2021.EHCP.I03.2.Ap22 | K57: TRUE | L57: V0 | M57: TRUE | N57: NEW | O57: 11436/543965 | P57: TRUE | Q57: TRUE | R57: TRUE | S57: 2022-04-01 | T57: 4 | U57: EHCP | V57: 2021 | W57: 3022021 | X57: =VLOOKUP(W57,Schools!$A:$B,2,0) -> Dollis Primary School | Y57: EHCP
A58: 1 | B58: 2 | C58: 400042 | D58: TRUE | E58: 2021.SENI.I03.3.Ap22 | F58: 2022-10-06 | G58: 930 | H58: 2022-10-06 | I58: 0 | J58: Dollis Primary S.2021.SENI.I03.3.Ap22 | K58: TRUE | L58: V0 | M58: TRUE | N58: NEW | O58: 10265/543965 | P58: TRUE | Q58: TRUE | R58: TRUE | S58: 2022-04-01 | T58: 4 | U58: SENI | V58: 2021 | W58: 3022021 | X58: =VLOOKUP(W58,Schools!$A:$B,2,0) -> Dollis Primary School | Y58: SENI
A59: 1 | B59: 2 | C59: 143727 | D59: TRUE | E59: 4212.EHCP.I03.1.Ap22 | F59: 2022-10-06 | G59: 35241.37231 | H59: 2022-10-06 | I59: 0 | J59: East Barnet Scho.4212.EHCP.I03.1.Ap22 | K59: TRUE | L59: V0 | M59: TRUE | N59: NEW | O59: 11442/516500 | P59: TRUE | Q59: TRUE | R59: TRUE | S59: 2022-04-01 | T59: 4 | U59: EHCP | V59: 4212 | W59: 3024212 | X59: =VLOOKUP(W59,Schools!$A:$B,2,0) -> East Barnet School | Y59: EHCP
A60: 1 | B60: 2 | C60: 400159 | D60: TRUE | E60: 2023.EHCP.I03.1.Ap22 | F60: 2022-10-06 | G60: 14065.66462 | H60: 2022-10-06 | I60: 0 | J60: Edgware Primary .2023.EHCP.I03.1.Ap22 | K60: TRUE | L60: V0 | M60: TRUE | N60: NEW | O60: 11431/543965 | P60: TRUE | Q60: TRUE | R60: TRUE | S60: 2022-04-01 | T60: 4 | U60: EHCP | V60: 2023 | W60: 3022023 | X60: =VLOOKUP(W60,Schools!$A:$B,2,0) -> Edgware Primary School | Y60: EHCP
A61: 1 | B61: 2 | C61: 400159 | D61: TRUE | E61: 2023.SENI.I03.2.Ap22 | F61: 2022-10-06 | G61: 1190.572308 | H61: 2022-10-06 | I61: 0 | J61: Edgware Primary .2023.SENI.I03.2.Ap22 | K61: TRUE | L61: V0 | M61: TRUE | N61: NEW | O61: 10265/543965 | P61: TRUE | Q61: TRUE | R61: TRUE | S61: 2022-04-01 | T61: 4 | U61: SENI | V61: 2023 | W61: 3022023 | X61: =VLOOKUP(W61,Schools!$A:$B,2,0) -> Edgware Primary School | Y61: SENI
A62: 1 | B62: 2 | C62: 143691 | D62: TRUE | E62: 2001.EHCP.I03.1.Ap22 | F62: 2022-10-06 | G62: 1690.769231 | H62: 2022-10-06 | I62: 0 | J62: Etz Chaim Jewish.2001.EHCP.I03.1.Ap22 | K62: TRUE | L62: V0 | M62: TRUE | N62: NEW | O62: 11443/516500 | P62: TRUE | Q62: TRUE | R62: TRUE | S62: 2022-04-01 | T62: 4 | U62: EHCP | V62: 2001 | W62: 3022001 | X62: =VLOOKUP(W62,Schools!$A:$B,2,0) -> Etz Chaim Jewish Primary School | Y62: EHCP
A63: 1 | B63: 2 | C63: 400047 | D63: TRUE | E63: 2024.EHCP.I03.1.Ap22 | F63: 2022-10-06 | G63: 8143.781538 | H63: 2022-10-06 | I63: 0 | J63: Fairway Primary .2024.EHCP.I03.1.Ap22 | K63: TRUE | L63: V0 | M63: TRUE | N63: NEW | O63: 11431/543965 | P63: TRUE | Q63: TRUE | R63: TRUE | S63: 2022-04-01 | T63: 4 | U63: EHCP | V63: 2024 | W63: 3022024 | X63: =VLOOKUP(W63,Schools!$A:$B,2,0) -> Fairway Primary School | Y63: EHCP
A64: 1 | B64: 2 | C64: 400047 | D64: TRUE | E64: 2024.EHCP.I03.2.Ap22 | F64: 2022-10-06 | G64: 396.4430769 | H64: 2022-10-06 | I64: 0 | J64: Fairway Primary .2024.EHCP.I03.2.Ap22 | K64: TRUE | L64: V0 | M64: TRUE | N64: NEW | O64: 11436/543965 | P64: TRUE | Q64: TRUE | R64: TRUE | S64: 2022-04-01 | T64: 4 | U64: EHCP | V64: 2024 | W64: 3022024 | X64: =VLOOKUP(W64,Schools!$A:$B,2,0) -> Fairway Primary School | Y64: EHCP
A65: 1 | B65: 2 | C65: 400047 | D65: TRUE | E65: 2024.SENI.I03.3.Ap22 | F65: 2022-10-06 | G65: 1120.826154 | H65: 2022-10-06 | I65: 0 | J65: Fairway Primary .2024.SENI.I03.3.Ap22 | K65: TRUE | L65: V0 | M65: TRUE | N65: NEW | O65: 10265/543965 | P65: TRUE | Q65: TRUE | R65: TRUE | S65: 2022-04-01 | T65: 4 | U65: SENI | V65: 2024 | W65: 3022024 | X65: =VLOOKUP(W65,Schools!$A:$B,2,0) -> Fairway Primary School | Y65: SENI
A66: 1 | B66: 2 | C66: 400041 | D66: TRUE | E66: 5405.EHCP.I03.1.Ap22 | F66: 2022-10-06 | G66: 17850.62769 | H66: 2022-10-06 | I66: 0 | J66: Finchley Catholi.5405.EHCP.I03.1.Ap22 | K66: TRUE | L66: V0 | M66: TRUE | N66: NEW | O66: 11435/543965 | P66: TRUE | Q66: TRUE | R66: TRUE | S66: 2022-04-01 | T66: =MONTH(S66) -> 4 | U66: EHCP | V66: 5405 | W66: =("302"&V66)*1 -> 3025405 | X66: =VLOOKUP(W66,Schools!$A:$B,2,0) -> Finchley Catholic High School | Y66: EHCP
A67: 1 | B67: 2 | C67: 400001 | D67: TRUE | E67: 2025.EHCP.I03.1.Ap22 | F67: 2022-10-06 | G67: 10142.33385 | H67: 2022-10-06 | I67: 0 | J67: Foulds.2025.EHCP.I03.1.Ap22 | K67: TRUE | L67: V0 | M67: TRUE | N67: NEW | O67: 11431/543965 | P67: TRUE | Q67: TRUE | R67: TRUE | S67: 2022-04-01 | T67: 4 | U67: =IFERROR(MID($J67,FIND(".",$J67,FIND(".",$J67,2)+1)+1,FIND(".",$J67,FIND(".",$J67,FIND(".",$J67)+1)+1)-FIND(".",$J67,FIND(".",$J67,2)+1)-1),$J67) -> EHCP | V67: =LEFT(E67,4) -> 2025 | W67: 3022025 | X67: =VLOOKUP(W67,Schools!$A:$B,2,0) -> Foulds | Y67: =IFERROR(MID(J67,FIND(".",J67,FIND(".",J67,2)+1)+1,FIND(".",J67,FIND(".",J67,FIND(".",J67)+1)+1)-FIND(".",J67,FIND(".",J67,2)+1)-1),J67) -> EHCP
A68: 1 | B68: 2 | C68: 400033 | D68: TRUE | E68: 4003.EHCP.I03.1.Ap22 | F68: 2022-10-06 | G68: 27295.74615 | H68: 2022-10-06 | I68: 0 | J68: Friern Barnet Sc.4003.EHCP.I03.1.Ap22 | K68: TRUE | L68: V0 | M68: TRUE | N68: NEW | O68: 11435/543965 | P68: TRUE | Q68: TRUE | R68: TRUE | S68: 2022-04-01 | T68: 4 | U68: EHCP | V68: 4003 | W68: 3024003 | X68: =VLOOKUP(W68,Schools!$A:$B,2,0) -> Friern Barnet School | Y68: EHCP
A69: 1 | B69: 2 | C69: 400082 | D69: TRUE | E69: 2026.EHCP.I03.1.Ap22 | F69: 2022-10-06 | G69: 8902.066154 | H69: 2022-10-06 | I69: 0 | J69: Frith Manor Scho.2026.EHCP.I03.1.Ap22 | K69: TRUE | L69: V0 | M69: TRUE | N69: NEW | O69: 11431/543965 | P69: TRUE | Q69: TRUE | R69: TRUE | S69: 2022-04-01 | T69: 4 | U69: EHCP | V69: 2026 | W69: 3022026 | X69: =VLOOKUP(W69,Schools!$A:$B,2,0) -> Frith Manor School | Y69: EHCP
A70: 1 | B70: 2 | C70: 400082 | D70: TRUE | E70: 2026.SENI.I03.2.Ap22 | F70: 2022-10-06 | G70: 852.5 | H70: 2022-10-06 | I70: 0 | J70: Frith Manor Scho.2026.SENI.I03.2.Ap22 | K70: TRUE | L70: V0 | M70: TRUE | N70: NEW | O70: 10265/543965 | P70: TRUE | Q70: TRUE | R70: TRUE | S70: 2022-04-01 | T70: 4 | U70: SENI | V70: 2026 | W70: 3022026 | X70: =VLOOKUP(W70,Schools!$A:$B,2,0) -> Frith Manor School | Y70: SENI
A71: 1 | B71: 2 | C71: 400067 | D71: TRUE | E71: 2028.EHCP.I03.1.Ap22 | F71: 2022-10-06 | G71: 7977.230769 | H71: 2022-10-06 | I71: 0 | J71: Garden Suburb In.2028.EHCP.I03.1.Ap22 | K71: TRUE | L71: V0 | M71: TRUE | N71: NEW | O71: 11431/543965 | P71: TRUE | Q71: TRUE | R71: TRUE | S71: 2022-04-01 | T71: 4 | U71: EHCP | V71: 2028 | W71: 3022028 | X71: =VLOOKUP(W71,Schools!$A:$B,2,0) -> Garden Suburb Infant School | Y71: EHCP
A72: 1 | B72: 2 | C72: 400002 | D72: TRUE | E72: 2027.EHCP.I03.1.Ap22 | F72: 2022-10-06 | G72: 9458.062051 | H72: 2022-10-06 | I72: 0 | J72: Garden Suburb Ju.2027.EHCP.I03.1.Ap22 | K72: TRUE | L72: V0 | M72: TRUE | N72: NEW | O72: 11431/543965 | P72: TRUE | Q72: TRUE | R72: TRUE | S72: 2022-04-01 | T72: 4 | U72: EHCP | V72: 2027 | W72: 3022027 | X72: =VLOOKUP(W72,Schools!$A:$B,2,0) -> Garden Suburb Junior | Y72: EHCP
A73: 1 | B73: 2 | C73: 400035 | D73: TRUE | E73: 2029.EHCP.I03.1.Ap22 | F73: 2022-10-06 | G73: 20702.71846 | H73: 2022-10-06 | I73: 0 | J73: Goldbeaters Prim.2029.EHCP.I03.1.Ap22 | K73: TRUE | L73: V0 | M73: TRUE | N73: NEW | O73: 11431/543965 | P73: TRUE | Q73: TRUE | R73: TRUE | S73: 2022-04-01 | T73: 4 | U73: EHCP | V73: 2029 | W73: 3022029 | X73: =VLOOKUP(W73,Schools!$A:$B,2,0) -> Goldbeaters Primary School | Y73: EHCP
A74: 1 | B74: 2 | C74: 400035 | D74: TRUE | E74: 2029.SENI.I03.2.Ap22 | F74: 2022-10-06 | G74: 2520.888462 | H74: 2022-10-06 | I74: 0 | J74: Goldbeaters Prim.2029.SENI.I03.2.Ap22 | K74: TRUE | L74: V0 | M74: TRUE | N74: NEW | O74: 10265/543965 | P74: TRUE | Q74: TRUE | R74: TRUE | S74: 2022-04-01 | T74: 4 | U74: SENI | V74: 2029 | W74: 3022029 | X74: =VLOOKUP(W74,Schools!$A:$B,2,0) -> Goldbeaters Primary School | Y74: SENI
A75: 1 | B75: 2 | C75: 400102 | D75: TRUE | E75: 1001.EHCP.I03.1.Ap22 | F75: 2022-10-06 | G75: 396.4430769 | H75: 2022-10-06 | I75: 0 | J75: Hampden Way Nurs.1001.EHCP.I03.1.Ap22 | K75: TRUE | L75: V0 | M75: TRUE | N75: NEW | O75: 11439/543965 | P75: TRUE | Q75: TRUE | R75: TRUE | S75: 2022-04-01 | T75: 4 | U75: EHCP | V75: 1001 | W75: 3021001 | X75: =VLOOKUP(W75,Schools!$A:$B,2,0) -> Hampden Way Nursery | Y75: EHCP
A76: 1 | B76: 2 | C76: 400102 | D76: TRUE | E76: 1001.SENI.I03.2.Ap22 | F76: 2022-10-06 | G76: 2201.726243 | H76: 2022-10-06 | I76: 0 | J76: Hampden Way Nurs.1001.SENI.I03.2.Ap22 | K76: TRUE | L76: V0 | M76: TRUE | N76: NEW | O76: 10265/543965 | P76: TRUE | Q76: TRUE | R76: TRUE | S76: 2022-04-01 | T76: 4 | U76: SENI | V76: 1001 | W76: 3021001 | X76: =VLOOKUP(W76,Schools!$A:$B,2,0) -> Hampden Way Nursery | Y76: SENI
A77: 1 | B77: 2 | C77: 145386 | D77: TRUE | E77: 5409.EHCP.I03.1.Ap22 | F77: 2022-10-06 | G77: 40845.4159 | H77: 2022-10-06 | I77: 0 | J77: Hasmonean High S.5409.EHCP.I03.1.Ap22 | K77: TRUE | L77: V0 | M77: TRUE | N77: NEW | O77: 11442/516500 | P77: TRUE | Q77: TRUE | R77: TRUE | S77: 2022-04-01 | T77: 4 | U77: EHCP | V77: 5409 | W77: 3025409 | X77: =VLOOKUP(W77,Schools!$A:$B,2,0) -> Hasmonean High School | Y77: EHCP
A78: 1 | B78: 2 | C78: 400108 | D78: TRUE | E78: 3516.EHCP.I03.1.Ap22 | F78: 2022-10-06 | G78: 10501.30769 | H78: 2022-10-06 | I78: 0 | J78: Hasmonean Primar.3516.EHCP.I03.1.Ap22 | K78: TRUE | L78: V0 | M78: TRUE | N78: NEW | O78: 11431/543965 | P78: TRUE | Q78: TRUE | R78: TRUE | S78: 2022-04-01 | T78: 4 | U78: EHCP | V78: 3516 | W78: 3023516 | X78: =VLOOKUP(W78,Schools!$A:$B,2,0) -> Hasmonean Primary School | Y78: EHCP
A79: 1 | B79: 2 | C79: 400108 | D79: TRUE | E79: 3516.SENI.I03.2.Ap22 | F79: 2022-10-06 | G79: 366.6353846 | H79: 2022-10-06 | I79: 0 | J79: Hasmonean Primar.3516.SENI.I03.2.Ap22 | K79: TRUE | L79: V0 | M79: TRUE | N79: NEW | O79: 10265/543965 | P79: TRUE | Q79: TRUE | R79: TRUE | S79: 2022-04-01 | T79: 4 | U79: SENI | V79: 3516 | W79: 3023516 | X79: =VLOOKUP(W79,Schools!$A:$B,2,0) -> Hasmonean Primary School | Y79: SENI
A80: 1 | B80: 2 | C80: 145169 | D80: TRUE | E80: 5400.ARPs.I03.1.Ap22 | F80: 2022-10-06 | G80: 59771.47385 | H80: 2022-10-06 | I80: 0 | J80: Hendon School.5400.ARPs.I03.1.Ap22 | K80: TRUE | L80: V0 | M80: TRUE | N80: NEW | O80: 11423/516500 | P80: TRUE | Q80: TRUE | R80: TRUE | S80: 2022-04-01 | T80: 4 | U80: ARPs | V80: 5400 | W80: 3025400 | X80: =VLOOKUP(W80,Schools!$A:$B,2,0) -> Hendon School | Y80: ARPs
A81: 1 | B81: 2 | C81: 145169 | D81: TRUE | E81: 5400.EHCP.I03.2.Ap22 | F81: 2022-10-06 | G81: 38690.63821 | H81: 2022-10-06 | I81: 0 | J81: Hendon School.5400.EHCP.I03.2.Ap22 | K81: TRUE | L81: V0 | M81: TRUE | N81: NEW | O81: 11442/516500 | P81: TRUE | Q81: TRUE | R81: TRUE | S81: 2022-04-01 | T81: 4 | U81: EHCP | V81: 5400 | W81: 3025400 | X81: =VLOOKUP(W81,Schools!$A:$B,2,0) -> Hendon School | Y81: EHCP
A82: 1 | B82: 2 | C82: 400026 | D82: TRUE | E82: 2031.EHCP.I03.1.Ap22 | F82: 2022-10-06 | G82: 4690.307692 | H82: 2022-10-06 | I82: 0 | J82: Hollickwood JMI .2031.EHCP.I03.1.Ap22 | K82: TRUE | L82: V0 | M82: TRUE | N82: NEW | O82: 11431/543965 | P82: TRUE | Q82: TRUE | R82: TRUE | S82: 2022-04-01 | T82: 4 | U82: EHCP | V82: 2031 | W82: 3022031 | X82: =VLOOKUP(W82,Schools!$A:$B,2,0) -> Hollickwood JMI School | Y82: EHCP
A83: 1 | B83: 2 | C83: 400026 | D83: TRUE | E83: 2031.SENI.I03.2.Ap22 | F83: 2022-10-06 | G83: 262.3076923 | H83: 2022-10-06 | I83: 0 | J83: Hollickwood JMI .2031.SENI.I03.2.Ap22 | K83: TRUE | L83: V0 | M83: TRUE | N83: NEW | O83: 10265/543965 | P83: TRUE | Q83: TRUE | R83: TRUE | S83: 2022-04-01 | T83: 4 | U83: SENI | V83: 2031 | W83: 3022031 | X83: =VLOOKUP(W83,Schools!$A:$B,2,0) -> Hollickwood JMI School | Y83: SENI
A84: 1 | B84: 2 | C84: 400084 | D84: TRUE | E84: 2032.EHCP.I03.1.Ap22 | F84: 2022-10-06 | G84: 18206.14462 | H84: 2022-10-06 | I84: 0 | J84: Holly Park Schoo.2032.EHCP.I03.1.Ap22 | K84: TRUE | L84: V0 | M84: TRUE | N84: NEW | O84: 11431/543965 | P84: TRUE | Q84: TRUE | R84: TRUE | S84: 2022-04-01 | T84: 4 | U84: EHCP | V84: 2032 | W84: 3022032 | X84: =VLOOKUP(W84,Schools!$A:$B,2,0) -> Holly Park School | Y84: EHCP
A85: 1 | B85: 2 | C85: 400084 | D85: TRUE | E85: 2032.EHCP.I03.2.Ap22 | F85: 2022-10-06 | G85: 713.5984615 | H85: 2022-10-06 | I85: 0 | J85: Holly Park Schoo.2032.EHCP.I03.2.Ap22 | K85: TRUE | L85: V0 | M85: TRUE | N85: NEW | O85: 11436/543965 | P85: TRUE | Q85: TRUE | R85: TRUE | S85: 2022-04-01 | T85: 4 | U85: EHCP | V85: 2032 | W85: 3022032 | X85: =VLOOKUP(W85,Schools!$A:$B,2,0) -> Holly Park School | Y85: EHCP
A86: 1 | B86: 2 | C86: 400084 | D86: TRUE | E86: 2032.SENI.I03.3.Ap22 | F86: 2022-10-06 | G86: 3132.266154 | H86: 2022-10-06 | I86: 0 | J86: Holly Park Schoo.2032.SENI.I03.3.Ap22 | K86: TRUE | L86: V0 | M86: TRUE | N86: NEW | O86: 10265/543965 | P86: TRUE | Q86: TRUE | R86: TRUE | S86: 2022-04-01 | T86: 4 | U86: SENI | V86: 2032 | W86: 3022032 | X86: =VLOOKUP(W86,Schools!$A:$B,2,0) -> Holly Park School | Y86: SENI
A87: 1 | B87: 2 | C87: 400008 | D87: TRUE | E87: 3304.EHCP.I03.1.Ap22 | F87: 2022-10-06 | G87: 11883.17538 | H87: 2022-10-06 | I87: 0 | J87: Holy Trinity Sch.3304.EHCP.I03.1.Ap22 | K87: TRUE | L87: V0 | M87: TRUE | N87: NEW | O87: 11431/543965 | P87: TRUE | Q87: TRUE | R87: TRUE | S87: 2022-04-01 | T87: 4 | U87: EHCP | V87: 3304 | W87: 3023304 | X87: =VLOOKUP(W87,Schools!$A:$B,2,0) -> Holy Trinity School | Y87: EHCP
A88: 1 | B88: 2 | C88: 400008 | D88: TRUE | E88: 3304.SENI.I03.2.Ap22 | F88: 2022-10-06 | G88: 226.1476923 | H88: 2022-10-06 | I88: 0 | J88: Holy Trinity Sch.3304.SENI.I03.2.Ap22 | K88: TRUE | L88: V0 | M88: TRUE | N88: NEW | O88: 10265/543965 | P88: TRUE | Q88: TRUE | R88: TRUE | S88: 2022-04-01 | T88: 4 | U88: SENI | V88: 3304 | W88: 3023304 | X88: =VLOOKUP(W88,Schools!$A:$B,2,0) -> Holy Trinity School | Y88: SENI
A89: 1 | B89: 2 | C89: 151702 | D89: TRUE | E89: 2047.EHCP.I03.1.Ap22 | F89: 2022-10-06 | G89: 17711.30615 | H89: 2022-10-06 | I89: 0 | J89: Hyde School.2047.EHCP.I03.1.Ap22 | K89: TRUE | L89: V0 | M89: TRUE | N89: NEW | O89: 11443/516500 | P89: TRUE | Q89: TRUE | R89: TRUE | S89: 2022-04-01 | T89: 4 | U89: EHCP | V89: 2047 | W89: 3022047 | X89: =VLOOKUP(W89,Schools!$A:$B,2,0) -> Hyde School | Y89: EHCP
A90: 1 | B90: 2 | C90: 143982 | D90: TRUE | E90: 3515.EHCP.I03.1.Ap22 | F90: 2022-10-06 | G90: 6481.283077 | H90: 2022-10-06 | I90: 0 | J90: Independent Jewi.3515.EHCP.I03.1.Ap22 | K90: TRUE | L90: V0 | M90: TRUE | N90: NEW | O90: 11443/516500 | P90: TRUE | Q90: TRUE | R90: TRUE | S90: 2022-04-01 | T90: 4 | U90: EHCP | V90: 3515 | W90: 3023515 | X90: =VLOOKUP(W90,Schools!$A:$B,2,0) -> Independent Jewish Day School | Y90: EHCP
A91: 1 | B91: 2 | C91: 400140 | D91: TRUE | E91: 5427.ARPs.I03.1.Ap22 | F91: 2022-10-06 | G91: 141377.6026 | H91: 2022-10-06 | I91: 0 | J91: JCoSS.5427.ARPs.I03.1.Ap22 | K91: TRUE | L91: V0 | M91: TRUE | N91: NEW | O91: 11434/543965 | P91: TRUE | Q91: TRUE | R91: TRUE | S91: 2022-04-01 | T91: 4 | U91: ARPs | V91: 5427 | W91: 3025427 | X91: =VLOOKUP(W91,Schools!$A:$B,2,0) -> JCoSS | Y91: ARPs
A92: 1 | B92: 2 | C92: 400140 | D92: TRUE | E92: 5427.EHCP.I03.2.Ap22 | F92: 2022-10-06 | G92: 38251.88615 | H92: 2022-10-06 | I92: 0 | J92: JCoSS.5427.EHCP.I03.2.Ap22 | K92: TRUE | L92: V0 | M92: TRUE | N92: NEW | O92: 11435/543965 | P92: TRUE | Q92: TRUE | R92: TRUE | S92: 2022-04-01 | T92: 4 | U92: EHCP | V92: 5427 | W92: 3025427 | X92: =VLOOKUP(W92,Schools!$A:$B,2,0) -> JCoSS | Y92: EHCP
A93: 1 | B93: 2 | C93: 105221 | D93: TRUE | E93: 6085.SPEC.I03.1.Ap22 | F93: 2022-10-06 | G93: 146757.4005 | H93: 2022-10-06 | I93: 0 | J93: Kisharon Inclusi.6085.SPEC.I03.1.Ap22 | K93: TRUE | L93: V0 | M93: TRUE | N93: NEW | O93: 11491/516500 | P93: TRUE | Q93: TRUE | R93: TRUE | S93: 2022-04-01 | T93: 4 | U93: SPEC | V93: 6085 | W93: 3026085 | X93: =VLOOKUP(W93,Schools!$A:$B,2,0) -> Kisharon Inclusive Special Free School | Y93: SPEC
A94: 1 | B94: 2 | C94: 400046 | D94: TRUE | E94: 2036.ARPs.I03.1.Ap22 | F94: 2022-10-06 | G94: 40631.60154 | H94: 2022-10-06 | I94: 0 | J94: Livingstone Scho.2036.ARPs.I03.1.Ap22 | K94: TRUE | L94: V0 | M94: TRUE | N94: NEW | O94: 11432/543965 | P94: TRUE | Q94: TRUE | R94: TRUE | S94: 2022-04-01 | T94: 4 | U94: ARPs | V94: 2036 | W94: 3022036 | X94: =VLOOKUP(W94,Schools!$A:$B,2,0) -> Livingstone School | Y94: ARPs
A95: 1 | B95: 2 | C95: 400046 | D95: TRUE | E95: 2036.EHCP.I03.2.Ap22 | F95: 2022-10-06 | G95: 10162.37077 | H95: 2022-10-06 | I95: 0 | J95: Livingstone Scho.2036.EHCP.I03.2.Ap22 | K95: TRUE | L95: V0 | M95: TRUE | N95: NEW | O95: 11431/543965 | P95: TRUE | Q95: TRUE | R95: TRUE | S95: 2022-04-01 | T95: 4 | U95: EHCP | V95: 2036 | W95: 3022036 | X95: =VLOOKUP(W95,Schools!$A:$B,2,0) -> Livingstone School | Y95: EHCP
A96: 1 | B96: 2 | C96: 400046 | D96: TRUE | E96: 2036.SENI.I03.3.Ap22 | F96: 2022-10-06 | G96: 511.5 | H96: 2022-10-06 | I96: 0 | J96: Livingstone Scho.2036.SENI.I03.3.Ap22 | K96: TRUE | L96: V0 | M96: TRUE | N96: NEW | O96: 10265/543965 | P96: TRUE | Q96: TRUE | R96: TRUE | S96: 2022-04-01 | T96: 4 | U96: SENI | V96: 2036 | W96: 3022036 | X96: =VLOOKUP(W96,Schools!$A:$B,2,0) -> Livingstone School | Y96: SENI
A97: 1 | B97: 2 | C97: 400116 | D97: TRUE | E97: 6905.ARPs.I03.1.Ap22 | F97: 2022-10-06 | G97: 3804 | H97: 2022-10-06 | I97: 0 | J97: London Academy.6905.ARPs.I03.1.Ap22 | K97: TRUE | L97: V0 | M97: TRUE | N97: NEW | O97: 11423/516500 | P97: TRUE | Q97: TRUE | R97: TRUE | S97: 2022-04-01 | T97: 4 | U97: ARPs | V97: 6905 | W97: 3026905 | X97: =VLOOKUP(W97,Schools!$A:$B,2,0) -> London Academy | Y97: ARPs
A98: 1 | B98: 2 | C98: 400116 | D98: TRUE | E98: 6905.EHCP.I03.2.Ap22 | F98: 2022-10-06 | G98: 39829.46154 | H98: 2022-10-06 | I98: 0 | J98: London Academy.6905.EHCP.I03.2.Ap22 | K98: TRUE | L98: V0 | M98: TRUE | N98: NEW | O98: 11442/516500 | P98: TRUE | Q98: TRUE | R98: TRUE | S98: 2022-04-01 | T98: 4 | U98: EHCP | V98: 6905 | W98: 3026905 | X98: =VLOOKUP(W98,Schools!$A:$B,2,0) -> London Academy | Y98: EHCP
A99: 1 | B99: 2 | C99: 400116 | D99: TRUE | E99: 6905.EHCP.I03.3.Ap22 | F99: 2022-10-06 | G99: 10288.33385 | H99: 2022-10-06 | I99: 0 | J99: London Academy.6905.EHCP.I03.3.Ap22 | K99: TRUE | L99: V0 | M99: TRUE | N99: NEW | O99: 11443/516500 | P99: TRUE | Q99: TRUE | R99: TRUE | S99: 2022-04-01 | T99: 4 | U99: EHCP | V99: 6905 | W99: 3026905 | X99: =VLOOKUP(W99,Schools!$A:$B,2,0) -> London Academy | Y99: EHCP
A100: 1 | B100: 2 | C100: 400030 | D100: TRUE | E100: 2037.EHCP.I03.1.Ap22 | F100: 2022-10-06 | G100: 9132.78 | H100: 2022-10-06 | I100: 0 | J100: Manorside Primar.2037.EHCP.I03.1.Ap22 | K100: TRUE | L100: V0 | M100: TRUE | N100: NEW | O100: 11431/543965 | P100: TRUE | Q100: TRUE | R100: TRUE | S100: 2022-04-01 | T100: 4 | U100: EHCP | V100: 2037 | W100: 3022037 | X100: =VLOOKUP(W100,Schools!$A:$B,2,0) -> Manorside Primary School | Y100: EHCP
A101: 1 | B101: 2 | C101: 400030 | D101: TRUE | E101: 2037.SENI.I03.2.Ap22 | F101: 2022-10-06 | G101: 525.9507692 | H101: 2022-10-06 | I101: 0 | J101: Manorside Primar.2037.SENI.I03.2.Ap22 | K101: TRUE | L101: V0 | M101: TRUE | N101: NEW | O101: 10265/543965 | P101: TRUE | Q101: TRUE | R101: TRUE | S101: 2022-04-01 | T101: 4 | U101: SENI | V101: 2037 | W101: 3022037 | X101: =VLOOKUP(W101,Schools!$A:$B,2,0) -> Manorside Primary School | Y101: SENI
A102: 1 | B102: 2 | C102: 400063 | D102: TRUE | E102: 7010.SPEC.I03.1.Ap22 | F102: 2022-10-06 | G102: 340595.04 | H102: 2022-10-06 | I102: 0 | J102: Mapledown.7010.SPEC.I03.1.Ap22 | K102: TRUE | L102: V0 | M102: TRUE | N102: NEW | O102: 11433/543965 | P102: TRUE | Q102: TRUE | R102: TRUE | S102: 2022-04-01 | T102: 4 | U102: SPEC | V102: 7010 | W102: 3027010 | X102: =VLOOKUP(W102,Schools!$A:$B,2,0) -> Mapledown | Y102: SPEC
A103: 1 | B103: 2 | C103: 400130 | D103: TRUE | E103: 3523.EHCP.I03.1.Ap22 | F103: 2022-10-06 | G103: 16160.44769 | H103: 2022-10-06 | I103: 0 | J103: Martin Primary S.3523.EHCP.I03.1.Ap22 | K103: TRUE | L103: V0 | M103: TRUE | N103: NEW | O103: 11431/543965 | P103: TRUE | Q103: TRUE | R103: TRUE | S103: 2022-04-01 | T103: 4 | U103: EHCP | V103: 3523 | W103: 3023523 | X103: =VLOOKUP(W103,Schools!$A:$B,2,0) -> Martin Primary School | Y103: EHCP
A104: 1 | B104: 2 | C104: 400130 | D104: TRUE | E104: 3523.SENI.I03.2.Ap22 | F104: 2022-10-06 | G104: 226.5384615 | H104: 2022-10-06 | I104: 0 | J104: Martin Primary S.3523.SENI.I03.2.Ap22 | K104: TRUE | L104: V0 | M104: TRUE | N104: NEW | O104: 10265/543965 | P104: TRUE | Q104: TRUE | R104: TRUE | S104: 2022-04-01 | T104: 4 | U104: SENI | V104: 3523 | W104: 3023523 | X104: =VLOOKUP(W104,Schools!$A:$B,2,0) -> Martin Primary School | Y104: SENI
A105: 1 | B105: 2 | C105: 400112 | D105: TRUE | E105: 5948.EHCP.I03.1.Ap22 | F105: 2022-10-06 | G105: 2651.295385 | H105: 2022-10-06 | I105: 0 | J105: Mathilda Marks-K.5948.EHCP.I03.1.Ap22 | K105: TRUE | L105: V0 | M105: TRUE | N105: NEW | O105: 11431/543965 | P105: TRUE | Q105: TRUE | R105: TRUE | S105: 2022-04-01 | T105: 4 | U105: EHCP | V105: 5948 | W105: 3025948 | X105: =VLOOKUP(W105,Schools!$A:$B,2,0) -> Mathilda Marks-Kennedy School | Y105: EHCP
A106: 1 | B106: 2 | C106: 400110 | D106: TRUE | E106: 5949.EHCP.I03.1.Ap22 | F106: 2022-10-06 | G106: 4496.783077 | H106: 2022-10-06 | I106: 0 | J106: Menorah Foundati.5949.EHCP.I03.1.Ap22 | K106: TRUE | L106: V0 | M106: TRUE | N106: NEW | O106: 11431/543965 | P106: TRUE | Q106: TRUE | R106: TRUE | S106: 2022-04-01 | T106: 4 | U106: EHCP | V106: 5949 | W106: 3025949 | X106: =VLOOKUP(W106,Schools!$A:$B,2,0) -> Menorah Foundation School | Y106: EHCP
A107: 1 | B107: 2 | C107: 400110 | D107: TRUE | E107: 5949.EHCP.I03.2.Ap22 | F107: 2022-10-06 | G107: 634.3076923 | H107: 2022-10-06 | I107: 0 | J107: Menorah Foundati.5949.EHCP.I03.2.Ap22 | K107: TRUE | L107: V0 | M107: TRUE | N107: NEW | O107: 11436/543965 | P107: TRUE | Q107: TRUE | R107: TRUE | S107: 2022-04-01 | T107: 4 | U107: EHCP | V107: 5949 | W107: 3025949 | X107: =VLOOKUP(W107,Schools!$A:$B,2,0) -> Menorah Foundation School | Y107: EHCP
A108: 1 | B108: 2 | C108: 107953 | D108: TRUE | E108: 4004.EHCP.I03.1.Ap22 | F108: 2022-10-06 | G108: 10941.14 | H108: 2022-10-06 | I108: 0 | J108: Menorah High Sch.4004.EHCP.I03.1.Ap22 | K108: TRUE | L108: V0 | M108: TRUE | N108: NEW | O108: 11435/543965 | P108: TRUE | Q108: TRUE | R108: TRUE | S108: 2022-04-01 | T108: 4 | U108: EHCP | V108: 4004 | W108: 3024004 | X108: =VLOOKUP(W108,Schools!$A:$B,2,0) -> Menorah High School (Girls) | Y108: EHCP
A109: 1 | B109: 2 | C109: 400007 | D109: TRUE | E109: 3513.EHCP.I03.1.Ap22 | F109: 2022-10-06 | G109: 10423.15846 | H109: 2022-10-06 | I109: 0 | J109: Menorah Primary .3513.EHCP.I03.1.Ap22 | K109: TRUE | L109: V0 | M109: TRUE | N109: NEW | O109: 11431/543965 | P109: TRUE | Q109: TRUE | R109: TRUE | S109: 2022-04-01 | T109: 4 | U109: EHCP | V109: 3513 | W109: 3023513 | X109: =VLOOKUP(W109,Schools!$A:$B,2,0) -> Menorah Primary School | Y109: EHCP
A110: 1 | B110: 2 | C110: 400007 | D110: TRUE | E110: 3513.SENI.I03.2.Ap22 | F110: 2022-10-06 | G110: 209.8461538 | H110: 2022-10-06 | I110: 0 | J110: Menorah Primary .3513.SENI.I03.2.Ap22 | K110: TRUE | L110: V0 | M110: TRUE | N110: NEW | O110: 10265/543965 | P110: TRUE | Q110: TRUE | R110: TRUE | S110: 2022-04-01 | T110: 4 | U110: SENI | V110: 3513 | W110: 3023513 | X110: =VLOOKUP(W110,Schools!$A:$B,2,0) -> Menorah Primary School | Y110: SENI
A111: 1 | B111: 2 | C111: 144069 | D111: TRUE | E111: 5402.EHCP.I03.1.Ap22 | F111: 2022-10-06 | G111: 88422.89846 | H111: 2022-10-06 | I111: 0 | J111: Mill Hill County.5402.EHCP.I03.1.Ap22 | K111: TRUE | L111: V0 | M111: TRUE | N111: NEW | O111: 11442/516500 | P111: TRUE | Q111: TRUE | R111: TRUE | S111: 2022-04-01 | T111: 4 | U111: EHCP | V111: 5402 | W111: 3025402 | X111: =VLOOKUP(W111,Schools!$A:$B,2,0) -> Mill Hill County High School | Y111: EHCP
A112: 1 | B112: 2 | C112: 155126 | D112: TRUE | E112: 2048.EHCP.I03.1.Ap22 | F112: 2022-10-06 | G112: 16156.04 | H112: 2022-10-06 | I112: 0 | J112: Millbrook Park C.2048.EHCP.I03.1.Ap22 | K112: TRUE | L112: V0 | M112: TRUE | N112: NEW | O112: 11443/516500 | P112: TRUE | Q112: TRUE | R112: TRUE | S112: 2022-04-01 | T112: 4 | U112: EHCP | V112: 2048 | W112: 3022048 | X112: =VLOOKUP(W112,Schools!$A:$B,2,0) -> Millbrook Park CE Primary School | Y112: EHCP
A113: 1 | B113: 2 | C113: 155126 | D113: TRUE | E113: 2048.EHCP.I03.2.Ap22 | F113: 2022-10-06 | G113: 1110.038462 | H113: 2022-10-06 | I113: 0 | J113: Millbrook Park C.2048.EHCP.I03.2.Ap22 | K113: TRUE | L113: V0 | M113: TRUE | N113: NEW | O113: 11451/516500 | P113: TRUE | Q113: TRUE | R113: TRUE | S113: 2022-04-01 | T113: 4 | U113: EHCP | V113: 2048 | W113: 3022048 | X113: =VLOOKUP(W113,Schools!$A:$B,2,0) -> Millbrook Park CE Primary School | Y113: EHCP
A114: 1 | B114: 2 | C114: 155126 | D114: TRUE | E114: 2048.SENI.I03.3.Ap22 | F114: 2022-10-06 | G114: 226.5384615 | H114: 2022-10-06 | I114: 0 | J114: Millbrook Park C.2048.SENI.I03.3.Ap22 | K114: TRUE | L114: V0 | M114: TRUE | N114: NEW | O114: 10265/516500 | P114: TRUE | Q114: TRUE | R114: TRUE | S114: 2022-04-01 | T114: 4 | U114: SENI | V114: 2048 | W114: 3022048 | X114: =VLOOKUP(W114,Schools!$A:$B,2,0) -> Millbrook Park CE Primary School | Y114: SENI
A115: 1 | B115: 2 | C115: 400086 | D115: TRUE | E115: 3305.EHCP.I03.1.Ap22 | F115: 2022-10-06 | G115: 6265.987692 | H115: 2022-10-06 | I115: 0 | J115: Monken Hadley C .3305.EHCP.I03.1.Ap22 | K115: TRUE | L115: V0 | M115: TRUE | N115: NEW | O115: 11431/543965 | P115: TRUE | Q115: TRUE | R115: TRUE | S115: 2022-04-01 | T115: 4 | U115: EHCP | V115: 3305 | W115: 3023305 | X115: =VLOOKUP(W115,Schools!$A:$B,2,0) -> Monken Hadley C E Primary School | Y115: EHCP
A116: 1 | B116: 2 | C116: 400048 | D116: TRUE | E116: 2042.EHCP.I03.1.Ap22 | F116: 2022-10-06 | G116: 13851.55077 | H116: 2022-10-06 | I116: 0 | J116: Monkfrith School.2042.EHCP.I03.1.Ap22 | K116: TRUE | L116: V0 | M116: TRUE | N116: NEW | O116: 11431/543965 | P116: TRUE | Q116: TRUE | R116: TRUE | S116: 2022-04-01 | T116: 4 | U116: EHCP | V116: 2042 | W116: 3022042 | X116: =VLOOKUP(W116,Schools!$A:$B,2,0) -> Monkfrith School | Y116: EHCP
A117: 1 | B117: 2 | C117: 400087 | D117: TRUE | E117: 2044.EHCP.I03.1.Ap22 | F117: 2022-10-06 | G117: 4252.678462 | H117: 2022-10-06 | I117: 0 | J117: Moss Hall Infant.2044.EHCP.I03.1.Ap22 | K117: TRUE | L117: V0 | M117: TRUE | N117: NEW | O117: 11431/543965 | P117: TRUE | Q117: TRUE | R117: TRUE | S117: 2022-04-01 | T117: 4 | U117: EHCP | V117: 2044 | W117: 3022044 | X117: =VLOOKUP(W117,Schools!$A:$B,2,0) -> Moss Hall Infant School | Y117: EHCP
A118: 1 | B118: 2 | C118: 400088 | D118: TRUE | E118: 2043.EHCP.I03.1.Ap22 | F118: 2022-10-06 | G118: 16340.43692 | H118: 2022-10-06 | I118: 0 | J118: Moss Hall Junior.2043.EHCP.I03.1.Ap22 | K118: TRUE | L118: V0 | M118: TRUE | N118: NEW | O118: 11431/543965 | P118: TRUE | Q118: TRUE | R118: TRUE | S118: 2022-04-01 | T118: 4 | U118: EHCP | V118: 2043 | W118: 3022043 | X118: =VLOOKUP(W118,Schools!$A:$B,2,0) -> Moss Hall Junior School | Y118: EHCP
A119: 1 | B119: 2 | C119: 400072 | D119: TRUE | E119: 1002.EHCP.I03.1.Ap22 | F119: 2022-10-06 | G119: 1029.289231 | H119: 2022-10-06 | I119: 0 | J119: Moss Hall Nurser.1002.EHCP.I03.1.Ap22 | K119: TRUE | L119: V0 | M119: TRUE | N119: NEW | O119: 11439/543965 | P119: TRUE | Q119: TRUE | R119: TRUE | S119: 2022-04-01 | T119: 4 | U119: EHCP | V119: 1002 | W119: 3021002 | X119: =VLOOKUP(W119,Schools!$A:$B,2,0) -> Moss Hall Nursery | Y119: EHCP
A120: 1 | B120: 2 | C120: 400072 | D120: TRUE | E120: 1002.SENI.I03.2.Ap22 | F120: 2022-10-06 | G120: 3759.586923 | H120: 2022-10-06 | I120: 0 | J120: Moss Hall Nurser.1002.SENI.I03.2.Ap22 | K120: TRUE | L120: V0 | M120: TRUE | N120: NEW | O120: 10265/543965 | P120: TRUE | Q120: TRUE | R120: TRUE | S120: 2022-04-01 | T120: 4 | U120: SENI | V120: 1002 | W120: 3021002 | X120: =VLOOKUP(W120,Schools!$A:$B,2,0) -> Moss Hall Nursery | Y120: SENI
A121: 1 | B121: 2 | C121: 158733 | D121: TRUE | E121: 2053.EHCP.I03.1.Ap22 | F121: 2022-10-06 | G121: 3600.998462 | H121: 2022-10-06 | I121: 0 | J121: Noam Primary Sch.2053.EHCP.I03.1.Ap22 | K121: TRUE | L121: V0 | M121: TRUE | N121: NEW | O121: 11431/543965 | P121: TRUE | Q121: TRUE | R121: TRUE | S121: 2022-04-01 | T121: 4 | U121: EHCP | V121: 2053 | W121: 3022053 | X121: =VLOOKUP(W121,Schools!$A:$B,2,0) -> Noam Primary School | Y121: EHCP
A122: 1 | B122: 2 | C122: 158733 | D122: TRUE | E122: 2053.EHCP.I03.2.Ap22 | F122: 2022-10-06 | G122: 792.8846154 | H122: 2022-10-06 | I122: 0 | J122: Noam Primary Sch.2053.EHCP.I03.2.Ap22 | K122: TRUE | L122: V0 | M122: TRUE | N122: NEW | O122: 11436/543965 | P122: TRUE | Q122: TRUE | R122: TRUE | S122: 2022-04-01 | T122: 4 | U122: EHCP | V122: 2053 | W122: 3022053 | X122: =VLOOKUP(W122,Schools!$A:$B,2,0) -> Noam Primary School | Y122: EHCP
A123: 1 | B123: 2 | C123: 400089 | D123: TRUE | E123: 2045.EHCP.I03.1.Ap22 | F123: 2022-10-06 | G123: 11347.85846 | H123: 2022-10-06 | I123: 0 | J123: Northside School.2045.EHCP.I03.1.Ap22 | K123: TRUE | L123: V0 | M123: TRUE | N123: NEW | O123: 11431/543965 | P123: TRUE | Q123: TRUE | R123: TRUE | S123: 2022-04-01 | T123: 4 | U123: EHCP | V123: 2045 | W123: 3022045 | X123: =VLOOKUP(W123,Schools!$A:$B,2,0) -> Northside School | Y123: EHCP
A124: 1 | B124: 2 | C124: 400089 | D124: TRUE | E124: 2045.EHCP.I03.2.Ap22 | F124: 2022-10-06 | G124: 237.8661538 | H124: 2022-10-06 | I124: 0 | J124: Northside School.2045.EHCP.I03.2.Ap22 | K124: TRUE | L124: V0 | M124: TRUE | N124: NEW | O124: 11436/543965 | P124: TRUE | Q124: TRUE | R124: TRUE | S124: 2022-04-01 | T124: 4 | U124: EHCP | V124: 2045 | W124: 3022045 | X124: =VLOOKUP(W124,Schools!$A:$B,2,0) -> Northside School | Y124: EHCP
A125: 1 | B125: 2 | C125: 400034 | D125: TRUE | E125: 7005.SPEC.I03.1.Ap22 | F125: 2022-10-06 | G125: 236874.82 | H125: 2022-10-06 | I125: 0 | J125: Northway.7005.SPEC.I03.1.Ap22 | K125: TRUE | L125: V0 | M125: TRUE | N125: NEW | O125: 11433/543965 | P125: TRUE | Q125: TRUE | R125: TRUE | S125: 2022-04-01 | T125: 4 | U125: SPEC | V125: 7005 | W125: 3027005 | X125: =VLOOKUP(W125,Schools!$A:$B,2,0) -> Northway | Y125: SPEC
A126: 1 | B126: 2 | C126: 157308 | D126: TRUE | E126: 5950.SPEC.I03.1.Ap22 | F126: 2022-10-06 | G126: 107121.5369 | H126: 2022-10-06 | I126: 0 | J126: Oak Hill School.5950.SPEC.I03.1.Ap22 | K126: TRUE | L126: V0 | M126: TRUE | N126: NEW | O126: 11491/516500 | P126: TRUE | Q126: TRUE | R126: TRUE | S126: 2022-04-01 | T126: 4 | U126: SPEC | V126: 5950 | W126: 3025950 | X126: =VLOOKUP(W126,Schools!$A:$B,2,0) -> Oak Hill School | Y126: SPEC
A127: 1 | B127: 2 | C127: 156901 | D127: TRUE | E127: 7000.SPEC.I03.1.Ap22 | F127: 2022-10-06 | G127: 389781.6682 | H127: 2022-10-06 | I127: 0 | J127: Oak Lodge Academ.7000.SPEC.I03.1.Ap22 | K127: TRUE | L127: V0 | M127: TRUE | N127: NEW | O127: 11491/516500 | P127: TRUE | Q127: TRUE | R127: TRUE | S127: 2022-04-01 | T127: 4 | U127: SPEC | V127: 7000 | W127: 3027000 | X127: =VLOOKUP(W127,Schools!$A:$B,2,0) -> Oak Lodge Academy | Y127: SPEC
A128: 1 | B128: 2 | C128: 400091 | D128: TRUE | E128: 7009.SPEC.I03.1.Ap22 | F128: 2022-10-06 | G128: 285602.639 | H128: 2022-10-06 | I128: 0 | J128: Oakleigh.7009.SPEC.I03.1.Ap22 | K128: TRUE | L128: V0 | M128: TRUE | N128: NEW | O128: 11433/543965 | P128: TRUE | Q128: TRUE | R128: TRUE | S128: 2022-04-01 | T128: 4 | U128: SPEC | V128: 7009 | W128: 3027009 | X128: =VLOOKUP(W128,Schools!$A:$B,2,0) -> Oakleigh | Y128: SPEC
A129: 1 | B129: 2 | C129: 400113 | D129: TRUE | E129: 2077.ARPs.I03.1.Ap22 | F129: 2022-10-06 | G129: 58203.02615 | H129: 2022-10-06 | I129: 0 | J129: Orion Primary Sc.2077.ARPs.I03.1.Ap22 | K129: TRUE | L129: V0 | M129: TRUE | N129: NEW | O129: 11432/543965 | P129: TRUE | Q129: TRUE | R129: TRUE | S129: 2022-04-01 | T129: 4 | U129: ARPs | V129: 2077 | W129: 3022077 | X129: =VLOOKUP(W129,Schools!$A:$B,2,0) -> Orion Primary School | Y129: ARPs
A130: 1 | B130: 2 | C130: 400113 | D130: TRUE | E130: 2077.EHCP.I03.2.Ap22 | F130: 2022-10-06 | G130: 50682.13026 | H130: 2022-10-06 | I130: 0 | J130: Orion Primary Sc.2077.EHCP.I03.2.Ap22 | K130: TRUE | L130: V0 | M130: TRUE | N130: NEW | O130: 11431/543965 | P130: TRUE | Q130: TRUE | R130: TRUE | S130: 2022-04-01 | T130: =MONTH(S130) -> 4 | U130: EHCP | V130: 2077 | W130: =("302"&V130)*1 -> 3022077 | X130: =VLOOKUP(W130,Schools!$A:$B,2,0) -> Orion Primary School | Y130: EHCP
A131: 1 | B131: 2 | C131: 400113 | D131: TRUE | E131: 2077.EHCP.I03.3.Ap22 | F131: 2022-10-06 | G131: 2220.08 | H131: 2022-10-06 | I131: 0 | J131: Orion Primary Sc.2077.EHCP.I03.3.Ap22 | K131: TRUE | L131: V0 | M131: TRUE | N131: NEW | O131: 11436/543965 | P131: TRUE | Q131: TRUE | R131: TRUE | S131: 2022-04-01 | T131: 4 | U131: =IFERROR(MID($J131,FIND(".",$J131,FIND(".",$J131,2)+1)+1,FIND(".",$J131,FIND(".",$J131,FIND(".",$J131)+1)+1)-FIND(".",$J131,FIND(".",$J131,2)+1)-1),$J131) -> EHCP | V131: =LEFT(E131,4) -> 2077 | W131: 3022077 | X131: =VLOOKUP(W131,Schools!$A:$B,2,0) -> Orion Primary School | Y131: =IFERROR(MID(J131,FIND(".",J131,FIND(".",J131,2)+1)+1,FIND(".",J131,FIND(".",J131,FIND(".",J131)+1)+1)-FIND(".",J131,FIND(".",J131,2)+1)-1),J131) -> EHCP
A132: 1 | B132: 2 | C132: 400113 | D132: TRUE | E132: 2077.SENI.I03.4.Ap22 | F132: 2022-10-06 | G132: 4327.480769 | H132: 2022-10-06 | I132: 0 | J132: Orion Primary Sc.2077.SENI.I03.4.Ap22 | K132: TRUE | L132: V0 | M132: TRUE | N132: NEW | O132: 10265/543965 | P132: TRUE | Q132: TRUE | R132: TRUE | S132: 2022-04-01 | T132: 4 | U132: SENI | V132: 2077 | W132: 3022077 | X132: =VLOOKUP(W132,Schools!$A:$B,2,0) -> Orion Primary School | Y132: SENI
A133: 1 | B133: 2 | C133: 400021 | D133: TRUE | E133: 5201.EHCP.I03.1.Ap22 | F133: 2022-10-06 | G133: 9270.392308 | H133: 2022-10-06 | I133: 0 | J133: Osidge Primary S.5201.EHCP.I03.1.Ap22 | K133: TRUE | L133: V0 | M133: TRUE | N133: NEW | O133: 11431/543965 | P133: TRUE | Q133: TRUE | R133: TRUE | S133: 2022-04-01 | T133: 4 | U133: EHCP | V133: 5201 | W133: 3025201 | X133: =VLOOKUP(W133,Schools!$A:$B,2,0) -> Osidge Primary School | Y133: EHCP
A134: 1 | B134: 2 | C134: 400003 | D134: TRUE | E134: 3501.EHCP.I03.1.Ap22 | F134: 2022-10-06 | G134: 6480.141538 | H134: 2022-10-06 | I134: 0 | J134: Our Lady of Lour.3501.EHCP.I03.1.Ap22 | K134: TRUE | L134: V0 | M134: TRUE | N134: NEW | O134: 11431/543965 | P134: TRUE | Q134: TRUE | R134: TRUE | S134: 2022-04-01 | T134: 4 | U134: EHCP | V134: 3501 | W134: 3023501 | X134: =VLOOKUP(W134,Schools!$A:$B,2,0) -> Our Lady of Lourdes School | Y134: EHCP
A135: 1 | B135: 2 | C135: 400003 | D135: TRUE | E135: 3501.SENI.I03.2.Ap22 | F135: 2022-10-06 | G135: 454.8661538 | H135: 2022-10-06 | I135: 0 | J135: Our Lady of Lour.3501.SENI.I03.2.Ap22 | K135: TRUE | L135: V0 | M135: TRUE | N135: NEW | O135: 10265/543965 | P135: TRUE | Q135: TRUE | R135: TRUE | S135: 2022-04-01 | T135: 4 | U135: SENI | V135: 3501 | W135: 3023501 | X135: =VLOOKUP(W135,Schools!$A:$B,2,0) -> Our Lady of Lourdes School | Y135: SENI
A136: 1 | B136: 2 | C136: 400014 | D136: TRUE | E136: 2078.EHCP.I03.1.Ap22 | F136: 2022-10-06 | G136: 9424.052308 | H136: 2022-10-06 | I136: 0 | J136: Pardes House Sch.2078.EHCP.I03.1.Ap22 | K136: TRUE | L136: V0 | M136: TRUE | N136: NEW | O136: 11431/543965 | P136: TRUE | Q136: TRUE | R136: TRUE | S136: 2022-04-01 | T136: 4 | U136: EHCP | V136: 2078 | W136: 3022078 | X136: =VLOOKUP(W136,Schools!$A:$B,2,0) -> Pardes House School | Y136: EHCP
A137: 1 | B137: 2 | C137: 152217 | D137: TRUE | E137: 2038.EHCP.I03.1.Ap22 | F137: 2022-10-06 | G137: 9772.141538 | H137: 2022-10-06 | I137: 0 | J137: Parkfield Primar.2038.EHCP.I03.1.Ap22 | K137: TRUE | L137: V0 | M137: TRUE | N137: NEW | O137: 11443/516500 | P137: TRUE | Q137: TRUE | R137: TRUE | S137: 2022-04-01 | T137: 4 | U137: EHCP | V137: 2038 | W137: 3022038 | X137: =VLOOKUP(W137,Schools!$A:$B,2,0) -> Parkfield Primary School | Y137: EHCP
A138: 1 | B138: 2 | C138: 152217 | D138: TRUE | E138: 2038.SENI.I03.2.Ap22 | F138: 2022-10-06 | G138: 2095.810769 | H138: 2022-10-06 | I138: 0 | J138: Parkfield Primar.2038.SENI.I03.2.Ap22 | K138: TRUE | L138: V0 | M138: TRUE | N138: NEW | O138: 10265/516500 | P138: TRUE | Q138: TRUE | R138: TRUE | S138: 2022-04-01 | T138: 4 | U138: SENI | V138: 2038 | W138: 3022038 | X138: =VLOOKUP(W138,Schools!$A:$B,2,0) -> Parkfield Primary School | Y138: SENI
A139: 1 | B139: 2 | C139: 400156 | D139: TRUE | E139: 1100.PRUs.I03.1.Ap22 | F139: 2022-10-06 | G139: 152918.9513 | H139: 2022-10-06 | I139: 0 | J139: Pavilion.1100.PRUs.I03.1.Ap22 | K139: TRUE | L139: V0 | M139: TRUE | N139: NEW | O139: 11425/543965 | P139: TRUE | Q139: TRUE | R139: TRUE | S139: 2022-04-01 | T139: 4 | U139: PRUs | V139: 1100 | W139: 3021100 | X139: =VLOOKUP(W139,Schools!$A:$B,2,0) -> Pavilion | Y139: PRUs
A140: 1 | B140: 2 | C140: 144387 | D140: TRUE | E140: 4208.EHCP.I03.1.Ap22 | F140: 2022-10-06 | G140: 9637.001538 | H140: 2022-10-06 | I140: 0 | J140: Queen Elizabeth'.4208.EHCP.I03.1.Ap22 | K140: TRUE | L140: V0 | M140: TRUE | N140: NEW | O140: 11442/516500 | P140: TRUE | Q140: TRUE | R140: TRUE | S140: 2022-04-01 | T140: 4 | U140: EHCP | V140: 4208 | W140: 3024208 | X140: =VLOOKUP(W140,Schools!$A:$B,2,0) -> Queen Elizabeth's Girls' School | Y140: EHCP
A141: 1 | B141: 2 | C141: 400012 | D141: TRUE | E141: 2072.EHCP.I03.1.Ap22 | F141: 2022-10-06 | G141: 23920.14154 | H141: 2022-10-06 | I141: 0 | J141: Queenswell Junio.2072.EHCP.I03.1.Ap22 | K141: TRUE | L141: V0 | M141: TRUE | N141: NEW | O141: 11431/543965 | P141: TRUE | Q141: TRUE | R141: TRUE | S141: 2022-04-01 | T141: 4 | U141: EHCP | V141: 2072 | W141: 3022072 | X141: =VLOOKUP(W141,Schools!$A:$B,2,0) -> Queenswell Junior School | Y141: EHCP
A142: 1 | B142: 2 | C142: 400012 | D142: TRUE | E142: 2072.SENI.I03.2.Ap22 | F142: 2022-10-06 | G142: 986.3538462 | H142: 2022-10-06 | I142: 0 | J142: Queenswell Junio.2072.SENI.I03.2.Ap22 | K142: TRUE | L142: V0 | M142: TRUE | N142: NEW | O142: 10265/543965 | P142: TRUE | Q142: TRUE | R142: TRUE | S142: 2022-04-01 | T142: 4 | U142: SENI | V142: 2072 | W142: 3022072 | X142: =VLOOKUP(W142,Schools!$A:$B,2,0) -> Queenswell Junior School | Y142: SENI
A143: 1 | B143: 2 | C143: 155029 | D143: TRUE | E143: 2004.EHCP.I03.1.Ap22 | F143: 2022-10-06 | G143: 7031.603077 | H143: 2022-10-06 | I143: 0 | J143: Rimon Jewish Pri.2004.EHCP.I03.1.Ap22 | K143: TRUE | L143: V0 | M143: TRUE | N143: NEW | O143: 11443/516500 | P143: TRUE | Q143: TRUE | R143: TRUE | S143: 2022-04-01 | T143: 4 | U143: EHCP | V143: 2004 | W143: 3022004 | X143: =VLOOKUP(W143,Schools!$A:$B,2,0) -> Rimon Jewish Primary School | Y143: EHCP
A144: 1 | B144: 2 | C144: 400093 | D144: TRUE | E144: 3512.EHCP.I03.1.Ap22 | F144: 2022-10-06 | G144: 5456.078462 | H144: 2022-10-06 | I144: 0 | J144: Rosh Pinah.3512.EHCP.I03.1.Ap22 | K144: TRUE | L144: V0 | M144: TRUE | N144: NEW | O144: 11431/543965 | P144: TRUE | Q144: TRUE | R144: TRUE | S144: 2022-04-01 | T144: 4 | U144: EHCP | V144: 3512 | W144: 3023512 | X144: =VLOOKUP(W144,Schools!$A:$B,2,0) -> Rosh Pinah | Y144: EHCP
A145: 1 | B145: 2 | C145: 160025 | D145: TRUE | E145: 2041.EHCP.I03.1.Ap22 | F145: 2022-10-06 | G145: 1329.283077 | H145: 2022-10-06 | I145: 0 | J145: Sacks Morasha Ac.2041.EHCP.I03.1.Ap22 | K145: TRUE | L145: V0 | M145: TRUE | N145: NEW | O145: 11443/516500 | P145: TRUE | Q145: TRUE | R145: TRUE | S145: 2022-04-01 | T145: 4 | U145: EHCP | V145: 2041 | W145: 3022041 | X145: =VLOOKUP(W145,Schools!$A:$B,2,0) -> Sacks Morasha Academy | Y145: EHCP
A146: 1 | B146: 2 | C146: 400071 | D146: TRUE | E146: 3510.EHCP.I03.1.Ap22 | F146: 2022-10-06 | G146: 12954.62923 | H146: 2022-10-06 | I146: 0 | J146: Sacred Heart Sch.3510.EHCP.I03.1.Ap22 | K146: TRUE | L146: V0 | M146: TRUE | N146: NEW | O146: 11431/543965 | P146: TRUE | Q146: TRUE | R146: TRUE | S146: 2022-04-01 | T146: 4 | U146: EHCP | V146: 3510 | W146: 3023510 | X146: =VLOOKUP(W146,Schools!$A:$B,2,0) -> Sacred Heart School | Y146: EHCP
A147: 1 | B147: 2 | C147: 158756 | D147: TRUE | E147: 4011.EHCP.I03.1.Ap22 | F147: 2022-10-06 | G147: 23094.68 | H147: 2022-10-06 | I147: 0 | J147: Saracens High Sc.4011.EHCP.I03.1.Ap22 | K147: TRUE | L147: V0 | M147: TRUE | N147: NEW | O147: 11442/516500 | P147: TRUE | Q147: TRUE | R147: TRUE | S147: 2022-04-01 | T147: 4 | U147: EHCP | V147: 4011 | W147: 3024011 | X147: =VLOOKUP(W147,Schools!$A:$B,2,0) -> Saracens High School | Y147: EHCP
A148: 1 | B148: 2 | C148: 400096 | D148: TRUE | E148: 3502.EHCP.I03.1.Ap22 | F148: 2022-10-06 | G148: 13722.67846 | H148: 2022-10-06 | I148: 0 | J148: St Agnes RC Prim.3502.EHCP.I03.1.Ap22 | K148: TRUE | L148: V0 | M148: TRUE | N148: NEW | O148: 11431/543965 | P148: TRUE | Q148: TRUE | R148: TRUE | S148: 2022-04-01 | T148: 4 | U148: EHCP | V148: 3502 | W148: 3023502 | X148: =VLOOKUP(W148,Schools!$A:$B,2,0) -> St Agnes RC Primary School | Y148: EHCP
A149: 1 | B149: 2 | C149: 400096 | D149: TRUE | E149: 3502.SENI.I03.2.Ap22 | F149: 2022-10-06 | G149: 682 | H149: 2022-10-06 | I149: 0 | J149: St Agnes RC Prim.3502.SENI.I03.2.Ap22 | K149: TRUE | L149: V0 | M149: TRUE | N149: NEW | O149: 10265/543965 | P149: TRUE | Q149: TRUE | R149: TRUE | S149: 2022-04-01 | T149: 4 | U149: SENI | V149: 3502 | W149: 3023502 | X149: =VLOOKUP(W149,Schools!$A:$B,2,0) -> St Agnes RC Primary School | Y149: SENI
A150: 1 | B150: 2 | C150: 156093 | D150: TRUE | E150: 4000.EHCP.I03.1.Ap22 | F150: 2022-10-06 | G150: 4209.693846 | H150: 2022-10-06 | I150: 0 | J150: St Andrew the Ap.4000.EHCP.I03.1.Ap22 | K150: TRUE | L150: V0 | M150: TRUE | N150: NEW | O150: 11442/516500 | P150: TRUE | Q150: TRUE | R150: TRUE | S150: 2022-04-01 | T150: 4 | U150: EHCP | V150: 4000 | W150: 3024000 | X150: =VLOOKUP(W150,Schools!$A:$B,2,0) -> St Andrew the Apostle Greek Orthodox School | Y150: EHCP
A151: 1 | B151: 2 | C151: 400062 | D151: TRUE | E151: 3315.EHCP.I03.1.Ap22 | F151: 2022-10-06 | G151: 2774.872308 | H151: 2022-10-06 | I151: 0 | J151: St Andrew's C E.3315.EHCP.I03.1.Ap22 | K151: TRUE | L151: V0 | M151: TRUE | N151: NEW | O151: 11431/543965 | P151: TRUE | Q151: TRUE | R151: TRUE | S151: 2022-04-01 | T151: 4 | U151: EHCP | V151: 3315 | W151: 3023315 | X151: =VLOOKUP(W151,Schools!$A:$B,2,0) -> St Andrew's C E | Y151: EHCP
A152: 1 | B152: 2 | C152: 400064 | D152: TRUE | E152: 3504.EHCP.I03.1.Ap22 | F152: 2022-10-06 | G152: 10600.37231 | H152: 2022-10-06 | I152: 0 | J152: St Catherines R .3504.EHCP.I03.1.Ap22 | K152: TRUE | L152: V0 | M152: TRUE | N152: NEW | O152: 11431/543965 | P152: TRUE | Q152: TRUE | R152: TRUE | S152: 2022-04-01 | T152: 4 | U152: EHCP | V152: 3504 | W152: 3023504 | X152: =VLOOKUP(W152,Schools!$A:$B,2,0) -> St Catherines R C Primary | Y152: EHCP
A153: 1 | B153: 2 | C153: 400098 | D153: TRUE | E153: 3309.EHCP.I03.1.Ap22 | F153: 2022-10-06 | G153: 6156.256923 | H153: 2022-10-06 | I153: 0 | J153: St Johns CE N20.3309.EHCP.I03.1.Ap22 | K153: TRUE | L153: V0 | M153: TRUE | N153: NEW | O153: 11431/543965 | P153: TRUE | Q153: TRUE | R153: TRUE | S153: 2022-04-01 | T153: 4 | U153: EHCP | V153: 3309 | W153: 3023309 | X153: =VLOOKUP(W153,Schools!$A:$B,2,0) -> St Johns CE N20 | Y153: EHCP
A154: 1 | B154: 2 | C154: 400098 | D154: TRUE | E154: 3309.SENI.I03.2.Ap22 | F154: 2022-10-06 | G154: 971.1876923 | H154: 2022-10-06 | I154: 0 | J154: St Johns CE N20.3309.SENI.I03.2.Ap22 | K154: TRUE | L154: V0 | M154: TRUE | N154: NEW | O154: 10265/543965 | P154: TRUE | Q154: TRUE | R154: TRUE | S154: 2022-04-01 | T154: 4 | U154: SENI | V154: 3309 | W154: 3023309 | X154: =VLOOKUP(W154,Schools!$A:$B,2,0) -> St Johns CE N20 | Y154: SENI
A155: 1 | B155: 2 | C155: 400114 | D155: TRUE | E155: 3307.EHCP.I03.1.Ap22 | F155: 2022-10-06 | G155: 1799.358462 | H155: 2022-10-06 | I155: 0 | J155: St John's CE Sch.3307.EHCP.I03.1.Ap22 | K155: TRUE | L155: V0 | M155: TRUE | N155: NEW | O155: 11431/543965 | P155: TRUE | Q155: TRUE | R155: TRUE | S155: 2022-04-01 | T155: 4 | U155: EHCP | V155: 3307 | W155: 3023307 | X155: =VLOOKUP(W155,Schools!$A:$B,2,0) -> St John's CE School N11 | Y155: EHCP
A156: 1 | B156: 2 | C156: 400114 | D156: TRUE | E156: 3307.SENI.I03.2.Ap22 | F156: 2022-10-06 | G156: 282.6846154 | H156: 2022-10-06 | I156: 0 | J156: St John's CE Sch.3307.SENI.I03.2.Ap22 | K156: TRUE | L156: V0 | M156: TRUE | N156: NEW | O156: 10265/543965 | P156: TRUE | Q156: TRUE | R156: TRUE | S156: 2022-04-01 | T156: 4 | U156: SENI | V156: 3307 | W156: 3023307 | X156: =VLOOKUP(W156,Schools!$A:$B,2,0) -> St John's CE School N11 | Y156: SENI
A157: 1 | B157: 2 | C157: 400066 | D157: TRUE | E157: 3509.EHCP.I03.1.Ap22 | F157: 2022-10-06 | G157: 15541.08923 | H157: 2022-10-06 | I157: 0 | J157: St Joseph's Prim.3509.EHCP.I03.1.Ap22 | K157: TRUE | L157: V0 | M157: TRUE | N157: NEW | O157: 11431/543965 | P157: TRUE | Q157: TRUE | R157: TRUE | S157: 2022-04-01 | T157: 4 | U157: EHCP | V157: 3509 | W157: 3023509 | X157: =VLOOKUP(W157,Schools!$A:$B,2,0) -> St Joseph's Primary School | Y157: EHCP
A158: 1 | B158: 2 | C158: 400066 | D158: TRUE | E158: 3509.SENI.I03.2.Ap22 | F158: 2022-10-06 | G158: 218.2461538 | H158: 2022-10-06 | I158: 0 | J158: St Joseph's Prim.3509.SENI.I03.2.Ap22 | K158: TRUE | L158: V0 | M158: TRUE | N158: NEW | O158: 10265/543965 | P158: TRUE | Q158: TRUE | R158: TRUE | S158: 2022-04-01 | T158: 4 | U158: SENI | V158: 3509 | W158: 3023509 | X158: =VLOOKUP(W158,Schools!$A:$B,2,0) -> St Joseph's Primary School | Y158: SENI
A159: 1 | B159: 2 | C159: 400102 | D159: TRUE | E159: 1003.EHCP.I03.1.Ap22 | F159: 2022-10-06 | G159: 1295.046154 | H159: 2022-10-06 | I159: 0 | J159: St Margaret's Nu.1003.EHCP.I03.1.Ap22 | K159: TRUE | L159: V0 | M159: TRUE | N159: NEW | O159: 11439/543965 | P159: TRUE | Q159: TRUE | R159: TRUE | S159: 2022-04-01 | T159: 4 | U159: EHCP | V159: 1003 | W159: 3021003 | X159: =VLOOKUP(W159,Schools!$A:$B,2,0) -> St Margaret's Nursery | Y159: EHCP
A160: 1 | B160: 2 | C160: 400102 | D160: TRUE | E160: 1003.SENI.I03.2.Ap22 | F160: 2022-10-06 | G160: 1712.030769 | H160: 2022-10-06 | I160: 0 | J160: St Margaret's Nu.1003.SENI.I03.2.Ap22 | K160: TRUE | L160: V0 | M160: TRUE | N160: NEW | O160: 10265/543965 | P160: TRUE | Q160: TRUE | R160: TRUE | S160: 2022-04-01 | T160: 4 | U160: SENI | V160: 1003 | W160: 3021003 | X160: =VLOOKUP(W160,Schools!$A:$B,2,0) -> St Margaret's Nursery | Y160: SENI
A161: 1 | B161: 2 | C161: 400135 | D161: TRUE | E161: 3521.EHCP.I03.1.Ap22 | F161: 2022-10-06 | G161: 12416.73385 | H161: 2022-10-06 | I161: 0 | J161: St Mary's & St J.3521.EHCP.I03.1.Ap22 | K161: TRUE | L161: V0 | M161: TRUE | N161: NEW | O161: 11431/543965 | P161: TRUE | Q161: TRUE | R161: TRUE | S161: 2022-04-01 | T161: 4 | U161: EHCP | V161: 3521 | W161: 3023521 | X161: =VLOOKUP(W161,Schools!$A:$B,2,0) -> St Mary's & St John's CE School | Y161: EHCP
A162: 1 | B162: 2 | C162: 400135 | D162: TRUE | E162: 3521.EHCP.I03.2.Ap22 | F162: 2022-10-06 | G162: 18861.26769 | H162: 2022-10-06 | I162: 0 | J162: St Mary's & St J.3521.EHCP.I03.2.Ap22 | K162: TRUE | L162: V0 | M162: TRUE | N162: NEW | O162: 11435/543965 | P162: TRUE | Q162: TRUE | R162: TRUE | S162: 2022-04-01 | T162: 4 | U162: EHCP | V162: 3521 | W162: 3023521 | X162: =VLOOKUP(W162,Schools!$A:$B,2,0) -> St Mary's & St John's CE School | Y162: EHCP
A163: 1 | B163: 2 | C163: 400058 | D163: TRUE | E163: 3311.EHCP.I03.1.Ap22 | F163: 2022-10-06 | G163: 9761.515385 | H163: 2022-10-06 | I163: 0 | J163: St Mary's C E Pr.3311.EHCP.I03.1.Ap22 | K163: TRUE | L163: V0 | M163: TRUE | N163: NEW | O163: 11431/543965 | P163: TRUE | Q163: TRUE | R163: TRUE | S163: 2022-04-01 | T163: 4 | U163: EHCP | V163: 3311 | W163: 3023311 | X163: =VLOOKUP(W163,Schools!$A:$B,2,0) -> St Mary's C E Primary School N3 | Y163: EHCP
A164: 1 | B164: 2 | C164: 400058 | D164: TRUE | E164: 3311.SENI.I03.2.Ap22 | F164: 2022-10-06 | G164: 82.26923077 | H164: 2022-10-06 | I164: 0 | J164: St Mary's C E Pr.3311.SENI.I03.2.Ap22 | K164: TRUE | L164: V0 | M164: TRUE | N164: NEW | O164: 10265/543965 | P164: TRUE | Q164: TRUE | R164: TRUE | S164: 2022-04-01 | T164: 4 | U164: SENI | V164: 3311 | W164: 3023311 | X164: =VLOOKUP(W164,Schools!$A:$B,2,0) -> St Mary's C E Primary School N3 | Y164: SENI
A165: 1 | B165: 2 | C165: 400017 | D165: TRUE | E165: 3312.EHCP.I03.1.Ap22 | F165: 2022-10-06 | G165: 3594.358462 | H165: 2022-10-06 | I165: 0 | J165: St Mary's School.3312.EHCP.I03.1.Ap22 | K165: TRUE | L165: V0 | M165: TRUE | N165: NEW | O165: 11431/543965 | P165: TRUE | Q165: TRUE | R165: TRUE | S165: 2022-04-01 | T165: 4 | U165: EHCP | V165: 3312 | W165: 3023312 | X165: =VLOOKUP(W165,Schools!$A:$B,2,0) -> St Mary's School EN4 | Y165: EHCP
A166: 1 | B166: 2 | C166: 400094 | D166: TRUE | E166: 3314.EHCP.I03.1.Ap22 | F166: 2022-10-06 | G166: 7219.909231 | H166: 2022-10-06 | I166: 0 | J166: St Pauls CE Prim.3314.EHCP.I03.1.Ap22 | K166: TRUE | L166: V0 | M166: TRUE | N166: NEW | O166: 11431/543965 | P166: TRUE | Q166: TRUE | R166: TRUE | S166: 2022-04-01 | T166: 4 | U166: EHCP | V166: 3314 | W166: 3023314 | X166: =VLOOKUP(W166,Schools!$A:$B,2,0) -> St Pauls CE Primary, NW7 | Y166: EHCP
A167: 1 | B167: 2 | C167: 400006 | D167: TRUE | E167: 3313.EHCP.I03.1.Ap22 | F167: 2022-10-06 | G167: 6360.883077 | H167: 2022-10-06 | I167: 0 | J167: St Paul's School.3313.EHCP.I03.1.Ap22 | K167: TRUE | L167: V0 | M167: TRUE | N167: NEW | O167: 11431/543965 | P167: TRUE | Q167: TRUE | R167: TRUE | S167: 2022-04-01 | T167: 4 | U167: EHCP | V167: 3313 | W167: 3023313 | X167: =VLOOKUP(W167,Schools!$A:$B,2,0) -> St Paul's School, N11 | Y167: EHCP
A168: 1 | B168: 2 | C168: 400037 | D168: TRUE | E168: 3507.EHCP.I03.1.Ap22 | F168: 2022-10-06 | G168: 11534.79538 | H168: 2022-10-06 | I168: 0 | J168: St Theresa's RC.3507.EHCP.I03.1.Ap22 | K168: TRUE | L168: V0 | M168: TRUE | N168: NEW | O168: 11431/543965 | P168: TRUE | Q168: TRUE | R168: TRUE | S168: 2022-04-01 | T168: 4 | U168: =IFERROR(MID($J168,FIND(".",$J168,FIND(".",$J168,2)+1)+1,FIND(".",$J168,FIND(".",$J168,FIND(".",$J168)+1)+1)-FIND(".",$J168,FIND(".",$J168,2)+1)-1),$J168) -> EHCP | V168: 3507 | W168: 3023507 | X168: =VLOOKUP(W168,Schools!$A:$B,2,0) -> St Theresa's R.C. Primary School | Y168: EHCP
A169: 1 | B169: 2 | C169: 400009 | D169: TRUE | E169: 3506.EHCP.I03.1.Ap22 | F169: 2022-10-06 | G169: 12687.85846 | H169: 2022-10-06 | I169: 0 | J169: St Vincent's Cat.3506.EHCP.I03.1.Ap22 | K169: TRUE | L169: V0 | M169: TRUE | N169: NEW | O169: 11431/543965 | P169: TRUE | Q169: TRUE | R169: TRUE | S169: 2022-04-01 | T169: 4 | U169: EHCP | V169: 3506 | W169: 3023506 | X169: =VLOOKUP(W169,Schools!$A:$B,2,0) -> St Vincent's Catholic Primary School | Y169: EHCP
A170: 1 | B170: 2 | C170: 400013 | D170: TRUE | E170: 5407.EHCP.I03.1.Ap22 | F170: 2022-10-06 | G170: 25747.43538 | H170: 2022-10-06 | I170: 0 | J170: St James' Catho.5407.EHCP.I03.1.Ap22 | K170: TRUE | L170: V0 | M170: TRUE | N170: NEW | O170: 11435/543965 | P170: TRUE | Q170: TRUE | R170: TRUE | S170: 2022-04-01 | T170: 4 | U170: EHCP | V170: 5407 | W170: 3025407 | X170: =VLOOKUP(W170,Schools!$A:$B,2,0) -> St. James' Catholic High School | Y170: EHCP
A171: 1 | B171: 2 | C171: 157542 | D171: TRUE | E171: 2051.ARPs.I03.1.Ap22 | F171: 2022-10-06 | G171: 28906.10641 | H171: 2022-10-06 | I171: 0 | J171: Summerside Prima.2051.ARPs.I03.1.Ap22 | K171: TRUE | L171: V0 | M171: TRUE | N171: NEW | O171: 11422/516500 | P171: TRUE | Q171: TRUE | R171: TRUE | S171: 2022-04-01 | T171: 4 | U171: ARPs | V171: 2051 | W171: 3022051 | X171: =VLOOKUP(W171,Schools!$A:$B,2,0) -> Summerside Primary Academy | Y171: ARPs
A172: 1 | B172: 2 | C172: 157542 | D172: TRUE | E172: 2051.EHCP.I03.2.Ap22 | F172: 2022-10-06 | G172: 16527.34769 | H172: 2022-10-06 | I172: 0 | J172: Summerside Prima.2051.EHCP.I03.2.Ap22 | K172: TRUE | L172: V0 | M172: TRUE | N172: NEW | O172: 11443/516500 | P172: TRUE | Q172: TRUE | R172: TRUE | S172: 2022-04-01 | T172: 4 | U172: EHCP | V172: 2051 | W172: 3022051 | X172: =VLOOKUP(W172,Schools!$A:$B,2,0) -> Summerside Primary Academy | Y172: EHCP
A173: 1 | B173: 2 | C173: 157542 | D173: TRUE | E173: 2051.EHCP.I03.3.Ap22 | F173: 2022-10-06 | G173: 290.7184615 | H173: 2022-10-06 | I173: 0 | J173: Summerside Prima.2051.EHCP.I03.3.Ap22 | K173: TRUE | L173: V0 | M173: TRUE | N173: NEW | O173: 11451/516500 | P173: TRUE | Q173: TRUE | R173: TRUE | S173: 2022-04-01 | T173: 4 | U173: EHCP | V173: 2051 | W173: 3022051 | X173: =VLOOKUP(W173,Schools!$A:$B,2,0) -> Summerside Primary Academy | Y173: EHCP
A174: 1 | B174: 2 | C174: 157542 | D174: TRUE | E174: 2051.SENI.I03.4.Ap22 | F174: 2022-10-06 | G174: 262.3076923 | H174: 2022-10-06 | I174: 0 | J174: Summerside Prima.2051.SENI.I03.4.Ap22 | K174: TRUE | L174: V0 | M174: TRUE | N174: NEW | O174: 10265/516500 | P174: TRUE | Q174: TRUE | R174: TRUE | S174: 2022-04-01 | T174: 4 | U174: SENI | V174: 2051 | W174: 3022051 | X174: =VLOOKUP(W174,Schools!$A:$B,2,0) -> Summerside Primary Academy | Y174: SENI
A175: 1 | B175: 2 | C175: 400038 | D175: TRUE | E175: 2070.EHCP.I03.1.Ap22 | F175: 2022-10-06 | G175: 7768.525128 | H175: 2022-10-06 | I175: 0 | J175: Sunnyfields Prim.2070.EHCP.I03.1.Ap22 | K175: TRUE | L175: V0 | M175: TRUE | N175: NEW | O175: 11431/543965 | P175: TRUE | Q175: TRUE | R175: TRUE | S175: 2022-04-01 | T175: 4 | U175: EHCP | V175: 2070 | W175: 3022070 | X175: =VLOOKUP(W175,Schools!$A:$B,2,0) -> Sunnyfields Primary School | Y175: EHCP
A176: 1 | B176: 2 | C176: 400038 | D176: TRUE | E176: 2070.EHCP.I03.2.Ap22 | F176: 2022-10-06 | G176: 555.02 | H176: 2022-10-06 | I176: 0 | J176: Sunnyfields Prim.2070.EHCP.I03.2.Ap22 | K176: TRUE | L176: V0 | M176: TRUE | N176: NEW | O176: 11436/543965 | P176: TRUE | Q176: TRUE | R176: TRUE | S176: 2022-04-01 | T176: 4 | U176: EHCP | V176: 2070 | W176: 3022070 | X176: =VLOOKUP(W176,Schools!$A:$B,2,0) -> Sunnyfields Primary School | Y176: EHCP
A177: 1 | B177: 2 | C177: 400038 | D177: TRUE | E177: 2070.SENI.I03.3.Ap22 | F177: 2022-10-06 | G177: 226.5384615 | H177: 2022-10-06 | I177: 0 | J177: Sunnyfields Prim.2070.SENI.I03.3.Ap22 | K177: TRUE | L177: V0 | M177: TRUE | N177: NEW | O177: 10265/543965 | P177: TRUE | Q177: TRUE | R177: TRUE | S177: 2022-04-01 | T177: 4 | U177: SENI | V177: 2070 | W177: 3022070 | X177: =VLOOKUP(W177,Schools!$A:$B,2,0) -> Sunnyfields Primary School | Y177: SENI
A178: 1 | B178: 2 | C178: 144388 | D178: TRUE | E178: 4010.EHCP.I03.1.Ap22 | F178: 2022-10-06 | G178: 31508.69077 | H178: 2022-10-06 | I178: 0 | J178: Totteridge Acade.4010.EHCP.I03.1.Ap22 | K178: TRUE | L178: V0 | M178: TRUE | N178: NEW | O178: 11442/516500 | P178: TRUE | Q178: TRUE | R178: TRUE | S178: 2022-04-01 | T178: 4 | U178: EHCP | V178: 4010 | W178: 3024010 | X178: =VLOOKUP(W178,Schools!$A:$B,2,0) -> Totteridge Academy | Y178: EHCP
A179: 1 | B179: 2 | C179: 400100 | D179: TRUE | E179: 3316.EHCP.I03.1.Ap22 | F179: 2022-10-06 | G179: 4135.307692 | H179: 2022-10-06 | I179: 0 | J179: Trent C of E Pr.3316.EHCP.I03.1.Ap22 | K179: TRUE | L179: V0 | M179: TRUE | N179: NEW | O179: 11431/543965 | P179: TRUE | Q179: TRUE | R179: TRUE | S179: 2022-04-01 | T179: 4 | U179: EHCP | V179: 3316 | W179: 3023316 | X179: =VLOOKUP(W179,Schools!$A:$B,2,0) -> Trent C of E Primary School | Y179: EHCP
A180: 1 | B180: 2 | C180: 400101 | D180: TRUE | E180: 2055.EHCP.I03.1.Ap22 | F180: 2022-10-06 | G180: 10403.55077 | H180: 2022-10-06 | I180: 0 | J180: Tudor School.2055.EHCP.I03.1.Ap22 | K180: TRUE | L180: V0 | M180: TRUE | N180: NEW | O180: 11431/543965 | P180: TRUE | Q180: TRUE | R180: TRUE | S180: 2022-04-01 | T180: 4 | U180: EHCP | V180: 2055 | W180: 3022055 | X180: =VLOOKUP(W180,Schools!$A:$B,2,0) -> Tudor School | Y180: EHCP
A181: 1 | B181: 2 | C181: 400053 | D181: TRUE | E181: 2057.EHCP.I03.1.Ap22 | F181: 2022-10-06 | G181: 23881.79538 | H181: 2022-10-06 | I181: 0 | J181: Underhill School.2057.EHCP.I03.1.Ap22 | K181: TRUE | L181: V0 | M181: TRUE | N181: NEW | O181: 11431/543965 | P181: TRUE | Q181: TRUE | R181: TRUE | S181: 2022-04-01 | T181: 4 | U181: EHCP | V181: 2057 | W181: 3022057 | X181: =VLOOKUP(W181,Schools!$A:$B,2,0) -> Underhill School | Y181: EHCP
A182: 1 | B182: 2 | C182: 400053 | D182: TRUE | E182: 2057.SENI.I03.2.Ap22 | F182: 2022-10-06 | G182: 1816.838462 | H182: 2022-10-06 | I182: 0 | J182: Underhill School.2057.SENI.I03.2.Ap22 | K182: TRUE | L182: V0 | M182: TRUE | N182: NEW | O182: 10265/543965 | P182: TRUE | Q182: TRUE | R182: TRUE | S182: 2022-04-01 | T182: 4 | U182: SENI | V182: 2057 | W182: 3022057 | X182: =VLOOKUP(W182,Schools!$A:$B,2,0) -> Underhill School | Y182: SENI
A183: 1 | B183: 2 | C183: 157055 | D183: TRUE | E183: 2049.EHCP.I03.1.Ap22 | F183: 2022-10-06 | G183: 5728.103077 | H183: 2022-10-06 | I183: 0 | J183: Watling Park Fre.2049.EHCP.I03.1.Ap22 | K183: TRUE | L183: V0 | M183: TRUE | N183: NEW | O183: 11443/516500 | P183: TRUE | Q183: TRUE | R183: TRUE | S183: 2022-04-01 | T183: 4 | U183: EHCP | V183: 2049 | W183: 3022049 | X183: =VLOOKUP(W183,Schools!$A:$B,2,0) -> Watling Park Free School | Y183: EHCP
A184: 1 | B184: 2 | C184: 400111 | D184: TRUE | E184: 2076.EHCP.I03.1.Ap22 | F184: 2022-10-06 | G184: 13702.24462 | H184: 2022-10-06 | I184: 0 | J184: Wessex Gardens .2076.EHCP.I03.1.Ap22 | K184: TRUE | L184: V0 | M184: TRUE | N184: NEW | O184: 11431/543965 | P184: TRUE | Q184: TRUE | R184: TRUE | S184: 2022-04-01 | T184: 4 | U184: EHCP | V184: 2076 | W184: 3022076 | X184: =VLOOKUP(W184,Schools!$A:$B,2,0) -> Wessex Gardens Primary School | Y184: EHCP
A185: 1 | B185: 2 | C185: 400111 | D185: TRUE | E185: 2076.EHCP.I03.2.Ap22 | F185: 2022-10-06 | G185: 158.5769231 | H185: 2022-10-06 | I185: 0 | J185: Wessex Gardens .2076.EHCP.I03.2.Ap22 | K185: TRUE | L185: V0 | M185: TRUE | N185: NEW | O185: 11436/543965 | P185: TRUE | Q185: TRUE | R185: TRUE | S185: 2022-04-01 | T185: 4 | U185: EHCP | V185: 2076 | W185: 3022076 | X185: =VLOOKUP(W185,Schools!$A:$B,2,0) -> Wessex Gardens Primary School | Y185: EHCP
A186: 1 | B186: 2 | C186: 400111 | D186: TRUE | E186: 2076.SENI.I03.3.Ap22 | F186: 2022-10-06 | G186: 1055.839231 | H186: 2022-10-06 | I186: 0 | J186: Wessex Gardens .2076.SENI.I03.3.Ap22 | K186: TRUE | L186: V0 | M186: TRUE | N186: NEW | O186: 10265/543965 | P186: TRUE | Q186: TRUE | R186: TRUE | S186: 2022-04-01 | T186: 4 | U186: SENI | V186: 2076 | W186: 3022076 | X186: =VLOOKUP(W186,Schools!$A:$B,2,0) -> Wessex Gardens Primary School | Y186: SENI
A187: 1 | B187: 2 | C187: 144062 | D187: TRUE | E187: 4012.ARPs.I03.1.Ap22 | F187: 2022-10-06 | G187: 18241.57692 | H187: 2022-10-06 | I187: 0 | J187: Whitefield Schoo.4012.ARPs.I03.1.Ap22 | K187: TRUE | L187: V0 | M187: TRUE | N187: NEW | O187: 11423/516500 | P187: TRUE | Q187: TRUE | R187: TRUE | S187: 2022-04-01 | T187: 4 | U187: ARPs | V187: 4012 | W187: 3024012 | X187: =VLOOKUP(W187,Schools!$A:$B,2,0) -> Whitefield School | Y187: ARPs
A188: 1 | B188: 2 | C188: 144062 | D188: TRUE | E188: 4012.EHCP.I03.2.Ap22 | F188: 2022-10-06 | G188: 21178.99846 | H188: 2022-10-06 | I188: 0 | J188: Whitefield Schoo.4012.EHCP.I03.2.Ap22 | K188: TRUE | L188: V0 | M188: TRUE | N188: NEW | O188: 11442/516500 | P188: TRUE | Q188: TRUE | R188: TRUE | S188: 2022-04-01 | T188: 4 | U188: EHCP | V188: 4012 | W188: 3024012 | X188: =VLOOKUP(W188,Schools!$A:$B,2,0) -> Whitefield School | Y188: EHCP
A189: 1 | B189: 2 | C189: 400011 | D189: TRUE | E189: 2060.EHCP.I03.1.Ap22 | F189: 2022-10-06 | G189: 19774.68 | H189: 2022-10-06 | I189: 0 | J189: Whitings Hill Pr.2060.EHCP.I03.1.Ap22 | K189: TRUE | L189: V0 | M189: TRUE | N189: NEW | O189: 11431/543965 | P189: TRUE | Q189: TRUE | R189: TRUE | S189: 2022-04-01 | T189: 4 | U189: EHCP | V189: 2060 | W189: 3022060 | X189: =VLOOKUP(W189,Schools!$A:$B,2,0) -> Whitings Hill Primary School | Y189: EHCP
A190: 1 | B190: 2 | C190: 400011 | D190: TRUE | E190: 2060.SENI.I03.2.Ap22 | F190: 2022-10-06 | G190: 779.0538462 | H190: 2022-10-06 | I190: 0 | J190: Whitings Hill Pr.2060.SENI.I03.2.Ap22 | K190: TRUE | L190: V0 | M190: TRUE | N190: NEW | O190: 10265/543965 | P190: TRUE | Q190: TRUE | R190: TRUE | S190: 2022-04-01 | T190: 4 | U190: SENI | V190: 2060 | W190: 3022060 | X190: =VLOOKUP(W190,Schools!$A:$B,2,0) -> Whitings Hill Primary School | Y190: SENI
A191: 1 | B191: 2 | C191: 400117 | D191: TRUE | E191: 3518.EHCP.I03.1.Ap22 | F191: 2022-10-06 | G191: 4716.064615 | H191: 2022-10-06 | I191: 0 | J191: Woodcroft Primar.3518.EHCP.I03.1.Ap22 | K191: TRUE | L191: V0 | M191: TRUE | N191: NEW | O191: 11431/543965 | P191: TRUE | Q191: TRUE | R191: TRUE | S191: 2022-04-01 | T191: 4 | U191: EHCP | V191: 3518 | W191: 3023518 | X191: =VLOOKUP(W191,Schools!$A:$B,2,0) -> Woodcroft Primary School | Y191: EHCP
A192: 1 | B192: 2 | C192: 400004 | D192: TRUE | E192: 2054.EHCP.I03.1.Ap22 | F192: 2022-10-06 | G192: 8850.218462 | H192: 2022-10-06 | I192: 0 | J192: Woodridge Prima.2054.EHCP.I03.1.Ap22 | K192: TRUE | L192: V0 | M192: TRUE | N192: NEW | O192: 11431/543965 | P192: TRUE | Q192: TRUE | R192: TRUE | S192: 2022-04-01 | T192: 4 | U192: EHCP | V192: 2054 | W192: 3022054 | X192: =VLOOKUP(W192,Schools!$A:$B,2,0) -> Woodridge Primary School | Y192: EHCP
A193: 1 | B193: 2 | C193: 128957 | D193: TRUE | E193: 6906.EHCP.I03.1.Ap22 | F193: 2022-10-06 | G193: 34753.94 | H193: 2022-10-06 | I193: 0 | J193: Wren Academy.6906.EHCP.I03.1.Ap22 | K193: TRUE | L193: V0 | M193: TRUE | N193: NEW | O193: 11442/516500 | P193: TRUE | Q193: TRUE | R193: TRUE | S193: 2022-04-01 | T193: 4 | U193: EHCP | V193: 6906 | W193: 3026906 | X193: =VLOOKUP(W193,Schools!$A:$B,2,0) -> Wren Academy | Y193: EHCP
A194: 1 | B194: 2 | C194: 128957 | D194: TRUE | E194: 6906.EHCP.I03.2.Ap22 | F194: 2022-10-06 | G194: 15526 | H194: 2022-10-06 | I194: 0 | J194: Wren Academy.6906.EHCP.I03.2.Ap22 | K194: TRUE | L194: V0 | M194: TRUE | N194: NEW | O194: 11443/516500 | P194: TRUE | Q194: TRUE | R194: TRUE | S194: 2022-04-01 | T194: =MONTH(S194) -> 4 | U194: EHCP | V194: 6906 | W194: =("302"&V194)*1 -> 3026906 | X194: =VLOOKUP(W194,Schools!$A:$B,2,0) -> Wren Academy | Y194: EHCP
A195: 1 | B195: 2 | C195: 400125 | D195: TRUE | E195: 3520.EHCP.I03.1.Ma22 | F195: 2022-10-06 | G195: 7971.189744 | H195: 2022-10-06 | I195: 0 | J195: Akiva School.3520.EHCP.I03.1.Ma22 | K195: TRUE | L195: V0 | M195: TRUE | N195: NEW | O195: 11431/543965 | P195: TRUE | Q195: TRUE | R195: TRUE | S195: 2022-05-01 | T195: 5 | U195: =IFERROR(MID($J195,FIND(".",$J195,FIND(".",$J195,2)+1)+1,FIND(".",$J195,FIND(".",$J195,FIND(".",$J195)+1)+1)-FIND(".",$J195,FIND(".",$J195,2)+1)-1),$J195) -> EHCP | V195: =LEFT(E195,4) -> 3520 | W195: 3023520 | X195: =VLOOKUP(W195,Schools!$A:$B,2,0) -> Akiva School | Y195: =IFERROR(MID(J195,FIND(".",J195,FIND(".",J195,2)+1)+1,FIND(".",J195,FIND(".",J195,FIND(".",J195)+1)+1)-FIND(".",J195,FIND(".",J195,2)+1)-1),J195) -> EHCP
A196: 1 | B196: 2 | C196: 400069 | D196: TRUE | E196: 3300.EHCP.I03.1.Ma22 | F196: 2022-10-06 | G196: 1679.949231 | H196: 2022-10-06 | I196: 0 | J196: All Saints' CE P.3300.EHCP.I03.1.Ma22 | K196: TRUE | L196: V0 | M196: TRUE | N196: NEW | O196: 11431/543965 | P196: TRUE | Q196: TRUE | R196: TRUE | S196: 2022-05-01 | T196: 5 | U196: EHCP | V196: 3300 | W196: 3023300 | X196: =VLOOKUP(W196,Schools!$A:$B,2,0) -> All Saints' CE Primary School NW2 | Y196: EHCP
A197: 1 | B197: 2 | C197: 400015 | D197: TRUE | E197: 3317.EHCP.I03.1.Ma22 | F197: 2022-10-06 | G197: 5144.166923 | H197: 2022-10-06 | I197: 0 | J197: All Saints' CE P.3317.EHCP.I03.1.Ma22 | K197: TRUE | L197: V0 | M197: TRUE | N197: NEW | O197: 11431/543965 | P197: TRUE | Q197: TRUE | R197: TRUE | S197: 2022-05-01 | T197: 5 | U197: EHCP | V197: 3317 | W197: 3023317 | X197: =VLOOKUP(W197,Schools!$A:$B,2,0) -> All Saints' CE Primary School, N20 | Y197: EHCP
A198: 1 | B198: 2 | C198: 400015 | D198: TRUE | E198: 3317.SENI.I03.2.Ma22 | F198: 2022-10-06 | G198: 165.17 | H198: 2022-10-06 | I198: 0 | J198: All Saints' CE P.3317.SENI.I03.2.Ma22 | K198: TRUE | L198: V0 | M198: TRUE | N198: NEW | O198: 10265/543965 | P198: TRUE | Q198: TRUE | R198: TRUE | S198: 2022-05-01 | T198: 5 | U198: SENI | V198: 3317 | W198: 3023317 | X198: =VLOOKUP(W198,Schools!$A:$B,2,0) -> All Saints' CE Primary School, N20 | Y198: SENI
A199: 1 | B199: 2 | C199: 156270 | D199: TRUE | E199: 2020.EHCP.I03.1.Ma22 | F199: 2022-10-06 | G199: 2138.679231 | H199: 2022-10-06 | I199: 0 | J199: Alma Primary.2020.EHCP.I03.1.Ma22 | K199: TRUE | L199: V0 | M199: TRUE | N199: NEW | O199: 11443/516500 | P199: TRUE | Q199: TRUE | R199: TRUE | S199: 2022-05-01 | T199: 5 | U199: EHCP | V199: 2020 | W199: 3022020 | X199: =VLOOKUP(W199,Schools!$A:$B,2,0) -> Alma Primary | Y199: EHCP
A200: 1 | B200: 2 | C200: 400023 | D200: TRUE | E200: 3500.EHCP.I03.1.Ma22 | F200: 2022-10-06 | G200: 1027.622308 | H200: 2022-10-06 | I200: 0 | J200: Annunciation Cat.3500.EHCP.I03.1.Ma22 | K200: TRUE | L200: V0 | M200: TRUE | N200: NEW | O200: 11431/543965 | P200: TRUE | Q200: TRUE | R200: TRUE | S200: 2022-05-01 | T200: 5 | U200: EHCP | V200: 3500 | W200: 3023500 | X200: =VLOOKUP(W200,Schools!$A:$B,2,0) -> Annunciation Catholic Infant School | Y200: EHCP
... 1921 more rows

Sheet Funding (hidden)
A1: Code LA Df E | B1: School Details Name | C1: LA Ref | D1: Start | E1: End | F1: 2021/22 NC Year | G1: 2022/23 NC Year | H1: Phase | I1: Funding LA | J1: Band | K1: Band Percentage | L1: Additional | M1: PY Rate | N1: Summer Rate | O1: Autumn Rate | P1: Spring Rate | Q1: PriorYear | R1: Summer | S1: Autumn | T1: Spring | U1: £ PriorYear | V1: £ Summer | W1: £ Autumn | X1: £ Spring | Y1: £ Total | Z1: Schooltype | AA1: PY x % | AB1: Summer x % | AC1: Autumn x % | AD1: Spring x % | AE1: GL | AF1: Spare7 | AG1: Spare8 | AH1: Group | AI1: CCDesc | AJ1: Costcentre | AK1: Fundingtype | AL1: Description | AM1: Totalmonths x % | AN1: Total Months | AO1: Spare9 | AP1: Old Ftype
A2: 3021000 | B2: Brookhill Nursery | C2: 1177070 | D2: 2022-12-01 | E2: 2023-03-31 | F2: 0 | G2: Nursery 2 | H2: Nursery | I2: Barnet | J2: EXY | K2: 1 | L2: 1610.14 | M2: 1 | N2: 1 | O2: 1 | P2: 1 | Q2: 0 | R2: 0 | S2: 1 | T2: 3 | U2: 0 | V2: 0 | W2: 0 | X2: 0 | Y2: 1610.14 | Z2: Nursery | AA2: 0 | AB2: 0 | AC2: 1 | AD2: 3 | AE2: 543965 | AH2: SEN Inclusion | AI2: SEN Inclusion - Under 5s | AJ2: 10265 | AK2: EHCP.EXY | AL2: EHCP topup - Band EXY | AM2: 4 | AN2: 4 | AP2: nurseryex
A3: 3021000 | B3: Brookhill Nursery | C3: 1153533 | D3: 2022-12-01 | E3: 2023-03-31 | F3: 0 | G3: Nursery 2 | H3: Nursery | I3: Barnet | J3: EXY | K3: 1 | L3: 1610.14 | M3: 1 | N3: 1 | O3: 1 | P3: 1 | Q3: 0 | R3: 0 | S3: 1 | T3: 3 | U3: 0 | V3: 0 | W3: 0 | X3: 0 | Y3: 1610.14 | Z3: Nursery | AA3: 0 | AB3: 0 | AC3: 1 | AD3: 3 | AE3: 543965 | AH3: SEN Inclusion | AI3: SEN Inclusion - Under 5s | AJ3: 10265 | AK3: EHCP.EXY | AL3: EHCP topup - Band EXY | AM3: 4 | AN3: 4 | AP3: nurseryex
A4: 3021000 | B4: Brookhill Nursery | C4: 1177071 | D4: 2022-12-01 | E4: 2023-03-31 | F4: 0 | G4: Nursery 1 | H4: Nursery | I4: Barnet | J4: EXY | K4: 1 | L4: 1610.14 | M4: 1 | N4: 1 | O4: 1 | P4: 1 | Q4: 0 | R4: 0 | S4: 1 | T4: 3 | U4: 0 | V4: 0 | W4: 0 | X4: 0 | Y4: 1610.14 | Z4: Nursery | AA4: 0 | AB4: 0 | AC4: 1 | AD4: 3 | AE4: 543965 | AH4: SEN Inclusion | AI4: SEN Inclusion - Under 5s | AJ4: 10265 | AK4: EHCP.EXY | AL4: EHCP topup - Band EXY | AM4: 4 | AN4: 4 | AP4: nurseryex
A5: 3021000 | B5: Brookhill Nursery | C5: 1157497 | D5: 2022-12-01 | E5: 2023-03-31 | F5: 0 | G5: Nursery 2 | H5: Nursery | I5: Barnet | J5: EXY | K5: 1 | L5: 1207.61 | M5: 1 | N5: 1 | O5: 1 | P5: 1 | Q5: 0 | R5: 0 | S5: 1 | T5: 3 | U5: 0 | V5: 0 | W5: 0 | X5: 0 | Y5: 1207.61 | Z5: Nursery | AA5: 0 | AB5: 0 | AC5: 1 | AD5: 3 | AE5: 543965 | AH5: SEN Inclusion | AI5: SEN Inclusion - Under 5s | AJ5: 10265 | AK5: EHCP.EXY | AL5: EHCP topup - Band EXY | AM5: 4 | AN5: 4 | AP5: nurseryex
A6: 3021000 | B6: Brookhill Nursery | C6: 1153996 | D6: 2022-09-01 | E6: 2023-03-31 | F6: 0 | G6: Nursery 2 | H6: Nursery | I6: Barnet | J6: EXY | K6: 1 | L6: 4333.18 | M6: 1 | N6: 1 | O6: 1 | P6: 1 | Q6: 0 | R6: 0 | S6: 4 | T6: 3 | U6: 0 | V6: 0 | W6: 0 | X6: 0 | Y6: 4333.18 | Z6: Nursery | AA6: 0 | AB6: 0 | AC6: 4 | AD6: 3 | AE6: 543965 | AH6: SEN Inclusion | AI6: SEN Inclusion - Under 5s | AJ6: 10265 | AK6: EHCP.EXY | AL6: EHCP topup - Band EXY | AM6: 7 | AN6: 7 | AP6: nurseryex
A7: 3021001 | B7: Hampden Way Nursery | C7: 1156542 | D7: 2022-04-01 | E7: 2023-03-31 | F7: Nursery 1 | G7: Nursery 2 | H7: Nursery | I7: Barnet | J7: N | K7: 1 | L7: 0 | M7: 6185 | N7: 6299 | O7: 6299 | P7: 6299 | Q7: 0 | R7: 5 | S7: 4 | T7: 3 | U7: 0 | V7: 2624.58 | W7: 2099.67 | X7: 1574.75 | Y7: 6299 | Z7: Nursery | AA7: 0 | AB7: 5 | AC7: 4 | AD7: 3 | AE7: 543965 | AH7: EHCP | AI7: EHCP - Barnet Nursery Schools | AJ7: 11439 | AK7: EHCPpri.N | AL7: EHCP topup - Nursery | AM7: 12 | AN7: 12 | AP7: Nurserytopup
A8: 3021001 | B8: Hampden Way Nursery | C8: 1156547 | D8: 2022-04-01 | E8: 2022-07-31 | F8: Nursery 1 | G8: 0 | H8: Nursery | I8: Barnet | J8: EXY | K8: 1 | L8: 1710.64 | M8: 1 | N8: 1 | O8: 1 | P8: 1 | Q8: 0 | R8: 4 | S8: 0 | T8: 0 | U8: 0 | V8: 0 | W8: 0 | X8: 0 | Y8: 1710.64 | Z8: Nursery | AA8: 0 | AB8: 4 | AC8: 0 | AD8: 0 | AE8: 543965 | AH8: SEN Inclusion | AI8: SEN Inclusion - Under 5s | AJ8: 10265 | AK8: EHCP.EXY | AL8: EHCP topup - Band EXY | AM8: 4 | AN8: 4 | AP8: nurseryex
A9: 3021001 | B9: Hampden Way Nursery | C9: 1156547 | D9: 2022-09-01 | E9: 2023-03-31 | F9: 0 | G9: Nursery 2 | H9: Nursery | I9: Barnet | J9: EXY | K9: 1 | L9: 3466.54 | M9: 1 | N9: 1 | O9: 1 | P9: 1 | Q9: 0 | R9: 0 | S9: 4 | T9: 3 | U9: 0 | V9: 0 | W9: 0 | X9: 0 | Y9: 3466.54 | Z9: Nursery | AA9: 0 | AB9: 0 | AC9: 4 | AD9: 3 | AE9: 543965 | AH9: SEN Inclusion | AI9: SEN Inclusion - Under 5s | AJ9: 10265 | AK9: EHCP.EXY | AL9: EHCP topup - Band EXY | AM9: 7 | AN9: 7 | AP9: nurseryex
A10: 3021001 | B10: Hampden Way Nursery | C10: 1158000 | D10: 2022-04-01 | E10: 2022-07-31 | F10: Nursery 2 | G10: 0 | H10: Nursery | I10: Barnet | J10: EXY | K10: 1 | L10: 1069.15 | M10: 1 | N10: 1 | O10: 1 | P10: 1 | Q10: 0 | R10: 4 | S10: 0 | T10: 0 | U10: 0 | V10: 0 | W10: 0 | X10: 0 | Y10: 1069.15 | Z10: Nursery | AA10: 0 | AB10: 4 | AC10: 0 | AD10: 0 | AE10: 543965 | AH10: SEN Inclusion | AI10: SEN Inclusion - Under 5s | AJ10: 10265 | AK10: EHCP.EXY | AL10: EHCP topup - Band EXY | AM10: 4 | AN10: 4 | AP10: nurseryex
A11: 3021001 | B11: Hampden Way Nursery | C11: 1154628 | D11: 2022-09-01 | E11: 2023-03-31 | F11: 0 | G11: Nursery 2 | H11: Nursery | I11: Barnet | J11: EXY | K11: 1 | L11: 2888.79 | M11: 1 | N11: 1 | O11: 1 | P11: 1 | Q11: 0 | R11: 0 | S11: 4 | T11: 3 | U11: 0 | V11: 0 | W11: 0 | X11: 0 | Y11: 2888.79 | Z11: Nursery | AA11: 0 | AB11: 0 | AC11: 4 | AD11: 3 | AE11: 543965 | AH11: SEN Inclusion | AI11: SEN Inclusion - Under 5s | AJ11: 10265 | AK11: EHCP.EXY | AL11: EHCP topup - Band EXY | AM11: 7 | AN11: 7 | AP11: nurseryex
A12: 3021001 | B12: Hampden Way Nursery | C12: 1171740 | D12: 2022-11-01 | E12: 2023-03-31 | F12: 0 | G12: Nursery 1 | H12: Nursery | I12: Barnet | J12: EXY | K12: 1 | L12: 1539.11 | M12: 1 | N12: 1 | O12: 1 | P12: 1 | Q12: 0 | R12: 0 | S12: 2 | T12: 3 | U12: 0 | V12: 0 | W12: 0 | X12: 0 | Y12: 1539.11 | Z12: Nursery | AA12: 0 | AB12: 0 | AC12: 2 | AD12: 3 | AE12: 543965 | AH12: SEN Inclusion | AI12: SEN Inclusion - Under 5s | AJ12: 10265 | AK12: EHCP.EXY | AL12: EHCP topup - Band EXY | AM12: 5 | AN12: 5 | AP12: nurseryex
A13: 3021001 | B13: Hampden Way Nursery | C13: 1150020 | D13: 2022-05-01 | E13: 2022-12-31 | F13: Nursery 1 | G13: 0 | H13: Nursery | I13: Barnet | J13: EXY | K13: 1 | L13: 2920.36 | M13: 1 | N13: 1 | O13: 1 | P13: 1 | Q13: 0 | R13: 4 | S13: 4 | T13: 0 | U13: 0 | V13: 0 | W13: 0 | X13: 0 | Y13: 2920.36 | Z13: Nursery | AA13: 0 | AB13: 4 | AC13: 4 | AD13: 0 | AE13: 543965 | AH13: SEN Inclusion | AI13: SEN Inclusion - Under 5s | AJ13: 10265 | AK13: EHCP.EXY | AL13: EHCP topup - Band EXY | AM13: 8 | AN13: 8 | AP13: nurseryex
A14: 3021001 | B14: Hampden Way Nursery | C14: 1145337 | D14: 2022-04-01 | E14: 2022-07-31 | F14: Nursery 1 | G14: 0 | H14: Nursery | I14: Barnet | J14: EXY | K14: 1 | L14: 1425.54 | M14: 1 | N14: 1 | O14: 1 | P14: 1 | Q14: 0 | R14: 4 | S14: 0 | T14: 0 | U14: 0 | V14: 0 | W14: 0 | X14: 0 | Y14: 1425.54 | Z14: Nursery | AA14: 0 | AB14: 4 | AC14: 0 | AD14: 0 | AE14: 543965 | AH14: SEN Inclusion | AI14: SEN Inclusion - Under 5s | AJ14: 10265 | AK14: EHCP.EXY | AL14: EHCP topup - Band EXY | AM14: 4 | AN14: 4 | AP14: nurseryex
A15: 3021001 | B15: Hampden Way Nursery | C15: 1145337 | D15: 2022-09-01 | E15: 2023-03-31 | F15: 0 | G15: Nursery 2 | H15: Nursery | I15: Barnet | J15: EXY | K15: 1 | L15: 2166.59 | M15: 1 | N15: 1 | O15: 1 | P15: 1 | Q15: 0 | R15: 0 | S15: 4 | T15: 3 | U15: 0 | V15: 0 | W15: 0 | X15: 0 | Y15: 2166.59 | Z15: Nursery | AA15: 0 | AB15: 0 | AC15: 4 | AD15: 3 | AE15: 543965 | AH15: SEN Inclusion | AI15: SEN Inclusion - Under 5s | AJ15: 10265 | AK15: EHCP.EXY | AL15: EHCP topup - Band EXY | AM15: 7 | AN15: 7 | AP15: nurseryex
A16: 3021001 | B16: Hampden Way Nursery | C16: 1164963 | D16: 2022-04-01 | E16: 2022-07-31 | F16: Nursery 2 | G16: 0 | H16: Nursery | I16: Barnet | J16: EXY | K16: 1 | L16: 2082.2 | M16: 1 | N16: 1 | O16: 1 | P16: 1 | Q16: 0 | R16: 4 | S16: 0 | T16: 0 | U16: 0 | V16: 0 | W16: 0 | X16: 0 | Y16: 2082.2 | Z16: Nursery | AA16: 0 | AB16: 4 | AC16: 0 | AD16: 0 | AE16: 543965 | AH16: SEN Inclusion | AI16: SEN Inclusion - Under 5s | AJ16: 10265 | AK16: EHCP.EXY | AL16: EHCP topup - Band EXY | AM16: 4 | AN16: 4 | AP16: nurseryex
A17: 3021001 | B17: Hampden Way Nursery | C17: 1164963 | D17: 2023-01-03 | E17: 2023-03-31 | F17: 0 | G17: Nursery 2 | H17: Nursery | I17: Barnet | J17: EHCPAD | K17: 1 | L17: 812.5 | M17: 1 | N17: 1 | O17: 1 | P17: 1 | Q17: 0 | R17: 0 | S17: 0 | T17: 3 | U17: 0 | V17: 0 | W17: 0 | X17: 0 | Y17: 812.5 | Z17: Nursery | AA17: 0 | AB17: 0 | AC17: 0 | AD17: 3 | AE17: 543965 | AH17: EHCP | AI17: EHCP - Barnet Nursery Schools | AJ17: 11439 | AK17: EHCPNur.EHCPAD | AM17: 3 | AN17: 3
A18: 3021001 | B18: Hampden Way Nursery | C18: 1157986 | D18: 2022-04-01 | E18: 2022-07-31 | F18: Nursery 2 | G18: 0 | H18: Nursery | I18: Barnet | J18: EXY | K18: 1 | L18: 1069.15 | M18: 1 | N18: 1 | O18: 1 | P18: 1 | Q18: 0 | R18: 4 | S18: 0 | T18: 0 | U18: 0 | V18: 0 | W18: 0 | X18: 0 | Y18: 1069.15 | Z18: Nursery | AA18: 0 | AB18: 4 | AC18: 0 | AD18: 0 | AE18: 543965 | AH18: SEN Inclusion | AI18: SEN Inclusion - Under 5s | AJ18: 10265 | AK18: EHCP.EXY | AL18: EHCP topup - Band EXY | AM18: 4 | AN18: 4 | AP18: nurseryex
A19: 3021001 | B19: Hampden Way Nursery | C19: 1158566 | D19: 2022-09-01 | E19: 2023-03-31 | F19: 0 | G19: Nursery 1 | H19: Nursery | I19: Barnet | J19: EXY | K19: 1 | L19: 2166.59 | M19: 1 | N19: 1 | O19: 1 | P19: 1 | Q19: 0 | R19: 0 | S19: 4 | T19: 3 | U19: 0 | V19: 0 | W19: 0 | X19: 0 | Y19: 2166.59 | Z19: Nursery | AA19: 0 | AB19: 0 | AC19: 4 | AD19: 3 | AE19: 543965 | AH19: SEN Inclusion | AI19: SEN Inclusion - Under 5s | AJ19: 10265 | AK19: EHCP.EXY | AL19: EHCP topup - Band EXY | AM19: 7 | AN19: 7 | AP19: nurseryex
A20: 3021001 | B20: Hampden Way Nursery | C20: 1153710 | D20: 2022-11-01 | E20: 2023-03-31 | F20: 0 | G20: Nursery 1 | H20: Nursery | I20: Barnet | J20: EXY | K20: 1 | L20: 1539.11 | M20: 1 | N20: 1 | O20: 1 | P20: 1 | Q20: 0 | R20: 0 | S20: 2 | T20: 3 | U20: 0 | V20: 0 | W20: 0 | X20: 0 | Y20: 1539.11 | Z20: Nursery | AA20: 0 | AB20: 0 | AC20: 2 | AD20: 3 | AE20: 543965 | AH20: SEN Inclusion | AI20: SEN Inclusion - Under 5s | AJ20: 10265 | AK20: EHCP.EXY | AL20: EHCP topup - Band EXY | AM20: 5 | AN20: 5 | AP20: nurseryex
A21: 3021002 | B21: Moss Hall Nursery | C21: 1153178 | D21: 2022-06-01 | E21: 2022-07-31 | F21: Nursery 2 | G21: 0 | H21: Nursery | I21: Barnet | J21: EXY | K21: 1 | L21: 1586.46 | M21: 1 | N21: 1 | O21: 1 | P21: 1 | Q21: 0 | R21: 2 | S21: 0 | T21: 0 | U21: 0 | V21: 0 | W21: 0 | X21: 0 | Y21: 1586.46 | Z21: Nursery | AA21: 0 | AB21: 2 | AC21: 0 | AD21: 0 | AE21: 543965 | AH21: SEN Inclusion | AI21: SEN Inclusion - Under 5s | AJ21: 10265 | AK21: EHCP.EXY | AL21: EHCP topup - Band EXY | AM21: 2 | AN21: 2 | AP21: nurseryex
A22: 3021002 | B22: Moss Hall Nursery | C22: 1141425 | D22: 2022-05-01 | E22: 2022-07-31 | F22: Nursery 2 | G22: 0 | H22: Nursery | I22: Barnet | J22: EXY | K22: 1 | L22: 1373.36 | M22: 1 | N22: 1 | O22: 1 | P22: 1 | Q22: 0 | R22: 3 | S22: 0 | T22: 0 | U22: 0 | V22: 0 | W22: 0 | X22: 0 | Y22: 1373.36 | Z22: Nursery | AA22: 0 | AB22: 3 | AC22: 0 | AD22: 0 | AE22: 543965 | AH22: SEN Inclusion | AI22: SEN Inclusion - Under 5s | AJ22: 10265 | AK22: EHCP.EXY | AL22: EHCP topup - Band EXY | AM22: 3 | AN22: 3 | AP22: nurseryex
A23: 3021002 | B23: Moss Hall Nursery | C23: 1144217 | D23: 2022-04-01 | E23: 2022-08-31 | F23: Nursery 2 | G23: 0 | H23: Nursery | I23: Barnet | J23: N | K23: 2 | L23: 0 | M23: 6185 | N23: 6299 | O23: 6299 | P23: 6299 | Q23: 0 | R23: 5 | S23: 0 | T23: 0 | U23: 0 | V23: 5249.17 | W23: 0 | X23: 0 | Y23: 5249.17 | Z23: Nursery | AA23: 0 | AB23: 10 | AC23: 0 | AD23: 0 | AE23: 543965 | AH23: EHCP | AI23: EHCP - Barnet Nursery Schools | AJ23: 11439 | AK23: EHCPpri.N | AL23: EHCP topup - Nursery | AM23: 10 | AN23: 5 | AP23: Nurserytopup
A24: 3021002 | B24: Moss Hall Nursery | C24: 1151181 | D24: 2022-04-01 | E24: 2022-05-31 | F24: Nursery 2 | G24: 0 | H24: Nursery | I24: Barnet | J24: EXY | K24: 1 | L24: 2244.2 | M24: 1 | N24: 1 | O24: 1 | P24: 1 | Q24: 0 | R24: 2 | S24: 0 | T24: 0 | U24: 0 | V24: 0 | W24: 0 | X24: 0 | Y24: 2244.2 | Z24: Nursery | AA24: 0 | AB24: 2 | AC24: 0 | AD24: 0 | AE24: 543965 | AH24: SEN Inclusion | AI24: SEN Inclusion - Under 5s | AJ24: 10265 | AK24: EHCP.EXY | AL24: EHCP topup - Band EXY | AM24: 2 | AN24: 2 | AP24: nurseryex
A25: 3021002 | B25: Moss Hall Nursery | C25: 1151181 | D25: 2022-06-01 | E25: 2022-08-31 | F25: Nursery 2 | G25: 0 | H25: Nursery | I25: Barnet | J25: N | K25: 1 | L25: 0 | M25: 6185 | N25: 6299 | O25: 6299 | P25: 6299 | Q25: 0 | R25: 3 | S25: 0 | T25: 0 | U25: 0 | V25: 1574.75 | W25: 0 | X25: 0 | Y25: 1574.75 | Z25: Nursery | AA25: 0 | AB25: 3 | AC25: 0 | AD25: 0 | AE25: 543965 | AH25: EHCP | AI25: EHCP - Barnet Nursery Schools | AJ25: 11439 | AK25: EHCPpri.N | AL25: EHCP topup - Nursery | AM25: 3 | AN25: 3 | AP25: Nurserytopup
A26: 3021003 | B26: St Margaret's Nursery | C26: 1157972 | D26: 2022-04-01 | E26: 2022-07-31 | F26: Nursery 2 | G26: 0 | H26: Nursery | I26: Barnet | J26: EXY | K26: 1 | L26: 712.77 | M26: 1 | N26: 1 | O26: 1 | P26: 1 | Q26: 0 | R26: 4 | S26: 0 | T26: 0 | U26: 0 | V26: 0 | W26: 0 | X26: 0 | Y26: 712.77 | Z26: Nursery | AA26: 0 | AB26: 4 | AC26: 0 | AD26: 0 | AE26: 543965 | AH26: SEN Inclusion | AI26: SEN Inclusion - Under 5s | AJ26: 10265 | AK26: EHCP.EXY | AL26: EHCP topup - Band EXY | AM26: 4 | AN26: 4 | AP26: nurseryex
A27: 3021003 | B27: St Margaret's Nursery | C27: 1163623 | D27: 2022-04-01 | E27: 2022-07-31 | F27: Nursery 2 | G27: 0 | H27: Nursery | I27: Barnet | J27: EXY | K27: 1 | L27: 1121.46 | M27: 1 | N27: 1 | O27: 1 | P27: 1 | Q27: 0 | R27: 4 | S27: 0 | T27: 0 | U27: 0 | V27: 0 | W27: 0 | X27: 0 | Y27: 1121.46 | Z27: Nursery | AA27: 0 | AB27: 4 | AC27: 0 | AD27: 0 | AE27: 543965 | AH27: SEN Inclusion | AI27: SEN Inclusion - Under 5s | AJ27: 10265 | AK27: EHCP.EXY | AL27: EHCP topup - Band EXY | AM27: 4 | AN27: 4 | AP27: nurseryex
A28: 3021003 | B28: St Margaret's Nursery | C28: 1163623 | D28: 2022-11-01 | E28: 2022-12-31 | F28: 0 | G28: Nursery 2 | H28: Nursery | I28: Barnet | J28: N | K28: 1 | L28: 0 | M28: 6185 | N28: 6299 | O28: 6299 | P28: 6299 | Q28: 0 | R28: 0 | S28: 2 | T28: 0 | U28: 0 | V28: 0 | W28: 1049.83 | X28: 0 | Y28: 1049.83 | Z28: Nursery | AA28: 0 | AB28: 0 | AC28: 2 | AD28: 0 | AE28: 543965 | AH28: EHCP | AI28: EHCP - Barnet Nursery Schools | AJ28: 11439 | AK28: EHCPpri.N | AL28: EHCP topup - Nursery | AM28: 2 | AN28: 2 | AP28: Nurserytopup
A29: 3021003 | B29: St Margaret's Nursery | C29: 1154664 | D29: 2022-11-01 | E29: 2023-03-31 | F29: 0 | G29: Nursery 2 | H29: Nursery | I29: Barnet | J29: EXY | K29: 1 | L29: 2052.14 | M29: 1 | N29: 1 | O29: 1 | P29: 1 | Q29: 0 | R29: 0 | S29: 2 | T29: 3 | U29: 0 | V29: 0 | W29: 0 | X29: 0 | Y29: 2052.14 | Z29: Nursery | AA29: 0 | AB29: 0 | AC29: 2 | AD29: 3 | AE29: 543965 | AH29: SEN Inclusion | AI29: SEN Inclusion - Under 5s | AJ29: 10265 | AK29: EHCP.EXY | AL29: EHCP topup - Band EXY | AM29: 5 | AN29: 5 | AP29: nurseryex
A30: 3021003 | B30: St Margaret's Nursery | C30: 1166799 | D30: 2022-09-01 | E30: 2022-10-31 | F30: 0 | G30: Nursery 2 | H30: Nursery | I30: Barnet | J30: EXY | K30: 1 | L30: 773.5 | M30: 1 | N30: 1 | O30: 1 | P30: 1 | Q30: 0 | R30: 0 | S30: 2 | T30: 0 | U30: 0 | V30: 0 | W30: 0 | X30: 0 | Y30: 773.5 | Z30: Nursery | AA30: 0 | AB30: 0 | AC30: 2 | AD30: 0 | AE30: 543965 | AH30: SEN Inclusion | AI30: SEN Inclusion - Under 5s | AJ30: 10265 | AK30: EHCP.EXY | AL30: EHCP topup - Band EXY | AM30: 2 | AN30: 2 | AP30: nurseryex
A31: 3021003 | B31: St Margaret's Nursery | C31: 1166799 | D31: 2022-11-01 | E31: 2023-03-31 | F31: 0 | G31: Nursery 2 | H31: Nursery | I31: Barnet | J31: EXY | K31: 1 | L31: 4104.29 | M31: 1 | N31: 1 | O31: 1 | P31: 1 | Q31: 0 | R31: 0 | S31: 2 | T31: 3 | U31: 0 | V31: 0 | W31: 0 | X31: 0 | Y31: 4104.29 | Z31: Nursery | AA31: 0 | AB31: 0 | AC31: 2 | AD31: 3 | AE31: 543965 | AH31: SEN Inclusion | AI31: SEN Inclusion - Under 5s | AJ31: 10265 | AK31: EHCP.EXY | AL31: EHCP topup - Band EXY | AM31: 5 | AN31: 5 | AP31: nurseryex
A32: 3021003 | B32: St Margaret's Nursery | C32: 1177069 | D32: 2022-12-01 | E32: 2023-03-31 | F32: 0 | G32: Nursery 1 | H32: Nursery | I32: Barnet | J32: EXY | K32: 1 | L32: 1610.14 | M32: 1 | N32: 1 | O32: 1 | P32: 1 | Q32: 0 | R32: 0 | S32: 1 | T32: 3 | U32: 0 | V32: 0 | W32: 0 | X32: 0 | Y32: 1610.14 | Z32: Nursery | AA32: 0 | AB32: 0 | AC32: 1 | AD32: 3 | AE32: 543965 | AH32: SEN Inclusion | AI32: SEN Inclusion - Under 5s | AJ32: 10265 | AK32: EHCP.EXY | AL32: EHCP topup - Band EXY | AM32: 4 | AN32: 4 | AP32: nurseryex
A33: 3021003 | B33: St Margaret's Nursery | C33: 1169926 | D33: 2022-09-01 | E33: 2023-03-31 | F33: 0 | G33: Nursery 2 | H33: Nursery | I33: Barnet | J33: EXY | K33: 1 | L33: 2888.79 | M33: 1 | N33: 1 | O33: 1 | P33: 1 | Q33: 0 | R33: 0 | S33: 4 | T33: 3 | U33: 0 | V33: 0 | W33: 0 | X33: 0 | Y33: 2888.79 | Z33: Nursery | AA33: 0 | AB33: 0 | AC33: 4 | AD33: 3 | AE33: 543965 | AH33: SEN Inclusion | AI33: SEN Inclusion - Under 5s | AJ33: 10265 | AK33: EHCP.EXY | AL33: EHCP topup - Band EXY | AM33: 7 | AN33: 7 | AP33: nurseryex
A34: 3021003 | B34: St Margaret's Nursery | C34: 1171758 | D34: 2022-11-01 | E34: 2023-03-31 | F34: 0 | G34: Nursery 2 | H34: Nursery | I34: Barnet | J34: EXY | K34: 1 | L34: 1539.11 | M34: 1 | N34: 1 | O34: 1 | P34: 1 | Q34: 0 | R34: 0 | S34: 2 | T34: 3 | U34: 0 | V34: 0 | W34: 0 | X34: 0 | Y34: 1539.11 | Z34: Nursery | AA34: 0 | AB34: 0 | AC34: 2 | AD34: 3 | AE34: 543965 | AH34: SEN Inclusion | AI34: SEN Inclusion - Under 5s | AJ34: 10265 | AK34: EHCP.EXY | AL34: EHCP topup - Band EXY | AM34: 5 | AN34: 5 | AP34: nurseryex
A35: 3021003 | B35: St Margaret's Nursery | C35: 1163574 | D35: 2022-04-01 | E35: 2022-07-31 | F35: Nursery 2 | G35: 0 | H35: Nursery | I35: Barnet | J35: EXY | K35: 1 | L35: 1710.64 | M35: 1 | N35: 1 | O35: 1 | P35: 1 | Q35: 0 | R35: 4 | S35: 0 | T35: 0 | U35: 0 | V35: 0 | W35: 0 | X35: 0 | Y35: 1710.64 | Z35: Nursery | AA35: 0 | AB35: 4 | AC35: 0 | AD35: 0 | AE35: 543965 | AH35: SEN Inclusion | AI35: SEN Inclusion - Under 5s | AJ35: 10265 | AK35: EHCP.EXY | AL35: EHCP topup - Band EXY | AM35: 4 | AN35: 4 | AP35: nurseryex
A36: 3021003 | B36: St Margaret's Nursery | C36: 1143448 | D36: 2022-05-01 | E36: 2022-12-31 | F36: Nursery 1 | G36: 0 | H36: Nursery | I36: Barnet | J36: EXY | K36: 1 | L36: 4380.54 | M36: 1 | N36: 1 | O36: 1 | P36: 1 | Q36: 0 | R36: 4 | S36: 4 | T36: 0 | U36: 0 | V36: 0 | W36: 0 | X36: 0 | Y36: 4380.54 | Z36: Nursery | AA36: 0 | AB36: 4 | AC36: 4 | AD36: 0 | AE36: 543965 | AH36: SEN Inclusion | AI36: SEN Inclusion - Under 5s | AJ36: 10265 | AK36: EHCP.EXY | AL36: EHCP topup - Band EXY | AM36: 8 | AN36: 8 | AP36: nurseryex
A37: 3021003 | B37: St Margaret's Nursery | C37: 1143448 | D37: 2023-01-03 | E37: 2023-03-31 | F37: 0 | G37: Nursery 2 | H37: Nursery | I37: Barnet | J37: EXY | K37: 1 | L37: 1894.29 | M37: 1 | N37: 1 | O37: 1 | P37: 1 | Q37: 0 | R37: 0 | S37: 0 | T37: 3 | U37: 0 | V37: 0 | W37: 0 | X37: 0 | Y37: 1894.29 | Z37: Nursery | AA37: 0 | AB37: 0 | AC37: 0 | AD37: 3 | AE37: 543965 | AH37: SEN Inclusion | AI37: SEN Inclusion - Under 5s | AJ37: 10265 | AK37: EHCP.EXY | AL37: EHCP topup - Band EXY | AM37: 3 | AN37: 3 | AP37: nurseryex
A38: 3021003 | B38: St Margaret's Nursery | C38: 1140943 | D38: 2022-09-01 | E38: 2023-03-31 | F38: 0 | G38: Nursery 1 | H38: Nursery | I38: Barnet | J38: EXY | K38: 1 | L38: 2166.59 | M38: 1 | N38: 1 | O38: 1 | P38: 1 | Q38: 0 | R38: 0 | S38: 4 | T38: 3 | U38: 0 | V38: 0 | W38: 0 | X38: 0 | Y38: 2166.59 | Z38: Nursery | AA38: 0 | AB38: 0 | AC38: 4 | AD38: 3 | AE38: 543965 | AH38: SEN Inclusion | AI38: SEN Inclusion - Under 5s | AJ38: 10265 | AK38: EHCP.EXY | AL38: EHCP topup - Band EXY | AM38: 7 | AN38: 7 | AP38: nurseryex
A39: 3021100 | B39: Pavilion | C39: 198444 | D39: 2022-05-04 | E39: 2023-03-31 | F39: NC Year 10 | G39: NC Year 11 | H39: Secondary | I39: Barnet | J39: PavB | K39: 1 | L39: 0 | M39: 2385 | N39: 2312 | O39: 2312 | P39: 2312 | Q39: 0 | R39: 4 | S39: 4 | T39: 3 | U39: 0 | V39: 770.67 | W39: 770.67 | X39: 578 | Y39: 2119.34 | Z39: PRU | AA39: 0 | AB39: 4 | AC39: 4 | AD39: 3 | AE39: 543965 | AH39: PRUs | AI39: PRU Top-ups | AJ39: 11425 | AK39: PRU.PavB | AL39: PRU topup - Band PAVB | AM39: 11 | AN39: 11 | AP39: PRUTOPUP
A40: 3021100 | B40: Pavilion | C40: 246318 | D40: 2022-10-03 | E40: 2022-11-30 | F40: 0 | G40: NC Year 10 | H40: Secondary | I40: Barnet | J40: PavD | K40: 1 | L40: 0 | M40: 8090 | N40: 8017 | O40: 8017 | P40: 8017 | Q40: 0 | R40: 0 | S40: 2 | T40: 0 | U40: 0 | V40: 0 | W40: 1336.17 | X40: 0 | Y40: 1336.17 | Z40: PRU | AA40: 0 | AB40: 0 | AC40: 2 | AD40: 0 | AE40: 543965 | AH40: PRUs | AI40: PRU Top-ups | AJ40: 11425 | AK40: PRU.PavD | AL40: PRU topup - Band PAVD | AM40: 2 | AN40: 2 | AP40: PRUTOPUP
A41: 3021100 | B41: Pavilion | C41: 278967 | D41: 2022-07-01 | E41: 2022-08-31 | F41: 0 | G41: NC Year 9 | H41: Secondary | I41: Barnet | J41: PavD | K41: 1 | L41: 0 | M41: 8090 | N41: 8017 | O41: 8017 | P41: 8017 | Q41: 0 | R41: 2 | S41: 0 | T41: 0 | U41: 0 | V41: 1336.17 | W41: 0 | X41: 0 | Y41: 1336.17 | Z41: PRU | AA41: 0 | AB41: 2 | AC41: 0 | AD41: 0 | AE41: 543965 | AH41: PRUs | AI41: PRU Top-ups | AJ41: 11425 | AK41: PRU.PavD | AL41: PRU topup - Band PAVD | AM41: 2 | AN41: 2 | AP41: PRUTOPUP
A42: 3021100 | B42: Pavilion | C42: 1135699 | D42: 2022-04-01 | E42: 2022-02-28 | F42: NC Year 10 | G42: NC Year 11 | H42: Secondary | I42: Barnet | J42: PavD | K42: 1 | L42: 0 | M42: 8090 | N42: 8017 | O42: 8017 | P42: 8017 | Q42: -1 | R42: 0 | S42: 0 | T42: 0 | U42: -674.17 | V42: 0 | W42: 0 | X42: 0 | Y42: -674.17 | Z42: PRU | AA42: -1 | AB42: 0 | AC42: 0 | AD42: 0 | AE42: 543965 | AH42: PRUs | AI42: PRU Top-ups | AJ42: 11425 | AK42: PRU.PavD | AL42: PRU topup - Band PAVD | AM42: -1 | AN42: -1 | AP42: PRUTOPUP
A43: 3021100 | B43: Pavilion | C43: 208341 | D43: 2022-10-01 | E43: 2022-12-31 | F43: 0 | G43: NC Year 11 | H43: Secondary | I43: Barnet | J43: PavD | K43: 1 | L43: 0 | M43: 8090 | N43: 8017 | O43: 8017 | P43: 8017 | Q43: 0 | R43: 0 | S43: 3 | T43: 0 | U43: 0 | V43: 0 | W43: 2004.25 | X43: 0 | Y43: 2004.25 | Z43: PRU | AA43: 0 | AB43: 0 | AC43: 3 | AD43: 0 | AE43: 543965 | AH43: PRUs | AI43: PRU Top-ups | AJ43: 11425 | AK43: PRU.PavD | AL43: PRU topup - Band PAVD | AM43: 3 | AN43: 3 | AP43: PRUTOPUP
A44: 3021100 | B44: Pavilion | C44: 238724 | D44: 2022-12-01 | E44: 2023-01-31 | F44: 0 | G44: NC Year 10 | H44: Secondary | I44: Barnet | J44: PavD | K44: 1 | L44: 0 | M44: 8090 | N44: 8017 | O44: 8017 | P44: 8017 | Q44: 0 | R44: 0 | S44: 1 | T44: 1 | U44: 0 | V44: 0 | W44: 668.08 | X44: 668.08 | Y44: 1336.16 | Z44: PRU | AA44: 0 | AB44: 0 | AC44: 1 | AD44: 1 | AE44: 543965 | AH44: PRUs | AI44: PRU Top-ups | AJ44: 11425 | AK44: PRU.PavD | AL44: PRU topup - Band PAVD | AM44: 2 | AN44: 2 | AP44: PRUTOPUP
A45: 3021100 | B45: Pavilion | C45: 208448 | D45: 2022-09-01 | E45: 2023-03-31 | F45: 0 | G45: NC Year 11 | H45: Secondary | I45: Barnet | J45: PavD | K45: 1 | L45: 0 | M45: 8090 | N45: 8017 | O45: 8017 | P45: 8017 | Q45: 0 | R45: 0 | S45: 4 | T45: 3 | U45: 0 | V45: 0 | W45: 2672.33 | X45: 2004.25 | Y45: 4676.58 | Z45: PRU | AA45: 0 | AB45: 0 | AC45: 4 | AD45: 3 | AE45: 543965 | AH45: PRUs | AI45: PRU Top-ups | AJ45: 11425 | AK45: PRU.PavD | AL45: PRU topup - Band PAVD | AM45: 7 | AN45: 7 | AP45: PRUTOPUP
A46: 3021100 | B46: Pavilion | C46: 1003800 | D46: 2022-04-01 | E46: 2022-08-31 | F46: NC Year 6 | G46: 0 | H46: Primary | I46: Barnet | J46: PAVASS | K46: 1 | L46: 0 | M46: 18500 | N46: 18963 | O46: 18963 | P46: 18963 | Q46: 0 | R46: 5 | S46: 0 | T46: 0 | U46: 0 | V46: 7901.25 | W46: 0 | X46: 0 | Y46: 7901.25 | Z46: PRU | AA46: 0 | AB46: 5 | AC46: 0 | AD46: 0 | AE46: 543965 | AH46: PRUs | AI46: PRU Top-ups | AJ46: 11425 | AK46: PRU.PAVASS | AL46: PRU topup - Band PAVASS | AM46: 5 | AN46: 5 | AP46: PRUTOPUP
A47: 3021100 | B47: Pavilion | C47: 172381 | D47: 2022-03-01 | E47: 2022-08-31 | F47: NC Year 11 | G47: 0 | H47: Secondary | I47: Barnet | J47: PavC | K47: 1 | L47: 0 | M47: 5237 | N47: 5164 | O47: 5164 | P47: 5164 | Q47: 1 | R47: 5 | S47: 0 | T47: 0 | U47: 436.42 | V47: 2151.67 | W47: 0 | X47: 0 | Y47: 2588.09 | Z47: PRU | AA47: 1 | AB47: 5 | AC47: 0 | AD47: 0 | AE47: 543965 | AH47: PRUs | AI47: PRU Top-ups | AJ47: 11425 | AK47: PRU.PavC | AL47: PRU topup - Band PAVC | AM47: 6 | AN47: 6 | AP47: PRUTOPUP
A48: 3021100 | B48: Pavilion | C48: 1126251 | D48: 2023-02-01 | E48: 2023-03-31 | F48: 0 | G48: NC Year 3 | H48: Primary | I48: Barnet | J48: PavD | K48: 1 | L48: 0 | M48: 8090 | N48: 8017 | O48: 8017 | P48: 8017 | Q48: 0 | R48: 0 | S48: -1 | T48: 3 | U48: 0 | V48: 0 | W48: -668.08 | X48: 2004.25 | Y48: 1336.17 | Z48: PRU | AA48: 0 | AB48: 0 | AC48: -1 | AD48: 3 | AE48: 543965 | AH48: PRUs | AI48: PRU Top-ups | AJ48: 11425 | AK48: PRU.PavD | AL48: PRU topup - Band PAVD | AM48: 2 | AN48: 2 | AP48: PRUTOPUP
A49: 3021100 | B49: Pavilion | C49: 1091170 | D49: 2022-04-01 | E49: 2022-08-31 | F49: NC Year 10 | G49: 0 | H49: Secondary | I49: Barnet | J49: PavC | K49: 1 | L49: 0 | M49: 5237 | N49: 5164 | O49: 5164 | P49: 5164 | Q49: 0 | R49: 5 | S49: 0 | T49: 0 | U49: 0 | V49: 2151.67 | W49: 0 | X49: 0 | Y49: 2151.67 | Z49: PRU | AA49: 0 | AB49: 5 | AC49: 0 | AD49: 0 | AE49: 543965 | AH49: PRUs | AI49: PRU Top-ups | AJ49: 11425 | AK49: PRU.PavC | AL49: PRU topup - Band PAVC | AM49: 5 | AN49: 5 | AP49: PRUTOPUP
A50: 3021100 | B50: Pavilion | C50: 244499 | D50: 2022-04-01 | E50: 2022-10-31 | F50: NC Year 9 | G50: NC Year 10 | H50: Secondary | I50: Barnet | J50: PavC | K50: 1 | L50: 0 | M50: 5237 | N50: 5164 | O50: 5164 | P50: 5164 | Q50: 0 | R50: 5 | S50: 2 | T50: 0 | U50: 0 | V50: 2151.67 | W50: 860.67 | X50: 0 | Y50: 3012.34 | Z50: PRU | AA50: 0 | AB50: 5 | AC50: 2 | AD50: 0 | AE50: 543965 | AH50: PRUs | AI50: PRU Top-ups | AJ50: 11425 | AK50: PRU.PavC | AL50: PRU topup - Band PAVC | AM50: 7 | AN50: 7 | AP50: PRUTOPUP
A51: 3021100 | B51: Pavilion | C51: 1128320 | D51: 2022-04-01 | E51: 2022-08-31 | F51: NC Year 6 | G51: 0 | H51: Primary | I51: Barnet | J51: PAVASS | K51: 1 | L51: 0 | M51: 18500 | N51: 18963 | O51: 18963 | P51: 18963 | Q51: 0 | R51: 5 | S51: 0 | T51: 0 | U51: 0 | V51: 7901.25 | W51: 0 | X51: 0 | Y51: 7901.25 | Z51: PRU | AA51: 0 | AB51: 5 | AC51: 0 | AD51: 0 | AE51: 543965 | AH51: PRUs | AI51: PRU Top-ups | AJ51: 11425 | AK51: PRU.PAVASS | AL51: PRU topup - Band PAVASS | AM51: 5 | AN51: 5 | AP51: PRUTOPUP
A52: 3021100 | B52: Pavilion | C52: 174210 | D52: 2022-04-01 | E52: 2022-08-31 | F52: NC Year 11 | G52: 0 | H52: Secondary | I52: Barnet | J52: PavC | K52: 1 | L52: 0 | M52: 5237 | N52: 5164 | O52: 5164 | P52: 5164 | Q52: 0 | R52: 5 | S52: 0 | T52: 0 | U52: 0 | V52: 2151.67 | W52: 0 | X52: 0 | Y52: 2151.67 | Z52: PRU | AA52: 0 | AB52: 5 | AC52: 0 | AD52: 0 | AE52: 543965 | AH52: PRUs | AI52: PRU Top-ups | AJ52: 11425 | AK52: PRU.PavC | AL52: PRU topup - Band PAVC | AM52: 5 | AN52: 5 | AP52: PRUTOPUP
A53: 3021100 | B53: Pavilion | C53: 1153078 | D53: 2022-04-01 | E53: 2023-03-31 | F53: NC Year 5 | G53: NC Year 6 | H53: Primary | I53: Barnet | J53: PAVASS | K53: 1 | L53: 0 | M53: 18500 | N53: 18963 | O53: 18963 | P53: 18963 | Q53: 0 | R53: 5 | S53: 4 | T53: 3 | U53: 0 | V53: 7901.25 | W53: 6321 | X53: 4740.75 | Y53: 18963 | Z53: PRU | AA53: 0 | AB53: 5 | AC53: 4 | AD53: 3 | AE53: 543965 | AH53: PRUs | AI53: PRU Top-ups | AJ53: 11425 | AK53: PRU.PAVASS | AL53: PRU topup - Band PAVASS | AM53: 12 | AN53: 12 | AP53: PRUTOPUP
A54: 3021100 | B54: Pavilion | C54: 278512 | D54: 2022-07-01 | E54: 2022-12-31 | F54: NC Year 8 | G54: NC Year 9 | H54: Secondary | I54: Barnet | J54: PavD | K54: 1 | L54: 0 | M54: 8090 | N54: 8017 | O54: 8017 | P54: 8017 | Q54: 0 | R54: 2 | S54: 4 | T54: 0 | U54: 0 | V54: 1336.17 | W54: 2672.33 | X54: 0 | Y54: 4008.5 | Z54: PRU | AA54: 0 | AB54: 2 | AC54: 4 | AD54: 0 | AE54: 543965 | AH54: PRUs | AI54: PRU Top-ups | AJ54: 11425 | AK54: PRU.PavD | AL54: PRU topup - Band PAVD | AM54: 6 | AN54: 6 | AP54: PRUTOPUP
A55: 3021100 | B55: Pavilion | C55: 237637 | D55: 2022-09-01 | E55: 2023-03-31 | F55: 0 | G55: NC Year 10 | H55: Secondary | I55: Barnet | J55: PavB | K55: 1 | L55: 0 | M55: 2385 | N55: 2312 | O55: 2312 | P55: 2312 | Q55: 0 | R55: 0 | S55: 4 | T55: 3 | U55: 0 | V55: 0 | W55: 770.67 | X55: 578 | Y55: 1348.67 | Z55: PRU | AA55: 0 | AB55: 0 | AC55: 4 | AD55: 3 | AE55: 543965 | AH55: PRUs | AI55: PRU Top-ups | AJ55: 11425 | AK55: PRU.PavB | AL55: PRU topup - Band PAVB | AM55: 7 | AN55: 7 | AP55: PRUTOPUP
A56: 3021100 | B56: Pavilion | C56: 1017900 | D56: 2022-04-01 | E56: 2022-11-30 | F56: NC Year 3 | G56: NC Year 4 | H56: Primary | I56: Barnet | J56: PavRISK | K56: 1 | L56: 0 | M56: 14000 | N56: 14350 | O56: 14350 | P56: 14350 | Q56: 0 | R56: 5 | S56: 3 | T56: 0 | U56: 0 | V56: 5979.17 | W56: 3587.5 | X56: 0 | Y56: 9566.67 | Z56: PRU | AA56: 0 | AB56: 5 | AC56: 3 | AD56: 0 | AE56: 543965 | AH56: PRUs | AI56: PRU Top-ups | AJ56: 11425 | AK56: PRU.PavRISK | AM56: 8 | AN56: 8
A57: 3021100 | B57: Pavilion | C57: 1017900 | D57: 2022-12-01 | E57: 2023-03-31 | F57: NC Year 3 | G57: NC Year 4 | H57: Primary | I57: Barnet | J57: PavD | K57: 1 | L57: 0 | M57: 8090 | N57: 8017 | O57: 8017 | P57: 8017 | Q57: 0 | R57: 0 | S57: 1 | T57: 3 | U57: 0 | V57: 0 | W57: 668.08 | X57: 2004.25 | Y57: 2672.33 | Z57: PRU | AA57: 0 | AB57: 0 | AC57: 1 | AD57: 3 | AE57: 543965 | AH57: PRUs | AI57: PRU Top-ups | AJ57: 11425 | AK57: PRU.PavD | AL57: PRU topup - Band PAVD | AM57: 4 | AN57: 4 | AP57: PRUTOPUP
A58: 3021100 | B58: Pavilion | C58: 1002811 | D58: 2022-06-01 | E58: 2022-08-31 | F58: NC Year 6 | G58: 0 | H58: Primary | I58: Barnet | J58: PavD | K58: 1 | L58: 0 | M58: 8090 | N58: 8017 | O58: 8017 | P58: 8017 | Q58: 0 | R58: 3 | S58: 0 | T58: 0 | U58: 0 | V58: 2004.25 | W58: 0 | X58: 0 | Y58: 2004.25 | Z58: PRU | AA58: 0 | AB58: 3 | AC58: 0 | AD58: 0 | AE58: 543965 | AH58: PRUs | AI58: PRU Top-ups | AJ58: 11425 | AK58: PRU.PavD | AL58: PRU topup - Band PAVD | AM58: 3 | AN58: 3 | AP58: PRUTOPUP
A59: 3021100 | B59: Pavilion | C59: 30200 | D59: 2022-04-01 | E59: 2022-08-31 | F59: NC Year 3 | G59: NC Year 4 | H59: Primary | I59: Barnet | J59: PavRISK | K59: 1 | L59: 0 | M59: 14000 | N59: 14350 | O59: 14350 | P59: 14350 | Q59: 0 | R59: 5 | S59: 0 | T59: 0 | U59: 0 | V59: 5979.17 | W59: 0 | X59: 0 | Y59: 5979.17 | Z59: PRU | AA59: 0 | AB59: 5 | AC59: 0 | AD59: 0 | AE59: 543965 | AH59: PRUs | AI59: PRU Top-ups | AJ59: 11425 | AK59: PRU.PavRISK | AM59: 5 | AN59: 5
A60: 3021100 | B60: Pavilion | C60: 1004339 | D60: 2022-05-04 | E60: 2022-08-31 | F60: NC Year 6 | G60: 0 | H60: Primary | I60: Barnet | J60: PavD | K60: 1 | L60: 0 | M60: 8090 | N60: 8017 | O60: 8017 | P60: 8017 | Q60: 0 | R60: 4 | S60: 0 | T60: 0 | U60: 0 | V60: 2672.33 | W60: 0 | X60: 0 | Y60: 2672.33 | Z60: PRU | AA60: 0 | AB60: 4 | AC60: 0 | AD60: 0 | AE60: 543965 | AH60: PRUs | AI60: PRU Top-ups | AJ60: 11425 | AK60: PRU.PavD | AL60: PRU topup - Band PAVD | AM60: 4 | AN60: 4 | AP60: PRUTOPUP
A61: 3021100 | B61: Pavilion | C61: 312658 | D61: 2022-05-04 | E61: 2023-03-31 | F61: 0 | G61: NC Year 8 | H61: Secondary | I61: Barnet | J61: PavD | K61: 1 | L61: 0 | M61: 8090 | N61: 8017 | O61: 8017 | P61: 8017 | Q61: 0 | R61: 4 | S61: 4 | T61: 3 | U61: 0 | V61: 2672.33 | W61: 2672.33 | X61: 2004.25 | Y61: 7348.91 | Z61: PRU | AA61: 0 | AB61: 4 | AC61: 4 | AD61: 3 | AE61: 543965 | AH61: PRUs | AI61: PRU Top-ups | AJ61: 11425 | AK61: PRU.PavD | AL61: PRU topup - Band PAVD | AM61: 11 | AN61: 11 | AP61: PRUTOPUP
A62: 3021100 | B62: Pavilion | C62: 341552 | D62: 2022-04-01 | E62: 2022-08-31 | F62: NC Year 6 | G62: 0 | H62: Primary | I62: Barnet | J62: PAVASS | K62: 1 | L62: 0 | M62: 18500 | N62: 18963 | O62: 18963 | P62: 18963 | Q62: 0 | R62: 5 | S62: 0 | T62: 0 | U62: 0 | V62: 7901.25 | W62: 0 | X62: 0 | Y62: 7901.25 | Z62: PRU | AA62: 0 | AB62: 5 | AC62: 0 | AD62: 0 | AE62: 543965 | AH62: PRUs | AI62: PRU Top-ups | AJ62: 11425 | AK62: PRU.PAVASS | AL62: PRU topup - Band PAVASS | AM62: 5 | AN62: 5 | AP62: PRUTOPUP
A63: 3021100 | B63: Pavilion | C63: 184222 | D63: 2022-04-01 | E63: 2022-08-31 | F63: NC Year 11 | G63: 0 | H63: Secondary | I63: Barnet | J63: PavD | K63: 1 | L63: 0 | M63: 8090 | N63: 8017 | O63: 8017 | P63: 8017 | Q63: 0 | R63: 5 | S63: 0 | T63: 0 | U63: 0 | V63: 3340.42 | W63: 0 | X63: 0 | Y63: 3340.42 | Z63: PRU | AA63: 0 | AB63: 5 | AC63: 0 | AD63: 0 | AE63: 543965 | AH63: PRUs | AI63: PRU Top-ups | AJ63: 11425 | AK63: PRU.PavD | AL63: PRU topup - Band PAVD | AM63: 5 | AN63: 5 | AP63: PRUTOPUP
A64: 3021100 | B64: Pavilion | C64: 1140348 | D64: 2022-04-01 | E64: 2023-03-31 | F64: NC Year 2 | G64: NC Year 3 | H64: Primary | I64: Barnet | J64: PAVASS | K64: 1 | L64: 0 | M64: 18500 | N64: 18963 | O64: 18963 | P64: 18963 | Q64: 0 | R64: 5 | S64: 4 | T64: 3 | U64: 0 | V64: 7901.25 | W64: 6321 | X64: 4740.75 | Y64: 18963 | Z64: PRU | AA64: 0 | AB64: 5 | AC64: 4 | AD64: 3 | AE64: 543965 | AH64: PRUs | AI64: PRU Top-ups | AJ64: 11425 | AK64: PRU.PAVASS | AL64: PRU topup - Band PAVASS | AM64: 12 | AN64: 12 | AP64: PRUTOPUP
A65: 3021100 | B65: Pavilion | C65: 1126133 | D65: 2022-04-01 | E65: 2022-08-31 | F65: NC Year 9 | G65: NC Year 10 | H65: Secondary | I65: Barnet | J65: PavD | K65: 1 | L65: 0 | M65: 8090 | N65: 8017 | O65: 8017 | P65: 8017 | Q65: 0 | R65: 5 | S65: 0 | T65: 0 | U65: 0 | V65: 3340.42 | W65: 0 | X65: 0 | Y65: 3340.42 | Z65: PRU | AA65: 0 | AB65: 5 | AC65: 0 | AD65: 0 | AE65: 543965 | AH65: PRUs | AI65: PRU Top-ups | AJ65: 11425 | AK65: PRU.PavD | AL65: PRU topup - Band PAVD | AM65: 5 | AN65: 5 | AP65: PRUTOPUP
A66: 3021100 | B66: Pavilion | C66: 238995 | D66: 2022-06-01 | E66: 2022-08-31 | F66: 0 | G66: NC Year 10 | H66: Secondary | I66: Barnet | J66: PavD | K66: 1 | L66: 0 | M66: 8090 | N66: 8017 | O66: 8017 | P66: 8017 | Q66: 0 | R66: 3 | S66: 0 | T66: 0 | U66: 0 | V66: 2004.25 | W66: 0 | X66: 0 | Y66: 2004.25 | Z66: PRU | AA66: 0 | AB66: 3 | AC66: 0 | AD66: 0 | AE66: 543965 | AH66: PRUs | AI66: PRU Top-ups | AJ66: 11425 | AK66: PRU.PavD | AL66: PRU topup - Band PAVD | AM66: 3 | AN66: 3 | AP66: PRUTOPUP
A67: 3021100 | B67: Pavilion | C67: Topups 47 | D67: 2022-04-01 | E67: 2023-03-31 | F67: 0 | G67: NC Year 8 | H67: Secondary | I67: Barnet | J67: PAV1 | K67: 47 | L67: 0 | M67: 2900 | N67: 2973 | O67: 2973 | P67: 2973 | Q67: 0 | R67: 5 | S67: 4 | T67: 3 | U67: 0 | V67: 58221.25 | W67: 46577 | X67: 34932.75 | Y67: 139731 | Z67: PRU | AA67: 0 | AB67: 235 | AC67: 188 | AD67: 141 | AE67: 543965 | AH67: PRUs | AI67: PRU Top-ups | AJ67: 11425 | AK67: PRU.PAV1 | AL67: PRU topup - Band PAV1 | AM67: 564 | AN67: 12 | AP67: PRUTOPUP
A68: 3021100 | B68: Pavilion | C68: Topups 80 | D68: 2022-04-01 | E68: 2023-03-31 | F68: 0 | G68: NC Year 8 | H68: Secondary | I68: Barnet | J68: PAV2 | K68: 80 | L68: 0 | M68: 8805 | N68: 9025 | O68: 9025 | P68: 9025 | Q68: 0 | R68: 5 | S68: 4 | T68: 3 | U68: 0 | V68: 300833.33 | W68: 240666.67 | X68: 180500 | Y68: 722000 | Z68: PRU | AA68: 0 | AB68: 400 | AC68: 320 | AD68: 240 | AE68: 543965 | AH68: PRUs | AI68: PRU Top-ups | AJ68: 11425 | AK68: PRU.PAV2 | AL68: PRU topup - Band PAV2 | AM68: 960 | AN68: 12 | AP68: PRUTOPUP
A69: 3021100 | B69: Pavilion | C69: 236814 | D69: 2022-10-01 | E69: 2023-03-31 | F69: NC Year 9 | G69: NC Year 10 | H69: Secondary | I69: Barnet | J69: PavB | K69: 1 | L69: 0 | M69: 2385 | N69: 2312 | O69: 2312 | P69: 2312 | Q69: 0 | R69: 0 | S69: 3 | T69: 3 | U69: 0 | V69: 0 | W69: 578 | X69: 578 | Y69: 1156 | Z69: PRU | AA69: 0 | AB69: 0 | AC69: 3 | AD69: 3 | AE69: 543965 | AH69: PRUs | AI69: PRU Top-ups | AJ69: 11425 | AK69: PRU.PavB | AL69: PRU topup - Band PAVB | AM69: 6 | AN69: 6 | AP69: PRUTOPUP
A70: 3021100 | B70: Pavilion | C70: 157944 | D70: 2022-04-01 | E70: 2022-08-31 | F70: NC Year 11 | G70: 0 | H70: Secondary | I70: Barnet | J70: PavE | K70: 1 | L70: 0 | M70: 10943 | N70: 10870 | O70: 10870 | P70: 10870 | Q70: 0 | R70: 5 | S70: 0 | T70: 0 | U70: 0 | V70: 4529.17 | W70: 0 | X70: 0 | Y70: 4529.17 | Z70: PRU | AA70: 0 | AB70: 5 | AC70: 0 | AD70: 0 | AE70: 543965 | AH70: PRUs | AI70: PRU Top-ups | AJ70: 11425 | AK70: PRU.PavE | AL70: PRU topup - Band PAVE | AM70: 5 | AN70: 5 | AP70: PRUTOPUP
A71: 3021100 | B71: Pavilion | C71: 245207 | D71: 2022-08-04 | E71: 2022-09-30 | F71: 0 | G71: NC Year 10 | H71: Secondary | I71: Barnet | J71: PavB | K71: 1 | L71: 0 | M71: 2385 | N71: 2312 | O71: 2312 | P71: 2312 | Q71: 0 | R71: 1 | S71: 1 | T71: 0 | U71: 0 | V71: 192.67 | W71: 192.67 | X71: 0 | Y71: 385.34 | Z71: PRU | AA71: 0 | AB71: 1 | AC71: 1 | AD71: 0 | AE71: 543965 | AH71: PRUs | AI71: PRU Top-ups | AJ71: 11425 | AK71: PRU.PavB | AL71: PRU topup - Band PAVB | AM71: 2 | AN71: 2 | AP71: PRUTOPUP
A72: 3021100 | B72: Pavilion | C72: 183720 | D72: 2022-04-01 | E72: 2022-08-31 | F72: NC Year 11 | G72: 0 | H72: Secondary | I72: Barnet | J72: PavD | K72: 1 | L72: 0 | M72: 8090 | N72: 8017 | O72: 8017 | P72: 8017 | Q72: 0 | R72: 5 | S72: 0 | T72: 0 | U72: 0 | V72: 3340.42 | W72: 0 | X72: 0 | Y72: 3340.42 | Z72: PRU | AA72: 0 | AB72: 5 | AC72: 0 | AD72: 0 | AE72: 543965 | AH72: PRUs | AI72: PRU Top-ups | AJ72: 11425 | AK72: PRU.PavD | AL72: PRU topup - Band PAVD | AM72: 5 | AN72: 5 | AP72: PRUTOPUP
A73: 3021100 | B73: Pavilion | C73: TPG 22/23 | D73: 2022-04-01 | E73: 2023-03-31 | F73: NC Year 7 | G73: NC Year 8 | H73: Secondary | I73: Barnet | J73: PRUAD | K73: 1 | L73: 124174 | M73: 1 | N73: 1 | O73: 1 | P73: 1 | Q73: 0 | R73: 5 | S73: 4 | T73: 3 | U73: 0 | V73: 0 | W73: 0 | X73: 0 | Y73: 124174 | Z73: PRU | AA73: 0 | AB73: 5 | AC73: 4 | AD73: 3 | AE73: 543965 | AH73: PRUs | AI73: PRU Top-ups | AJ73: 11425 | AK73: PRU.PRUAD | AL73: Exceptional funding | AM73: 12 | AN73: 12 | AP73: PRUTOPUP
A74: 3021100 | B74: Pavilion | C74: 162775 | D74: 2022-04-01 | E74: 2022-08-31 | F74: NC Year 11 | G74: 0 | H74: Secondary | I74: Barnet | J74: PavE | K74: 1 | L74: 0 | M74: 10943 | N74: 10870 | O74: 10870 | P74: 10870 | Q74: 0 | R74: 5 | S74: 0 | T74: 0 | U74: 0 | V74: 4529.17 | W74: 0 | X74: 0 | Y74: 4529.17 | Z74: PRU | AA74: 0 | AB74: 5 | AC74: 0 | AD74: 0 | AE74: 543965 | AH74: PRUs | AI74: PRU Top-ups | AJ74: 11425 | AK74: PRU.PavE | AL74: PRU topup - Band PAVE | AM74: 5 | AN74: 5 | AP74: PRUTOPUP
A75: 3021100 | B75: Pavilion | C75: 175184 | D75: 2021-10-01 | E75: 2022-08-31 | F75: NC Year 11 | G75: 0 | H75: Secondary | I75: Barnet | J75: PavC | K75: 1 | L75: 0 | M75: 5237 | N75: 5164 | O75: 5164 | P75: 5164 | Q75: 6 | R75: 5 | S75: 0 | T75: 0 | U75: 2618.5 | V75: 2151.67 | W75: 0 | X75: 0 | Y75: 4770.17 | Z75: PRU | AA75: 6 | AB75: 5 | AC75: 0 | AD75: 0 | AE75: 543965 | AH75: PRUs | AI75: PRU Top-ups | AJ75: 11425 | AK75: PRU.PavC | AL75: PRU topup - Band PAVC | AM75: 11 | AN75: 11 | AP75: PRUTOPUP
A76: 3021102 | B76: Northgate | C76: 10 Pru top-ups | D76: 2022-04-01 | E76: 2023-03-31 | F76: NC Year 7 | G76: NC Year 8 | H76: Secondary | I76: Barnet | J76: PRUAD | K76: 1 | L76: 2060 | M76: 1 | N76: 1 | O76: 1 | P76: 1 | Q76: 0 | R76: 5 | S76: 4 | T76: 3 | U76: 0 | V76: 0 | W76: 0 | X76: 0 | Y76: 2060 | Z76: PRU | AA76: 0 | AB76: 5 | AC76: 4 | AD76: 3 | AE76: 543965 | AH76: PRUs | AI76: PRU Top-ups | AJ76: 11425 | AK76: PRU.PRUAD | AL76: Exceptional funding | AM76: 12 | AN76: 12 | AP76: PRUTOPUP
A77: 3021102 | B77: Northgate | C77: 277427 | D77: 2023-01-01 | E77: 2023-03-31 | F77: 0 | G77: NC Year 9 | H77: Secondary | I77: Barnet | J77: D | K77: 1 | L77: 0 | M77: 10990 | N77: 10990 | O77: 10990 | P77: 10990 | Q77: 0 | R77: 0 | S77: 0 | T77: 3 | U77: 0 | V77: 0 | W77: 0 | X77: 2747.5 | Y77: 2747.5 | Z77: PRU | AA77: 0 | AB77: 0 | AC77: 0 | AD77: 3 | AE77: 543965 | AH77: PRUs | AI77: PRU Top-ups | AJ77: 11425 | AK77: EHCPsec.D | AL77: EHCP topup - Secondary Band D | AM77: 3 | AN77: 3 | AP77: stmttopupsec
A78: 3021102 | B78: Northgate | C78: TPG 22/23 | D78: 2022-04-01 | E78: 2023-03-31 | F78: NC Year 7 | G78: NC Year 8 | H78: Secondary | I78: Barnet | J78: PRUAD | K78: 1 | L78: 29042 | M78: 1 | N78: 1 | O78: 1 | P78: 1 | Q78: 0 | R78: 5 | S78: 4 | T78: 3 | U78: 0 | V78: 0 | W78: 0 | X78: 0 | Y78: 29042 | Z78: PRU | AA78: 0 | AB78: 5 | AC78: 4 | AD78: 3 | AE78: 543965 | AH78: PRUs | AI78: PRU Top-ups | AJ78: 11425 | AK78: PRU.PRUAD | AL78: Exceptional funding | AM78: 12 | AN78: 12 | AP78: PRUTOPUP
A79: 3022001 | B79: Etz Chaim Jewish Primary School | C79: 1136050 | D79: 2023-01-03 | E79: 2023-03-31 | F79: 0 | G79: NC Year 1 | H79: Primary | I79: Barnet | J79: C | K79: 1 | L79: 0 | M79: 8137 | N79: 8137 | O79: 8137 | P79: 8137 | Q79: 0 | R79: 0 | S79: 0 | T79: 3 | U79: 0 | V79: 0 | W79: 0 | X79: 2034.25 | Y79: 2034.25 | Z79: Primary | AA79: 0 | AB79: 0 | AC79: 0 | AD79: 3 | AE79: 516500 | AH79: EHCP | AI79: EHCP topups: Barnet academies - primary | AJ79: 11443 | AK79: EHCPpri.C | AL79: EHCP topup - Primary Band C | AM79: 3 | AN79: 3 | AP79: stmttopuppri
A80: 3022001 | B80: Etz Chaim Jewish Primary School | C80: 1001922 | D80: 2022-03-01 | E80: 2022-08-31 | F80: NC Year 6 | G80: 0 | H80: Primary | I80: Barnet | J80: D | K80: 1 | L80: 0 | M80: 10990 | N80: 10990 | O80: 10990 | P80: 10990 | Q80: 1 | R80: 5 | S80: 0 | T80: 0 | U80: 915.83 | V80: 4579.17 | W80: 0 | X80: 0 | Y80: 5495 | Z80: Primary | AA80: 1 | AB80: 5 | AC80: 0 | AD80: 0 | AE80: 516500 | AH80: EHCP | AI80: EHCP topups: Barnet academies - primary | AJ80: 11443 | AK80: EHCPpri.D | AL80: EHCP topup - Primary Band D | AM80: 6 | AN80: 6 | AP80: stmttopuppri
A81: 3022001 | B81: Etz Chaim Jewish Primary School | C81: 1003783 | D81: 2022-04-01 | E81: 2022-08-31 | F81: NC Year 6 | G81: 0 | H81: Primary | I81: Barnet | J81: D | K81: 1 | L81: 0 | M81: 10990 | N81: 10990 | O81: 10990 | P81: 10990 | Q81: 0 | R81: 5 | S81: 0 | T81: 0 | U81: 0 | V81: 4579.17 | W81: 0 | X81: 0 | Y81: 4579.17 | Z81: Primary | AA81: 0 | AB81: 5 | AC81: 0 | AD81: 0 | AE81: 516500 | AH81: EHCP | AI81: EHCP topups: Barnet academies - primary | AJ81: 11443 | AK81: EHCPpri.D | AL81: EHCP topup - Primary Band D | AM81: 5 | AN81: 5 | AP81: stmttopuppri
A82: 3022002 | B82: Barnfield School | C82: 1144929 | D82: 2022-03-01 | E82: 2023-03-31 | F82: Reception | G82: NC Year 1 | H82: Primary | I82: Barnet | J82: C | K82: 1 | L82: 0 | M82: 8137 | N82: 8137 | O82: 8137 | P82: 8137 | Q82: 1 | R82: 5 | S82: 4 | T82: 3 | U82: 678.08 | V82: 3390.42 | W82: 2712.33 | X82: 2034.25 | Y82: 8815.08 | Z82: Primary | AA82: 1 | AB82: 5 | AC82: 4 | AD82: 3 | AE82: 543965 | AH82: EHCP | AI82: EHCP topups: Barnet maintained primary | AJ82: 11431 | AK82: EHCPpri.C | AL82: EHCP topup - Primary Band C | AM82: 13 | AN82: 13 | AP82: stmttopuppri
A83: 3022002 | B83: Barnfield School | C83: 1122105 | D83: 2022-04-01 | E83: 2023-03-31 | F83: Reception | G83: NC Year 1 | H83: Primary | I83: Barnet | J83: B | K83: 1 | L83: 0 | M83: 5285 | N83: 5285 | O83: 5285 | P83: 5285 | Q83: 0 | R83: 5 | S83: 4 | T83: 3 | U83: 0 | V83: 2202.08 | W83: 1761.67 | X83: 1321.25 | Y83: 5285 | Z83: Primary | AA83: 0 | AB83: 5 | AC83: 4 | AD83: 3 | AE83: 543965 | AH83: EHCP | AI83: EHCP topups: Barnet maintained primary | AJ83: 11431 | AK83: EHCPpri.B | AL83: EHCP topup - Primary Band B | AM83: 12 | AN83: 12 | AP83: stmttopuppri
A84: 3022002 | B84: Barnfield School | C84: 1002812 | D84: 2022-04-01 | E84: 2022-08-31 | F84: NC Year 6 | G84: 0 | H84: Primary | I84: Barnet | J84: C | K84: 1 | L84: 0 | M84: 8137 | N84: 8137 | O84: 8137 | P84: 8137 | Q84: 0 | R84: 5 | S84: 0 | T84: 0 | U84: 0 | V84: 3390.42 | W84: 0 | X84: 0 | Y84: 3390.42 | Z84: Primary | AA84: 0 | AB84: 5 | AC84: 0 | AD84: 0 | AE84: 543965 | AH84: EHCP | AI84: EHCP topups: Barnet maintained primary | AJ84: 11431 | AK84: EHCPpri.C | AL84: EHCP topup - Primary Band C | AM84: 5 | AN84: 5 | AP84: stmttopuppri
A85: 3022002 | B85: Barnfield School | C85: 1158674 | D85: 2022-11-01 | E85: 2023-03-31 | F85: 0 | G85: Reception | H85: Primary | I85: Barnet | J85: D | K85: 1 | L85: 0 | M85: 10990 | N85: 10990 | O85: 10990 | P85: 10990 | Q85: 0 | R85: 0 | S85: 2 | T85: 3 | U85: 0 | V85: 0 | W85: 1831.67 | X85: 2747.5 | Y85: 4579.17 | Z85: Primary | AA85: 0 | AB85: 0 | AC85: 2 | AD85: 3 | AE85: 543965 | AH85: EHCP | AI85: EHCP topups: Barnet maintained primary | AJ85: 11431 | AK85: EHCPpri.D | AL85: EHCP topup - Primary Band D | AM85: 5 | AN85: 5 | AP85: stmttopuppri
A86: 3022002 | B86: Barnfield School | C86: 1040297 | D86: 2022-04-01 | E86: 2023-03-31 | F86: NC Year 5 | G86: NC Year 6 | H86: Primary | I86: Barnet | J86: B | K86: 1 | L86: 0 | M86: 5285 | N86: 5285 | O86: 5285 | P86: 5285 | Q86: 0 | R86: 5 | S86: 4 | T86: 3 | U86: 0 | V86: 2202.08 | W86: 1761.67 | X86: 1321.25 | Y86: 5285 | Z86: Primary | AA86: 0 | AB86: 5 | AC86: 4 | AD86: 3 | AE86: 543965 | AH86: EHCP | AI86: EHCP topups: Barnet maintained primary | AJ86: 11431 | AK86: EHCPpri.B | AL86: EHCP topup - Primary Band B | AM86: 12 | AN86: 12 | AP86: stmttopuppri
A87: 3022002 | B87: Barnfield School | C87: 1122605 | D87: 2022-09-01 | E87: 2023-03-31 | F87: 0 | G87: NC Year 3 | H87: Primary | I87: Barnet | J87: A | K87: 1 | L87: 0 | M87: 2432 | N87: 2432 | O87: 2432 | P87: 2432 | Q87: 0 | R87: 0 | S87: 4 | T87: 3 | U87: 0 | V87: 0 | W87: 810.67 | X87: 608 | Y87: 1418.67 | Z87: Primary | AA87: 0 | AB87: 0 | AC87: 4 | AD87: 3 | AE87: 543965 | AH87: EHCP | AI87: EHCP topups: Barnet maintained primary | AJ87: 11431 | AK87: EHCPpri.A | AL87: EHCP topup - Primary Band A | AM87: 7 | AN87: 7 | AP87: stmttopuppri
A88: 3022002 | B88: Barnfield School | C88: 1086643 | D88: 2022-03-01 | E88: 2023-03-31 | F88: NC Year 5 | G88: NC Year 6 | H88: Primary | I88: Barnet | J88: B | K88: 1 | L88: 0 | M88: 5285 | N88: 5285 | O88: 5285 | P88: 5285 | Q88: 1 | R88: 5 | S88: 4 | T88: 3 | U88: 440.42 | V88: 2202.08 | W88: 1761.67 | X88: 1321.25 | Y88: 5725.42 | Z88: Primary | AA88: 1 | AB88: 5 | AC88: 4 | AD88: 3 | AE88: 543965 | AH88: EHCP | AI88: EHCP topups: Barnet maintained primary | AJ88: 11431 | AK88: EHCPpri.B | AL88: EHCP topup - Primary Band B | AM88: 13 | AN88: 13 | AP88: stmttopuppri
A89: 3022002 | B89: Barnfield School | C89: 1159492 | D89: 2022-04-01 | E89: 2022-08-31 | F89: Nursery 2 | G89: 0 | H89: Nursery | I89: Barnet | J89: N | K89: 1 | L89: 0 | M89: 6185 | N89: 6299 | O89: 6299 | P89: 6299 | Q89: 0 | R89: 5 | S89: 0 | T89: 0 | U89: 0 | V89: 2624.58 | W89: 0 | X89: 0 | Y89: 2624.58 | Z89: Primary | AA89: 0 | AB89: 5 | AC89: 0 | AD89: 0 | AE89: 543965 | AH89: EHCP | AI89: EHCP - Barnet maintained nursery classes | AJ89: 11436 | AK89: EHCPpri.N | AL89: EHCP topup - Nursery | AM89: 5 | AN89: 5 | AP89: Nurserytopup
A90: 3022002 | B90: Barnfield School | C90: 1009527 | D90: 2022-04-01 | E90: 2022-08-31 | F90: Nc Year 6 | G90: 0 | H90: Primary | I90: Barnet | J90: C | K90: 1 | L90: 0 | M90: 8137 | N90: 8137 | O90: 8137 | P90: 8137 | Q90: 0 | R90: 5 | S90: 0 | T90: 0 | U90: 0 | V90: 3390.42 | W90: 0 | X90: 0 | Y90: 3390.42 | Z90: Primary | AA90: 0 | AB90: 5 | AC90: 0 | AD90: 0 | AE90: 543965 | AH90: EHCP | AI90: EHCP topups: Barnet maintained primary | AJ90: 11431 | AK90: EHCPpri.C | AL90: EHCP topup - Primary Band C | AM90: 5 | AN90: 5 | AP90: stmttopuppri
A91: 3022002 | B91: Barnfield School | C91: 1115600 | D91: 2022-04-01 | E91: 2023-03-31 | F91: NC Year 1 | G91: NC Year 2 | H91: Primary | I91: Barnet | J91: C | K91: 1 | L91: 0 | M91: 8137 | N91: 8137 | O91: 8137 | P91: 8137 | Q91: 0 | R91: 5 | S91: 4 | T91: 3 | U91: 0 | V91: 3390.42 | W91: 2712.33 | X91: 2034.25 | Y91: 8137 | Z91: Primary | AA91: 0 | AB91: 5 | AC91: 4 | AD91: 3 | AE91: 543965 | AH91: EHCP | AI91: EHCP topups: Barnet maintained primary | AJ91: 11431 | AK91: EHCPpri.C | AL91: EHCP topup - Primary Band C | AM91: 12 | AN91: 12 | AP91: stmttopuppri
A92: 3022002 | B92: Barnfield School | C92: 1152453 | D92: 2022-04-01 | E92: 2023-03-31 | F92: NC Year 5 | G92: NC Year 6 | H92: Primary | I92: Barnet | J92: B | K92: 1 | L92: 0 | M92: 5285 | N92: 5285 | O92: 5285 | P92: 5285 | Q92: 0 | R92: 5 | S92: 4 | T92: 3 | U92: 0 | V92: 2202.08 | W92: 1761.67 | X92: 1321.25 | Y92: 5285 | Z92: Primary | AA92: 0 | AB92: 5 | AC92: 4 | AD92: 3 | AE92: 543965 | AH92: EHCP | AI92: EHCP topups: Barnet maintained primary | AJ92: 11431 | AK92: EHCPpri.B | AL92: EHCP topup - Primary Band B | AM92: 12 | AN92: 12 | AP92: stmttopuppri
A93: 3022002 | B93: Barnfield School | C93: 1145304 | D93: 2022-09-01 | E93: 2022-12-31 | F93: 0 | G93: Nursery 2 | H93: Nursery | I93: Barnet | J93: EXY | K93: 1 | L93: 1547 | M93: 1 | N93: 1 | O93: 1 | P93: 1 | Q93: 0 | R93: 0 | S93: 4 | T93: 0 | U93: 0 | V93: 0 | W93: 0 | X93: 0 | Y93: 1547 | Z93: Primary | AA93: 0 | AB93: 0 | AC93: 4 | AD93: 0 | AE93: 543965 | AH93: SEN Inclusion | AI93: SEN Inclusion - Under 5s | AJ93: 10265 | AK93: EHCP.EXY | AL93: EHCP topup - Band EXY | AM93: 4 | AN93: 4 | AP93: nurseryex
A94: 3022002 | B94: Barnfield School | C94: 1145304 | D94: 2023-01-03 | E94: 2023-03-31 | F94: 0 | G94: Nursery 2 | H94: Nursery | I94: Barnet | J94: EXY | K94: 1 | L94: 1262.86 | M94: 1 | N94: 1 | O94: 1 | P94: 1 | Q94: 0 | R94: 0 | S94: 0 | T94: 3 | U94: 0 | V94: 0 | W94: 0 | X94: 0 | Y94: 1262.86 | Z94: Primary | AA94: 0 | AB94: 0 | AC94: 0 | AD94: 3 | AE94: 543965 | AH94: SEN Inclusion | AI94: SEN Inclusion - Under 5s | AJ94: 10265 | AK94: EHCP.EXY | AL94: EHCP topup - Band EXY | AM94: 3 | AN94: 3 | AP94: nurseryex
A95: 3022002 | B95: Barnfield School | C95: 1014058 | D95: 2022-07-01 | E95: 2023-03-31 | F95: NC Year 4 | G95: NC Year 5 | H95: Primary | I95: Barnet | J95: A | K95: 1 | L95: 0 | M95: 2432 | N95: 2432 | O95: 2432 | P95: 2432 | Q95: 0 | R95: 2 | S95: 4 | T95: 3 | U95: 0 | V95: 405.33 | W95: 810.67 | X95: 608 | Y95: 1824 | Z95: Primary | AA95: 0 | AB95: 2 | AC95: 4 | AD95: 3 | AE95: 543965 | AH95: EHCP | AI95: EHCP topups: Barnet maintained primary | AJ95: 11431 | AK95: EHCPpri.A | AL95: EHCP topup - Primary Band A | AM95: 9 | AN95: 9 | AP95: stmttopuppri
A96: 3022002 | B96: Barnfield School | C96: 1142557 | D96: 2022-04-01 | E96: 2023-03-31 | F96: Reception | G96: NC Year 1 | H96: Primary | I96: Barnet | J96: C | K96: 1 | L96: 0 | M96: 8137 | N96: 8137 | O96: 8137 | P96: 8137 | Q96: 0 | R96: 5 | S96: 4 | T96: 3 | U96: 0 | V96: 3390.42 | W96: 2712.33 | X96: 2034.25 | Y96: 8137 | Z96: Primary | AA96: 0 | AB96: 5 | AC96: 4 | AD96: 3 | AE96: 543965 | AH96: EHCP | AI96: EHCP topups: Barnet maintained primary | AJ96: 11431 | AK96: EHCPpri.C | AL96: EHCP topup - Primary Band C | AM96: 12 | AN96: 12 | AP96: stmttopuppri
A97: 3022002 | B97: Barnfield School | C97: 1116566 | D97: 2022-04-01 | E97: 2022-08-31 | F97: NC Year 1 | G97: 0 | H97: Primary | I97: Barnet | J97: D | K97: 1 | L97: 0 | M97: 10990 | N97: 10990 | O97: 10990 | P97: 10990 | Q97: 0 | R97: 5 | S97: 0 | T97: 0 | U97: 0 | V97: 4579.17 | W97: 0 | X97: 0 | Y97: 4579.17 | Z97: Primary | AA97: 0 | AB97: 5 | AC97: 0 | AD97: 0 | AE97: 543965 | AH97: EHCP | AI97: EHCP topups: Barnet maintained primary | AJ97: 11431 | AK97: EHCPpri.D | AL97: EHCP topup - Primary Band D | AM97: 5 | AN97: 5 | AP97: stmttopuppri
A98: 3022002 | B98: Barnfield School | C98: 1067795 | D98: 2022-04-01 | E98: 2022-11-30 | F98: NC Year 3 | G98: NC Year 4 | H98: Primary | I98: Barnet | J98: D | K98: 1 | L98: 0 | M98: 10990 | N98: 10990 | O98: 10990 | P98: 10990 | Q98: 0 | R98: 5 | S98: 3 | T98: 0 | U98: 0 | V98: 4579.17 | W98: 2747.5 | X98: 0 | Y98: 7326.67 | Z98: Primary | AA98: 0 | AB98: 5 | AC98: 3 | AD98: 0 | AE98: 543965 | AH98: EHCP | AI98: EHCP topups: Barnet maintained primary | AJ98: 11431 | AK98: EHCPpri.D | AL98: EHCP topup - Primary Band D | AM98: 8 | AN98: 8 | AP98: stmttopuppri
A99: 3022002 | B99: Barnfield School | C99: 1074093 | D99: 2022-04-01 | E99: 2023-03-31 | F99: NC Year 2 | G99: NC Year 3 | H99: Primary | I99: Barnet | J99: C | K99: 1 | L99: 0 | M99: 8137 | N99: 8137 | O99: 8137 | P99: 8137 | Q99: 0 | R99: 5 | S99: 4 | T99: 3 | U99: 0 | V99: 3390.42 | W99: 2712.33 | X99: 2034.25 | Y99: 8137 | Z99: Primary | AA99: 0 | AB99: 5 | AC99: 4 | AD99: 3 | AE99: 543965 | AH99: EHCP | AI99: EHCP topups: Barnet maintained primary | AJ99: 11431 | AK99: EHCPpri.C | AL99: EHCP topup - Primary Band C | AM99: 12 | AN99: 12 | AP99: stmttopuppri
A100: 3022002 | B100: Barnfield School | C100: 1130491 | D100: 2022-04-01 | E100: 2023-03-31 | F100: NC Year 5 | G100: NC Year 6 | H100: Primary | I100: Barnet | J100: C | K100: 1 | L100: 0 | M100: 8137 | N100: 8137 | O100: 8137 | P100: 8137 | Q100: 0 | R100: 5 | S100: 4 | T100: 3 | U100: 0 | V100: 3390.42 | W100: 2712.33 | X100: 2034.25 | Y100: 8137 | Z100: Primary | AA100: 0 | AB100: 5 | AC100: 4 | AD100: 3 | AE100: 543965 | AH100: EHCP | AI100: EHCP topups: Barnet maintained primary | AJ100: 11431 | AK100: EHCPpri.C | AL100: EHCP topup - Primary Band C | AM100: 12 | AN100: 12 | AP100: stmttopuppri
A101: 3022002 | B101: Barnfield School | C101: 1135558 | D101: 2022-04-01 | E101: 2022-07-31 | F101: Nursery 2 | G101: 0 | H101: Nursery | I101: Barnet | J101: EXY | K101: 1 | L101: 1710.64 | M101: 1 | N101: 1 | O101: 1 | P101: 1 | Q101: 0 | R101: 4 | S101: 0 | T101: 0 | U101: 0 | V101: 0 | W101: 0 | X101: 0 | Y101: 1710.64 | Z101: Primary | AA101: 0 | AB101: 4 | AC101: 0 | AD101: 0 | AE101: 543965 | AH101: SEN Inclusion | AI101: SEN Inclusion - Under 5s | AJ101: 10265 | AK101: EHCP.EXY | AL101: EHCP topup - Band EXY | AM101: 4 | AN101: 4 | AP101: nurseryex
A102: 3022002 | B102: Barnfield School | C102: 1135558 | D102: 2022-09-01 | E102: 2023-03-31 | F102: 0 | G102: Reception | H102: Primary | I102: Barnet | J102: B | K102: 1 | L102: 0 | M102: 5285 | N102: 5285 | O102: 5285 | P102: 5285 | Q102: 0 | R102: 0 | S102: 4 | T102: 3 | U102: 0 | V102: 0 | W102: 1761.67 | X102: 1321.25 | Y102: 3082.92 | Z102: Primary | AA102: 0 | AB102: 0 | AC102: 4 | AD102: 3 | AE102: 543965 | AH102: EHCP | AI102: EHCP topups: Barnet maintained primary | AJ102: 11431 | AK102: EHCPpri.B | AL102: EHCP topup - Primary Band B | AM102: 7 | AN102: 7 | AP102: stmttopuppri
A103: 3022002 | B103: Barnfield School | C103: 1144921 | D103: 2022-04-01 | E103: 2023-03-31 | F103: Reception | G103: NC Year 1 | H103: Primary | I103: Barnet | J103: B | K103: 1 | L103: 0 | M103: 5285 | N103: 5285 | O103: 5285 | P103: 5285 | Q103: 0 | R103: 5 | S103: 4 | T103: 3 | U103: 0 | V103: 2202.08 | W103: 1761.67 | X103: 1321.25 | Y103: 5285 | Z103: Primary | AA103: 0 | AB103: 5 | AC103: 4 | AD103: 3 | AE103: 543965 | AH103: EHCP | AI103: EHCP topups: Barnet maintained primary | AJ103: 11431 | AK103: EHCPpri.B | AL103: EHCP topup - Primary Band B | AM103: 12 | AN103: 12 | AP103: stmttopuppri
A104: 3022002 | B104: Barnfield School | C104: 1137045 | D104: 2022-12-01 | E104: 2023-03-31 | F104: 0 | G104: Reception | H104: Primary | I104: Barnet | J104: C | K104: 1 | L104: 0 | M104: 8137 | N104: 8137 | O104: 8137 | P104: 8137 | Q104: 0 | R104: 0 | S104: 1 | T104: 3 | U104: 0 | V104: 0 | W104: 678.08 | X104: 2034.25 | Y104: 2712.33 | Z104: Primary | AA104: 0 | AB104: 0 | AC104: 1 | AD104: 3 | AE104: 543965 | AH104: EHCP | AI104: EHCP topups: Barnet maintained primary | AJ104: 11431 | AK104: EHCPpri.C | AL104: EHCP topup - Primary Band C | AM104: 4 | AN104: 4 | AP104: stmttopuppri
A105: 3022003 | B105: Bell Lane Primary School | C105: 1154769 | D105: 2022-12-01 | E105: 2023-03-31 | F105: 0 | G105: NC Year 2 | H105: Primary | I105: Barnet | J105: C | K105: 1 | L105: 0 | M105: 8137 | N105: 8137 | O105: 8137 | P105: 8137 | Q105: 0 | R105: 0 | S105: 1 | T105: 3 | U105: 0 | V105: 0 | W105: 678.08 | X105: 2034.25 | Y105: 2712.33 | Z105: Primary | AA105: 0 | AB105: 0 | AC105: 1 | AD105: 3 | AE105: 543965 | AH105: EHCP | AI105: EHCP topups: Barnet maintained primary | AJ105: 11431 | AK105: EHCPpri.C | AL105: EHCP topup - Primary Band C | AM105: 4 | AN105: 4 | AP105: stmttopuppri
A106: 3022003 | B106: Bell Lane Primary School | C106: 1123196 | D106: 2022-04-01 | E106: 2023-03-31 | F106: NC Year 2 | G106: NC Year 3 | H106: Primary | I106: Barnet | J106: C | K106: 1 | L106: 0 | M106: 8137 | N106: 8137 | O106: 8137 | P106: 8137 | Q106: 0 | R106: 5 | S106: 4 | T106: 3 | U106: 0 | V106: 3390.42 | W106: 2712.33 | X106: 2034.25 | Y106: 8137 | Z106: Primary | AA106: 0 | AB106: 5 | AC106: 4 | AD106: 3 | AE106: 543965 | AH106: EHCP | AI106: EHCP topups: Barnet maintained primary | AJ106: 11431 | AK106: EHCPpri.C | AL106: EHCP topup - Primary Band C | AM106: 12 | AN106: 12 | AP106: stmttopuppri
A107: 3022003 | B107: Bell Lane Primary School | C107: 1155964 | D107: 2022-04-01 | E107: 2023-01-31 | F107: Reception | G107: NC Year 1 | H107: Primary | I107: Barnet | J107: D | K107: 1 | L107: 0 | M107: 10990 | N107: 10990 | O107: 10990 | P107: 10990 | Q107: 0 | R107: 5 | S107: 4 | T107: 1 | U107: 0 | V107: 4579.17 | W107: 3663.33 | X107: 915.83 | Y107: 9158.33 | Z107: Primary | AA107: 0 | AB107: 5 | AC107: 4 | AD107: 1 | AE107: 543965 | AH107: EHCP | AI107: EHCP topups: Barnet maintained primary | AJ107: 11431 | AK107: EHCPpri.D | AL107: EHCP topup - Primary Band D | AM107: 10 | AN107: 10 | AP107: stmttopuppri
A108: 3022003 | B108: Bell Lane Primary School | C108: 1113071 | D108: 2022-10-04 | E108: 2023-03-31 | F108: 0 | G108: NC Year 4 | H108: Primary | I108: Barnet | J108: C | K108: 1 | L108: 0 | M108: 8137 | N108: 8137 | O108: 8137 | P108: 8137 | Q108: 0 | R108: 0 | S108: 3 | T108: 3 | U108: 0 | V108: 0 | W108: 2034.25 | X108: 2034.25 | Y108: 4068.5 | Z108: Primary | AA108: 0 | AB108: 0 | AC108: 3 | AD108: 3 | AE108: 543965 | AH108: EHCP | AI108: EHCP topups: Barnet maintained primary | AJ108: 11431 | AK108: EHCPpri.C | AL108: EHCP topup - Primary Band C | AM108: 6 | AN108: 6 | AP108: stmttopuppri
A109: 3022003 | B109: Bell Lane Primary School | C109: 1125785 | D109: 2022-12-01 | E109: 2023-03-31 | F109: 0 | G109: NC Year 1 | H109: Primary | I109: Barnet | J109: C | K109: 1 | L109: 0 | M109: 8137 | N109: 8137 | O109: 8137 | P109: 8137 | Q109: 0 | R109: 0 | S109: 1 | T109: 3 | U109: 0 | V109: 0 | W109: 678.08 | X109: 2034.25 | Y109: 2712.33 | Z109: Primary | AA109: 0 | AB109: 0 | AC109: 1 | AD109: 3 | AE109: 543965 | AH109: EHCP | AI109: EHCP topups: Barnet maintained primary | AJ109: 11431 | AK109: EHCPpri.C | AL109: EHCP topup - Primary Band C | AM109: 4 | AN109: 4 | AP109: stmttopuppri
A110: 3022003 | B110: Bell Lane Primary School | C110: 1163863 | D110: 2022-01-02 | E110: 2022-03-31 | F110: NC Year 3 | G110: NC Year 4 | H110: Primary | I110: Barnet | J110: B | K110: 1 | L110: 0 | M110: 5285 | N110: 5285 | O110: 5285 | P110: 5285 | Q110: 3 | R110: 0 | S110: 0 | T110: 0 | U110: 1321.25 | V110: 0 | W110: 0 | X110: 0 | Y110: 1321.25 | Z110: Primary | AA110: 3 | AB110: 0 | AC110: 0 | AD110: 0 | AE110: 543965 | AH110: EHCP | AI110: EHCP topups: Barnet maintained primary | AJ110: 11431 | AK110: EHCPpri.B | AL110: EHCP topup - Primary Band B | AM110: 3 | AN110: 3 | AP110: stmttopuppri
A111: 3022003 | B111: Bell Lane Primary School | C111: 1163863 | D111: 2022-10-01 | E111: 2022-10-31 | F111: NC Year 3 | G111: NC Year 4 | H111: Primary | I111: Barnet | J111: C | K111: 1 | L111: 0 | M111: 8137 | N111: 8137 | O111: 8137 | P111: 8137 | Q111: 0 | R111: 0 | S111: 1 | T111: 0 | U111: 0 | V111: 0 | W111: 678.08 | X111: 0 | Y111: 678.08 | Z111: Primary | AA111: 0 | AB111: 0 | AC111: 1 | AD111: 0 | AE111: 543965 | AH111: EHCP | AI111: EHCP topups: Barnet maintained primary | AJ111: 11431 | AK111: EHCPpri.C | AL111: EHCP topup - Primary Band C | AM111: 1 | AN111: 1 | AP111: stmttopuppri
A112: 3022003 | B112: Bell Lane Primary School | C112: 1163863 | D112: 2022-11-01 | E112: 2023-03-31 | F112: NC Year 3 | G112: NC Year 4 | H112: Primary | I112: Barnet | J112: D | K112: 1 | L112: 0 | M112: 10990 | N112: 10990 | O112: 10990 | P112: 10990 | Q112: 0 | R112: 0 | S112: 2 | T112: 3 | U112: 0 | V112: 0 | W112: 1831.67 | X112: 2747.5 | Y112: 4579.17 | Z112: Primary | AA112: 0 | AB112: 0 | AC112: 2 | AD112: 3 | AE112: 543965 | AH112: EHCP | AI112: EHCP topups: Barnet maintained primary | AJ112: 11431 | AK112: EHCPpri.D | AL112: EHCP topup - Primary Band D | AM112: 5 | AN112: 5 | AP112: stmttopuppri
A113: 3022003 | B113: Bell Lane Primary School | C113: 1126237 | D113: 2022-04-01 | E113: 2022-05-31 | F113: NC Year 2 | G113: NC Year 3 | H113: Primary | I113: Barnet | J113: C | K113: 1 | L113: 0 | M113: 8137 | N113: 8137 | O113: 8137 | P113: 8137 | Q113: 0 | R113: 2 | S113: 0 | T113: 0 | U113: 0 | V113: 1356.17 | W113: 0 | X113: 0 | Y113: 1356.17 | Z113: Primary | AA113: 0 | AB113: 2 | AC113: 0 | AD113: 0 | AE113: 543965 | AH113: EHCP | AI113: EHCP topups: Barnet maintained primary | AJ113: 11431 | AK113: EHCPpri.C | AL113: EHCP topup - Primary Band C | AM113: 2 | AN113: 2 | AP113: stmttopuppri
A114: 3022003 | B114: Bell Lane Primary School | C114: 1126237 | D114: 2022-06-01 | E114: 2023-03-31 | F114: NC Year 2 | G114: NC Year 3 | H114: Primary | I114: Barnet | J114: D | K114: 1 | L114: 0 | M114: 10990 | N114: 10990 | O114: 10990 | P114: 10990 | Q114: 0 | R114: 3 | S114: 4 | T114: 3 | U114: 0 | V114: 2747.5 | W114: 3663.33 | X114: 2747.5 | Y114: 9158.33 | Z114: Primary | AA114: 0 | AB114: 3 | AC114: 4 | AD114: 3 | AE114: 543965 | AH114: EHCP | AI114: EHCP topups: Barnet maintained primary | AJ114: 11431 | AK114: EHCPpri.D | AL114: EHCP topup - Primary Band D | AM114: 10 | AN114: 10 | AP114: stmttopuppri
A115: 3022003 | B115: Bell Lane Primary School | C115: 1044920 | D115: 2022-04-01 | E115: 2023-03-31 | F115: NC Year 3 | G115: NC Year 4 | H115: Primary | I115: Barnet | J115: C | K115: 1 | L115: 0 | M115: 8137 | N115: 8137 | O115: 8137 | P115: 8137 | Q115: 0 | R115: 5 | S115: 4 | T115: 3 | U115: 0 | V115: 3390.42 | W115: 2712.33 | X115: 2034.25 | Y115: 8137 | Z115: Primary | AA115: 0 | AB115: 5 | AC115: 4 | AD115: 3 | AE115: 543965 | AH115: EHCP | AI115: EHCP topups: Barnet maintained primary | AJ115: 11431 | AK115: EHCPpri.C | AL115: EHCP topup - Primary Band C | AM115: 12 | AN115: 12 | AP115: stmttopuppri
A116: 3022003 | B116: Bell Lane Primary School | C116: 1135818 | D116: 2022-08-01 | E116: 2022-08-31 | F116: Nursery 2 | G116: 0 | H116: Nursery | I116: Barnet | J116: N | K116: 1 | L116: 0 | M116: 6185 | N116: 6299 | O116: 6299 | P116: 6299 | Q116: 0 | R116: 1 | S116: 0 | T116: 0 | U116: 0 | V116: 524.92 | W116: 0 | X116: 0 | Y116: 524.92 | Z116: Primary | AA116: 0 | AB116: 1 | AC116: 0 | AD116: 0 | AE116: 543965 | AH116: EHCP | AI116: EHCP - Barnet maintained nursery classes | AJ116: 11436 | AK116: EHCPpri.N | AL116: EHCP topup - Nursery | AM116: 1 | AN116: 1 | AP116: Nurserytopup
A117: 3022003 | B117: Bell Lane Primary School | C117: 1135818 | D117: 2022-09-01 | E117: 2022-10-31 | F117: 0 | G117: Reception | H117: Primary | I117: Barnet | J117: C | K117: 1 | L117: 0 | M117: 8137 | N117: 8137 | O117: 8137 | P117: 8137 | Q117: 0 | R117: 0 | S117: 2 | T117: 0 | U117: 0 | V117: 0 | W117: 1356.17 | X117: 0 | Y117: 1356.17 | Z117: Primary | AA117: 0 | AB117: 0 | AC117: 2 | AD117: 0 | AE117: 543965 | AH117: EHCP | AI117: EHCP topups: Barnet maintained primary | AJ117: 11431 | AK117: EHCPpri.C | AL117: EHCP topup - Primary Band C | AM117: 2 | AN117: 2 | AP117: stmttopuppri
A118: 3022003 | B118: Bell Lane Primary School | C118: 1173736 | D118: 2022-12-01 | E118: 2023-03-31 | F118: 0 | G118: Nursery 2 | H118: Nursery | I118: Barnet | J118: EXY | K118: 1 | L118: 1610.14 | M118: 1 | N118: 1 | O118: 1 | P118: 1 | Q118: 0 | R118: 0 | S118: 1 | T118: 3 | U118: 0 | V118: 0 | W118: 0 | X118: 0 | Y118: 1610.14 | Z118: Primary | AA118: 0 | AB118: 0 | AC118: 1 | AD118: 3 | AE118: 543965 | AH118: SEN Inclusion | AI118: SEN Inclusion - Under 5s | AJ118: 10265 | AK118: EHCP.EXY | AL118: EHCP topup - Band EXY | AM118: 4 | AN118: 4 | AP118: nurseryex
A119: 3022003 | B119: Bell Lane Primary School | C119: 1005428 | D119: 2022-04-01 | E119: 2022-08-31 | F119: NC Year 6 | G119: 0 | H119: Primary | I119: Barnet | J119: B | K119: 1 | L119: 0 | M119: 5285 | N119: 5285 | O119: 5285 | P119: 5285 | Q119: 0 | R119: 5 | S119: 0 | T119: 0 | U119: 0 | V119: 2202.08 | W119: 0 | X119: 0 | Y119: 2202.08 | Z119: Primary | AA119: 0 | AB119: 5 | AC119: 0 | AD119: 0 | AE119: 543965 | AH119: EHCP | AI119: EHCP topups: Barnet maintained primary | AJ119: 11431 | AK119: EHCPpri.B | AL119: EHCP topup - Primary Band B | AM119: 5 | AN119: 5 | AP119: stmttopuppri
A120: 3022003 | B120: Bell Lane Primary School | C120: 1086945 | D120: 2022-04-01 | E120: 2022-08-31 | F120: NC Year 2 | G120: NC Year 3 | H120: Primary | I120: Barnet | J120: C | K120: 1 | L120: 0 | M120: 8137 | N120: 8137 | O120: 8137 | P120: 8137 | Q120: 0 | R120: 5 | S120: 0 | T120: 0 | U120: 0 | V120: 3390.42 | W120: 0 | X120: 0 | Y120: 3390.42 | Z120: Primary | AA120: 0 | AB120: 5 | AC120: 0 | AD120: 0 | AE120: 543965 | AH120: EHCP | AI120: EHCP topups: Barnet maintained primary | AJ120: 11431 | AK120: EHCPpri.C | AL120: EHCP topup - Primary Band C | AM120: 5 | AN120: 5 | AP120: stmttopuppri
A121: 3022003 | B121: Bell Lane Primary School | C121: 1076700 | D121: 2022-04-01 | E121: 2023-03-31 | F121: NC Year 4 | G121: NC Year 5 | H121: Primary | I121: Barnet | J121: C | K121: 1 | L121: 0 | M121: 8137 | N121: 8137 | O121: 8137 | P121: 8137 | Q121: 0 | R121: 5 | S121: 4 | T121: 3 | U121: 0 | V121: 3390.42 | W121: 2712.33 | X121: 2034.25 | Y121: 8137 | Z121: Primary | AA121: 0 | AB121: 5 | AC121: 4 | AD121: 3 | AE121: 543965 | AH121: EHCP | AI121: EHCP topups: Barnet maintained primary | AJ121: 11431 | AK121: EHCPpri.C | AL121: EHCP topup - Primary Band C | AM121: 12 | AN121: 12 | AP121: stmttopuppri
A122: 3022003 | B122: Bell Lane Primary School | C122: 1104637 | D122: 2022-04-01 | E122: 2023-03-31 | F122: NC Year 3 | G122: NC Year 4 | H122: Primary | I122: Barnet | J122: D | K122: 1 | L122: 0 | M122: 10990 | N122: 10990 | O122: 10990 | P122: 10990 | Q122: 0 | R122: 5 | S122: 4 | T122: 3 | U122: 0 | V122: 4579.17 | W122: 3663.33 | X122: 2747.5 | Y122: 10990 | Z122: Primary | AA122: 0 | AB122: 5 | AC122: 4 | AD122: 3 | AE122: 543965 | AH122: EHCP | AI122: EHCP topups: Barnet maintained primary | AJ122: 11431 | AK122: EHCPpri.D | AL122: EHCP topup - Primary Band D | AM122: 12 | AN122: 12 | AP122: stmttopuppri
A123: 3022003 | B123: Bell Lane Primary School | C123: 1137645 | D123: 2022-04-01 | E123: 2023-03-31 | F123: NC Year 1 | G123: NC Year 2 | H123: Primary | I123: Barnet | J123: D | K123: 1 | L123: 0 | M123: 10990 | N123: 10990 | O123: 10990 | P123: 10990 | Q123: 0 | R123: 5 | S123: 4 | T123: 3 | U123: 0 | V123: 4579.17 | W123: 3663.33 | X123: 2747.5 | Y123: 10990 | Z123: Primary | AA123: 0 | AB123: 5 | AC123: 4 | AD123: 3 | AE123: 543965 | AH123: EHCP | AI123: EHCP topups: Barnet maintained primary | AJ123: 11431 | AK123: EHCPpri.D | AL123: EHCP topup - Primary Band D | AM123: 12 | AN123: 12 | AP123: stmttopuppri
A124: 3022003 | B124: Bell Lane Primary School | C124: 1050663 | D124: 2022-04-01 | E124: 2023-03-31 | F124: NC Year 3 | G124: NC Year 4 | H124: Primary | I124: Barnet | J124: D | K124: 1 | L124: 0 | M124: 10990 | N124: 10990 | O124: 10990 | P124: 10990 | Q124: 0 | R124: 5 | S124: 4 | T124: 3 | U124: 0 | V124: 4579.17 | W124: 3663.33 | X124: 2747.5 | Y124: 10990 | Z124: Primary | AA124: 0 | AB124: 5 | AC124: 4 | AD124: 3 | AE124: 543965 | AH124: EHCP | AI124: EHCP topups: Barnet maintained primary | AJ124: 11431 | AK124: EHCPpri.D | AL124: EHCP topup - Primary Band D | AM124: 12 | AN124: 12 | AP124: stmttopuppri
A125: 3022003 | B125: Bell Lane Primary School | C125: 1038606 | D125: 2022-04-01 | E125: 2023-03-31 | F125: NC Year 5 | G125: NC Year 6 | H125: Primary | I125: Barnet | J125: C | K125: 1 | L125: 0 | M125: 8137 | N125: 8137 | O125: 8137 | P125: 8137 | Q125: 0 | R125: 5 | S125: 4 | T125: 3 | U125: 0 | V125: 3390.42 | W125: 2712.33 | X125: 2034.25 | Y125: 8137 | Z125: Primary | AA125: 0 | AB125: 5 | AC125: 4 | AD125: 3 | AE125: 543965 | AH125: EHCP | AI125: EHCP topups: Barnet maintained primary | AJ125: 11431 | AK125: EHCPpri.C | AL125: EHCP topup - Primary Band C | AM125: 12 | AN125: 12 | AP125: stmttopuppri
A126: 3022003 | B126: Bell Lane Primary School | C126: 1087847 | D126: 2022-04-01 | E126: 2023-03-31 | F126: NC Year 2 | G126: NC Year 3 | H126: Primary | I126: Barnet | J126: D | K126: 1 | L126: 0 | M126: 10990 | N126: 10990 | O126: 10990 | P126: 10990 | Q126: 0 | R126: 5 | S126: 4 | T126: 3 | U126: 0 | V126: 4579.17 | W126: 3663.33 | X126: 2747.5 | Y126: 10990 | Z126: Primary | AA126: 0 | AB126: 5 | AC126: 4 | AD126: 3 | AE126: 543965 | AH126: EHCP | AI126: EHCP topups: Barnet maintained primary | AJ126: 11431 | AK126: EHCPpri.D | AL126: EHCP topup - Primary Band D | AM126: 12 | AN126: 12 | AP126: stmttopuppri
A127: 3022003 | B127: Bell Lane Primary School | C127: 1040540 | D127: 2022-12-01 | E127: 2023-03-31 | F127: 0 | G127: NC Year 6 | H127: Primary | I127: Barnet | J127: C | K127: 1 | L127: 0 | M127: 8137 | N127: 8137 | O127: 8137 | P127: 8137 | Q127: 0 | R127: 0 | S127: 1 | T127: 3 | U127: 0 | V127: 0 | W127: 678.08 | X127: 2034.25 | Y127: 2712.33 | Z127: Primary | AA127: 0 | AB127: 0 | AC127: 1 | AD127: 3 | AE127: 543965 | AH127: EHCP | AI127: EHCP topups: Barnet maintained primary | AJ127: 11431 | AK127: EHCPpri.C | AL127: EHCP topup - Primary Band C | AM127: 4 | AN127: 4 | AP127: stmttopuppri
A128: 3022003 | B128: Bell Lane Primary School | C128: 1122252 | D128: 2022-04-01 | E128: 2023-03-31 | F128: NC Year 2 | G128: NC Year 3 | H128: Primary | I128: Barnet | J128: D | K128: 1 | L128: 0 | M128: 10990 | N128: 10990 | O128: 10990 | P128: 10990 | Q128: 0 | R128: 5 | S128: 4 | T128: 3 | U128: 0 | V128: 4579.17 | W128: 3663.33 | X128: 2747.5 | Y128: 10990 | Z128: Primary | AA128: 0 | AB128: 5 | AC128: 4 | AD128: 3 | AE128: 543965 | AH128: EHCP | AI128: EHCP topups: Barnet maintained primary | AJ128: 11431 | AK128: EHCPpri.D | AL128: EHCP topup - Primary Band D | AM128: 12 | AN128: 12 | AP128: stmttopuppri
A129: 3022003 | B129: Bell Lane Primary School | C129: 1122252 | D129: 2022-04-01 | E129: 2023-03-31 | F129: NC Year 2 | G129: NC Year 3 | H129: Primary | I129: Barnet | J129: EHCPAD | K129: 1 | L129: 1750 | M129: 1 | N129: 1 | O129: 1 | P129: 1 | Q129: 0 | R129: 5 | S129: 4 | T129: 3 | U129: 0 | V129: 0 | W129: 0 | X129: 0 | Y129: 1750 | Z129: Primary | AA129: 0 | AB129: 5 | AC129: 4 | AD129: 3 | AE129: 543965 | AH129: EHCP | AI129: EHCP topups: Barnet maintained primary | AJ129: 11431 | AK129: EHCP.EHCPAD | AL129: EHCP - Additional | AM129: 12 | AN129: 12 | AP129: stmttopuppri
A130: 3022003 | B130: Bell Lane Primary School | C130: 1124357 | D130: 2022-04-01 | E130: 2023-03-31 | F130: Reception | G130: NC Year 1 | H130: Primary | I130: Barnet | J130: C | K130: 1 | L130: 0 | M130: 8137 | N130: 8137 | O130: 8137 | P130: 8137 | Q130: 0 | R130: 5 | S130: 4 | T130: 3 | U130: 0 | V130: 3390.42 | W130: 2712.33 | X130: 2034.25 | Y130: 8137 | Z130: Primary | AA130: 0 | AB130: 5 | AC130: 4 | AD130: 3 | AE130: 543965 | AH130: EHCP | AI130: EHCP topups: Barnet maintained primary | AJ130: 11431 | AK130: EHCPpri.C | AL130: EHCP topup - Primary Band C | AM130: 12 | AN130: 12 | AP130: stmttopuppri
A131: 3022004 | B131: Rimon Jewish Primary School | C131: 1157284 | D131: 2022-04-01 | E131: 2022-07-31 | F131: NC Year 4 | G131: NC Year 5 | H131: Primary | I131: Barnet | J131: E | K131: 1 | L131: 0 | M131: 13843 | N131: 13843 | O131: 13843 | P131: 13843 | Q131: 0 | R131: 4 | S131: 0 | T131: 0 | U131: 0 | V131: 4614.33 | W131: 0 | X131: 0 | Y131: 4614.33 | Z131: Primary | AA131: 0 | AB131: 4 | AC131: 0 | AD131: 0 | AE131: 516500 | AH131: EHCP | AI131: EHCP topups: Barnet academies - primary | AJ131: 11443 | AK131: EHCPpri.E | AL131: EHCP topup - Primary Band E | AM131: 4 | AN131: 4 | AP131: stmttopuppri
A132: 3022004 | B132: Rimon Jewish Primary School | C132: 1157284 | D132: 2022-08-01 | E132: 2023-03-31 | F132: NC Year 4 | G132: NC Year 5 | H132: Primary | I132: Barnet | J132: D | K132: 1 | L132: 0 | M132: 10990 | N132: 10990 | O132: 10990 | P132: 10990 | Q132: 0 | R132: 1 | S132: 4 | T132: 3 | U132: 0 | V132: 915.83 | W132: 3663.33 | X132: 2747.5 | Y132: 7326.66 | Z132: Primary | AA132: 0 | AB132: 1 | AC132: 4 | AD132: 3 | AE132: 516500 | AH132: EHCP | AI132: EHCP topups: Barnet academies - primary | AJ132: 11443 | AK132: EHCPpri.D | AL132: EHCP topup - Primary Band D | AM132: 8 | AN132: 8 | AP132: stmttopuppri
A133: 3022004 | B133: Rimon Jewish Primary School | C133: 1038283 | D133: 2022-04-01 | E133: 2023-03-31 | F133: NC Year 5 | G133: NC Year 6 | H133: Primary | I133: Barnet | J133: C | K133: 1 | L133: 0 | M133: 8137 | N133: 8137 | O133: 8137 | P133: 8137 | Q133: 0 | R133: 5 | S133: 4 | T133: 3 | U133: 0 | V133: 3390.42 | W133: 2712.33 | X133: 2034.25 | Y133: 8137 | Z133: Primary | AA133: 0 | AB133: 5 | AC133: 4 | AD133: 3 | AE133: 516500 | AH133: EHCP | AI133: EHCP topups: Barnet academies - primary | AJ133: 11443 | AK133: EHCPpri.C | AL133: EHCP topup - Primary Band C | AM133: 12 | AN133: 12 | AP133: stmttopuppri
A134: 3022004 | B134: Rimon Jewish Primary School | C134: 1136981 | D134: 2022-04-01 | E134: 2023-03-31 | F134: NC Year 1 | G134: NC Year 2 | H134: Primary | I134: Barnet | J134: D | K134: 1 | L134: 0 | M134: 10990 | N134: 10990 | O134: 10990 | P134: 10990 | Q134: 0 | R134: 5 | S134: 4 | T134: 3 | U134: 0 | V134: 4579.17 | W134: 3663.33 | X134: 2747.5 | Y134: 10990 | Z134: Primary | AA134: 0 | AB134: 5 | AC134: 4 | AD134: 3 | AE134: 516500 | AH134: EHCP | AI134: EHCP topups: Barnet academies - primary | AJ134: 11443 | AK134: EHCPpri.D | AL134: EHCP topup - Primary Band D | AM134: 12 | AN134: 12 | AP134: stmttopuppri
A135: 3022004 | B135: Rimon Jewish Primary School | C135: 1078594 | D135: 2022-04-01 | E135: 2023-03-31 | F135: NC Year 4 | G135: NC Year 5 | H135: Primary | I135: Barnet | J135: B | K135: 1 | L135: 0 | M135: 5285 | N135: 5285 | O135: 5285 | P135: 5285 | Q135: 0 | R135: 5 | S135: 4 | T135: 3 | U135: 0 | V135: 2202.08 | W135: 1761.67 | X135: 1321.25 | Y135: 5285 | Z135: Primary | AA135: 0 | AB135: 5 | AC135: 4 | AD135: 3 | AE135: 516500 | AH135: EHCP | AI135: EHCP topups: Barnet academies - primary | AJ135: 11443 | AK135: EHCPpri.B | AL135: EHCP topup - Primary Band B | AM135: 12 | AN135: 12 | AP135: stmttopuppri
A136: 3022004 | B136: Rimon Jewish Primary School | C136: 1038467 | D136: 2022-07-04 | E136: 2022-12-31 | F136: NC Year 5 | G136: NC Year 6 | H136: Primary | I136: Barnet | J136: C | K136: 1 | L136: 0 | M136: 8137 | N136: 8137 | O136: 8137 | P136: 8137 | Q136: 0 | R136: 2 | S136: 4 | T136: 0 | U136: 0 | V136: 1356.17 | W136: 2712.33 | X136: 0 | Y136: 4068.5 | Z136: Primary | AA136: 0 | AB136: 2 | AC136: 4 | AD136: 0 | AE136: 516500 | AH136: EHCP | AI136: EHCP topups: Barnet academies - primary | AJ136: 11443 | AK136: EHCPpri.C | AL136: EHCP topup - Primary Band C | AM136: 6 | AN136: 6 | AP136: stmttopuppri
A137: 3022004 | B137: Rimon Jewish Primary School | C137: 1038467 | D137: 2023-01-03 | E137: 2023-03-31 | F137: NC Year 5 | G137: NC Year 6 | H137: Primary | I137: Barnet | J137: D | K137: 1 | L137: 0 | M137: 10990 | N137: 10990 | O137: 10990 | P137: 10990 | Q137: 0 | R137: 0 | S137: 0 | T137: 3 | U137: 0 | V137: 0 | W137: 0 | X137: 2747.5 | Y137: 2747.5 | Z137: Primary | AA137: 0 | AB137: 0 | AC137: 0 | AD137: 3 | AE137: 516500 | AH137: EHCP | AI137: EHCP topups: Barnet academies - primary | AJ137: 11443 | AK137: EHCPpri.D | AL137: EHCP topup - Primary Band D | AM137: 3 | AN137: 3 | AP137: stmttopuppri
A138: 3022004 | B138: Rimon Jewish Primary School | C138: 1116735 | D138: 2022-04-01 | E138: 2023-03-31 | F138: NC Year 1 | G138: NC Year 2 | H138: Primary | I138: Barnet | J138: C | K138: 1 | L138: 0 | M138: 8137 | N138: 8137 | O138: 8137 | P138: 8137 | Q138: 0 | R138: 5 | S138: 4 | T138: 3 | U138: 0 | V138: 3390.42 | W138: 2712.33 | X138: 2034.25 | Y138: 8137 | Z138: Primary | AA138: 0 | AB138: 5 | AC138: 4 | AD138: 3 | AE138: 516500 | AH138: EHCP | AI138: EHCP topups: Barnet academies - primary | AJ138: 11443 | AK138: EHCPpri.C | AL138: EHCP topup - Primary Band C | AM138: 12 | AN138: 12 | AP138: stmttopuppri
A139: 3022004 | B139: Rimon Jewish Primary School | C139: 1127446 | D139: 2022-04-01 | E139: 2023-03-31 | F139: Reception | G139: NC Year 1 | H139: Primary | I139: Barnet | J139: B | K139: 1 | L139: 0 | M139: 5285 | N139: 5285 | O139: 5285 | P139: 5285 | Q139: 0 | R139: 5 | S139: 4 | T139: 3 | U139: 0 | V139: 2202.08 | W139: 1761.67 | X139: 1321.25 | Y139: 5285 | Z139: Primary | AA139: 0 | AB139: 5 | AC139: 4 | AD139: 3 | AE139: 516500 | AH139: EHCP | AI139: EHCP topups: Barnet academies - primary | AJ139: 11443 | AK139: EHCPpri.B | AL139: EHCP topup - Primary Band B | AM139: 12 | AN139: 12 | AP139: stmttopuppri
A140: 3022004 | B140: Rimon Jewish Primary School | C140: 1041627 | D140: 2022-04-01 | E140: 2023-03-31 | F140: NC Year 5 | G140: NC Year 6 | H140: Primary | I140: Barnet | J140: D | K140: 1 | L140: 0 | M140: 10990 | N140: 10990 | O140: 10990 | P140: 10990 | Q140: 0 | R140: 5 | S140: 4 | T140: 3 | U140: 0 | V140: 4579.17 | W140: 3663.33 | X140: 2747.5 | Y140: 10990 | Z140: Primary | AA140: 0 | AB140: 5 | AC140: 4 | AD140: 3 | AE140: 516500 | AH140: EHCP | AI140: EHCP topups: Barnet academies - primary | AJ140: 11443 | AK140: EHCPpri.D | AL140: EHCP topup - Primary Band D | AM140: 12 | AN140: 12 | AP140: stmttopuppri
A141: 3022004 | B141: Rimon Jewish Primary School | C141: 1005671 | D141: 2022-04-01 | E141: 2022-08-31 | F141: NC Year 6 | G141: 0 | H141: Primary | I141: Barnet | J141: B | K141: 1 | L141: 0 | M141: 5285 | N141: 5285 | O141: 5285 | P141: 5285 | Q141: 0 | R141: 5 | S141: 0 | T141: 0 | U141: 0 | V141: 2202.08 | W141: 0 | X141: 0 | Y141: 2202.08 | Z141: Primary | AA141: 0 | AB141: 5 | AC141: 0 | AD141: 0 | AE141: 516500 | AH141: EHCP | AI141: EHCP topups: Barnet academies - primary | AJ141: 11443 | AK141: EHCPpri.B | AL141: EHCP topup - Primary Band B | AM141: 5 | AN141: 5 | AP141: stmttopuppri
A142: 3022007 | B142: Brookland Junior School | C142: 1115240 | D142: 2022-04-01 | E142: 2023-03-31 | F142: NC Year 4 | G142: NC Year 5 | H142: Primary | I142: Barnet | J142: C | K142: 1 | L142: 0 | M142: 8137 | N142: 8137 | O142: 8137 | P142: 8137 | Q142: 0 | R142: 5 | S142: 4 | T142: 3 | U142: 0 | V142: 3390.42 | W142: 2712.33 | X142: 2034.25 | Y142: 8137 | Z142: Primary | AA142: 0 | AB142: 5 | AC142: 4 | AD142: 3 | AE142: 543965 | AH142: EHCP | AI142: EHCP topups: Barnet maintained primary | AJ142: 11431 | AK142: EHCPpri.C | AL142: EHCP topup - Primary Band C | AM142: 12 | AN142: 12 | AP142: stmttopuppri
A143: 3022007 | B143: Brookland Junior School | C143: 1113505 | D143: 2022-04-01 | E143: 2023-03-31 | F143: NC Year 5 | G143: NC Year 6 | H143: Primary | I143: Barnet | J143: D | K143: 1 | L143: 0 | M143: 10990 | N143: 10990 | O143: 10990 | P143: 10990 | Q143: 0 | R143: 5 | S143: 4 | T143: 3 | U143: 0 | V143: 4579.17 | W143: 3663.33 | X143: 2747.5 | Y143: 10990 | Z143: Primary | AA143: 0 | AB143: 5 | AC143: 4 | AD143: 3 | AE143: 543965 | AH143: EHCP | AI143: EHCP topups: Barnet maintained primary | AJ143: 11431 | AK143: EHCPpri.D | AL143: EHCP topup - Primary Band D | AM143: 12 | AN143: 12 | AP143: stmttopuppri
A144: 3022007 | B144: Brookland Junior School | C144: 1124514 | D144: 2022-09-01 | E144: 2023-03-31 | F144: 0 | G144: NC Year 3 | H144: Primary | I144: Barnet | J144: C | K144: 1 | L144: 0 | M144: 8137 | N144: 8137 | O144: 8137 | P144: 8137 | Q144: 0 | R144: 0 | S144: 4 | T144: 3 | U144: 0 | V144: 0 | W144: 2712.33 | X144: 2034.25 | Y144: 4746.58 | Z144: Primary | AA144: 0 | AB144: 0 | AC144: 4 | AD144: 3 | AE144: 543965 | AH144: EHCP | AI144: EHCP topups: Barnet maintained primary | AJ144: 11431 | AK144: EHCPpri.C | AL144: EHCP topup - Primary Band C | AM144: 7 | AN144: 7 | AP144: stmttopuppri
A145: 3022007 | B145: Brookland Junior School | C145: 1009094 | D145: 2022-04-01 | E145: 2023-03-31 | F145: NC Year 4 | G145: NC Year 5 | H145: Primary | I145: Barnet | J145: C | K145: 1 | L145: 0 | M145: 8137 | N145: 8137 | O145: 8137 | P145: 8137 | Q145: 0 | R145: 5 | S145: 4 | T145: 3 | U145: 0 | V145: 3390.42 | W145: 2712.33 | X145: 2034.25 | Y145: 8137 | Z145: Primary | AA145: 0 | AB145: 5 | AC145: 4 | AD145: 3 | AE145: 543965 | AH145: EHCP | AI145: EHCP topups: Barnet maintained primary | AJ145: 11431 | AK145: EHCPpri.C | AL145: EHCP topup - Primary Band C | AM145: 12 | AN145: 12 | AP145: stmttopuppri
A146: 3022007 | B146: Brookland Junior School | C146: 1121219 | D146: 2022-09-01 | E146: 2023-03-31 | F146: 0 | G146: NC Year 3 | H146: Primary | I146: Barnet | J146: C | K146: 1 | L146: 0 | M146: 8137 | N146: 8137 | O146: 8137 | P146: 8137 | Q146: 0 | R146: 0 | S146: 4 | T146: 3 | U146: 0 | V146: 0 | W146: 2712.33 | X146: 2034.25 | Y146: 4746.58 | Z146: Primary | AA146: 0 | AB146: 0 | AC146: 4 | AD146: 3 | AE146: 543965 | AH146: EHCP | AI146: EHCP topups: Barnet maintained primary | AJ146: 11431 | AK146: EHCPpri.C | AL146: EHCP topup - Primary Band C | AM146: 7 | AN146: 7 | AP146: stmttopuppri
A147: 3022007 | B147: Brookland Junior School | C147: 1115510 | D147: 2022-09-01 | E147: 2023-03-31 | F147: 0 | G147: NC Year 3 | H147: Primary | I147: Barnet | J147: C | K147: 1 | L147: 0 | M147: 8137 | N147: 8137 | O147: 8137 | P147: 8137 | Q147: 0 | R147: 0 | S147: 4 | T147: 3 | U147: 0 | V147: 0 | W147: 2712.33 | X147: 2034.25 | Y147: 4746.58 | Z147: Primary | AA147: 0 | AB147: 0 | AC147: 4 | AD147: 3 | AE147: 543965 | AH147: EHCP | AI147: EHCP topups: Barnet maintained primary | AJ147: 11431 | AK147: EHCPpri.C | AL147: EHCP topup - Primary Band C | AM147: 7 | AN147: 7 | AP147: stmttopuppri
A148: 3022007 | B148: Brookland Junior School | C148: 1041295 | D148: 2022-12-01 | E148: 2023-03-31 | F148: 0 | G148: NC Year 6 | H148: Primary | I148: Barnet | J148: C | K148: 1 | L148: 0 | M148: 8137 | N148: 8137 | O148: 8137 | P148: 8137 | Q148: 0 | R148: 0 | S148: 1 | T148: 3 | U148: 0 | V148: 0 | W148: 678.08 | X148: 2034.25 | Y148: 2712.33 | Z148: Primary | AA148: 0 | AB148: 0 | AC148: 1 | AD148: 3 | AE148: 543965 | AH148: EHCP | AI148: EHCP topups: Barnet maintained primary | AJ148: 11431 | AK148: EHCPpri.C | AL148: EHCP topup - Primary Band C | AM148: 4 | AN148: 4 | AP148: stmttopuppri
A149: 3022007 | B149: Brookland Junior School | C149: 341355 | D149: 2022-04-01 | E149: 2022-08-31 | F149: NC Year 6 | G149: 0 | H149: Primary | I149: Barnet | J149: D | K149: 1 | L149: 0 | M149: 10990 | N149: 10990 | O149: 10990 | P149: 10990 | Q149: 0 | R149: 5 | S149: 0 | T149: 0 | U149: 0 | V149: 4579.17 | W149: 0 | X149: 0 | Y149: 4579.17 | Z149: Primary | AA149: 0 | AB149: 5 | AC149: 0 | AD149: 0 | AE149: 543965 | AH149: EHCP | AI149: EHCP topups: Barnet maintained primary | AJ149: 11431 | AK149: EHCPpri.D | AL149: EHCP topup - Primary Band D | AM149: 5 | AN149: 5 | AP149: stmttopuppri
A150: 3022007 | B150: Brookland Junior School | C150: 1075863 | D150: 2022-04-01 | E150: 2023-03-31 | F150: NC Year 4 | G150: NC Year 5 | H150: Primary | I150: Barnet | J150: D | K150: 1 | L150: 0 | M150: 10990 | N150: 10990 | O150: 10990 | P150: 10990 | Q150: 0 | R150: 5 | S150: 4 | T150: 3 | U150: 0 | V150: 4579.17 | W150: 3663.33 | X150: 2747.5 | Y150: 10990 | Z150: Primary | AA150: 0 | AB150: 5 | AC150: 4 | AD150: 3 | AE150: 543965 | AH150: EHCP | AI150: EHCP topups: Barnet maintained primary | AJ150: 11431 | AK150: EHCPpri.D | AL150: EHCP topup - Primary Band D | AM150: 12 | AN150: 12 | AP150: stmttopuppri
A151: 3022007 | B151: Brookland Junior School | C151: 1060777 | D151: 2022-11-01 | E151: 2023-03-31 | F151: 0 | G151: NC Year 6 | H151: Primary | I151: Barnet | J151: C | K151: 1 | L151: 0 | M151: 8137 | N151: 8137 | O151: 8137 | P151: 8137 | Q151: 0 | R151: 0 | S151: 2 | T151: 3 | U151: 0 | V151: 0 | W151: 1356.17 | X151: 2034.25 | Y151: 3390.42 | Z151: Primary | AA151: 0 | AB151: 0 | AC151: 2 | AD151: 3 | AE151: 543965 | AH151: EHCP | AI151: EHCP topups: Barnet maintained primary | AJ151: 11431 | AK151: EHCPpri.C | AL151: EHCP topup - Primary Band C | AM151: 5 | AN151: 5 | AP151: stmttopuppri
A152: 3022007 | B152: Brookland Junior School | C152: 348702 | D152: 2022-04-01 | E152: 2022-08-31 | F152: NC Year 6 | G152: 0 | H152: Primary | I152: Barnet | J152: C | K152: 1 | L152: 0 | M152: 8137 | N152: 8137 | O152: 8137 | P152: 8137 | Q152: 0 | R152: 5 | S152: 0 | T152: 0 | U152: 0 | V152: 3390.42 | W152: 0 | X152: 0 | Y152: 3390.42 | Z152: Primary | AA152: 0 | AB152: 5 | AC152: 0 | AD152: 0 | AE152: 543965 | AH152: EHCP | AI152: EHCP topups: Barnet maintained primary | AJ152: 11431 | AK152: EHCPpri.C | AL152: EHCP topup - Primary Band C | AM152: 5 | AN152: 5 | AP152: stmttopuppri
A153: 3022007 | B153: Brookland Junior School | C153: 1084008 | D153: 2022-09-01 | E153: 2023-03-31 | F153: 0 | G153: NC Year 3 | H153: Primary | I153: Barnet | J153: C | K153: 1 | L153: 0 | M153: 8137 | N153: 8137 | O153: 8137 | P153: 8137 | Q153: 0 | R153: 0 | S153: 4 | T153: 3 | U153: 0 | V153: 0 | W153: 2712.33 | X153: 2034.25 | Y153: 4746.58 | Z153: Primary | AA153: 0 | AB153: 0 | AC153: 4 | AD153: 3 | AE153: 543965 | AH153: EHCP | AI153: EHCP topups: Barnet maintained primary | AJ153: 11431 | AK153: EHCPpri.C | AL153: EHCP topup - Primary Band C | AM153: 7 | AN153: 7 | AP153: stmttopuppri
A154: 3022007 | B154: Brookland Junior School | C154: 1003568 | D154: 2022-04-01 | E154: 2022-08-31 | F154: NC Year 6 | G154: 0 | H154: Primary | I154: Barnet | J154: D | K154: 1 | L154: 0 | M154: 10990 | N154: 10990 | O154: 10990 | P154: 10990 | Q154: 0 | R154: 5 | S154: 0 | T154: 0 | U154: 0 | V154: 4579.17 | W154: 0 | X154: 0 | Y154: 4579.17 | Z154: Primary | AA154: 0 | AB154: 5 | AC154: 0 | AD154: 0 | AE154: 543965 | AH154: EHCP | AI154: EHCP topups: Barnet maintained primary | AJ154: 11431 | AK154: EHCPpri.D | AL154: EHCP topup - Primary Band D | AM154: 5 | AN154: 5 | AP154: stmttopuppri
A155: 3022007 | B155: Brookland Junior School | C155: 1075043 | D155: 2022-04-01 | E155: 2022-09-30 | F155: NC Year 4 | G155: NC Year 5 | H155: Primary | I155: Barnet | J155: C | K155: 1 | L155: 0 | M155: 8137 | N155: 8137 | O155: 8137 | P155: 8137 | Q155: 0 | R155: 5 | S155: 1 | T155: 0 | U155: 0 | V155: 3390.42 | W155: 678.08 | X155: 0 | Y155: 4068.5 | Z155: Primary | AA155: 0 | AB155: 5 | AC155: 1 | AD155: 0 | AE155: 543965 | AH155: EHCP | AI155: EHCP topups: Barnet maintained primary | AJ155: 11431 | AK155: EHCPpri.C | AL155: EHCP topup - Primary Band C | AM155: 6 | AN155: 6 | AP155: stmttopuppri
A156: 3022007 | B156: Brookland Junior School | C156: 1075043 | D156: 2022-10-01 | E156: 2023-03-31 | F156: NC Year 4 | G156: NC Year 5 | H156: Primary | I156: Barnet | J156: D | K156: 1 | L156: 0 | M156: 10990 | N156: 10990 | O156: 10990 | P156: 10990 | Q156: 0 | R156: 0 | S156: 3 | T156: 3 | U156: 0 | V156: 0 | W156: 2747.5 | X156: 2747.5 | Y156: 5495 | Z156: Primary | AA156: 0 | AB156: 0 | AC156: 3 | AD156: 3 | AE156: 543965 | AH156: EHCP | AI156: EHCP topups: Barnet maintained primary | AJ156: 11431 | AK156: EHCPpri.D | AL156: EHCP topup - Primary Band D | AM156: 6 | AN156: 6 | AP156: stmttopuppri
A157: 3022007 | B157: Brookland Junior School | C157: 1060773 | D157: 2022-04-01 | E157: 2023-03-31 | F157: NC Year 4 | G157: NC Year 5 | H157: Primary | I157: Barnet | J157: C | K157: 1 | L157: 0 | M157: 8137 | N157: 8137 | O157: 8137 | P157: 8137 | Q157: 0 | R157: 5 | S157: 4 | T157: 3 | U157: 0 | V157: 3390.42 | W157: 2712.33 | X157: 2034.25 | Y157: 8137 | Z157: Primary | AA157: 0 | AB157: 5 | AC157: 4 | AD157: 3 | AE157: 543965 | AH157: EHCP | AI157: EHCP topups: Barnet maintained primary | AJ157: 11431 | AK157: EHCPpri.C | AL157: EHCP topup - Primary Band C | AM157: 12 | AN157: 12 | AP157: stmttopuppri
A158: 3022007 | B158: Brookland Junior School | C158: 1086579 | D158: 2022-09-01 | E158: 2023-03-31 | F158: 0 | G158: NC Year 3 | H158: Primary | I158: Barnet | J158: C | K158: 1 | L158: 0 | M158: 8137 | N158: 8137 | O158: 8137 | P158: 8137 | Q158: 0 | R158: 0 | S158: 4 | T158: 3 | U158: 0 | V158: 0 | W158: 2712.33 | X158: 2034.25 | Y158: 4746.58 | Z158: Primary | AA158: 0 | AB158: 0 | AC158: 4 | AD158: 3 | AE158: 543965 | AH158: EHCP | AI158: EHCP topups: Barnet maintained primary | AJ158: 11431 | AK158: EHCPpri.C | AL158: EHCP topup - Primary Band C | AM158: 7 | AN158: 7 | AP158: stmttopuppri
A159: 3022007 | B159: Brookland Junior School | C159: 1064278 | D159: 2022-04-01 | E159: 2023-03-31 | F159: NC Year 5 | G159: NC Year 6 | H159: Primary | I159: Barnet | J159: C | K159: 1 | L159: 0 | M159: 8137 | N159: 8137 | O159: 8137 | P159: 8137 | Q159: 0 | R159: 5 | S159: 4 | T159: 3 | U159: 0 | V159: 3390.42 | W159: 2712.33 | X159: 2034.25 | Y159: 8137 | Z159: Primary | AA159: 0 | AB159: 5 | AC159: 4 | AD159: 3 | AE159: 543965 | AH159: EHCP | AI159: EHCP topups: Barnet maintained primary | AJ159: 11431 | AK159: EHCPpri.C | AL159: EHCP topup - Primary Band C | AM159: 12 | AN159: 12 | AP159: stmttopuppri
A160: 3022007 | B160: Brookland Junior School | C160: 1042195 | D160: 2022-04-01 | E160: 2023-03-31 | F160: NC Year 5 | G160: NC Year 6 | H160: Primary | I160: Barnet | J160: D | K160: 1 | L160: 0 | M160: 10990 | N160: 10990 | O160: 10990 | P160: 10990 | Q160: 0 | R160: 5 | S160: 4 | T160: 3 | U160: 0 | V160: 4579.17 | W160: 3663.33 | X160: 2747.5 | Y160: 10990 | Z160: Primary | AA160: 0 | AB160: 5 | AC160: 4 | AD160: 3 | AE160: 543965 | AH160: EHCP | AI160: EHCP topups: Barnet maintained primary | AJ160: 11431 | AK160: EHCPpri.D | AL160: EHCP topup - Primary Band D | AM160: 12 | AN160: 12 | AP160: stmttopuppri
A161: 3022007 | B161: Brookland Junior School | C161: 1049430 | D161: 2022-04-01 | E161: 2023-03-31 | F161: NC Year 4 | G161: NC Year 5 | H161: Primary | I161: Barnet | J161: C | K161: 1 | L161: 0 | M161: 8137 | N161: 8137 | O161: 8137 | P161: 8137 | Q161: 0 | R161: 5 | S161: 4 | T161: 3 | U161: 0 | V161: 3390.42 | W161: 2712.33 | X161: 2034.25 | Y161: 8137 | Z161: Primary | AA161: 0 | AB161: 5 | AC161: 4 | AD161: 3 | AE161: 543965 | AH161: EHCP | AI161: EHCP topups: Barnet maintained primary | AJ161: 11431 | AK161: EHCPpri.C | AL161: EHCP topup - Primary Band C | AM161: 12 | AN161: 12 | AP161: stmttopuppri
A162: 3022007 | B162: Brookland Junior School | C162: 1090403 | D162: 2022-09-01 | E162: 2023-03-31 | F162: 0 | G162: NC Year 3 | H162: Primary | I162: Barnet | J162: C | K162: 1 | L162: 0 | M162: 8137 | N162: 8137 | O162: 8137 | P162: 8137 | Q162: 0 | R162: 0 | S162: 4 | T162: 3 | U162: 0 | V162: 0 | W162: 2712.33 | X162: 2034.25 | Y162: 4746.58 | Z162: Primary | AA162: 0 | AB162: 0 | AC162: 4 | AD162: 3 | AE162: 543965 | AH162: EHCP | AI162: EHCP topups: Barnet maintained primary | AJ162: 11431 | AK162: EHCPpri.C | AL162: EHCP topup - Primary Band C | AM162: 7 | AN162: 7 | AP162: stmttopuppri
A163: 3022007 | B163: Brookland Junior School | C163: 1039457 | D163: 2022-04-01 | E163: 2023-03-31 | F163: NC Year 5 | G163: NC Year 6 | H163: Primary | I163: Barnet | J163: C | K163: 1 | L163: 0 | M163: 8137 | N163: 8137 | O163: 8137 | P163: 8137 | Q163: 0 | R163: 5 | S163: 4 | T163: 3 | U163: 0 | V163: 3390.42 | W163: 2712.33 | X163: 2034.25 | Y163: 8137 | Z163: Primary | AA163: 0 | AB163: 5 | AC163: 4 | AD163: 3 | AE163: 543965 | AH163: EHCP | AI163: EHCP topups: Barnet maintained primary | AJ163: 11431 | AK163: EHCPpri.C | AL163: EHCP topup - Primary Band C | AM163: 12 | AN163: 12 | AP163: stmttopuppri
A164: 3022007 | B164: Brookland Junior School | C164: 1125952 | D164: 2022-09-01 | E164: 2023-03-31 | F164: 0 | G164: NC Year 3 | H164: Primary | I164: Barnet | J164: C | K164: 1 | L164: 0 | M164: 8137 | N164: 8137 | O164: 8137 | P164: 8137 | Q164: 0 | R164: 0 | S164: 4 | T164: 3 | U164: 0 | V164: 0 | W164: 2712.33 | X164: 2034.25 | Y164: 4746.58 | Z164: Primary | AA164: 0 | AB164: 0 | AC164: 4 | AD164: 3 | AE164: 543965 | AH164: EHCP | AI164: EHCP topups: Barnet maintained primary | AJ164: 11431 | AK164: EHCPpri.C | AL164: EHCP topup - Primary Band C | AM164: 7 | AN164: 7 | AP164: stmttopuppri
A165: 3022007 | B165: Brookland Junior School | C165: 1114615 | D165: 2022-11-01 | E165: 2023-03-31 | F165: 0 | G165: NC Year 6 | H165: Primary | I165: Barnet | J165: C | K165: 1 | L165: 0 | M165: 8137 | N165: 8137 | O165: 8137 | P165: 8137 | Q165: 0 | R165: 0 | S165: 2 | T165: 3 | U165: 0 | V165: 0 | W165: 1356.17 | X165: 2034.25 | Y165: 3390.42 | Z165: Primary | AA165: 0 | AB165: 0 | AC165: 2 | AD165: 3 | AE165: 543965 | AH165: EHCP | AI165: EHCP topups: Barnet maintained primary | AJ165: 11431 | AK165: EHCPpri.C | AL165: EHCP topup - Primary Band C | AM165: 5 | AN165: 5 | AP165: stmttopuppri
A166: 3022007 | B166: Brookland Junior School | C166: 1039468 | D166: 2022-04-01 | E166: 2023-03-31 | F166: NC Year 5 | G166: NC Year 6 | H166: Primary | I166: Barnet | J166: C | K166: 1 | L166: 0 | M166: 8137 | N166: 8137 | O166: 8137 | P166: 8137 | Q166: 0 | R166: 5 | S166: 4 | T166: 3 | U166: 0 | V166: 3390.42 | W166: 2712.33 | X166: 2034.25 | Y166: 8137 | Z166: Primary | AA166: 0 | AB166: 5 | AC166: 4 | AD166: 3 | AE166: 543965 | AH166: EHCP | AI166: EHCP topups: Barnet maintained primary | AJ166: 11431 | AK166: EHCPpri.C | AL166: EHCP topup - Primary Band C | AM166: 12 | AN166: 12 | AP166: stmttopuppri
A167: 3022008 | B167: Brookland Infant & Nursery School | C167: 1124328 | D167: 2022-04-01 | E167: 2023-03-31 | F167: NC Year 1 | G167: NC Year 2 | H167: Primary | I167: Barnet | J167: C | K167: 1 | L167: 0 | M167: 8137 | N167: 8137 | O167: 8137 | P167: 8137 | Q167: 0 | R167: 5 | S167: 4 | T167: 3 | U167: 0 | V167: 3390.42 | W167: 2712.33 | X167: 2034.25 | Y167: 8137 | Z167: Primary | AA167: 0 | AB167: 5 | AC167: 4 | AD167: 3 | AE167: 543965 | AH167: EHCP | AI167: EHCP topups: Barnet maintained primary | AJ167: 11431 | AK167: EHCPpri.C | AL167: EHCP topup - Primary Band C | AM167: 12 | AN167: 12 | AP167: stmttopuppri
A168: 3022008 | B168: Brookland Infant & Nursery School | C168: 1124514 | D168: 2022-04-01 | E168: 2022-08-31 | F168: NC Year 2 | G168: 0 | H168: Primary | I168: Barnet | J168: C | K168: 1 | L168: 0 | M168: 8137 | N168: 8137 | O168: 8137 | P168: 8137 | Q168: 0 | R168: 5 | S168: 0 | T168: 0 | U168: 0 | V168: 3390.42 | W168: 0 | X168: 0 | Y168: 3390.42 | Z168: Primary | AA168: 0 | AB168: 5 | AC168: 0 | AD168: 0 | AE168: 543965 | AH168: EHCP | AI168: EHCP topups: Barnet maintained primary | AJ168: 11431 | AK168: EHCPpri.C | AL168: EHCP topup - Primary Band C | AM168: 5 | AN168: 5 | AP168: stmttopuppri
A169: 3022008 | B169: Brookland Infant & Nursery School | C169: 1116151 | D169: 2022-04-01 | E169: 2022-09-30 | F169: NC Year 2 | G169: NC Year 3 | H169: Primary | I169: Barnet | J169: D | K169: 1 | L169: 0 | M169: 10990 | N169: 10990 | O169: 10990 | P169: 10990 | Q169: 0 | R169: 5 | S169: 1 | T169: 0 | U169: 0 | V169: 4579.17 | W169: 915.83 | X169: 0 | Y169: 5495 | Z169: Primary | AA169: 0 | AB169: 5 | AC169: 1 | AD169: 0 | AE169: 543965 | AH169: EHCP | AI169: EHCP topups: Barnet maintained primary | AJ169: 11431 | AK169: EHCPpri.D | AL169: EHCP topup - Primary Band D | AM169: 6 | AN169: 6 | AP169: stmttopuppri
A170: 3022008 | B170: Brookland Infant & Nursery School | C170: 1142580 | D170: 2022-09-01 | E170: 2023-03-31 | F170: 0 | G170: Reception | H170: Primary | I170: Barnet | J170: C | K170: 1 | L170: 0 | M170: 8137 | N170: 8137 | O170: 8137 | P170: 8137 | Q170: 0 | R170: 0 | S170: 4 | T170: 3 | U170: 0 | V170: 0 | W170: 2712.33 | X170: 2034.25 | Y170: 4746.58 | Z170: Primary | AA170: 0 | AB170: 0 | AC170: 4 | AD170: 3 | AE170: 543965 | AH170: EHCP | AI170: EHCP topups: Barnet maintained primary | AJ170: 11431 | AK170: EHCPpri.C | AL170: EHCP topup - Primary Band C | AM170: 7 | AN170: 7 | AP170: stmttopuppri
A171: 3022008 | B171: Brookland Infant & Nursery School | C171: 1121219 | D171: 2022-04-01 | E171: 2022-08-31 | F171: NC Year 2 | G171: 0 | H171: Primary | I171: Barnet | J171: C | K171: 1 | L171: 0 | M171: 8137 | N171: 8137 | O171: 8137 | P171: 8137 | Q171: 0 | R171: 5 | S171: 0 | T171: 0 | U171: 0 | V171: 3390.42 | W171: 0 | X171: 0 | Y171: 3390.42 | Z171: Primary | AA171: 0 | AB171: 5 | AC171: 0 | AD171: 0 | AE171: 543965 | AH171: EHCP | AI171: EHCP topups: Barnet maintained primary | AJ171: 11431 | AK171: EHCPpri.C | AL171: EHCP topup - Primary Band C | AM171: 5 | AN171: 5 | AP171: stmttopuppri
A172: 3022008 | B172: Brookland Infant & Nursery School | C172: 1115510 | D172: 2022-04-01 | E172: 2022-08-31 | F172: NC Year 2 | G172: 0 | H172: Primary | I172: Barnet | J172: C | K172: 1 | L172: 0 | M172: 8137 | N172: 8137 | O172: 8137 | P172: 8137 | Q172: 0 | R172: 5 | S172: 0 | T172: 0 | U172: 0 | V172: 3390.42 | W172: 0 | X172: 0 | Y172: 3390.42 | Z172: Primary | AA172: 0 | AB172: 5 | AC172: 0 | AD172: 0 | AE172: 543965 | AH172: EHCP | AI172: EHCP topups: Barnet maintained primary | AJ172: 11431 | AK172: EHCPpri.C | AL172: EHCP topup - Primary Band C | AM172: 5 | AN172: 5 | AP172: stmttopuppri
A173: 3022008 | B173: Brookland Infant & Nursery School | C173: 1094474 | D173: 2022-04-01 | E173: 2022-06-30 | F173: NC Year 2 | G173: 0 | H173: Primary | I173: Barnet | J173: C | K173: 1 | L173: 0 | M173: 8137 | N173: 8137 | O173: 8137 | P173: 8137 | Q173: 0 | R173: 3 | S173: 0 | T173: 0 | U173: 0 | V173: 2034.25 | W173: 0 | X173: 0 | Y173: 2034.25 | Z173: Primary | AA173: 0 | AB173: 3 | AC173: 0 | AD173: 0 | AE173: 543965 | AH173: EHCP | AI173: EHCP topups: Barnet maintained primary | AJ173: 11431 | AK173: EHCPpri.C | AL173: EHCP topup - Primary Band C | AM173: 3 | AN173: 3 | AP173: stmttopuppri
A174: 3022008 | B174: Brookland Infant & Nursery School | C174: 1136050 | D174: 2022-11-01 | E174: 2022-12-31 | F174: 0 | G174: NC Year 1 | H174: Primary | I174: Barnet | J174: B | K174: 1 | L174: 0 | M174: 5285 | N174: 5285 | O174: 5285 | P174: 5285 | Q174: 0 | R174: 0 | S174: 2 | T174: 0 | U174: 0 | V174: 0 | W174: 880.83 | X174: 0 | Y174: 880.83 | Z174: Primary | AA174: 0 | AB174: 0 | AC174: 2 | AD174: 0 | AE174: 543965 | AH174: EHCP | AI174: EHCP topups: Barnet maintained primary | AJ174: 11431 | AK174: EHCPpri.B | AL174: EHCP topup - Primary Band B | AM174: 2 | AN174: 2 | AP174: stmttopuppri
A175: 3022008 | B175: Brookland Infant & Nursery School | C175: 1157575 | D175: 2022-05-01 | E175: 2022-07-31 | F175: Nursery 2 | G175: 0 | H175: Nursery | I175: Barnet | J175: EXY | K175: 1 | L175: 1373.36 | M175: 1 | N175: 1 | O175: 1 | P175: 1 | Q175: 0 | R175: 3 | S175: 0 | T175: 0 | U175: 0 | V175: 0 | W175: 0 | X175: 0 | Y175: 1373.36 | Z175: Primary | AA175: 0 | AB175: 3 | AC175: 0 | AD175: 0 | AE175: 543965 | AH175: SEN Inclusion | AI175: SEN Inclusion - Under 5s | AJ175: 10265 | AK175: EHCP.EXY | AL175: EHCP topup - Band EXY | AM175: 3 | AN175: 3 | AP175: nurseryex
A176: 3022008 | B176: Brookland Infant & Nursery School | C176: 1157575 | D176: 2022-10-01 | E176: 2023-03-31 | F176: 0 | G176: Reception | H176: Primary | I176: Barnet | J176: D | K176: 1 | L176: 0 | M176: 10990 | N176: 10990 | O176: 10990 | P176: 10990 | Q176: 0 | R176: 0 | S176: 3 | T176: 3 | U176: 0 | V176: 0 | W176: 2747.5 | X176: 2747.5 | Y176: 5495 | Z176: Primary | AA176: 0 | AB176: 0 | AC176: 3 | AD176: 3 | AE176: 543965 | AH176: EHCP | AI176: EHCP topups: Barnet maintained primary | AJ176: 11431 | AK176: EHCPpri.D | AL176: EHCP topup - Primary Band D | AM176: 6 | AN176: 6 | AP176: stmttopuppri
A177: 3022008 | B177: Brookland Infant & Nursery School | C177: 1129745 | D177: 2022-04-01 | E177: 2023-03-31 | F177: NC Year 1 | G177: NC Year 2 | H177: Primary | I177: Barnet | J177: C | K177: 1 | L177: 0 | M177: 8137 | N177: 8137 | O177: 8137 | P177: 8137 | Q177: 0 | R177: 5 | S177: 4 | T177: 3 | U177: 0 | V177: 3390.42 | W177: 2712.33 | X177: 2034.25 | Y177: 8137 | Z177: Primary | AA177: 0 | AB177: 5 | AC177: 4 | AD177: 3 | AE177: 543965 | AH177: EHCP | AI177: EHCP topups: Barnet maintained primary | AJ177: 11431 | AK177: EHCPpri.C | AL177: EHCP topup - Primary Band C | AM177: 12 | AN177: 12 | AP177: stmttopuppri
A178: 3022008 | B178: Brookland Infant & Nursery School | C178: 1121616 | D178: 2022-11-01 | E178: 2023-03-31 | F178: 0 | G178: NC Year 1 | H178: Primary | I178: Barnet | J178: D | K178: 1 | L178: 0 | M178: 10990 | N178: 10990 | O178: 10990 | P178: 10990 | Q178: 0 | R178: 0 | S178: 2 | T178: 3 | U178: 0 | V178: 0 | W178: 1831.67 | X178: 2747.5 | Y178: 4579.17 | Z178: Primary | AA178: 0 | AB178: 0 | AC178: 2 | AD178: 3 | AE178: 543965 | AH178: EHCP | AI178: EHCP topups: Barnet maintained primary | AJ178: 11431 | AK178: EHCPpri.D | AL178: EHCP topup - Primary Band D | AM178: 5 | AN178: 5 | AP178: stmttopuppri
A179: 3022008 | B179: Brookland Infant & Nursery School | C179: 1157562 | D179: 2022-04-01 | E179: 2022-04-30 | F179: Nursery 2 | G179: 0 | H179: Nursery | I179: Barnet | J179: EXY | K179: 1 | L179: 69.28 | M179: 1 | N179: 1 | O179: 1 | P179: 1 | Q179: 0 | R179: 1 | S179: 0 | T179: 0 | U179: 0 | V179: 0 | W179: 0 | X179: 0 | Y179: 69.28 | Z179: Primary | AA179: 0 | AB179: 1 | AC179: 0 | AD179: 0 | AE179: 543965 | AH179: SEN Inclusion | AI179: SEN Inclusion - Under 5s | AJ179: 10265 | AK179: EHCP.EXY | AL179: EHCP topup - Band EXY | AM179: 1 | AN179: 1 | AP179: nurseryex
A180: 3022008 | B180: Brookland Infant & Nursery School | C180: 1157562 | D180: 2022-05-01 | E180: 2022-07-31 | F180: Nursery 2 | G180: 0 | H180: Nursery | I180: Barnet | J180: EXY | K180: 1 | L180: 1373.36 | M180: 1 | N180: 1 | O180: 1 | P180: 1 | Q180: 0 | R180: 3 | S180: 0 | T180: 0 | U180: 0 | V180: 0 | W180: 0 | X180: 0 | Y180: 1373.36 | Z180: Primary | AA180: 0 | AB180: 3 | AC180: 0 | AD180: 0 | AE180: 543965 | AH180: SEN Inclusion | AI180: SEN Inclusion - Under 5s | AJ180: 10265 | AK180: EHCP.EXY | AL180: EHCP topup - Band EXY | AM180: 3 | AN180: 3 | AP180: nurseryex
A181: 3022008 | B181: Brookland Infant & Nursery School | C181: 1157562 | D181: 2022-10-01 | E181: 2023-03-31 | F181: 0 | G181: Reception | H181: Primary | I181: Barnet | J181: D | K181: 1 | L181: 0 | M181: 10990 | N181: 10990 | O181: 10990 | P181: 10990 | Q181: 0 | R181: 0 | S181: 3 | T181: 3 | U181: 0 | V181: 0 | W181: 2747.5 | X181: 2747.5 | Y181: 5495 | Z181: Primary | AA181: 0 | AB181: 0 | AC181: 3 | AD181: 3 | AE181: 543965 | AH181: EHCP | AI181: EHCP topups: Barnet maintained primary | AJ181: 11431 | AK181: EHCPpri.D | AL181: EHCP topup - Primary Band D | AM181: 6 | AN181: 6 | AP181: stmttopuppri
A182: 3022008 | B182: Brookland Infant & Nursery School | C182: 1139419 | D182: 2022-07-01 | E182: 2023-03-31 | F182: Reception | G182: NC Year 1 | H182: Primary | I182: Barnet | J182: D | K182: 1 | L182: 0 | M182: 10990 | N182: 10990 | O182: 10990 | P182: 10990 | Q182: 0 | R182: 2 | S182: 4 | T182: 3 | U182: 0 | V182: 1831.67 | W182: 3663.33 | X182: 2747.5 | Y182: 8242.5 | Z182: Primary | AA182: 0 | AB182: 2 | AC182: 4 | AD182: 3 | AE182: 543965 | AH182: EHCP | AI182: EHCP topups: Barnet maintained primary | AJ182: 11431 | AK182: EHCPpri.D | AL182: EHCP topup - Primary Band D | AM182: 9 | AN182: 9 | AP182: stmttopuppri
A183: 3022008 | B183: Brookland Infant & Nursery School | C183: 1084008 | D183: 2022-04-01 | E183: 2022-08-31 | F183: NC Year 2 | G183: 0 | H183: Primary | I183: Barnet | J183: C | K183: 1 | L183: 0 | M183: 8137 | N183: 8137 | O183: 8137 | P183: 8137 | Q183: 0 | R183: 5 | S183: 0 | T183: 0 | U183: 0 | V183: 3390.42 | W183: 0 | X183: 0 | Y183: 3390.42 | Z183: Primary | AA183: 0 | AB183: 5 | AC183: 0 | AD183: 0 | AE183: 543965 | AH183: EHCP | AI183: EHCP topups: Barnet maintained primary | AJ183: 11431 | AK183: EHCPpri.C | AL183: EHCP topup - Primary Band C | AM183: 5 | AN183: 5 | AP183: stmttopuppri
A184: 3022008 | B184: Brookland Infant & Nursery School | C184: 1167243 | D184: 2022-09-01 | E184: 2023-03-31 | F184: 0 | G184: NC Year 1 | H184: Primary | I184: Barnet | J184: E | K184: 1 | L184: 0 | M184: 13843 | N184: 13843 | O184: 13843 | P184: 13843 | Q184: 0 | R184: 0 | S184: 4 | T184: 3 | U184: 0 | V184: 0 | W184: 4614.33 | X184: 3460.75 | Y184: 8075.08 | Z184: Primary | AA184: 0 | AB184: 0 | AC184: 4 | AD184: 3 | AE184: 543965 | AH184: EHCP | AI184: EHCP topups: Barnet maintained primary | AJ184: 11431 | AK184: EHCPpri.E | AL184: EHCP topup - Primary Band E | AM184: 7 | AN184: 7 | AP184: stmttopuppri
A185: 3022008 | B185: Brookland Infant & Nursery School | C185: 1086579 | D185: 2022-04-01 | E185: 2022-08-31 | F185: NC Year 2 | G185: 0 | H185: Primary | I185: Barnet | J185: C | K185: 1 | L185: 0 | M185: 8137 | N185: 8137 | O185: 8137 | P185: 8137 | Q185: 0 | R185: 5 | S185: 0 | T185: 0 | U185: 0 | V185: 3390.42 | W185: 0 | X185: 0 | Y185: 3390.42 | Z185: Primary | AA185: 0 | AB185: 5 | AC185: 0 | AD185: 0 | AE185: 543965 | AH185: EHCP | AI185: EHCP topups: Barnet maintained primary | AJ185: 11431 | AK185: EHCPpri.C | AL185: EHCP topup - Primary Band C | AM185: 5 | AN185: 5 | AP185: stmttopuppri
A186: 3022008 | B186: Brookland Infant & Nursery School | C186: 1090403 | D186: 2022-04-01 | E186: 2022-08-31 | F186: NC Year 2 | G186: 0 | H186: Primary | I186: Barnet | J186: C | K186: 1 | L186: 0 | M186: 8137 | N186: 8137 | O186: 8137 | P186: 8137 | Q186: 0 | R186: 5 | S186: 0 | T186: 0 | U186: 0 | V186: 3390.42 | W186: 0 | X186: 0 | Y186: 3390.42 | Z186: Primary | AA186: 0 | AB186: 5 | AC186: 0 | AD186: 0 | AE186: 543965 | AH186: EHCP | AI186: EHCP topups: Barnet maintained primary | AJ186: 11431 | AK186: EHCPpri.C | AL186: EHCP topup - Primary Band C | AM186: 5 | AN186: 5 | AP186: stmttopuppri
A187: 3022008 | B187: Brookland Infant & Nursery School | C187: 1141706 | D187: 2022-04-01 | E187: 2022-08-31 | F187: Nursery 2 | G187: 0 | H187: Nursery | I187: Barnet | J187: N | K187: 1 | L187: 0 | M187: 6185 | N187: 6299 | O187: 6299 | P187: 6299 | Q187: 0 | R187: 5 | S187: 0 | T187: 0 | U187: 0 | V187: 2624.58 | W187: 0 | X187: 0 | Y187: 2624.58 | Z187: Primary | AA187: 0 | AB187: 5 | AC187: 0 | AD187: 0 | AE187: 543965 | AH187: EHCP | AI187: EHCP - Barnet maintained nursery classes | AJ187: 11436 | AK187: EHCPpri.N | AL187: EHCP topup - Nursery | AM187: 5 | AN187: 5 | AP187: Nurserytopup
A188: 3022008 | B188: Brookland Infant & Nursery School | C188: 1141706 | D188: 2022-09-01 | E188: 2023-03-31 | F188: 0 | G188: Reception | H188: Primary | I188: Barnet | J188: E | K188: 1 | L188: 0 | M188: 13843 | N188: 13843 | O188: 13843 | P188: 13843 | Q188: 0 | R188: 0 | S188: 4 | T188: 3 | U188: 0 | V188: 0 | W188: 4614.33 | X188: 3460.75 | Y188: 8075.08 | Z188: Primary | AA188: 0 | AB188: 0 | AC188: 4 | AD188: 3 | AE188: 543965 | AH188: EHCP | AI188: EHCP topups: Barnet maintained primary | AJ188: 11431 | AK188: EHCPpri.E | AL188: EHCP topup - Primary Band E | AM188: 7 | AN188: 7 | AP188: stmttopuppri
A189: 3022008 | B189: Brookland Infant & Nursery School | C189: 1137173 | D189: 2022-04-01 | E189: 2023-03-31 | F189: NC Year 1 | G189: NC Year 2 | H189: Primary | I189: Barnet | J189: D | K189: 1 | L189: 0 | M189: 10990 | N189: 10990 | O189: 10990 | P189: 10990 | Q189: 0 | R189: 5 | S189: 4 | T189: 3 | U189: 0 | V189: 4579.17 | W189: 3663.33 | X189: 2747.5 | Y189: 10990 | Z189: Primary | AA189: 0 | AB189: 5 | AC189: 4 | AD189: 3 | AE189: 543965 | AH189: EHCP | AI189: EHCP topups: Barnet maintained primary | AJ189: 11431 | AK189: EHCPpri.D | AL189: EHCP topup - Primary Band D | AM189: 12 | AN189: 12 | AP189: stmttopuppri
A190: 3022008 | B190: Brookland Infant & Nursery School | C190: 1151907 | D190: 2022-05-01 | E190: 2022-07-31 | F190: Nursery 2 | G190: 0 | H190: Nursery | I190: Barnet | J190: EXY | K190: 1 | L190: 1030.02 | M190: 1 | N190: 1 | O190: 1 | P190: 1 | Q190: 0 | R190: 3 | S190: 0 | T190: 0 | U190: 0 | V190: 0 | W190: 0 | X190: 0 | Y190: 1030.02 | Z190: Primary | AA190: 0 | AB190: 3 | AC190: 0 | AD190: 0 | AE190: 543965 | AH190: SEN Inclusion | AI190: SEN Inclusion - Under 5s | AJ190: 10265 | AK190: EHCP.EXY | AL190: EHCP topup - Band EXY | AM190: 3 | AN190: 3 | AP190: nurseryex
A191: 3022008 | B191: Brookland Infant & Nursery School | C191: 1151907 | D191: 2022-10-01 | E191: 2023-03-31 | F191: 0 | G191: Reception | H191: Primary | I191: Barnet | J191: C | K191: 1 | L191: 0 | M191: 8137 | N191: 8137 | O191: 8137 | P191: 8137 | Q191: 0 | R191: 0 | S191: 3 | T191: 3 | U191: 0 | V191: 0 | W191: 2034.25 | X191: 2034.25 | Y191: 4068.5 | Z191: Primary | AA191: 0 | AB191: 0 | AC191: 3 | AD191: 3 | AE191: 543965 | AH191: EHCP | AI191: EHCP topups: Barnet maintained primary | AJ191: 11431 | AK191: EHCPpri.C | AL191: EHCP topup - Primary Band C | AM191: 6 | AN191: 6 | AP191: stmttopuppri
A192: 3022008 | B192: Brookland Infant & Nursery School | C192: 1125952 | D192: 2022-04-01 | E192: 2022-08-31 | F192: NC Year 2 | G192: 0 | H192: Primary | I192: Barnet | J192: C | K192: 1 | L192: 0 | M192: 8137 | N192: 8137 | O192: 8137 | P192: 8137 | Q192: 0 | R192: 5 | S192: 0 | T192: 0 | U192: 0 | V192: 3390.42 | W192: 0 | X192: 0 | Y192: 3390.42 | Z192: Primary | AA192: 0 | AB192: 5 | AC192: 0 | AD192: 0 | AE192: 543965 | AH192: EHCP | AI192: EHCP topups: Barnet maintained primary | AJ192: 11431 | AK192: EHCPpri.C | AL192: EHCP topup - Primary Band C | AM192: 5 | AN192: 5 | AP192: stmttopuppri
A193: 3022009 | B193: Brunswick Park Primary & Nursery School | C193: 1137239 | D193: 2022-04-01 | E193: 2023-03-31 | F193: NC Year 1 | G193: NC Year 2 | H193: Primary | I193: Barnet | J193: C | K193: 1 | L193: 0 | M193: 8137 | N193: 8137 | O193: 8137 | P193: 8137 | Q193: 0 | R193: 5 | S193: 4 | T193: 3 | U193: 0 | V193: 3390.42 | W193: 2712.33 | X193: 2034.25 | Y193: 8137 | Z193: Primary | AA193: 0 | AB193: 5 | AC193: 4 | AD193: 3 | AE193: 543965 | AH193: EHCP | AI193: EHCP topups: Barnet maintained primary | AJ193: 11431 | AK193: EHCPpri.C | AL193: EHCP topup - Primary Band C | AM193: 12 | AN193: 12 | AP193: stmttopuppri
A194: 3022009 | B194: Brunswick Park Primary & Nursery School | C194: 1096060 | D194: 2022-04-01 | E194: 2022-04-30 | F194: NC Year 1 | G194: NC Year 2 | H194: Primary | I194: Barnet | J194: C | K194: 1 | L194: 0 | M194: 8137 | N194: 8137 | O194: 8137 | P194: 8137 | Q194: 0 | R194: 1 | S194: 0 | T194: 0 | U194: 0 | V194: 678.08 | W194: 0 | X194: 0 | Y194: 678.08 | Z194: Primary | AA194: 0 | AB194: 1 | AC194: 0 | AD194: 0 | AE194: 543965 | AH194: EHCP | AI194: EHCP topups: Barnet maintained primary | AJ194: 11431 | AK194: EHCPpri.C | AL194: EHCP topup - Primary Band C | AM194: 1 | AN194: 1 | AP194: stmttopuppri
A195: 3022009 | B195: Brunswick Park Primary & Nursery School | C195: 1036478 | D195: 2022-04-01 | E195: 2023-03-31 | F195: NC Year 5 | G195: NC Year 6 | H195: Primary | I195: Barnet | J195: D | K195: 1 | L195: 0 | M195: 10990 | N195: 10990 | O195: 10990 | P195: 10990 | Q195: 0 | R195: 5 | S195: 4 | T195: 3 | U195: 0 | V195: 4579.17 | W195: 3663.33 | X195: 2747.5 | Y195: 10990 | Z195: Primary | AA195: 0 | AB195: 5 | AC195: 4 | AD195: 3 | AE195: 543965 | AH195: EHCP | AI195: EHCP topups: Barnet maintained primary | AJ195: 11431 | AK195: EHCPpri.D | AL195: EHCP topup - Primary Band D | AM195: 12 | AN195: 12 | AP195: stmttopuppri
A196: 3022009 | B196: Brunswick Park Primary & Nursery School | C196: 1054293 | D196: 2022-04-01 | E196: 2023-03-31 | F196: NC Year 3 | G196: NC Year 4 | H196: Primary | I196: Barnet | J196: C | K196: 1 | L196: 0 | M196: 8137 | N196: 8137 | O196: 8137 | P196: 8137 | Q196: 0 | R196: 5 | S196: 4 | T196: 3 | U196: 0 | V196: 3390.42 | W196: 2712.33 | X196: 2034.25 | Y196: 8137 | Z196: Primary | AA196: 0 | AB196: 5 | AC196: 4 | AD196: 3 | AE196: 543965 | AH196: EHCP | AI196: EHCP topups: Barnet maintained primary | AJ196: 11431 | AK196: EHCPpri.C | AL196: EHCP topup - Primary Band C | AM196: 12 | AN196: 12 | AP196: stmttopuppri
A197: 3022009 | B197: Brunswick Park Primary & Nursery School | C197: 1126279 | D197: 2022-03-01 | E197: 2023-03-31 | F197: NC Year 2 | G197: NC Year 3 | H197: Primary | I197: Barnet | J197: E | K197: 1 | L197: 0 | M197: 13843 | N197: 13843 | O197: 13843 | P197: 13843 | Q197: 1 | R197: 5 | S197: 4 | T197: 3 | U197: 1153.58 | V197: 5767.92 | W197: 4614.33 | X197: 3460.75 | Y197: 14996.58 | Z197: Primary | AA197: 1 | AB197: 5 | AC197: 4 | AD197: 3 | AE197: 543965 | AH197: EHCP | AI197: EHCP topups: Barnet maintained primary | AJ197: 11431 | AK197: EHCPpri.E | AL197: EHCP topup - Primary Band E | AM197: 13 | AN197: 13 | AP197: stmttopuppri
A198: 3022009 | B198: Brunswick Park Primary & Nursery School | C198: 1155270 | D198: 2022-09-01 | E198: 2023-03-31 | F198: 0 | G198: Reception | H198: Primary | I198: Barnet | J198: D | K198: 1 | L198: 0 | M198: 10990 | N198: 10990 | O198: 10990 | P198: 10990 | Q198: 0 | R198: 0 | S198: 4 | T198: 3 | U198: 0 | V198: 0 | W198: 3663.33 | X198: 2747.5 | Y198: 6410.83 | Z198: Primary | AA198: 0 | AB198: 0 | AC198: 4 | AD198: 3 | AE198: 543965 | AH198: EHCP | AI198: EHCP topups: Barnet maintained primary | AJ198: 11431 | AK198: EHCPpri.D | AL198: EHCP topup - Primary Band D | AM198: 7 | AN198: 7 | AP198: stmttopuppri
A199: 3022009 | B199: Brunswick Park Primary & Nursery School | C199: 1101326 | D199: 2022-08-01 | E199: 2023-03-31 | F199: NC Year 5 | G199: NC Year 6 | H199: Primary | I199: Barnet | J199: B | K199: 1 | L199: 0 | M199: 5285 | N199: 5285 | O199: 5285 | P199: 5285 | Q199: 0 | R199: 1 | S199: 4 | T199: 3 | U199: 0 | V199: 440.42 | W199: 1761.67 | X199: 1321.25 | Y199: 3523.34 | Z199: Primary | AA199: 0 | AB199: 1 | AC199: 4 | AD199: 3 | AE199: 543965 | AH199: EHCP | AI199: EHCP topups: Barnet maintained primary | AJ199: 11431 | AK199: EHCPpri.B | AL199: EHCP topup - Primary Band B | AM199: 8 | AN199: 8 | AP199: stmttopuppri
A200: 3022009 | B200: Brunswick Park Primary & Nursery School | C200: 1157986 | D200: 2022-10-01 | E200: 2023-03-31 | F200: 0 | G200: Reception | H200: Primary | I200: Barnet | J200: C | K200: 1 | L200: 0 | M200: 8137 | N200: 8137 | O200: 8137 | P200: 8137 | Q200: 0 | R200: 0 | S200: 3 | T200: 3 | U200: 0 | V200: 0 | W200: 2034.25 | X200: 2034.25 | Y200: 4068.5 | Z200: Primary | AA200: 0 | AB200: 0 | AC200: 3 | AD200: 3 | AE200: 543965 | AH200: EHCP | AI200: EHCP topups: Barnet maintained primary | AJ200: 11431 | AK200: EHCPpri.C | AL200: EHCP topup - Primary Band C | AM200: 6 | AN200: 6 | AP200: stmttopuppri
... 2050 more rows

Sheet Calendar (hidden)
A1: Day | B1: Day | C1: Term | D1: Holiday | E1: Count | F1: Comment
A2: 2021-04-01 | B2: =TEXT(A2, "DDDD") -> Thursday | C2: Holiday | D2: =IF(AND(C2="Holiday",B2<>"Saturday",B2<>"Sunday"),A2,0) -> 2021-04-01 | E2: =IF(AND(DAY(A2)=1,MONTH(A2)=4,OR(B2="Saturday",B2="Sunday",C2="Holiday")),0,IF(AND(DAY(A2)=1,MONTH(A2)=4,B2<>"Saturday",B2<>"Sunday",C2<>"Holiday"),1,IF(OR(B2="Saturday",B2="Sunday",C2="Holiday"),E1,E1+1))) -> 0
A3: =A2+1 -> 2021-04-02 | B3: =TEXT(A3, "DDDD") -> Friday | C3: Holiday | D3: =IF(AND(C3="Holiday",B3<>"Saturday",B3<>"Sunday"),A3,0) -> 2021-04-02 | E3: =IF(AND(DAY(A3)=1,MONTH(A3)=4,OR(B3="Saturday",B3="Sunday",C3="Holiday")),0,IF(AND(DAY(A3)=1,MONTH(A3)=4,B3<>"Saturday",B3<>"Sunday",C3<>"Holiday"),1,IF(OR(B3="Saturday",B3="Sunday",C3="Holiday"),E2,E2+1))) -> 0
A4: =A3+1 -> 2021-04-03 | B4: Saturday | C4: Holiday | D4: 00:00:00 | E4: 0
A5: 2021-04-04 | B5: Sunday | C5: Holiday | D5: 00:00:00 | E5: 0
A6: 2021-04-05 | B6: Monday | C6: Holiday | D6: 2021-04-05 | E6: 0
A7: 2021-04-06 | B7: Tuesday | C7: Holiday | D7: 2021-04-06 | E7: 0
A8: 2021-04-07 | B8: Wednesday | C8: Holiday | D8: 2021-04-07 | E8: 0
A9: 2021-04-08 | B9: Thursday | C9: Holiday | D9: 2021-04-08 | E9: 0
A10: 2021-04-09 | B10: Friday | C10: Holiday | D10: 2021-04-09 | E10: 0
A11: 2021-04-10 | B11: Saturday | C11: Holiday | D11: 00:00:00 | E11: 0
A12: 2021-04-11 | B12: Sunday | C12: Holiday | D12: 00:00:00 | E12: 0
A13: 2021-04-12 | B13: Monday | C13: Holiday | D13: 2021-04-12 | E13: 0
A14: 2021-04-13 | B14: Tuesday | C14: Holiday | D14: 2021-04-13 | E14: 0
A15: 2021-04-14 | B15: Wednesday | C15: Holiday | D15: 2021-04-14 | E15: 0
A16: 2021-04-15 | B16: Thursday | C16: Holiday | D16: 2021-04-15 | E16: 0
A17: =A16+1 -> 2021-04-16 | B17: Friday | C17: Holiday | D17: 2021-04-16 | E17: 0
A18: 2021-04-17 | B18: Saturday | D18: 00:00:00 | E18: 0
A19: 2021-04-18 | B19: Sunday | D19: 00:00:00 | E19: 0
A20: 2021-04-19 | B20: Monday | C20: Holiday | D20: 2021-04-19 | E20: 0 | F20: Inset
A21: 2021-04-20 | B21: Tuesday | D21: 00:00:00 | E21: 1
A22: 2021-04-21 | B22: Wednesday | D22: 00:00:00 | E22: 2
A23: 2021-04-22 | B23: Thursday | D23: 00:00:00 | E23: 3
A24: =A23+1 -> 2021-04-23 | B24: Friday | D24: 00:00:00 | E24: 4
A25: 2021-04-24 | B25: Saturday | D25: 00:00:00 | E25: 4
A26: 2021-04-25 | B26: Sunday | D26: 00:00:00 | E26: 4
A27: 2021-04-26 | B27: Monday | D27: 00:00:00 | E27: 5
A28: 2021-04-27 | B28: Tuesday | D28: 00:00:00 | E28: 6
A29: 2021-04-28 | B29: Wednesday | D29: 00:00:00 | E29: 7
A30: 2021-04-29 | B30: Thursday | D30: 00:00:00 | E30: 8
A31: 2021-04-30 | B31: Friday | D31: 00:00:00 | E31: 9
A32: 2021-05-01 | B32: Saturday | D32: 00:00:00 | E32: 9
A33: 2021-05-02 | B33: Sunday | D33: 00:00:00 | E33: 9
A34: 2021-05-03 | B34: Monday | D34: 00:00:00 | E34: 10
A35: 2021-05-04 | B35: Tuesday | D35: 00:00:00 | E35: 11
A36: 2021-05-05 | B36: Wednesday | D36: 00:00:00 | E36: 12
A37: 2021-05-06 | B37: Thursday | D37: 00:00:00 | E37: 13
A38: 2021-05-07 | B38: Friday | D38: 00:00:00 | E38: 14
A39: 2021-05-08 | B39: Saturday | D39: 00:00:00 | E39: 14
A40: 2021-05-09 | B40: Sunday | D40: 00:00:00 | E40: 14
A41: 2021-05-10 | B41: Monday | D41: 00:00:00 | E41: 15
A42: 2021-05-11 | B42: Tuesday | D42: 00:00:00 | E42: 16
A43: 2021-05-12 | B43: Wednesday | D43: 00:00:00 | E43: 17
A44: 2021-05-13 | B44: Thursday | D44: 00:00:00 | E44: 18
A45: 2021-05-14 | B45: Friday | D45: 00:00:00 | E45: 19
A46: 2021-05-15 | B46: Saturday | D46: 00:00:00 | E46: 19
A47: 2021-05-16 | B47: Sunday | D47: 00:00:00 | E47: 19
A48: 2021-05-17 | B48: Monday | D48: 00:00:00 | E48: 20
A49: 2021-05-18 | B49: Tuesday | D49: 00:00:00 | E49: 21
A50: 2021-05-19 | B50: Wednesday | D50: 00:00:00 | E50: 22
A51: 2021-05-20 | B51: Thursday | D51: 00:00:00 | E51: 23
A52: 2021-05-21 | B52: Friday | D52: 00:00:00 | E52: 24
A53: 2021-05-22 | B53: Saturday | D53: 00:00:00 | E53: 24
A54: 2021-05-23 | B54: Sunday | D54: 00:00:00 | E54: 24
A55: 2021-05-24 | B55: Monday | D55: 00:00:00 | E55: 25
A56: 2021-05-25 | B56: Tuesday | D56: 00:00:00 | E56: 26
A57: 2021-05-26 | B57: Wednesday | D57: 00:00:00 | E57: 27
A58: 2021-05-27 | B58: Thursday | D58: 00:00:00 | E58: 28
A59: 2021-05-28 | B59: Friday | D59: 00:00:00 | E59: 29
A60: 2021-05-29 | B60: Saturday | D60: 00:00:00 | E60: 29
A61: 2021-05-30 | B61: Sunday | D61: 00:00:00 | E61: 29
A62: 2021-05-31 | B62: Monday | C62: Holiday | D62: 2021-05-31 | E62: 29
A63: 2021-06-01 | B63: Tuesday | C63: Holiday | D63: 2021-06-01 | E63: 29
A64: 2021-06-02 | B64: Wednesday | C64: Holiday | D64: 2021-06-02 | E64: 29
A65: 2021-06-03 | B65: Thursday | C65: Holiday | D65: 2021-06-03 | E65: 29
A66: 2021-06-04 | B66: Friday | C66: Holiday | D66: 2021-06-04 | E66: 29
A67: 2021-06-05 | B67: =TEXT(A67, "DDDD") -> Saturday | D67: =IF(AND(C67="Holiday",B67<>"Saturday",B67<>"Sunday"),A67,0) -> 00:00:00 | E67: =IF(AND(DAY(A67)=1,MONTH(A67)=4,OR(B67="Saturday",B67="Sunday",C67="Holiday")),0,IF(AND(DAY(A67)=1,MONTH(A67)=4,B67<>"Saturday",B67<>"Sunday",C67<>"Holiday"),1,IF(OR(B67="Saturday",B67="Sunday",C67="Holiday"),E66,E66+1))) -> 29
A68: =A67+1 -> 2021-06-06 | B68: Sunday | D68: 00:00:00 | E68: 29
A69: 2021-06-07 | B69: Monday | C69: Holiday | D69: 2021-06-07 | E69: 29 | F69: Inset
A70: 2021-06-08 | B70: Tuesday | D70: 00:00:00 | E70: 30
A71: 2021-06-09 | B71: Wednesday | D71: 00:00:00 | E71: 31
A72: 2021-06-10 | B72: Thursday | D72: 00:00:00 | E72: 32
A73: 2021-06-11 | B73: Friday | D73: 00:00:00 | E73: 33
A74: 2021-06-12 | B74: Saturday | D74: 00:00:00 | E74: 33
A75: 2021-06-13 | B75: Sunday | D75: 00:00:00 | E75: 33
A76: 2021-06-14 | B76: Monday | D76: 00:00:00 | E76: 34
A77: 2021-06-15 | B77: Tuesday | D77: 00:00:00 | E77: 35
A78: 2021-06-16 | B78: Wednesday | D78: 00:00:00 | E78: 36
A79: 2021-06-17 | B79: Thursday | D79: 00:00:00 | E79: 37
A80: 2021-06-18 | B80: Friday | D80: 00:00:00 | E80: 38
A81: 2021-06-19 | B81: Saturday | D81: 00:00:00 | E81: 38
A82: 2021-06-20 | B82: Sunday | D82: 00:00:00 | E82: 38
A83: 2021-06-21 | B83: Monday | D83: 00:00:00 | E83: 39
A84: 2021-06-22 | B84: Tuesday | D84: 00:00:00 | E84: 40
A85: 2021-06-23 | B85: Wednesday | D85: 00:00:00 | E85: 41
A86: 2021-06-24 | B86: Thursday | D86: 00:00:00 | E86: 42
A87: 2021-06-25 | B87: Friday | D87: 00:00:00 | E87: 43
A88: 2021-06-26 | B88: Saturday | D88: 00:00:00 | E88: 43
A89: 2021-06-27 | B89: Sunday | D89: 00:00:00 | E89: 43
A90: 2021-06-28 | B90: Monday | D90: 00:00:00 | E90: 44
A91: 2021-06-29 | B91: Tuesday | D91: 00:00:00 | E91: 45
A92: 2021-06-30 | B92: Wednesday | D92: 00:00:00 | E92: 46
A93: 2021-07-01 | B93: Thursday | D93: 00:00:00 | E93: 47
A94: 2021-07-02 | B94: Friday | D94: 00:00:00 | E94: 48
A95: 2021-07-03 | B95: Saturday | D95: 00:00:00 | E95: 48
A96: 2021-07-04 | B96: Sunday | D96: 00:00:00 | E96: 48
A97: 2021-07-05 | B97: Monday | D97: 00:00:00 | E97: 49
A98: 2021-07-06 | B98: Tuesday | D98: 00:00:00 | E98: 50
A99: 2021-07-07 | B99: Wednesday | D99: 00:00:00 | E99: 51
A100: 2021-07-08 | B100: Thursday | D100: 00:00:00 | E100: 52
A101: 2021-07-09 | B101: Friday | D101: 00:00:00 | E101: 53
A102: 2021-07-10 | B102: Saturday | D102: 00:00:00 | E102: 53
A103: 2021-07-11 | B103: Sunday | D103: 00:00:00 | E103: 53
A104: 2021-07-12 | B104: Monday | D104: 00:00:00 | E104: 54
A105: 2021-07-13 | B105: Tuesday | D105: 00:00:00 | E105: 55
A106: 2021-07-14 | B106: Wednesday | D106: 00:00:00 | E106: 56
A107: 2021-07-15 | B107: Thursday | D107: 00:00:00 | E107: 57
A108: 2021-07-16 | B108: Friday | D108: 00:00:00 | E108: 58
A109: 2021-07-17 | B109: Saturday | D109: 00:00:00 | E109: 58
A110: 2021-07-18 | B110: Sunday | D110: 00:00:00 | E110: 58
A111: 2021-07-19 | B111: Monday | D111: 00:00:00 | E111: 59
A112: 2021-07-20 | B112: Tuesday | D112: 00:00:00 | E112: 60
A113: 2021-07-21 | B113: Wednesday | D113: 00:00:00 | E113: 61
A114: 2021-07-22 | B114: Thursday | D114: 00:00:00 | E114: 62
A115: 2021-07-23 | B115: Friday | C115: Holiday | D115: 2021-07-23 | E115: 62
A116: 2021-07-24 | B116: Saturday | D116: 00:00:00 | E116: 62
A117: 2021-07-25 | B117: Sunday | D117: 00:00:00 | E117: 62
A118: 2021-07-26 | B118: Monday | C118: Holiday | D118: 2021-07-26 | E118: 62
A119: 2021-07-27 | B119: Tuesday | C119: Holiday | D119: 2021-07-27 | E119: 62
A120: 2021-07-28 | B120: Wednesday | C120: Holiday | D120: 2021-07-28 | E120: 62
A121: 2021-07-29 | B121: Thursday | C121: Holiday | D121: 2021-07-29 | E121: 62
A122: 2021-07-30 | B122: Friday | C122: Holiday | D122: 2021-07-30 | E122: 62
A123: 2021-07-31 | B123: Saturday | C123: Holiday | D123: 00:00:00 | E123: 62
A124: 2021-08-01 | B124: Sunday | C124: Holiday | D124: 00:00:00 | E124: 62
A125: 2021-08-02 | B125: Monday | C125: Holiday | D125: 2021-08-02 | E125: 62
A126: 2021-08-03 | B126: Tuesday | C126: Holiday | D126: 2021-08-03 | E126: 62
A127: 2021-08-04 | B127: Wednesday | C127: Holiday | D127: 2021-08-04 | E127: 62
A128: 2021-08-05 | B128: Thursday | C128: Holiday | D128: 2021-08-05 | E128: 62
A129: 2021-08-06 | B129: Friday | C129: Holiday | D129: 2021-08-06 | E129: 62
A130: 2021-08-07 | B130: Saturday | C130: Holiday | D130: 00:00:00 | E130: 62
A131: 2021-08-08 | B131: =TEXT(A131, "DDDD") -> Sunday | C131: Holiday | D131: =IF(AND(C131="Holiday",B131<>"Saturday",B131<>"Sunday"),A131,0) -> 00:00:00 | E131: =IF(AND(DAY(A131)=1,MONTH(A131)=4,OR(B131="Saturday",B131="Sunday",C131="Holiday")),0,IF(AND(DAY(A131)=1,MONTH(A131)=4,B131<>"Saturday",B131<>"Sunday",C131<>"Holiday"),1,IF(OR(B131="Saturday",B131="Sunday",C131="Holiday"),E130,E130+1))) -> 62
A132: =A131+1 -> 2021-08-09 | B132: Monday | C132: Holiday | D132: 2021-08-09 | E132: 62
A133: 2021-08-10 | B133: Tuesday | C133: Holiday | D133: 2021-08-10 | E133: 62
A134: 2021-08-11 | B134: Wednesday | C134: Holiday | D134: 2021-08-11 | E134: 62
A135: 2021-08-12 | B135: Thursday | C135: Holiday | D135: 2021-08-12 | E135: 62
A136: 2021-08-13 | B136: Friday | C136: Holiday | D136: 2021-08-13 | E136: 62
A137: 2021-08-14 | B137: Saturday | C137: Holiday | D137: 00:00:00 | E137: 62
A138: 2021-08-15 | B138: Sunday | C138: Holiday | D138: 00:00:00 | E138: 62
A139: 2021-08-16 | B139: Monday | C139: Holiday | D139: 2021-08-16 | E139: 62
A140: 2021-08-17 | B140: Tuesday | C140: Holiday | D140: 2021-08-17 | E140: 62
A141: 2021-08-18 | B141: Wednesday | C141: Holiday | D141: 2021-08-18 | E141: 62
A142: 2021-08-19 | B142: Thursday | C142: Holiday | D142: 2021-08-19 | E142: 62
A143: 2021-08-20 | B143: Friday | C143: Holiday | D143: 2021-08-20 | E143: 62
A144: 2021-08-21 | B144: Saturday | C144: Holiday | D144: 00:00:00 | E144: 62
A145: 2021-08-22 | B145: Sunday | C145: Holiday | D145: 00:00:00 | E145: 62
A146: 2021-08-23 | B146: Monday | C146: Holiday | D146: 2021-08-23 | E146: 62
A147: 2021-08-24 | B147: Tuesday | C147: Holiday | D147: 2021-08-24 | E147: 62
A148: 2021-08-25 | B148: Wednesday | C148: Holiday | D148: 2021-08-25 | E148: 62
A149: 2021-08-26 | B149: Thursday | C149: Holiday | D149: 2021-08-26 | E149: 62
A150: 2021-08-27 | B150: Friday | C150: Holiday | D150: 2021-08-27 | E150: 62
A151: 2021-08-28 | B151: Saturday | C151: Holiday | D151: 00:00:00 | E151: 62
A152: 2021-08-29 | B152: Sunday | C152: Holiday | D152: 00:00:00 | E152: 62
A153: 2021-08-30 | B153: Monday | C153: Holiday | D153: 2021-08-30 | E153: 62
A154: 2021-08-31 | B154: Tuesday | C154: Holiday | D154: 2021-08-31 | E154: 62
A155: 2021-09-01 | B155: Wednesday | C155: Holiday | D155: 2021-09-01 | E155: 62 | F155: Inset
A156: 2021-09-02 | B156: Thursday | D156: 00:00:00 | E156: 63
A157: 2021-09-03 | B157: Friday | D157: 00:00:00 | E157: 64
A158: 2021-09-04 | B158: Saturday | D158: 00:00:00 | E158: 64
A159: 2021-09-05 | B159: Sunday | D159: 00:00:00 | E159: 64
A160: 2021-09-06 | B160: Monday | D160: 00:00:00 | E160: 65
A161: 2021-09-07 | B161: Tuesday | D161: 00:00:00 | E161: 66
A162: 2021-09-08 | B162: Wednesday | D162: 00:00:00 | E162: 67
A163: 2021-09-09 | B163: Thursday | D163: 00:00:00 | E163: 68
A164: 2021-09-10 | B164: Friday | D164: 00:00:00 | E164: 69
A165: 2021-09-11 | B165: Saturday | D165: 00:00:00 | E165: 69
A166: 2021-09-12 | B166: Sunday | D166: 00:00:00 | E166: 69
A167: 2021-09-13 | B167: Monday | D167: 00:00:00 | E167: 70
A168: 2021-09-14 | B168: Tuesday | D168: 00:00:00 | E168: 71
A169: 2021-09-15 | B169: Wednesday | D169: 00:00:00 | E169: 72
A170: 2021-09-16 | B170: Thursday | D170: 00:00:00 | E170: 73
A171: 2021-09-17 | B171: Friday | D171: 00:00:00 | E171: 74
A172: 2021-09-18 | B172: Saturday | D172: 00:00:00 | E172: 74
A173: 2021-09-19 | B173: Sunday | D173: 00:00:00 | E173: 74
A174: 2021-09-20 | B174: Monday | D174: 00:00:00 | E174: 75
A175: 2021-09-21 | B175: Tuesday | D175: 00:00:00 | E175: 76
A176: 2021-09-22 | B176: Wednesday | D176: 00:00:00 | E176: 77
A177: 2021-09-23 | B177: Thursday | D177: 00:00:00 | E177: 78
A178: 2021-09-24 | B178: Friday | D178: 00:00:00 | E178: 79
A179: 2021-09-25 | B179: Saturday | D179: 00:00:00 | E179: 79
A180: 2021-09-26 | B180: Sunday | D180: 00:00:00 | E180: 79
A181: 2021-09-27 | B181: Monday | D181: 00:00:00 | E181: 80
A182: 2021-09-28 | B182: Tuesday | D182: 00:00:00 | E182: 81
A183: 2021-09-29 | B183: Wednesday | D183: 00:00:00 | E183: 82
A184: 2021-09-30 | B184: Thursday | D184: 00:00:00 | E184: 83
A185: 2021-10-01 | B185: Friday | D185: 00:00:00 | E185: 84
A186: 2021-10-02 | B186: Saturday | D186: 00:00:00 | E186: 84
A187: 2021-10-03 | B187: Sunday | D187: 00:00:00 | E187: 84
A188: 2021-10-04 | B188: Monday | D188: 00:00:00 | E188: 85
A189: 2021-10-05 | B189: Tuesday | D189: 00:00:00 | E189: 86
A190: 2021-10-06 | B190: Wednesday | D190: 00:00:00 | E190: 87
A191: 2021-10-07 | B191: Thursday | D191: 00:00:00 | E191: 88
A192: 2021-10-08 | B192: Friday | D192: 00:00:00 | E192: 89
A193: 2021-10-09 | B193: Saturday | D193: 00:00:00 | E193: 89
A194: 2021-10-10 | B194: Sunday | D194: 00:00:00 | E194: 89
A195: 2021-10-11 | B195: =TEXT(A195, "DDDD") -> Monday | D195: =IF(AND(C195="Holiday",B195<>"Saturday",B195<>"Sunday"),A195,0) -> 00:00:00 | E195: =IF(AND(DAY(A195)=1,MONTH(A195)=4,OR(B195="Saturday",B195="Sunday",C195="Holiday")),0,IF(AND(DAY(A195)=1,MONTH(A195)=4,B195<>"Saturday",B195<>"Sunday",C195<>"Holiday"),1,IF(OR(B195="Saturday",B195="Sunday",C195="Holiday"),E194,E194+1))) -> 90
A196: =A195+1 -> 2021-10-12 | B196: Tuesday | D196: 00:00:00 | E196: 91
A197: 2021-10-13 | B197: Wednesday | D197: 00:00:00 | E197: 92
A198: 2021-10-14 | B198: Thursday | D198: 00:00:00 | E198: 93
A199: 2021-10-15 | B199: Friday | D199: 00:00:00 | E199: 94
A200: 2021-10-16 | B200: Saturday | D200: 00:00:00 | E200: 94
... 531 more rows

Sheet Schools (hidden)
A1: Information required for schools | C1: Please do not add or delete columns except at the end.
A2: 2019-12-30
A3: 1 | B3: 2 | C3: 3 | D3: 4 | E3: 5 | F3: 6 | G3: 7 | H3: 8 | I3: 9 | J3: 10 | K3: 11 | L3: 12 | M3: 13 | N3: 14 | O3: 15 | P3: 16 | Q3: 17 | R3: 18 | S3: 19 | T3: 20
Z4: SORT(UNIQUE(FILTER(INDEX(Funding!A:AP,SEQUENCE(ROWS(Funding!A:AP)),XMATCH(A19:B19,Funding!A1:AP1,0,1)),Funding!A:A=H3,"No Records")))
A5: DfENo | B5: Name | C5: Academy /Maintained | D5: Sector | E5: Governance | F5: Federation | G5: URN | H5: Spare | I5: Supplier / Vendor | J5: Costcentre | K5: Nursery | L5: Infants | M5: Juniors | N5: Secondary | O5: Post16 | P5: ARP | Q5: 20/21 PayOption | R5: GL to charge | S5: % Payroll | T5: DfENo again | Z5: Validation List Prep
A6: 0 | B6: Please choose a school | C6: None | D6: 0 | G6: 0 | I6: 0 | J6: 0 | K6: 0 | L6: 0 | M6: 0 | N6: 0 | O6: 0 | P6: 0 | Q6: 0 | R6: 0 | S6: 0 | T6: =A6 -> 0 | Y6: Akiva School | Z6: =_xlfn._xlws.SORT(_xlfn._xlws.FILTER(B8:B143,(ISNUMBER(SEARCH('Payment Report'!D3,B8:B143)))*(NOT(ISBLANK(B8:B143))),"Not Found")) -> Akiva School | AB6: =OFFSET(Schools!$Z$6,0,0,COUNTA(Schools!$Z$6:$Z$200),1) -> Akiva School
C7: None | D7: 0 | G7: 0 | I7: 0 | J7: 0 | K7: 0 | L7: 0 | M7: 0 | N7: 0 | O7: 0 | P7: 0 | Q7: 0 | R7: 0 | S7: 0 | T7: =A7 -> 0 | Y7: All Saints' CE Primary School NW2 | Z7: All Saints' CE Primary School NW2 | AB7: All Saints' CE Primary School NW2
A8: 3020135 | B8: BEYA | C8: M | D8: Nursery | E8: Community | F8: 3020135 | G8: 101251 | I8: 400102 | J8: 10135 | K8: Yes | L8: No | M8: No | N8: No | O8: No | P8: No | Q8: A | R8: 543965 | S8: 0.85 | T8: 3020135 | Y8: All Saints' CE Primary School, N20 | Z8: All Saints' CE Primary School, N20 | AB8: All Saints' CE Primary School, N20
A9: 3021000 | B9: Brookhill Nursery | C9: M | D9: Nursery | E9: Community | F9: 3020135 | G9: 101251 | I9: 400102 | J9: 10130 | K9: Yes | L9: No | M9: No | N9: No | O9: No | P9: No | Q9: A | R9: 543965 | S9: 0.85 | T9: 3021000 | Y9: Alma Primary | Z9: Alma Primary | AB9: Alma Primary
A10: 3021001 | B10: Hampden Way Nursery | C10: M | D10: Nursery | E10: Community | F10: 3020135 | G10: 101252 | I10: 400102 | J10: 10131 | K10: Yes | L10: No | M10: No | N10: No | O10: No | P10: No | Q10: A | R10: 543965 | S10: 0.85 | T10: 3021001 | Y10: Annunciation Catholic Infant School | Z10: Annunciation Catholic Infant School | AB10: Annunciation Catholic Infant School
A11: 3021003 | B11: St Margaret's Nursery | C11: M | D11: Nursery | E11: Community | F11: 3020135 | G11: 101254 | I11: 400102 | J11: 10133 | K11: Yes | L11: No | M11: No | N11: No | O11: No | P11: No | Q11: A | R11: 543965 | S11: 0.85 | T11: 3021003 | Y11: Annunciation Catholic Junior School | Z11: Annunciation Catholic Junior School | AB11: Annunciation Catholic Junior School
A12: 3021002 | B12: Moss Hall Nursery | C12: M | D12: Nursery | E12: Community | F12: 3021002 | G12: 101253 | I12: 400072 | J12: 10132 | K12: Yes | L12: No | M12: No | N12: No | O12: No | P12: No | Q12: A | R12: 543965 | S12: 0.85 | T12: 3021002 | Y12: Archer Academy | Z12: Archer Academy | AB12: Archer Academy
C13: None | D13: 0 | F13: 0 | G13: 0 | I13: 0 | J13: 0 | K13: 0 | M13: 0 | N13: No | O13: 0 | P13: 0 | Q13: 0 | R13: 0 | S13: 0 | T13: 0 | Y13: ARK Pioneer Academy | Z13: ARK Pioneer Academy | AB13: ARK Pioneer Academy
A14: 3023520 | B14: Akiva School | C14: M | D14: Primary | E14: Voluntary Aided | F14: 3023520 | G14: 135086 | I14: 400125 | J14: 11094 | K14: No | L14: Yes | M14: Yes | N14: No | O14: No | P14: No | Q14: C | R14: 543965 | S14: 0.95 | T14: 3023520 | Y14: Ashmole Academy | Z14: Ashmole Academy | AB14: Ashmole Academy
A15: 3023300 | B15: All Saints' CE Primary School NW2 | C15: M | D15: Primary | E15: Voluntary Aided | F15: 3023300 | G15: 101315 | I15: 400069 | J15: 10040 | K15: No | L15: Yes | M15: Yes | N15: No | O15: No | P15: No | Q15: A | R15: 543965 | S15: 0.85 | T15: 3023300 | Y15: Ashmole Primary School | Z15: Ashmole Primary School | AB15: Ashmole Primary School
A16: 3023317 | B16: All Saints' CE Primary School, N20 | C16: M | D16: Primary | E16: Voluntary Aided | F16: 3023317 | G16: 101329 | I16: 400015 | J16: 10042 | K16: Yes | L16: Yes | M16: Yes | N16: No | O16: No | P16: No | Q16: A | R16: 543965 | S16: 0.85 | T16: 3023317 | Y16: Barnfield School | Z16: Barnfield School | AB16: Barnfield School
A17: 3022020 | B17: Alma Primary | C17: A | D17: Primary | E17: Free School | F17: 3022020 | G17: 139562 | I17: 156270 | J17: Academy | K17: No | L17: Yes | M17: Yes | N17: No | O17: No | P17: No | Q17: Academy | R17: 516500 | S17: 0 | T17: 3022020 | Y17: Beis Yaakov | Z17: Beis Yaakov | AB17: Beis Yaakov
A18: 3023500 | B18: Annunciation Catholic Infant School | C18: M | D18: Primary | E18: Voluntary Aided | F18: 3023500 | G18: 101330 | I18: 400023 | J18: 10043 | K18: Yes | L18: Yes | M18: No | N18: No | O18: No | P18: No | Q18: A | R18: 543965 | S18: 0.85 | T18: 3023500 | Y18: Beit Shvidler Primary School | Z18: Beit Shvidler Primary School | AB18: Beit Shvidler Primary School
A19: 3023514 | B19: Annunciation Catholic Junior School | C19: M | D19: Primary | E19: Voluntary Aided | F19: 3023514 | G19: 101342 | I19: 400107 | J19: 10117 | K19: No | L19: No | M19: Yes | N19: No | O19: No | P19: No | Q19: A | R19: 543965 | S19: 0.85 | T19: 3023514 | Y19: Bell Lane Primary School | Z19: Bell Lane Primary School | AB19: Bell Lane Primary School
A20: 3022050 | B20: Ashmole Primary School | C20: A | D20: Primary | E20: Free School | F20: 3022050 | G20: 142772 | I20: 157839 | J20: Academy | K20: No | L20: Yes | M20: Yes | N20: No | O20: No | P20: No | Q20: Academy | R20: 516500 | S20: 0 | T20: 3022050 | Y20: BEYA | Z20: BEYA | AB20: BEYA
A21: 3022002 | B21: Barnfield School | C21: M | D21: Primary | E21: Community | F21: 3022002 | G21: 101258 | I21: 400005 | J21: 10044 | K21: Yes | L21: Yes | M21: Yes | N21: No | O21: No | P21: No | Q21: D | R21: 543965 | S21: 0 | T21: 3022002 | Y21: Bishop Douglass Academy | Z21: Bishop Douglass Academy | AB21: Bishop Douglass Academy
A22: 3022079 | B22: Beis Yaakov | C22: M | D22: Primary | E22: Voluntary Aided | F22: 3022079 | G22: 133365 | I22: 400070 | J22: 10128 | K22: Yes | L22: Yes | M22: Yes | N22: No | O22: No | P22: No | Q22: A | R22: 543965 | S22: 0.804 | T22: 3022079 | Y22: Blessed Dominic School | Z22: Blessed Dominic School | AB22: Blessed Dominic School
A23: 3023524 | B23: Beit Shvidler Primary School | C23: M | D23: Primary | E23: Voluntary Aided | F23: 3023524 | G23: 136402 | I23: 400150 | J23: 11278 | K23: Yes | L23: Yes | M23: Yes | N23: No | O23: No | P23: No | Q23: C | R23: 543965 | S23: 0.85 | T23: 3023524 | Y23: Broadfields Primary School | Z23: Broadfields Primary School | AB23: Broadfields Primary School
A24: 3022003 | B24: Bell Lane Primary School | C24: M | D24: Primary | E24: Community | F24: 3022003 | G24: 101259 | I24: 400051 | J24: 10045 | K24: Yes | L24: Yes | M24: Yes | N24: No | O24: No | P24: No | Q24: A | R24: 543965 | S24: 0.85 | T24: 3022003 | Y24: Brookhill Nursery | Z24: Brookhill Nursery | AB24: Brookhill Nursery
A25: 3023511 | B25: Blessed Dominic School | C25: M | D25: Primary | E25: Voluntary Aided | F25: 3023511 | G25: 101339 | I25: 400024 | J25: 10115 | K25: Yes | L25: Yes | M25: Yes | N25: No | O25: No | P25: No | Q25: A | R25: 543965 | S25: 0.85 | T25: 3023511 | Y25: Brookland Infant & Nursery School | Z25: Brookland Infant & Nursery School | AB25: Brookland Infant & Nursery School
A26: 3023519 | B26: Broadfields Primary School | C26: A | D26: Primary | E26: Academy | F26: 3023519 | G26: 140236 | I26: 152128 | J26: Academy | K26: Yes | L26: Yes | M26: Yes | N26: No | O26: No | P26: Yes | Q26: Academy | R26: 516500 | S26: 0 | T26: 3023519 | Y26: Brookland Junior School | Z26: Brookland Junior School | AB26: Brookland Junior School
A27: 3022008 | B27: Brookland Infant & Nursery School | C27: M | D27: Primary | E27: Community | F27: 3022008 | G27: 101263 | I27: 400057 | J27: 10047 | K27: Yes | L27: Yes | M27: No | N27: No | O27: No | P27: No | Q27: D | R27: 543965 | S27: 0 | T27: 3022008 | Y27: Brunswick Park Primary & Nursery School | Z27: Brunswick Park Primary & Nursery School | AB27: Brunswick Park Primary & Nursery School
A28: 3022007 | B28: Brookland Junior School | C28: M | D28: Primary | E28: Community | F28: 3022007 | G28: 101262 | I28: 400040 | J28: 10046 | K28: No | L28: No | M28: Yes | N28: No | O28: No | P28: No | Q28: D | R28: 543965 | S28: 0 | T28: 3022007 | Y28: Chalgrove Primary School | Z28: Chalgrove Primary School | AB28: Chalgrove Primary School
A29: 3022009 | B29: Brunswick Park Primary & Nursery School | C29: M | D29: Primary | E29: Community | F29: 3022009 | G29: 101264 | I29: 400061 | J29: 10048 | K29: Yes | L29: Yes | M29: Yes | N29: No | O29: No | P29: No | Q29: A | R29: 543965 | S29: 0.85 | T29: 3022009 | Y29: Child's Hill Academy | Z29: Child's Hill Academy | AB29: Child's Hill Academy
A30: 3022067 | B30: Chalgrove Primary School | C30: M | D30: Primary | E30: Community | F30: 3022067 | G30: 101309 | I30: 400065 | J30: 10118 | K30: No | L30: Yes | M30: Yes | N30: No | O30: No | P30: Yes | Q30: A | R30: 543965 | S30: 0.85 | T30: 3022067 | Y30: Christ Church CE Primary School | Z30: Christ Church CE Primary School | AB30: Christ Church CE Primary School
A31: 3022010 | B31: Child's Hill Academy | C31: A | D31: Primary | E31: Academy | F31: 3022010 | G31: 101265 | I31: 160141 | J31: Academy | K31: Yes | L31: Yes | M31: Yes | N31: No | O31: No | P31: Yes | Q31: Academy | R31: 516500 | S31: 0 | T31: 3022010 | Y31: Christ's College Finchley | Z31: Christ's College Finchley | AB31: Christ's College Finchley
A32: 3023302 | B32: Christ Church CE Primary School | C32: M | D32: Primary | E32: Voluntary Aided | F32: 3023302 | G32: 101316 | I32: 400039 | J32: 10050 | K32: Yes | L32: Yes | M32: Yes | N32: No | O32: No | P32: No | Q32: D | R32: 543965 | S32: 0 | T32: 3023302 | Y32: Church Hill Primary School | Z32: Church Hill Primary School | AB32: Church Hill Primary School
A33: 3022011 | B33: Church Hill Primary School | C33: M | D33: Primary | E33: Community | F33: 3022011 | G33: 101266 | I33: 400020 | J33: 10051 | K33: No | L33: Yes | M33: Yes | N33: No | O33: No | P33: No | Q33: A | R33: 543965 | S33: 0.85 | T33: 3022011 | Y33: Claremont Academy | Z33: Claremont Academy | AB33: Claremont Academy
A34: 3023522 | B34: Claremont Academy | C34: A | D34: Primary | E34: Academy | F34: 3023522 | G34: 142636 | I34: 156151 | J34: Academy | K34: Yes | L34: Yes | M34: Yes | N34: No | O34: No | P34: No | Q34: Academy | R34: 516500 | S34: 0 | T34: 3023522 | Y34: Colindale School | Z34: Colindale School | AB34: Colindale School
A35: 3022014 | B35: Colindale School | C35: M | D35: Primary | E35: Community | F35: 3022014 | G35: 101269 | I35: 400050 | J35: 10054 | K35: Yes | L35: Yes | M35: Yes | N35: No | O35: No | P35: Yes | Q35: B | R35: 543965 | S35: 0 | T35: 3022014 | Y35: Compton School | Z35: Compton School | AB35: Compton School
A36: 3022015 | B36: Coppetts Wood | C36: M | D36: Primary | E36: Community | F36: 3022015 | G36: 101270 | I36: 400059 | J36: 10055 | K36: Yes | L36: Yes | M36: Yes | N36: No | O36: No | P36: yes | Q36: A | R36: 543965 | S36: 0.85 | T36: 3022015 | Y36: Coppetts Wood | Z36: Coppetts Wood | AB36: Coppetts Wood
A37: 3022016 | B37: Courtland School | C37: M | D37: Primary | E37: Community | F37: 3022016 | G37: 101271 | I37: 400049 | J37: 10056 | K37: No | L37: Yes | M37: Yes | N37: No | O37: No | P37: No | Q37: A | R37: 543965 | S37: 0.85 | T37: 3022016 | Y37: Copthall School | Z37: Copthall School | AB37: Copthall School
A38: 3022017 | B38: Cromer Road Primary School | C38: M | D38: Primary | E38: Community | F38: 3022017 | G38: 101272 | I38: 400080 | J38: 10057 | K38: No | L38: Yes | M38: Yes | N38: No | O38: No | P38: No | Q38: A | R38: 543965 | S38: 0.85 | T38: 3022017 | Y38: Courtland School | Z38: Courtland School | AB38: Courtland School
A39: 3022073 | B39: Danegrove JMI School | C39: M | D39: Primary | E39: Community | F39: 3022073 | G39: 101314 | I39: 400105 | J39: 10083 | K39: No | L39: Yes | M39: Yes | N39: No | O39: No | P39: No | Q39: B | R39: 543965 | S39: 0 | T39: 3022073 | Y39: Cromer Road Primary School | Z39: Cromer Road Primary School | AB39: Cromer Road Primary School
A40: 3022019 | B40: Deansbrook Infant School | C40: M | D40: Primary | E40: Community | F40: 3022019 | G40: 101274 | I40: 400036 | J40: 10059 | K40: Yes | L40: Yes | M40: No | N40: No | O40: No | P40: No | Q40: A | R40: 543965 | S40: 0.85 | T40: 3022019 | Y40: Danegrove JMI School | Z40: Danegrove JMI School | AB40: Danegrove JMI School
A41: 3022018 | B41: Deansbrook Junior School | C41: A | D41: Primary | E41: Academy | F41: 3022018 | G41: 139489 | I41: 151094 | J41: Academy | K41: No | L41: No | M41: Yes | N41: No | O41: No | P41: No | Q41: Academy | R41: 516500 | S41: 0 | T41: 3022018 | Y41: Deansbrook Infant School | Z41: Deansbrook Infant School | AB41: Deansbrook Infant School
A42: 3022021 | B42: Dollis Primary School | C42: M | D42: Primary | E42: Community | F42: 3022021 | G42: 101275 | I42: 400042 | J42: 10061 | K42: Yes | L42: Yes | M42: Yes | N42: No | O42: No | P42: No | Q42: D | R42: 543965 | S42: 0 | T42: 3022021 | Y42: Deansbrook Junior School | Z42: Deansbrook Junior School | AB42: Deansbrook Junior School
A43: 3022023 | B43: Edgware Primary School | C43: M | D43: Primary | E43: Community | F43: 3022023 | G43: 101277 | I43: 400159 | J43: 10063 | K43: Yes | L43: Yes | M43: Yes | N43: No | O43: No | P43: No | Q43: B | R43: 543965 | S43: 0 | T43: 3022023 | Y43: Dollis Primary School | Z43: Dollis Primary School | AB43: Dollis Primary School
A44: 3022001 | B44: Etz Chaim Jewish Primary School | C44: A | D44: Primary | E44: Free School | F44: 3022001 | G44: 136938 | I44: 143691 | J44: Academy | K44: Yes | L44: Yes | M44: Yes | N44: No | O44: No | P44: No | Q44: Academy | R44: 516500 | S44: 0 | T44: 3022001 | Y44: East Barnet School | Z44: East Barnet School | AB44: East Barnet School
A45: 3022024 | B45: Fairway Primary School | C45: M | D45: Primary | E45: Community | F45: 3022024 | G45: 101278 | I45: 400047 | J45: 10064 | K45: Yes | L45: Yes | M45: Yes | N45: No | O45: No | P45: No | Q45: A | R45: 543965 | S45: 0.85 | T45: 3022024 | Y45: Edgware Primary School | Z45: Edgware Primary School | AB45: Edgware Primary School
A46: 3022025 | B46: Foulds | C46: M | D46: Primary | E46: Community | F46: 3022025 | G46: 101279 | I46: 400001 | J46: 10065 | K46: No | L46: Yes | M46: Yes | N46: No | O46: No | P46: No | Q46: C | R46: 543965 | S46: 0.85 | T46: 3022025 | Y46: Etz Chaim Jewish Primary School | Z46: Etz Chaim Jewish Primary School | AB46: Etz Chaim Jewish Primary School
A47: 3022026 | B47: Frith Manor School | C47: M | D47: Primary | E47: Community | F47: 3022026 | G47: 101280 | I47: 400082 | J47: 10066 | K47: Yes | L47: Yes | M47: Yes | N47: No | O47: No | P47: No | Q47: A | R47: 543965 | S47: 0.85 | T47: 3022026 | Y47: Fairway Primary School | Z47: Fairway Primary School | AB47: Fairway Primary School
A48: 3022028 | B48: Garden Suburb Infant School | C48: M | D48: Primary | E48: Community | F48: 3022028 | G48: 101282 | I48: 400067 | J48: 10068 | K48: No | L48: Yes | M48: No | N48: No | O48: No | P48: No | Q48: A | R48: 543965 | S48: 0.85 | T48: 3022028 | Y48: Finchley Catholic High School | Z48: Finchley Catholic High School | AB48: Finchley Catholic High School
A49: 3022027 | B49: Garden Suburb Junior | C49: M | D49: Primary | E49: Community | F49: 3022027 | G49: 101281 | I49: 400002 | J49: 10067 | K49: No | L49: No | M49: Yes | N49: No | O49: No | P49: No | Q49: A | R49: 543965 | S49: 0.85 | T49: 3022027 | Y49: Foulds | Z49: Foulds | AB49: Foulds
A50: 3022029 | B50: Goldbeaters Primary School | C50: M | D50: Primary | E50: Community | F50: 3022029 | G50: 101283 | I50: 400035 | J50: 10069 | K50: Yes | L50: Yes | M50: Yes | N50: No | O50: No | P50: No | Q50: A | R50: 543965 | S50: 0.85 | T50: 3022029 | Y50: Friern Barnet School | Z50: Friern Barnet School | AB50: Friern Barnet School
A51: 3022030 | B51: Grasvenor Avenue Infants | C51: A | D51: Primary | E51: Academy | F51: 3022030 | G51: 138649 | I51: 148347 | J51: Academy | K51: No | L51: Yes | M51: Yes | N51: No | O51: No | P51: No | Q51: Academy | R51: 516500 | S51: 0 | T51: 3022030 | Y51: Frith Manor School | Z51: Frith Manor School | AB51: Frith Manor School
A52: 3023516 | B52: Hasmonean Primary School | C52: M | D52: Primary | E52: Voluntary Aided | F52: 3023516 | G52: 130998 | I52: 400108 | J52: 10121 | K52: Yes | L52: Yes | M52: Yes | N52: No | O52: No | P52: No | Q52: A | R52: 543965 | S52: 0.95 | T52: 3023516 | Y52: Garden Suburb Infant School | Z52: Garden Suburb Infant School | AB52: Garden Suburb Infant School
A53: 3022031 | B53: Hollickwood JMI School | C53: M | D53: Primary | E53: Foundation | F53: 3022031 | G53: 101285 | I53: 400026 | J53: 10071 | K53: Yes | L53: Yes | M53: Yes | N53: No | O53: No | P53: No | Q53: A | R53: 543965 | S53: 0.85 | T53: 3022031 | Y53: Garden Suburb Junior | Z53: Garden Suburb Junior | AB53: Garden Suburb Junior
A54: 3022032 | B54: Holly Park School | C54: M | D54: Primary | E54: Community | F54: 3022032 | G54: 101286 | I54: 400084 | J54: 10072 | K54: Yes | L54: Yes | M54: Yes | N54: No | O54: No | P54: No | Q54: A | R54: 543965 | S54: 0.85 | T54: 3022032 | Y54: Goldbeaters Primary School | Z54: Goldbeaters Primary School | AB54: Goldbeaters Primary School
A55: 3023304 | B55: Holy Trinity School | C55: M | D55: Primary | E55: Voluntary Aided | F55: 3023304 | G55: 101317 | I55: 400008 | J55: 10073 | K55: Yes | L55: Yes | M55: Yes | N55: No | O55: No | P55: No | Q55: A | R55: 543965 | S55: 0.85 | T55: 3023304 | Y55: Grasvenor Avenue Infants | Z55: Grasvenor Avenue Infants | AB55: Grasvenor Avenue Infants
A56: 3022047 | B56: Hyde School | C56: A | D56: Primary | E56: Academy | F56: 3022047 | G56: 139817 | I56: 151702 | J56: Academy | K56: Yes | L56: Yes | M56: Yes | N56: No | O56: No | P56: No | Q56: Academy | R56: 516500 | S56: 0 | T56: 3022047 | Y56: Hampden Way Nursery | Z56: Hampden Way Nursery | AB56: Hampden Way Nursery
A57: 3023515 | B57: Independent Jewish Day School | C57: A | D57: Primary | E57: Academy | F57: 3023515 | G57: 137303 | I57: 143982 | J57: Academy | K57: Yes | L57: Yes | M57: Yes | N57: No | O57: No | P57: No | Q57: Academy | R57: 516500 | S57: 0 | T57: 3023515 | Y57: Hasmonean High School | Z57: Hasmonean High School | AB57: Hasmonean High School
A58: 3022036 | B58: Livingstone School | C58: M | D58: Primary | E58: Community | F58: 3022036 | G58: 101289 | I58: 400046 | J58: 10074 | K58: Yes | L58: Yes | M58: Yes | N58: No | O58: No | P58: Yes | Q58: A | R58: 543965 | S58: 0.85 | T58: 3022036 | Y58: Hasmonean High School for Girls | Z58: Hasmonean High School for Girls | AB58: Hasmonean High School for Girls
A59: 3022037 | B59: Manorside Primary School | C59: M | D59: Primary | E59: Community | F59: 3022037 | G59: 101290 | I59: 400030 | J59: 10075 | K59: Yes | L59: Yes | M59: Yes | N59: No | O59: No | P59: No | Q59: A | R59: 543965 | S59: 0.85 | T59: 3022037 | Y59: Hasmonean Primary School | Z59: Hasmonean Primary School | AB59: Hasmonean Primary School
A60: 3023523 | B60: Martin Primary School | C60: M | D60: Primary | E60: Community | F60: 3023523 | G60: 135226 | I60: 400130 | J60: 11093 | K60: Yes | L60: Yes | M60: Yes | N60: No | O60: No | P60: No | Q60: B | R60: 543965 | S60: 0 | T60: 3023523 | Y60: Hendon School | Z60: Hendon School | AB60: Hendon School
A61: 3025948 | B61: Mathilda Marks-Kennedy School | C61: M | D61: Primary | E61: Voluntary Aided | F61: 3025948 | G61: 101376 | I61: 400112 | J61: 10125 | K61: Yes | L61: Yes | M61: Yes | N61: No | O61: No | P61: No | Q61: B | R61: 543965 | S61: 0 | T61: 3025948 | Y61: Henrietta Barnett School | Z61: Henrietta Barnett School | AB61: Henrietta Barnett School
A62: 3025949 | B62: Menorah Foundation School | C62: M | D62: Primary | E62: Voluntary Aided | F62: 3025949 | G62: 131359 | I62: 400110 | J62: 10126 | K62: Yes | L62: Yes | M62: Yes | N62: No | O62: No | P62: No | Q62: B | R62: 543965 | S62: 0 | T62: 3025949 | Y62: Hollickwood JMI School | Z62: Hollickwood JMI School | AB62: Hollickwood JMI School
A63: 3023513 | B63: Menorah Primary School | C63: M | D63: Primary | E63: Voluntary Aided | F63: 3023513 | G63: 101341 | I63: 400007 | J63: 10114 | K63: Yes | L63: Yes | M63: Yes | N63: No | O63: No | P63: No | Q63: A | R63: 543965 | S63: 0.9096 | T63: 3023513 | Y63: Holly Park School | Z63: Holly Park School | AB63: Holly Park School
A64: 3022048 | B64: Millbrook Park CE Primary School | C64: A | D64: Primary | E64: Academy | F64: 3022048 | G64: 140601 | I64: 155126 | J64: Academy | K64: Yes | L64: Yes | M64: Yes | N64: No | O64: No | P64: No | Q64: Academy | R64: 516500 | S64: 0 | T64: 3022048 | Y64: Holy Trinity School | Z64: Holy Trinity School | AB64: Holy Trinity School
A65: 3023305 | B65: Monken Hadley C E Primary School | C65: M | D65: Primary | E65: Voluntary Aided | F65: 3023305 | G65: 101318 | I65: 400086 | J65: 10078 | K65: No | L65: Yes | M65: Yes | N65: No | O65: No | P65: No | Q65: A | R65: 543965 | S65: 0.85 | T65: 3023305 | Y65: Hyde School | Z65: Hyde School | AB65: Hyde School
A66: 3022042 | B66: Monkfrith School | C66: M | D66: Primary | E66: Community | F66: 3022042 | G66: 101293 | I66: 400048 | J66: 10079 | K66: No | L66: Yes | M66: Yes | N66: No | O66: No | P66: No | Q66: D | R66: 543965 | S66: 0 | T66: 3022042 | Y66: Independent Jewish Day School | Z66: Independent Jewish Day School | AB66: Independent Jewish Day School
A67: 3022044 | B67: Moss Hall Infant School | C67: M | D67: Primary | E67: Community | F67: 3022044 | G67: 101295 | I67: 400087 | J67: 10081 | K67: No | L67: Yes | M67: No | N67: No | O67: No | P67: No | Q67: A | R67: 543965 | S67: 0.85 | T67: 3022044 | Y67: JCoSS | Z67: JCoSS | AB67: JCoSS
A68: 3022043 | B68: Moss Hall Junior School | C68: M | D68: Primary | E68: Community | F68: 3022043 | G68: 101294 | I68: 400088 | J68: 10080 | K68: No | L68: No | M68: Yes | N68: No | O68: No | P68: No | Q68: A | R68: 543965 | S68: 0.85 | T68: 3022043 | Y68: Kisharon Inclusive Special Free School | Z68: Kisharon Inclusive Special Free School | AB68: Kisharon Inclusive Special Free School
A69: 3022053 | B69: Noam Primary School | C69: M | D69: Primary | E69: Voluntary Aided | F69: 3022053 | G69: 146803 | H69: HA9 8JW | I69: 158733 | J69: 10113 | K69: Yes | L69: Yes | M69: Yes | N69: No | O69: No | P69: No | Q69: B | R69: 543965 | S69: 0 | T69: 3022053 | Y69: Livingstone School | Z69: Livingstone School | AB69: Livingstone School
A70: 3022045 | B70: Northside School | C70: M | D70: Primary | E70: Community | F70: 3022045 | G70: 101296 | I70: 400089 | J70: 10082 | K70: Yes | L70: Yes | M70: Yes | N70: No | O70: No | P70: No | Q70: A | R70: 543965 | S70: 0.85 | T70: 3022045 | Y70: London Academy | Z70: London Academy | AB70: London Academy
A71: 3022077 | B71: Orion Primary School | C71: M | D71: Primary | E71: Community | F71: 3022077 | G71: 131970 | I71: 400113 | J71: 10127 | K71: Yes | L71: Yes | M71: Yes | N71: No | O71: No | P71: Yes | Q71: A | R71: 543965 | S71: 0.85 | T71: =A71 -> 3022077 | Y71: Manorside Primary School | Z71: Manorside Primary School | AB71: Manorside Primary School
A72: 3025201 | B72: Osidge Primary School | C72: M | D72: Primary | E72: Foundation | F72: 3025201 | G72: 101356 | I72: 400021 | J72: 10084 | K72: No | L72: Yes | M72: Yes | N72: No | O72: No | P72: No | Q72: B | R72: 543965 | S72: 0 | T72: 3025201 | Y72: Mapledown | Z72: Mapledown | AB72: Mapledown
A73: 3023501 | B73: Our Lady of Lourdes School | C73: M | D73: Primary | E73: Voluntary Aided | F73: 3023501 | G73: 101331 | I73: 400003 | J73: 10085 | K73: Yes | L73: Yes | M73: Yes | N73: No | O73: No | P73: No | Q73: A | R73: 543965 | S73: 0.85 | T73: 3023501 | Y73: Martin Primary School | Z73: Martin Primary School | AB73: Martin Primary School
A74: 3022078 | B74: Pardes House School | C74: M | D74: Primary | E74: Voluntary Aided | F74: 3022078 | G74: 133364 | I74: 400014 | J74: 10129 | K74: No | L74: Yes | M74: Yes | N74: No | O74: No | P74: No | Q74: A | R74: 543965 | S74: 0.8574 | T74: 3022078 | Y74: Mathilda Marks-Kennedy School | Z74: Mathilda Marks-Kennedy School | AB74: Mathilda Marks-Kennedy School
A75: 3022038 | B75: Parkfield Primary School | C75: A | D75: Primary | E75: Academy | F75: 3022038 | G75: 139633 | I75: 152217 | J75: Academy | K75: Yes | L75: Yes | M75: Yes | N75: No | O75: No | P75: No | Q75: Academy | R75: 516500 | S75: 0 | T75: 3022038 | Y75: Menorah Foundation School | Z75: Menorah Foundation School | AB75: Menorah Foundation School
A76: 3022071 | B76: Queenswell Infant and Nursery School | C76: M | D76: Primary | E76: Community | F76: 3022071 | G76: 101312 | I76: 400010 | J76: 10119 | K76: Yes | L76: Yes | M76: No | N76: No | O76: No | P76: No | Q76: C | R76: 543965 | S76: 0.85 | T76: 3022071 | Y76: Menorah High School (Girls) | Z76: Menorah High School (Girls) | AB76: Menorah High School (Girls)
A77: 3022072 | B77: Queenswell Junior School | C77: M | D77: Primary | E77: Community | F77: 3022072 | G77: 101313 | I77: 400012 | J77: 10086 | K77: No | L77: No | M77: Yes | N77: No | O77: No | P77: No | Q77: B | R77: 543965 | S77: 0 | T77: 3022072 | Y77: Menorah Primary School | Z77: Menorah Primary School | AB77: Menorah Primary School
A78: 3022004 | B78: Rimon Jewish Primary School | C78: A | D78: Primary | E78: Free School | F78: 3022004 | G78: 138272 | I78: 155029 | J78: Academy | K78: No | L78: Yes | M78: Yes | N78: No | O78: No | P78: No | Q78: Academy | R78: 516500 | S78: 0 | T78: 3022004 | Y78: Mill Hill County High School | Z78: Mill Hill County High School | AB78: Mill Hill County High School
A79: 3023512 | B79: Rosh Pinah | C79: M | D79: Primary | E79: Voluntary Aided | F79: 3023512 | G79: 101340 | I79: 400093 | J79: 10112 | K79: Yes | L79: Yes | M79: Yes | N79: No | O79: No | P79: No | Q79: D | R79: 543965 | S79: 0 | T79: 3023512 | Y79: Millbrook Park CE Primary School | Z79: Millbrook Park CE Primary School | AB79: Millbrook Park CE Primary School
A80: 3022041 | B80: Sacks Morasha Academy | C80: A | D80: Primary | E80: Academy | F80: 3022041 | G80: 139727 | I80: 160025 | J80: 11381 | K80: No | L80: Yes | M80: Yes | N80: No | O80: No | P80: No | Q80: Academy | R80: 516500 | S80: 0 | T80: 3022041 | Y80: Monken Hadley C E Primary School | Z80: Monken Hadley C E Primary School | AB80: Monken Hadley C E Primary School
A81: 3023510 | B81: Sacred Heart School | C81: M | D81: Primary | E81: Voluntary Aided | F81: 3023510 | G81: 101338 | I81: 400071 | J81: 10110 | K81: No | L81: Yes | M81: Yes | N81: No | O81: No | P81: No | Q81: A | R81: 543965 | S81: 0.85 | T81: 3023510 | Y81: Monkfrith School | Z81: Monkfrith School | AB81: Monkfrith School
A82: 3023502 | B82: St Agnes RC Primary School | C82: M | D82: Primary | E82: Voluntary Aided | F82: 3023502 | G82: 101332 | I82: 400096 | J82: 10087 | K82: Yes | L82: Yes | M82: Yes | N82: No | O82: No | P82: No | Q82: A | R82: 543965 | S82: 0.85 | T82: 3023502 | Y82: Moss Hall Infant School | Z82: Moss Hall Infant School | AB82: Moss Hall Infant School
A83: 3023315 | B83: St Andrew's C E | C83: M | D83: Primary | E83: Voluntary Aided | F83: 3023315 | G83: 101327 | I83: 400062 | J83: 10099 | K83: No | L83: Yes | M83: Yes | N83: No | O83: No | P83: No | Q83: D | R83: 543965 | S83: 0 | T83: 3023315 | Y83: Moss Hall Junior School | Z83: Moss Hall Junior School | AB83: Moss Hall Junior School
A84: 3023504 | B84: St Catherines R C Primary | C84: M | D84: Primary | E84: Voluntary Aided | F84: 3023504 | G84: 101333 | I84: 400064 | J84: 10088 | K84: Yes | L84: Yes | M84: Yes | N84: No | O84: No | P84: No | Q84: A | R84: 543965 | S84: 0.85 | T84: 3023504 | Y84: Moss Hall Nursery | Z84: Moss Hall Nursery | AB84: Moss Hall Nursery
A85: 3023309 | B85: St Johns CE N20 | C85: M | D85: Primary | E85: Voluntary Aided | F85: 3023309 | G85: 101321 | I85: 400098 | J85: 10116 | K85: Yes | L85: Yes | M85: Yes | N85: No | O85: No | P85: No | Q85: C | R85: 543965 | S85: 0.85 | T85: 3023309 | Y85: Noam Primary School | Z85: Noam Primary School | AB85: Noam Primary School
A86: 3023307 | B86: St John's CE School N11 | C86: M | D86: Primary | E86: Voluntary Aided | F86: 3023307 | G86: 101319 | I86: 400114 | J86: 10089 | K86: Yes | L86: Yes | M86: Yes | N86: No | O86: No | P86: No | Q86: A | R86: 543965 | S86: 0.85 | T86: 3023307 | Y86: Northgate | Z86: Northgate | AB86: Northgate
A87: 3023509 | B87: St Joseph's Primary School | C87: M | D87: Primary | E87: Voluntary Aided | F87: 3023509 | G87: 101337 | I87: 400066 | J87: 10107 | K87: Yes | L87: Yes | M87: Yes | N87: No | O87: No | P87: No | Q87: A | R87: 543965 | S87: 0.85 | T87: 3023509 | Y87: Northside School | Z87: Northside School | AB87: Northside School
A88: 3023311 | B88: St Mary's C E Primary School N3 | C88: M | D88: Primary | E88: Voluntary Aided | F88: 3023311 | G88: 101323 | I88: 400058 | J88: 10092 | K88: Yes | L88: Yes | M88: Yes | N88: No | O88: No | P88: No | Q88: A | R88: 543965 | S88: 0.85 | T88: 3023311 | Y88: Northway | Z88: Northway | AB88: Northway
A89: 3023312 | B89: St Mary's School EN4 | C89: M | D89: Primary | E89: Voluntary Aided | F89: 3023312 | G89: 101324 | I89: 400017 | J89: 10093 | K89: No | L89: Yes | M89: Yes | N89: No | O89: No | P89: No | Q89: A | R89: 543965 | S89: 0.85 | T89: 3023312 | Y89: Oak Hill School | Z89: Oak Hill School | AB89: Oak Hill School
A90: 3023314 | B90: St Pauls CE Primary, NW7 | C90: M | D90: Primary | E90: Voluntary Aided | F90: 3023314 | G90: 101326 | I90: 400094 | J90: 10095 | K90: No | L90: Yes | M90: Yes | N90: No | O90: No | P90: No | Q90: C | R90: 543965 | S90: 0.85 | T90: 3023314 | Y90: Oak Lodge Academy | Z90: Oak Lodge Academy | AB90: Oak Lodge Academy
A91: 3023313 | B91: St Paul's School, N11 | C91: M | D91: Primary | E91: Voluntary Aided | F91: 3023313 | G91: 101325 | I91: 400006 | J91: 10094 | K91: Yes | L91: Yes | M91: Yes | N91: No | O91: No | P91: No | Q91: A | R91: 543965 | S91: 0.85 | T91: 3023313 | Y91: Oakleigh | Z91: Oakleigh | AB91: Oakleigh
A92: 3023507 | B92: St Theresa's R.C. Primary School | C92: M | D92: Primary | E92: Voluntary Aided | F92: 3023507 | G92: 101335 | I92: 400037 | J92: 10108 | K92: No | L92: Yes | M92: Yes | N92: No | O92: No | P92: No | Q92: A | R92: 543965 | S92: 0.85 | T92: 3023507 | Y92: Orion Primary School | Z92: Orion Primary School | AB92: Orion Primary School
A93: 3023506 | B93: St Vincent's Catholic Primary School | C93: M | D93: Primary | E93: Voluntary Aided | F93: 3023506 | G93: 101334 | I93: 400009 | J93: 10096 | K93: No | L93: Yes | M93: Yes | N93: No | O93: No | P93: No | Q93: A | R93: 543965 | S93: 0.85 | T93: 3023506 | Y93: Osidge Primary School | Z93: Osidge Primary School | AB93: Osidge Primary School
A94: 3022051 | B94: Summerside Primary Academy | C94: A | D94: Primary | E94: Academy | F94: 3022051 | G94: 144653 | I94: 157542 | J94: Academy | K94: Yes | L94: Yes | M94: Yes | N94: No | O94: No | P94: Yes | Q94: Academy | R94: 516500 | S94: 0 | T94: 3022051 | Y94: Our Lady of Lourdes School | Z94: Our Lady of Lourdes School | AB94: Our Lady of Lourdes School
A95: 3022070 | B95: Sunnyfields Primary School | C95: M | D95: Primary | E95: Community | F95: 3022070 | G95: 101311 | I95: 400038 | J95: 10097 | K95: Yes | L95: Yes | M95: Yes | N95: No | O95: No | P95: No | Q95: D | R95: 543965 | S95: 0 | T95: 3022070 | Y95: Pardes House School | Z95: Pardes House School | AB95: Pardes House School
A96: 3023316 | B96: Trent C of E Primary School | C96: M | D96: Primary | E96: Voluntary Aided | F96: 3023316 | G96: 101328 | I96: 400100 | J96: 10100 | K96: No | L96: Yes | M96: Yes | N96: No | O96: No | P96: No | Q96: A | R96: 543965 | S96: 0.85 | T96: 3023316 | Y96: Parkfield Primary School | Z96: Parkfield Primary School | AB96: Parkfield Primary School
A97: 3022055 | B97: Tudor School | C97: M | D97: Primary | E97: Community | F97: 3022055 | G97: 101299 | I97: 400101 | J97: 10101 | K97: Yes | L97: Yes | M97: Yes | N97: No | O97: No | P97: No | Q97: A | R97: 543965 | S97: 0.85 | T97: 3022055 | Y97: Pavilion | Z97: Pavilion | AB97: Pavilion
A98: 3022057 | B98: Underhill School | C98: M | D98: Primary | E98: Community | F98: 3022057 | G98: 101301 | I98: 400053 | J98: 10103 | K98: Yes | L98: Yes | M98: Yes | N98: No | O98: No | P98: No | Q98: B | R98: 543965 | S98: 0 | T98: 3022057 | Y98: Queen Elizabeth's Girls' School | Z98: Queen Elizabeth's Girls' School | AB98: Queen Elizabeth's Girls' School
A99: 3022049 | B99: Watling Park Free School | C99: A | D99: Primary | E99: Academy | F99: 3022049 | G99: 142114 | I99: 157055 | J99: Academy | K99: NO | L99: Yes | M99: Yes | N99: No | O99: NO | P99: No | Q99: Academy | R99: 516500 | S99: 0 | T99: 3022049 | Y99: Queen Elizabeth's School (Boys) | Z99: Queen Elizabeth's School (Boys) | AB99: Queen Elizabeth's School (Boys)
A100: 3022076 | B100: Wessex Gardens Primary School | C100: M | D100: Primary | E100: Community | F100: 3022076 | G100: 131617 | I100: 400111 | J100: 10124 | K100: Yes | L100: Yes | M100: Yes | N100: No | O100: No | P100: No | Q100: D | R100: 543965 | S100: 0 | T100: 3022076 | Y100: Queenswell Infant and Nursery School | Z100: Queenswell Infant and Nursery School | AB100: Queenswell Infant and Nursery School
A101: 3022060 | B101: Whitings Hill Primary School | C101: M | D101: Primary | E101: Community | F101: 3022060 | G101: 101304 | I101: 400011 | J101: 10105 | K101: Yes | L101: Yes | M101: Yes | N101: No | O101: No | P101: No | Q101: A | R101: 543965 | S101: 0.85 | T101: 3022060 | Y101: Queenswell Junior School | Z101: Queenswell Junior School | AB101: Queenswell Junior School
A102: 3023518 | B102: Woodcroft Primary School | C102: M | D102: Primary | E102: Community | F102: 3023518 | G102: 134677 | I102: 400117 | J102: 10123 | K102: Yes | L102: Yes | M102: Yes | N102: No | O102: No | P102: No | Q102: A | R102: 543965 | S102: 0.85 | T102: 3023518 | Y102: Rimon Jewish Primary School | Z102: Rimon Jewish Primary School | AB102: Rimon Jewish Primary School
A103: 3022054 | B103: Woodridge Primary School | C103: M | D103: Primary | E103: Community | F103: 3022054 | G103: 101298 | I103: 400004 | J103: 10109 | K103: No | L103: Yes | M103: Yes | N103: No | O103: No | P103: No | Q103: A | R103: 543965 | S103: 0.85 | T103: 3022054 | Y103: Rosh Pinah | Z103: Rosh Pinah | AB103: Rosh Pinah
A104: 0 | C104: None | D104: 0 | F104: 0 | G104: 0 | I104: 0 | J104: 0 | K104: 0 | L104: Yes | M104: Yes | N104: No | O104: 0 | P104: 0 | Q104: 0 | R104: 0 | S104: 0 | T104: 0 | Y104: Sacks Morasha Academy | Z104: Sacks Morasha Academy | AB104: Sacks Morasha Academy
A105: 3021102 | B105: Northgate | C105: M | D105: PRU | E105: Community | F105: 3021102 | G105: 133749 | I105: 400157 | J105: 10185 | K105: No | L105: Yes | M105: Yes | N105: Yes | O105: Yes | P105: No | Q105: A | R105: 543965 | S105: 0.85 | T105: 3021102 | Y105: Sacred Heart School | Z105: Sacred Heart School | AB105: Sacred Heart School
A106: 3021100 | B106: Pavilion | C106: M | D106: PRU | E106: Community | F106: 3021100 | G106: 101255 | I106: 400156 | J106: 10188 | K106: No | L106: No | M106: No | N106: Yes | O106: No | P106: No | Q106: D | R106: 543965 | S106: 0 | T106: 3021100 | Y106: Saracens High School | Z106: Saracens High School | AB106: Saracens High School
A107: 0 | C107: None | D107: 0 | F107: 0 | G107: 0 | I107: 0 | J107: 0 | K107: 0 | N107: 0 | O107: 0 | P107: 0 | Q107: 0 | R107: 0 | S107: 0 | T107: 0 | Y107: St Agnes RC Primary School | Z107: St Agnes RC Primary School | AB107: St Agnes RC Primary School
A108: 3024001 | B108: Archer Academy | C108: A | D108: Secondary | E108: Free School | F108: 3024001 | G108: 139594 | I108: 153627 | J108: Academy | K108: No | L108: No | M108: No | N108: Yes | O108: No | P108: No | Q108: Academy | R108: 516500 | S108: 0 | T108: 3024001 | Y108: St Andrew the Apostle Greek Orthodox School | Z108: St Andrew the Apostle Greek Orthodox School | AB108: St Andrew the Apostle Greek Orthodox School
A109: 3024013 | B109: ARK Pioneer Academy | C109: A | D109: Secondary | E109: Free School | F109: 3024013 | G109: 149999 | I109: 159947 | J109: Academy | K109: No | L109: No | M109: No | N109: Yes | O109: No | P109: No | Q109: Academy | R109: 516500 | S109: 0 | T109: 3024013 | Y109: St Andrew's C E | Z109: St Andrew's C E | AB109: St Andrew's C E
A110: 3025406 | B110: Ashmole Academy | C110: A | D110: Secondary | E110: Academy | F110: 3025406 | G110: 136308 | I110: 140909 | J110: Academy | K110: No | L110: No | M110: No | N110: Yes | O110: Yes | P110: No | Q110: Academy | R110: 516500 | S110: 0 | T110: 3025406 | Y110: St Catherines R C Primary | Z110: St Catherines R C Primary | AB110: St Catherines R C Primary
A111: 3025408 | B111: Bishop Douglass Academy | C111: A | D111: Secondary | E111: Academy | F111: 3025408 | G111: 143082 | I111: 156628 | J111: Academy | K111: No | L111: No | M111: No | N111: Yes | O111: Yes | P111: No | Q111: Academy | R111: 516500 | S111: 0 | T111: 3025408 | Y111: St Johns CE N20 | Z111: St Johns CE N20 | AB111: St Johns CE N20
A112: 3024211 | B112: Christ's College Finchley | C112: A | D112: Secondary | E112: Academy | F112: 3024211 | G112: 137388 | I112: 144389 | J112: Academy | K112: No | L112: No | M112: No | N112: Yes | O112: Yes | P112: No | Q112: Academy | R112: 516500 | S112: 0 | T112: 3024211 | Y112: St John's CE School N11 | Z112: St John's CE School N11 | AB112: St John's CE School N11
A113: 3024215 | B113: Compton School | C113: A | D113: Secondary | E113: Academy | F113: 3024215 | G113: 136418 | I113: 140894 | J113: Academy | K113: No | L113: No | M113: No | N113: Yes | O113: No | P113: No | Q113: Academy | R113: 516500 | S113: 0 | T113: 3024215 | Y113: St Joseph's Primary School | Z113: St Joseph's Primary School | AB113: St Joseph's Primary School
A114: 3024210 | B114: Copthall School | C114: A | D114: Secondary | E114: Academy | F114: 3024210 | G114: 138685 | I114: 148020 | J114: Academy | K114: No | L114: No | M114: No | N114: Yes | O114: Yes | P114: No | Q114: Academy | R114: 516500 | S114: 0 | T114: 3024210 | Y114: St Margaret's Nursery | Z114: St Margaret's Nursery | AB114: St Margaret's Nursery
A115: 3024212 | B115: East Barnet School | C115: A | D115: Secondary | E115: Academy | F115: 3024212 | G115: 136658 | I115: 143727 | J115: Academy | K115: No | L115: No | M115: No | N115: Yes | O115: Yes | P115: No | Q115: Academy | R115: 516500 | S115: 0 | T115: 3024212 | Y115: St Mary's & St John's CE School | Z115: St Mary's & St John's CE School | AB115: St Mary's & St John's CE School
A116: 3025405 | B116: Finchley Catholic High School | C116: M | D116: Secondary | E116: Voluntary Aided | F116: 3025405 | G116: 101362 | I116: 400041 | J116: 10145 | K116: No | L116: No | M116: No | N116: Yes | O116: Yes | P116: No | Q116: B | R116: 543965 | S116: 0 | T116: 3025405 | Y116: St Mary's C E Primary School N3 | Z116: St Mary's C E Primary School N3 | AB116: St Mary's C E Primary School N3
A117: 3024003 | B117: Friern Barnet School | C117: M | D117: Secondary | E117: Community | F117: 3024003 | G117: 101345 | I117: 400033 | J117: 10139 | K117: No | L117: No | M117: No | N117: Yes | O117: No | P117: No | Q117: D | R117: 543965 | S117: 0 | T117: 3024003 | Y117: St Mary's School EN4 | Z117: St Mary's School EN4 | AB117: St Mary's School EN4
A118: 3025409 | B118: Hasmonean High School | C118: A | D118: Secondary | E118: Academy | F118: 3025409 | G118: 137539 | I118: 145386 | J118: Academy | K118: No | L118: No | M118: No | N118: Yes | O118: Yes | P118: No | Q118: Academy | R118: 516500 | S118: 0 | T118: 3025409 | Y118: St Michaels Catholic Grammar School | Z118: St Michaels Catholic Grammar School | AB118: St Michaels Catholic Grammar School
A119: 3024014 | B119: Hasmonean High School for Girls | C119: A | D119: Secondary | E119: Academy | F119: 3024014 | I119: 145386 | J119: Academy | K119: No | L119: No | M119: No | N119: Yes | O119: Yes | P119: Yes | Q119: Academy | R119: 516500 | S119: 0 | T119: 3024014 | Y119: St Pauls CE Primary, NW7 | Z119: St Pauls CE Primary, NW7 | AB119: St Pauls CE Primary, NW7
A120: 3025400 | B120: Hendon School | C120: A | D120: Secondary | E120: Academy | F120: 3025400 | G120: 137645 | I120: 145169 | J120: Academy | K120: No | L120: No | M120: No | N120: Yes | O120: Yes | P120: Yes | Q120: Academy | R120: 516500 | S120: 0 | T120: 3025400 | Y120: St Paul's School, N11 | Z120: St Paul's School, N11 | AB120: St Paul's School, N11
A121: 3024752 | B121: Henrietta Barnett School | C121: A | D121: Secondary | E121: Academy | F121: 3024752 | G121: 138051 | I121: 147243 | J121: Academy | K121: No | L121: No | M121: No | N121: Yes | O121: Yes | P121: No | Q121: Academy | R121: 516500 | S121: 0 | T121: 3024752 | Y121: St Theresa's R.C. Primary School | Z121: St Theresa's R.C. Primary School | AB121: St Theresa's R.C. Primary School
A122: 3025427 | B122: JCoSS | C122: M | D122: Secondary | E122: Voluntary Aided | F122: 3025427 | G122: 135747 | I122: 400140 | J122: 11174 | K122: No | L122: No | M122: No | N122: Yes | O122: Yes | P122: Yes | Q122: D | R122: 543965 | S122: 0 | T122: 3025427 | Y122: St Vincent's Catholic Primary School | Z122: St Vincent's Catholic Primary School | AB122: St Vincent's Catholic Primary School
A123: 3024004 | B123: Menorah High School (Girls) | C123: M | D123: Secondary | E123: Voluntary Aided | F123: 3024004 | G123: 142627 | I123: 107953 | J123: 11513 | K123: No | L123: No | M123: No | N123: Yes | O123: Yes | P123: No | Q123: D | R123: 543965 | S123: 0 | T123: 3024004 | Y123: St. James' Catholic High School | Z123: St. James' Catholic High School | AB123: St. James' Catholic High School
A124: 3025402 | B124: Mill Hill County High School | C124: A | D124: Secondary | E124: Academy | F124: 3025402 | G124: 137386 | I124: 144069 | J124: Academy | K124: No | L124: No | M124: No | N124: Yes | O124: Yes | P124: No | Q124: Academy | R124: 516500 | S124: 0 | T124: 3025402 | Y124: Summerside Primary Academy | Z124: Summerside Primary Academy | AB124: Summerside Primary Academy
A125: 3024208 | B125: Queen Elizabeth's Girls' School | C125: A | D125: Secondary | E125: Academy | F125: 3024208 | G125: 137131 | I125: 144387 | J125: Academy | K125: No | L125: No | M125: No | N125: Yes | O125: Yes | P125: No | Q125: Academy | R125: 516500 | S125: 0 | T125: 3024208 | Y125: Sunnyfields Primary School | Z125: Sunnyfields Primary School | AB125: Sunnyfields Primary School
A126: 3025401 | B126: Queen Elizabeth's School (Boys) | C126: A | D126: Secondary | E126: Academy | F126: 3025401 | G126: 136290 | I126: 139142 | J126: Academy | K126: No | L126: No | M126: No | N126: Yes | O126: Yes | P126: No | Q126: Academy | R126: 516500 | S126: 0 | T126: 3025401 | Y126: Totteridge Academy | Z126: Totteridge Academy | AB126: Totteridge Academy
A127: 3024011 | B127: Saracens High School | C127: A | D127: Secondary | E127: Free School | F127: 3024011 | G127: 145921 | I127: 158756 | J127: Academy | K127: No | L127: No | M127: No | N127: Yes | O127: No | P127: No | Q127: Academy | R127: 516500 | S127: 0 | T127: 3024011 | Y127: Trent C of E Primary School | Z127: Trent C of E Primary School | AB127: Trent C of E Primary School
A128: 3024000 | B128: St Andrew the Apostle Greek Orthodox School | C128: A | D128: Secondary | E128: Free School | F128: 3024000 | G128: 139410 | I128: 156093 | J128: Academy | K128: No | L128: No | M128: No | N128: Yes | O128: No | P128: No | Q128: Academy | R128: 516500 | S128: 0 | T128: 3024000 | Y128: Tudor School | Z128: Tudor School | AB128: Tudor School
A129: 3025404 | B129: St Michaels Catholic Grammar School | C129: M | D129: Secondary | E129: Voluntary Aided | F129: 3025404 | G129: 101361 | I129: 400029 | J129: 10148 | K129: No | L129: No | M129: No | N129: Yes | O129: Yes | P129: No | Q129: B | R129: 543965 | S129: 0 | T129: 3025404 | Y129: Underhill School | Z129: Underhill School | AB129: Underhill School
A130: 3025407 | B130: St. James' Catholic High School | C130: M | D130: Secondary | E130: Voluntary Aided | F130: 3025407 | G130: 101364 | I130: 400013 | J130: 10142 | K130: No | L130: No | M130: No | N130: Yes | O130: Yes | P130: No | Q130: B | R130: 543965 | S130: 0 | T130: 3025407 | Y130: Watling Park Free School | Z130: Watling Park Free School | AB130: Watling Park Free School
A131: 3024010 | B131: Totteridge Academy | C131: A | D131: Secondary | E131: Academy | F131: 3024010 | G131: 144502 | I131: 144388 | J131: Academy | K131: No | L131: No | M131: No | N131: Yes | O131: Yes | P131: No | Q131: Academy | R131: 516500 | S131: 0 | T131: 3024010 | Y131: Wessex Gardens Primary School | Z131: Wessex Gardens Primary School | AB131: Wessex Gardens Primary School
A132: 3024012 | B132: Whitefield School | C132: A | D132: Secondary | E132: Academy | F132: 3024012 | G132: 137361 | I132: 144062 | J132: Academy | K132: No | L132: No | M132: No | N132: Yes | O132: Yes | P132: Yes | Q132: Academy | R132: 516500 | S132: 0 | T132: 3024012 | Y132: Whitefield School | Z132: Whitefield School | AB132: Whitefield School
A133: 0 | C133: None | D133: 0 | F133: 0 | G133: 0 | I133: 0 | J133: 0 | K133: 0 | L133: 0 | M133: 0 | N133: 0 | O133: 0 | P133: 0 | Q133: 0 | R133: 0 | S133: 0 | T133: 0 | Y133: Whitings Hill Primary School | Z133: Whitings Hill Primary School | AB133: Whitings Hill Primary School
A134: 3026085 | B134: Kisharon Inclusive Special Free School | C134: A | D134: Special | E134: Free School | F134: 3026085 | G134: 101386 | I134: 105221 | J134: Academy | K134: No | L134: Yes | M134: Yes | N134: Yes | O134: Yes | P134: No | Q134: Academy | R134: 516500 | S134: 0 | T134: 3026085 | Y134: Woodcroft Primary School | Z134: Woodcroft Primary School | AB134: Woodcroft Primary School
A135: 3027010 | B135: Mapledown | C135: M | D135: Special | E135: Community | F135: 3027010 | G135: 101397 | I135: 400063 | J135: 10159 | K135: No | L135: No | M135: No | N135: Yes | O135: Yes | P135: No | Q135: D | R135: 543965 | S135: 0 | T135: =A135 -> 3027010 | Y135: Woodridge Primary School | Z135: Woodridge Primary School | AB135: Woodridge Primary School
A136: 3027005 | B136: Northway | C136: M | D136: Special | E136: Community | F136: 3027005 | G136: 101395 | I136: 400034 | J136: 10157 | K136: No | L136: Yes | M136: Yes | N136: No | O136: No | P136: No | Q136: A | R136: 543965 | S136: 0.85 | T136: 3027005 | Y136: Wren Academy | Z136: Wren Academy | AB136: Wren Academy
